Workbook

Sheet Padrões
A1: Fluxo_veicular_BH | J1: Dist_idade_frota | X1: Idade_frota_BH
A2: Cód | B2: Endereço | C2: Coordenadas | E2: Contagem de veículos | J2: Ano de Fabricação | K2: Ônibus | L2: Ônibus-Elétrico | M2: Microônibus | N2: Caminhão | O2: Moto-Gasolina | P2: Moto-Flex | Q2: Automóvel-Gasolina | R2: Automóvel-Álcool | S2: Automóvel-Flex | T2: Automóvel-Diesel | X2: Ano_de_fabricacao | Y2: Tipologia_veicular | Z2: Veiculo_ID | AA2: Tipologia_ID | AB2: Quantidade | AC2: Poluente | AD2: Fator_Emissao
C3: X | D3: Y | E3: Automóveis | F3: Motos | G3: Ônibus | H3: Caminhões | J3: 1983 | K3: 26 | M3: 0 | N3: 147 | O3: 969 | P3: 0 | Q3: 2057 | R3: 2904 | S3: 0 | T3: 163 | X3: 1983 | Y3: Onibus | Z3: 1 | AA3: 3 | AB3: 26 | AC3: CO | AD3: 3.019130435
A4: SPL0023 | C4: -43.9956372 | D4: -19.9007049 | E4: 7350 | F4: 2274 | G4: 384 | H4: 147 | J4: 1984 | K4: 27 | M4: 1 | N4: 159 | O4: 633 | P4: 0 | Q4: 849 | R4: 3281 | S4: 1 | T4: 186 | X4: 1984 | Y4: Onibus | Z4: 1 | AA4: 3 | AB4: 27 | AC4: CO | AD4: 3.019130435
A5: SPL2411 | C5: -43.9352582 | D5: -19.9472637 | E5: 44652 | F5: 5253 | G5: 1694 | H5: 294 | J5: 1985 | K5: 30 | M5: 1 | N5: 248 | O5: 473 | P5: 0 | Q5: 816 | R5: 3376 | S5: 2 | T5: 157 | X5: 1985 | Y5: Onibus | Z5: 1 | AA5: 3 | AB5: 30 | AC5: CO | AD5: 3.019130435
A6: SPL2430 | C6: -43.972056 | D6: -19.922921 | E6: 40868 | F6: 4650 | G6: 4027 | H6: 700 | J6: 1986 | K6: 58 | M6: 4 | N6: 444 | O6: 765 | P6: 0 | Q6: 1406 | R6: 5821 | S6: 0 | T6: 254 | X6: 1986 | Y6: Onibus | Z6: 1 | AA6: 3 | AB6: 58 | AC6: CO | AD6: 3.019130435
A7: SPL3253 | C7: -44.017565 | D7: -19.991669 | E7: 20518 | F7: 5710 | G7: 2522 | H7: 438 | J7: 1987 | K7: 57 | M7: 3 | N7: 378 | O7: 883 | P7: 0 | Q7: 808 | R7: 3387 | S7: 0 | T7: 196 | X7: 1987 | Y7: Onibus | Z7: 1 | AA7: 3 | AB7: 57 | AC7: CO | AD7: 3.019130435
A8: SPL3254 | C8: -43.9870478 | D8: -19.9445419 | E8: 47762 | F8: 7939 | G8: 2812 | H8: 489 | J8: 1988 | K8: 67 | M8: 3 | N8: 302 | O8: 922 | P8: 0 | Q8: 1012 | R8: 4326 | S8: 18 | T8: 274 | X8: 1988 | Y8: Onibus | Z8: 1 | AA8: 3 | AB8: 67 | AC8: CO | AD8: 3.019130435
A9: SPL3255 | C9: -43.9830623 | D9: -19.9286114 | E9: 7595 | F9: 2412 | G9: 199 | H9: 235 | J9: 1989 | K9: 81 | M9: 0 | N9: 332 | O9: 702 | P9: 0 | Q9: 3130 | R9: 4395 | S9: 2 | T9: 390 | X9: 1989 | Y9: Onibus | Z9: 1 | AA9: 3 | AB9: 81 | AC9: CO | AD9: 3.019130435
A10: SPL3256 | C10: -43.9679105 | D10: -19.8884147 | E10: 44116 | F10: 6767 | G10: 1741 | H10: 303 | J10: 1990 | K10: 54 | M10: 6 | N10: 316 | O10: 881 | P10: 0 | Q10: 5837 | R10: 988 | S10: 13 | T10: 341 | X10: 1990 | Y10: Onibus | Z10: 1 | AA10: 3 | AB10: 54 | AC10: CO | AD10: 3.019130435
A11: SPL3257 | C11: -43.951402 | D11: -19.971216 | E11: 29575 | F11: 4337 | G11: 1262 | H11: 484 | J11: 1991 | K11: 50 | M11: 3 | N11: 273 | O11: 631 | P11: 0 | Q11: 6655 | R11: 838 | S11: 0 | T11: 271 | X11: 1991 | Y11: Onibus | Z11: 1 | AA11: 3 | AB11: 50 | AC11: CO | AD11: 3.019130435
A12: SPL3258 | C12: -43.921536 | D12: -19.893325 | E12: 25380 | F12: 5008 | G12: 1013 | H12: 388 | J12: 1992 | K12: 97 | M12: 0 | N12: 258 | O12: 524 | P12: 0 | Q12: 5726 | R12: 1103 | S12: 0 | T12: 289 | X12: 1992 | Y12: Onibus | Z12: 1 | AA12: 3 | AB12: 97 | AC12: CO | AD12: 3.019130435
A13: SPL3259 | C13: -43.951562 | D13: -19.887463 | E13: 34842 | F13: 7880 | G13: 1204 | H13: 209 | J13: 1993 | K13: 71 | M13: 10 | N13: 189 | O13: 316 | P13: 0 | Q13: 8575 | R13: 1489 | S13: 1 | T13: 359 | X13: 1993 | Y13: Onibus | Z13: 1 | AA13: 3 | AB13: 71 | AC13: CO | AD13: 3.019130435
A14: SPL3260 | C14: -43.9505311 | D14: -19.888291 | E14: 38215 | F14: 4677 | G14: 1350 | H14: 235 | J14: 1994 | K14: 49 | M14: 28 | N14: 327 | O14: 559 | P14: 0 | Q14: 11036 | R14: 1343 | S14: 0 | T14: 491 | X14: 1994 | Y14: Onibus | Z14: 1 | AA14: 3 | AB14: 49 | AC14: CO | AD14: 3.019130435
A15: SPL3261 | C15: -43.946917 | D15: -19.898799 | E15: 11234 | F15: 5128 | G15: 1389 | H15: 241 | J15: 1995 | K15: 86 | M15: 103 | N15: 527 | O15: 1134 | P15: 0 | Q15: 18944 | R15: 344 | S15: 2 | T15: 553 | X15: 1995 | Y15: Onibus | Z15: 1 | AA15: 3 | AB15: 86 | AC15: CO | AD15: 3.019130435
A16: SPL3262 | C16: -43.9403075 | D16: -19.9556957 | E16: 33772 | F16: 2780 | G16: 1715 | H16: 602 | J16: 1996 | K16: 101 | M16: 37 | N16: 321 | O16: 1365 | P16: 0 | Q16: 17211 | R16: 51 | S16: 1 | T16: 209 | X16: 1996 | Y16: Onibus | Z16: 1 | AA16: 3 | AB16: 101 | AC16: CO | AD16: 3.019130435
A17: SPL3264 | C17: -43.949056 | D17: -19.917737 | E17: 45895 | F17: 7989 | G17: 2538 | H17: 683 | J17: 1997 | K17: 89 | M17: 218 | N17: 613 | O17: 2602 | P17: 0 | Q17: 19715 | R17: 12 | S17: 0 | T17: 299 | X17: 1997 | Y17: Onibus | Z17: 1 | AA17: 3 | AB17: 89 | AC17: CO | AD17: 3.019130435
A18: SPL3265 | C18: -43.9493971 | D18: -19.9178898 | E18: 40549 | F18: 3026 | G18: 983 | H18: 346 | J18: 1998 | K18: 97 | M18: 159 | N18: 641 | O18: 2838 | P18: 0 | Q18: 16751 | R18: 7 | S18: 3 | T18: 409 | X18: 1998 | Y18: Onibus | Z18: 1 | AA18: 3 | AB18: 97 | AC18: CO | AD18: 3.019130435
A19: SPL3266 | C19: -43.928484 | D19: -19.901449 | E19: 50023 | F19: 13865 | G19: 2003 | H19: 704 | J19: 1999 | K19: 139 | M19: 124 | N19: 481 | O19: 2267 | P19: 0 | Q19: 15116 | R19: 14 | S19: 0 | T19: 344 | X19: 1999 | Y19: Onibus | Z19: 1 | AA19: 3 | AB19: 139 | AC19: CO | AD19: 3.019130435
A20: SPL3268 | C20: -43.9282598 | D20: -19.9393729 | E20: 20237 | F20: 4257 | G20: 359 | H20: 126 | J20: 2000 | K20: 77 | M20: 138 | N20: 489 | O20: 3136 | P20: 0 | Q20: 15355 | R20: 73 | S20: 1 | T20: 529 | X20: 2000 | Y20: Onibus | Z20: 1 | AA20: 3 | AB20: 77 | AC20: CO | AD20: 2.714000798
A21: SPL3269 | C21: -43.999321 | D21: -19.873925 | E21: 6287 | F21: 970 | G21: 201 | H21: 71 | J21: 2001 | K21: 156 | M21: 208 | N21: 620 | O21: 3541 | P21: 0 | Q21: 18573 | R21: 85 | S21: 3 | T21: 894 | X21: 2001 | Y21: Onibus | Z21: 1 | AA21: 3 | AB21: 156 | AC21: CO | AD21: 2.714000798
A22: SPL3271 | C22: -43.952757 | D22: -19.927254 | E22: 47718 | F22: 21369 | G22: 3264 | H22: 1147 | J22: 2002 | K22: 91 | M22: 45 | N22: 509 | O22: 4223 | P22: 0 | Q22: 14698 | R22: 147 | S22: 3 | T22: 532 | X22: 2002 | Y22: Onibus | Z22: 1 | AA22: 3 | AB22: 91 | AC22: CO | AD22: 1.47826087
A23: SPL3272 | C23: -43.993488 | D23: -19.934742 | E23: 34403 | F23: 5207 | G23: 1501 | H23: 292 | J23: 2003 | K23: 103 | M23: 57 | N23: 456 | O23: 5047 | P23: 0 | Q23: 16345 | R23: 198 | S23: 22 | T23: 522 | X23: 2003 | Y23: Onibus | Z23: 1 | AA23: 3 | AB23: 103 | AC23: CO | AD23: 1.47826087
A24: SPL3273 | C24: -43.9306517 | D24: -19.8646028 | E24: 41679 | F24: 8627 | G24: 3564 | H24: 694 | J24: 2004 | K24: 131 | M24: 84 | N24: 686 | O24: 4619 | P24: 0 | Q24: 13063 | R24: 83 | S24: 1663 | T24: 700 | X24: 2004 | Y24: Onibus | Z24: 1 | AA24: 3 | AB24: 131 | AC24: CO | AD24: 1.41
A25: SPL3274 | C25: -43.980853 | D25: -19.9302968 | E25: 44070 | F25: 6711 | G25: 1758 | H25: 618 | J25: 2005 | K25: 96 | M25: 77 | N25: 824 | O25: 6828 | P25: 0 | Q25: 11807 | R25: 85 | S25: 6460 | T25: 776 | X25: 2005 | Y25: Onibus | Z25: 1 | AA25: 3 | AB25: 96 | AC25: CO | AD25: 1.41
A26: SPL3275 | C26: -43.9701519 | D26: -19.9311106 | E26: 49021 | F26: 8335 | G26: 1957 | H26: 687 | J26: 2006 | K26: 156 | M26: 125 | N26: 852 | O26: 7519 | P26: 0 | Q26: 5134 | R26: 77 | S26: 15094 | T26: 1095 | X26: 2006 | Y26: Onibus | Z26: 1 | AA26: 3 | AB26: 156 | AC26: CO | AD26: 1.81064493
A27: SPL3276 | C27: -43.9313474 | D27: -19.8645403 | E27: 35282 | F27: 7543 | G27: 1370 | H27: 368 | J27: 2007 | K27: 212 | M27: 157 | N27: 738 | O27: 12449 | P27: 0 | Q27: 6019 | R27: 190 | S27: 20967 | T27: 1000 | X27: 2007 | Y27: Onibus | Z27: 1 | AA27: 3 | AB27: 212 | AC27: CO | AD27: 1.81064493
A28: SPL3277 | C28: -43.9553699 | D28: -19.9638634 | E28: 34027 | F28: 4445 | G28: 1173 | H28: 450 | J28: 2008 | K28: 332 | M28: 267 | N28: 1217 | O28: 22881 | P28: 2 | Q28: 5907 | R28: 254 | S28: 36083 | T28: 1612 | X28: 2008 | Y28: Onibus | Z28: 1 | AA28: 3 | AB28: 332 | AC28: CO | AD28: 2.289032412
A29: SPL3278 | C29: -44.013794 | D29: -19.97356 | E29: 27888 | F29: 6890 | G29: 2804 | H29: 985 | J29: 2009 | K29: 187 | M29: 234 | N29: 1418 | O29: 7798 | P29: 895 | Q29: 3888 | R29: 134 | S29: 32438 | T29: 1582 | X29: 2009 | Y29: Onibus | Z29: 1 | AA29: 3 | AB29: 187 | AC29: CO | AD29: 1.894955409
A30: SPL3279 | C30: -43.948174 | D30: -19.897164 | E30: 38437 | F30: 5624 | G30: 896 | H30: 282 | J30: 2010 | K30: 303 | M30: 148 | N30: 1874 | O30: 12526 | P30: 2665 | Q30: 5853 | R30: 197 | S30: 46011 | T30: 1717 | X30: 2010 | Y30: Onibus | Z30: 1 | AA30: 3 | AB30: 303 | AC30: CO | AD30: 1.839272044
A31: SPL3280 | C31: -43.9643543 | D31: -19.8502858 | E31: 56979 | F31: 11459 | G31: 2492 | H31: 671 | J31: 2011 | K31: 420 | M31: 408 | N31: 2231 | O31: 10202 | P31: 4522 | Q31: 7341 | R31: 242 | S31: 48491 | T31: 2451 | X31: 2011 | Y31: Onibus | Z31: 1 | AA31: 3 | AB31: 420 | AC31: CO | AD31: 1.676968619
A32: SPL3281 | C32: -43.919865 | D32: -19.84968 | E32: 26415 | F32: 4289 | G32: 1999 | H32: 702 | J32: 2012 | K32: 472 | M32: 369 | N32: 1796 | O32: 9318 | P32: 4781 | Q32: 9155 | R32: 392 | S32: 51333 | T32: 2546 | X32: 2012 | Y32: Onibus | Z32: 1 | AA32: 3 | AB32: 472 | AC32: CO | AD32: 0.5374270771
A33: SPL3282 | C33: -43.9653983 | D33: -19.9177699 | E33: 37854 | F33: 5089 | G33: 2517 | H33: 677 | J33: 2013 | K33: 394 | M33: 391 | N33: 2092 | O33: 5906 | P33: 4566 | Q33: 4837 | R33: 492 | S33: 64123 | T33: 3295 | X33: 2013 | Y33: Onibus | Z33: 1 | AA33: 3 | AB33: 394 | AC33: CO | AD33: 0.5387190058
A34: SPL3283 | C34: -43.9270843 | D34: -19.9375698 | E34: 10703 | F34: 1227 | G34: 402 | H34: 141 | J34: 2014 | K34: 799 | M34: 473 | N34: 1273 | O34: 5599 | P34: 7138 | Q34: 5336 | R34: 461 | S34: 55650 | T34: 2466 | X34: 2014 | Y34: Onibus | Z34: 1 | AA34: 3 | AB34: 799 | AC34: CO | AD34: 0.5387190058
A35: SPL3284 | C35: -43.935591 | D35: -19.840201 | E35: 41728 | F35: 7056 | G35: 3475 | H35: 1221 | J35: 2015 | K35: 209 | M35: 187 | N35: 717 | O35: 4403 | P35: 7772 | Q35: 4590 | R35: 519 | S35: 53023 | T35: 2216 | X35: 2015 | Y35: Onibus | Z35: 1 | AA35: 3 | AB35: 209 | AC35: CO | AD35: 0.539
A36: SPL3285 | C36: -43.9541203 | D36: -19.9276552 | E36: 9925 | F36: 2121 | G36: 3500 | H36: 1230 | J36: 2016 | K36: 272 | M36: 168 | N36: 570 | O36: 2840 | P36: 5014 | Q36: 3165 | R36: 449 | S36: 40082 | T36: 1862 | X36: 2016 | Y36: Onibus | Z36: 1 | AA36: 3 | AB36: 272 | AC36: CO | AD36: 0.566019018
A37: SPL3286 | C37: -43.965559 | D37: -19.8494896 | E37: 38385 | F37: 7570 | G37: 1803 | H37: 633 | J37: 2017 | K37: 281 | M37: 93 | N37: 299 | O37: 3672 | P37: 4695 | Q37: 1866 | R37: 275 | S37: 34847 | T37: 2583 | X37: 2017 | Y37: Onibus | Z37: 1 | AA37: 3 | AB37: 281 | AC37: CO | AD37: 0.4617686742
A38: SPL3290 | C38: -43.9395953 | D38: -19.8372336 | E38: 34007 | F38: 6447 | G38: 2933 | H38: 789 | J38: 2018 | K38: 188 | M38: 173 | N38: 699 | O38: 4076 | P38: 6148 | Q38: 2561 | R38: 494 | S38: 55358 | T38: 3654 | X38: 2018 | Y38: Onibus | Z38: 1 | AA38: 3 | AB38: 188 | AC38: CO | AD38: 0.5381107749
A39: SPL3292 | C39: -43.947625 | D39: -19.819562 | E39: 12501 | F39: 7610 | G39: 4824 | H39: 940 | J39: 2019 | K39: 363 | M39: 272 | N39: 1163 | O39: 4486 | P39: 8330 | Q39: 2561 | R39: 361 | S39: 64656 | T39: 5965 | X39: 2019 | Y39: Onibus | Z39: 1 | AA39: 3 | AB39: 363 | AC39: CO | AD39: 0.4342559723
A40: SPL3295 | C40: -43.929243 | D40: -19.902055 | E40: 55306 | F40: 9859 | G40: 1364 | H40: 367 | J40: 2020 | K40: 561 | M40: 238 | N40: 1472 | O40: 3923 | P40: 8031 | Q40: 2925 | R40: 510 | S40: 86744 | T40: 7280 | X40: 2020 | Y40: Onibus | Z40: 1 | AA40: 3 | AB40: 561 | AC40: CO | AD40: 0.3933495465
A41: SPL3296 | C41: -43.9633381 | D41: -19.9636958 | E41: 27664 | F41: 5418 | G41: 1141 | H41: 222 | J41: 2021 | K41: 175 | M41: 412 | N41: 2067 | O41: 4248 | P41: 7180 | Q41: 1564 | R41: 150 | S41: 127283 | T41: 10740 | X41: 2021 | Y41: Onibus | Z41: 1 | AA41: 3 | AB41: 175 | AC41: CO | AD41: 0.4719606319
A42: SPL3299 | C42: -43.9411036 | D42: -19.9290553 | E42: 22407 | F42: 4737 | G42: 881 | H42: 172 | J42: 2022 | K42: 239 | M42: 470 | N42: 4601 | O42: 6938 | P42: 11020 | Q42: 2879 | R42: 232 | S42: 209009 | T42: 20006
A43: SPL3300 | C43: -43.936725 | D43: -19.913972 | E43: 52675 | F43: 6287 | G43: 3314 | H43: 892 | J43: 2023
A44: SPL3301 | C44: -43.9221576 | D44: -19.9295212 | E44: 29728 | F44: 5895 | G44: 1043 | H44: 281 | J44: 2024
A45: SPL3302 | C45: -43.9121138 | D45: -19.9185161 | E45: 36712 | F45: 8249 | G45: 1548 | H45: 302 | J45: 2025
A46: SPL3303 | C46: -43.9093297 | D46: -19.9103259 | E46: 27318 | F46: 6586 | G46: 1407 | H46: 379 | X46: 2022 | Y46: Onibus | Z46: 1 | AA46: 3 | AB46: 239 | AC46: CO | AD46: 0.434522394
A47: SPL3304 | C47: -43.999951 | D47: -19.875145 | E47: 8898 | F47: 1474 | G47: 296 | H47: 80 | X47: 1983 | Y47: Microonibus | Z47: 2 | AA47: 3 | AB47: 0 | AC47: CO | AD47: 3.019130435
A48: SPL3305 | C48: -44.0066068 | D48: -19.9468672 | E48: 19307 | F48: 6064 | G48: 2684 | H48: 523 | X48: 1984 | Y48: Microonibus | Z48: 2 | AA48: 3 | AB48: 1 | AC48: CO | AD48: 3.019130435
X49: 1985 | Y49: Microonibus | Z49: 2 | AA49: 3 | AB49: 1 | AC49: CO | AD49: 3.019130435
X50: 1986 | Y50: Microonibus | Z50: 2 | AA50: 3 | AB50: 4 | AC50: CO | AD50: 3.019130435
X51: 1987 | Y51: Microonibus | Z51: 2 | AA51: 3 | AB51: 3 | AC51: CO | AD51: 3.019130435
X52: 1988 | Y52: Microonibus | Z52: 2 | AA52: 3 | AB52: 3 | AC52: CO | AD52: 3.019130435
X53: 1989 | Y53: Microonibus | Z53: 2 | AA53: 3 | AB53: 0 | AC53: CO | AD53: 3.019130435
X54: 1990 | Y54: Microonibus | Z54: 2 | AA54: 3 | AB54: 6 | AC54: CO | AD54: 3.019130435
X55: 1991 | Y55: Microonibus | Z55: 2 | AA55: 3 | AB55: 3 | AC55: CO | AD55: 3.019130435
X56: 1992 | Y56: Microonibus | Z56: 2 | AA56: 3 | AB56: 0 | AC56: CO | AD56: 3.019130435
X57: 1993 | Y57: Microonibus | Z57: 2 | AA57: 3 | AB57: 10 | AC57: CO | AD57: 3.019130435
X58: 1994 | Y58: Microonibus | Z58: 2 | AA58: 3 | AB58: 28 | AC58: CO | AD58: 3.019130435
X59: 1995 | Y59: Microonibus | Z59: 2 | AA59: 3 | AB59: 103 | AC59: CO | AD59: 3.019130435
X60: 1996 | Y60: Microonibus | Z60: 2 | AA60: 3 | AB60: 37 | AC60: CO | AD60: 3.019130435
X61: 1997 | Y61: Microonibus | Z61: 2 | AA61: 3 | AB61: 218 | AC61: CO | AD61: 3.019130435
X62: 1998 | Y62: Microonibus | Z62: 2 | AA62: 3 | AB62: 159 | AC62: CO | AD62: 3.019130435
X63: 1999 | Y63: Microonibus | Z63: 2 | AA63: 3 | AB63: 124 | AC63: CO | AD63: 3.019130435
X64: 2000 | Y64: Microonibus | Z64: 2 | AA64: 3 | AB64: 138 | AC64: CO | AD64: 2.714000798
X65: 2001 | Y65: Microonibus | Z65: 2 | AA65: 3 | AB65: 208 | AC65: CO | AD65: 2.714000798
X66: 2002 | Y66: Microonibus | Z66: 2 | AA66: 3 | AB66: 45 | AC66: CO | AD66: 1.47826087
X67: 2003 | Y67: Microonibus | Z67: 2 | AA67: 3 | AB67: 57 | AC67: CO | AD67: 1.47826087
X68: 2004 | Y68: Microonibus | Z68: 2 | AA68: 3 | AB68: 84 | AC68: CO | AD68: 1.41
X69: 2005 | Y69: Microonibus | Z69: 2 | AA69: 3 | AB69: 77 | AC69: CO | AD69: 1.41
X70: 2006 | Y70: Microonibus | Z70: 2 | AA70: 3 | AB70: 125 | AC70: CO | AD70: 1.560527051
X71: 2007 | Y71: Microonibus | Z71: 2 | AA71: 3 | AB71: 157 | AC71: CO | AD71: 1.560527051
X72: 2008 | Y72: Microonibus | Z72: 2 | AA72: 3 | AB72: 267 | AC72: CO | AD72: 0.8356613833
X73: 2009 | Y73: Microonibus | Z73: 2 | AA73: 3 | AB73: 234 | AC73: CO | AD73: 0.7613788601
X74: 2010 | Y74: Microonibus | Z74: 2 | AA74: 3 | AB74: 148 | AC74: CO | AD74: 1.208075486
X75: 2011 | Y75: Microonibus | Z75: 2 | AA75: 3 | AB75: 408 | AC75: CO | AD75: 1.176601652
X76: 2012 | Y76: Microonibus | Z76: 2 | AA76: 3 | AB76: 369 | AC76: CO | AD76: 0.2131572061
X77: 2013 | Y77: Microonibus | Z77: 2 | AA77: 3 | AB77: 391 | AC77: CO | AD77: 0.1315121626
X78: 2014 | Y78: Microonibus | Z78: 2 | AA78: 3 | AB78: 473 | AC78: CO | AD78: 0.1315121626
X79: 2015 | Y79: Microonibus | Z79: 2 | AA79: 3 | AB79: 187 | AC79: CO | AD79: 0.132
X80: 2016 | Y80: Microonibus | Z80: 2 | AA80: 3 | AB80: 168 | AC80: CO | AD80: 0.0721431498
X81: 2017 | Y81: Microonibus | Z81: 2 | AA81: 3 | AB81: 93 | AC81: CO | AD81: 0.08109244474
X82: 2018 | Y82: Microonibus | Z82: 2 | AA82: 3 | AB82: 173 | AC82: CO | AD82: 0.1217197375
X83: 2019 | Y83: Microonibus | Z83: 2 | AA83: 3 | AB83: 272 | AC83: CO | AD83: 0.1539353473
X84: 2020 | Y84: Microonibus | Z84: 2 | AA84: 3 | AB84: 238 | AC84: CO | AD84: 0.1432339359
X85: 2021 | Y85: Microonibus | Z85: 2 | AA85: 3 | AB85: 412 | AC85: CO | AD85: 0.1963513232
X86: 2022 | Y86: Microonibus | Z86: 2 | AA86: 3 | AB86: 470 | AC86: CO | AD86: 0.2476526291
X87: 1983 | Y87: Caminhao | Z87: 3 | AA87: 4 | AB87: 147 | AC87: CO | AD87: 1.25
X88: 1984 | Y88: Caminhao | Z88: 3 | AA88: 4 | AB88: 159 | AC88: CO | AD88: 1.25
X89: 1985 | Y89: Caminhao | Z89: 3 | AA89: 4 | AB89: 248 | AC89: CO | AD89: 1.25
X90: 1986 | Y90: Caminhao | Z90: 3 | AA90: 4 | AB90: 444 | AC90: CO | AD90: 1.25
X91: 1987 | Y91: Caminhao | Z91: 3 | AA91: 4 | AB91: 378 | AC91: CO | AD91: 1.25
X92: 1988 | Y92: Caminhao | Z92: 3 | AA92: 4 | AB92: 302 | AC92: CO | AD92: 1.25
X93: 1989 | Y93: Caminhao | Z93: 3 | AA93: 4 | AB93: 332 | AC93: CO | AD93: 1.25
X94: 1990 | Y94: Caminhao | Z94: 3 | AA94: 4 | AB94: 316 | AC94: CO | AD94: 1.25
X95: 1991 | Y95: Caminhao | Z95: 3 | AA95: 4 | AB95: 273 | AC95: CO | AD95: 1.25
X96: 1992 | Y96: Caminhao | Z96: 3 | AA96: 4 | AB96: 258 | AC96: CO | AD96: 1.25
X97: 1993 | Y97: Caminhao | Z97: 3 | AA97: 4 | AB97: 189 | AC97: CO | AD97: 1.25
X98: 1994 | Y98: Caminhao | Z98: 3 | AA98: 4 | AB98: 327 | AC98: CO | AD98: 1.25
X99: 1995 | Y99: Caminhao | Z99: 3 | AA99: 4 | AB99: 527 | AC99: CO | AD99: 1.25
X100: 1996 | Y100: Caminhao | Z100: 3 | AA100: 4 | AB100: 321 | AC100: CO | AD100: 1.25
X101: 1997 | Y101: Caminhao | Z101: 3 | AA101: 4 | AB101: 613 | AC101: CO | AD101: 1.25
X102: 1998 | Y102: Caminhao | Z102: 3 | AA102: 4 | AB102: 641 | AC102: CO | AD102: 1.25
X103: 1999 | Y103: Caminhao | Z103: 3 | AA103: 4 | AB103: 481 | AC103: CO | AD103: 1.25
X104: 2000 | Y104: Caminhao | Z104: 3 | AA104: 4 | AB104: 489 | AC104: CO | AD104: 1.124
X105: 2001 | Y105: Caminhao | Z105: 3 | AA105: 4 | AB105: 620 | AC105: CO | AD105: 1.124
X106: 2002 | Y106: Caminhao | Z106: 3 | AA106: 4 | AB106: 509 | AC106: CO | AD106: 0.612
X107: 2003 | Y107: Caminhao | Z107: 3 | AA107: 4 | AB107: 456 | AC107: CO | AD107: 0.612
X108: 2004 | Y108: Caminhao | Z108: 3 | AA108: 4 | AB108: 686 | AC108: CO | AD108: 0.58
X109: 2005 | Y109: Caminhao | Z109: 3 | AA109: 4 | AB109: 824 | AC109: CO | AD109: 0.58
X110: 2006 | Y110: Caminhao | Z110: 3 | AA110: 4 | AB110: 852 | AC110: CO | AD110: 0.665
X111: 2007 | Y111: Caminhao | Z111: 3 | AA111: 4 | AB111: 738 | AC111: CO | AD111: 0.665
X112: 2008 | Y112: Caminhao | Z112: 3 | AA112: 4 | AB112: 1217 | AC112: CO | AD112: 0.49
X113: 2009 | Y113: Caminhao | Z113: 3 | AA113: 4 | AB113: 1418 | AC113: CO | AD113: 0.484
X114: 2010 | Y114: Caminhao | Z114: 3 | AA114: 4 | AB114: 1874 | AC114: CO | AD114: 0.481
X115: 2011 | Y115: Caminhao | Z115: 3 | AA115: 4 | AB115: 2231 | AC115: CO | AD115: 0.515
X116: 2012 | Y116: Caminhao | Z116: 3 | AA116: 4 | AB116: 1796 | AC116: CO | AD116: 0.124
X117: 2013 | Y117: Caminhao | Z117: 3 | AA117: 4 | AB117: 2092 | AC117: CO | AD117: 0.081
X118: 2014 | Y118: Caminhao | Z118: 3 | AA118: 4 | AB118: 1273 | AC118: CO | AD118: 0.081
X119: 2015 | Y119: Caminhao | Z119: 3 | AA119: 4 | AB119: 717 | AC119: CO | AD119: 0.081
X120: 2016 | Y120: Caminhao | Z120: 3 | AA120: 4 | AB120: 570 | AC120: CO | AD120: 0.09109045476
X121: 2017 | Y121: Caminhao | Z121: 3 | AA121: 4 | AB121: 299 | AC121: CO | AD121: 0.1022503185
X122: 2018 | Y122: Caminhao | Z122: 3 | AA122: 4 | AB122: 699 | AC122: CO | AD122: 0.2080034742
X123: 2019 | Y123: Caminhao | Z123: 3 | AA123: 4 | AB123: 1163 | AC123: CO | AD123: 0.2033546251
X124: 2020 | Y124: Caminhao | Z124: 3 | AA124: 4 | AB124: 1472 | AC124: CO | AD124: 0.1408140648
X125: 2021 | Y125: Caminhao | Z125: 3 | AA125: 4 | AB125: 2067 | AC125: CO | AD125: 0.1545664128
X126: 2022 | Y126: Caminhao | Z126: 3 | AA126: 4 | AB126: 4601 | AC126: CO | AD126: 0.1784560458
X127: 1983 | Y127: Moto-Gasolina | Z127: FALSE | AA127: 2 | AB127: 969 | AC127: CO | AD127: 6.74395
X128: 1984 | Y128: Moto-Gasolina | Z128: FALSE | AA128: 2 | AB128: 633 | AC128: CO | AD128: 6.74395
X129: 1985 | Y129: Moto-Gasolina | Z129: FALSE | AA129: 2 | AB129: 473 | AC129: CO | AD129: 6.74395
X130: 1986 | Y130: Moto-Gasolina | Z130: FALSE | AA130: 2 | AB130: 765 | AC130: CO | AD130: 6.74395
X131: 1987 | Y131: Moto-Gasolina | Z131: FALSE | AA131: 2 | AB131: 883 | AC131: CO | AD131: 6.74395
X132: 1988 | Y132: Moto-Gasolina | Z132: FALSE | AA132: 2 | AB132: 922 | AC132: CO | AD132: 6.74395
X133: 1989 | Y133: Moto-Gasolina | Z133: FALSE | AA133: 2 | AB133: 702 | AC133: CO | AD133: 6.74395
X134: 1990 | Y134: Moto-Gasolina | Z134: FALSE | AA134: 2 | AB134: 881 | AC134: CO | AD134: 6.74395
X135: 1991 | Y135: Moto-Gasolina | Z135: FALSE | AA135: 2 | AB135: 631 | AC135: CO | AD135: 6.74395
X136: 1992 | Y136: Moto-Gasolina | Z136: FALSE | AA136: 2 | AB136: 524 | AC136: CO | AD136: 6.74395
X137: 1993 | Y137: Moto-Gasolina | Z137: FALSE | AA137: 2 | AB137: 316 | AC137: CO | AD137: 6.74395
X138: 1994 | Y138: Moto-Gasolina | Z138: FALSE | AA138: 2 | AB138: 559 | AC138: CO | AD138: 6.74395
X139: 1995 | Y139: Moto-Gasolina | Z139: FALSE | AA139: 2 | AB139: 1134 | AC139: CO | AD139: 6.74395
X140: 1996 | Y140: Moto-Gasolina | Z140: FALSE | AA140: 2 | AB140: 1365 | AC140: CO | AD140: 6.74395
X141: 1997 | Y141: Moto-Gasolina | Z141: FALSE | AA141: 2 | AB141: 2602 | AC141: CO | AD141: 6.74395
X142: 1998 | Y142: Moto-Gasolina | Z142: FALSE | AA142: 2 | AB142: 2838 | AC142: CO | AD142: 6.74395
X143: 1999 | Y143: Moto-Gasolina | Z143: FALSE | AA143: 2 | AB143: 2267 | AC143: CO | AD143: 6.74395
X144: 2000 | Y144: Moto-Gasolina | Z144: FALSE | AA144: 2 | AB144: 3136 | AC144: CO | AD144: 6.74395
X145: 2001 | Y145: Moto-Gasolina | Z145: FALSE | AA145: 2 | AB145: 3541 | AC145: CO | AD145: 6.74395
X146: 2002 | Y146: Moto-Gasolina | Z146: FALSE | AA146: 2 | AB146: 4223 | AC146: CO | AD146: 6.74395
X147: 2003 | Y147: Moto-Gasolina | Z147: FALSE | AA147: 2 | AB147: 5047 | AC147: CO | AD147: 6.74395
X148: 2004 | Y148: Moto-Gasolina | Z148: FALSE | AA148: 2 | AB148: 4619 | AC148: CO | AD148: 6.77341
X149: 2005 | Y149: Moto-Gasolina | Z149: FALSE | AA149: 2 | AB149: 6828 | AC149: CO | AD149: 2.93483
X150: 2006 | Y150: Moto-Gasolina | Z150: FALSE | AA150: 2 | AB150: 7519 | AC150: CO | AD150: 1.68256
X151: 2007 | Y151: Moto-Gasolina | Z151: FALSE | AA151: 2 | AB151: 12449 | AC151: CO | AD151: 1.90172
X152: 2008 | Y152: Moto-Gasolina | Z152: FALSE | AA152: 2 | AB152: 22881 | AC152: CO | AD152: 1.64941
X153: 2009 | Y153: Moto-Gasolina | Z153: FALSE | AA153: 2 | AB153: 7798 | AC153: CO | AD153: 1.06319
X154: 2010 | Y154: Moto-Gasolina | Z154: FALSE | AA154: 2 | AB154: 12526 | AC154: CO | AD154: 1.13448
X155: 2011 | Y155: Moto-Gasolina | Z155: FALSE | AA155: 2 | AB155: 10202 | AC155: CO | AD155: 1.02496
X156: 2012 | Y156: Moto-Gasolina | Z156: FALSE | AA156: 2 | AB156: 9318 | AC156: CO | AD156: 0.98412
X157: 2013 | Y157: Moto-Gasolina | Z157: FALSE | AA157: 2 | AB157: 5906 | AC157: CO | AD157: 0.81604
X158: 2014 | Y158: Moto-Gasolina | Z158: FALSE | AA158: 2 | AB158: 5599 | AC158: CO | AD158: 0.81604
X159: 2015 | Y159: Moto-Gasolina | Z159: FALSE | AA159: 2 | AB159: 4403 | AC159: CO | AD159: 0.81604
X160: 2016 | Y160: Moto-Gasolina | Z160: FALSE | AA160: 2 | AB160: 2840 | AC160: CO | AD160: 0.504
X161: 2017 | Y161: Moto-Gasolina | Z161: FALSE | AA161: 2 | AB161: 3672 | AC161: CO | AD161: 0.525
X162: 2018 | Y162: Moto-Gasolina | Z162: FALSE | AA162: 2 | AB162: 4076 | AC162: CO | AD162: 0.545
X163: 2019 | Y163: Moto-Gasolina | Z163: FALSE | AA163: 2 | AB163: 4486 | AC163: CO | AD163: 0.5034269438
X164: 2020 | Y164: Moto-Gasolina | Z164: FALSE | AA164: 2 | AB164: 3923 | AC164: CO | AD164: 0.4621230533
X165: 2021 | Y165: Moto-Gasolina | Z165: FALSE | AA165: 2 | AB165: 4248 | AC165: CO | AD165: 0.438997535
X166: 2022 | Y166: Moto-Gasolina | Z166: FALSE | AA166: 2 | AB166: 6938 | AC166: CO | AD166: 0.4036241544
X167: 2009 | Y167: Moto-Flex-G | Z167: FALSE | AA167: 2 | AB167: 269 | AC167: CO | AD167: 0.75
X168: 2010 | Y168: Moto-Flex-G | Z168: FALSE | AA168: 2 | AB168: 1279 | AC168: CO | AD168: 0.75
X169: 2011 | Y169: Moto-Flex-G | Z169: FALSE | AA169: 2 | AB169: 3075 | AC169: CO | AD169: 0.76
X170: 2012 | Y170: Moto-Flex-G | Z170: FALSE | AA170: 2 | AB170: 3586 | AC170: CO | AD170: 1.1352
X171: 2013 | Y171: Moto-Flex-G | Z171: FALSE | AA171: 2 | AB171: 3425 | AC171: CO | AD171: 0.69964
X172: 2014 | Y172: Moto-Flex-G | Z172: FALSE | AA172: 2 | AB172: 5354 | AC172: CO | AD172: 0.69964
X173: 2015 | Y173: Moto-Flex-G | Z173: FALSE | AA173: 2 | AB173: 5829 | AC173: CO | AD173: 0.69964
X174: 2016 | Y174: Moto-Flex-G | Z174: FALSE | AA174: 2 | AB174: 3761 | AC174: CO | AD174: 0.715
X175: 2017 | Y175: Moto-Flex-G | Z175: FALSE | AA175: 2 | AB175: 3521 | AC175: CO | AD175: 0.694
X176: 2018 | Y176: Moto-Flex-G | Z176: FALSE | AA176: 2 | AB176: 4611 | AC176: CO | AD176: 0.726
X177: 2019 | Y177: Moto-Flex-G | Z177: FALSE | AA177: 2 | AB177: 6248 | AC177: CO | AD177: 0.7538856181
X178: 2020 | Y178: Moto-Flex-G | Z178: FALSE | AA178: 2 | AB178: 6023 | AC178: CO | AD178: 0.7925131776
X179: 2021 | Y179: Moto-Flex-G | Z179: FALSE | AA179: 2 | AB179: 5385 | AC179: CO | AD179: 0.6745094491
X180: 2022 | Y180: Moto-Flex-G | Z180: FALSE | AA180: 2 | AB180: 8265 | AC180: CO | AD180: 0.6668453006
X181: 2009 | Y181: Moto-Flex-A | Z181: FALSE | AA181: 2 | AB181: 627 | AC181: CO | AD181: 0.58
X182: 2010 | Y182: Moto-Flex-A | Z182: FALSE | AA182: 2 | AB182: 1386 | AC182: CO | AD182: 0.58
X183: 2011 | Y183: Moto-Flex-A | Z183: FALSE | AA183: 2 | AB183: 1447 | AC183: CO | AD183: 0.68
X184: 2012 | Y184: Moto-Flex-A | Z184: FALSE | AA184: 2 | AB184: 1195 | AC184: CO | AD184: 1.42364
X185: 2013 | Y185: Moto-Flex-A | Z185: FALSE | AA185: 2 | AB185: 1142 | AC185: CO | AD185: 0.78036
X186: 2014 | Y186: Moto-Flex-A | Z186: FALSE | AA186: 2 | AB186: 1785 | AC186: CO | AD186: 0.78036
X187: 2015 | Y187: Moto-Flex-A | Z187: FALSE | AA187: 2 | AB187: 1943 | AC187: CO | AD187: 0.78036
X188: 2016 | Y188: Moto-Flex-A | Z188: FALSE | AA188: 2 | AB188: 1254 | AC188: CO | AD188: 0.827
X189: 2017 | Y189: Moto-Flex-A | Z189: FALSE | AA189: 2 | AB189: 1174 | AC189: CO | AD189: 0.689
X190: 2018 | Y190: Moto-Flex-A | Z190: FALSE | AA190: 2 | AB190: 1537 | AC190: CO | AD190: 0.654
X191: 2019 | Y191: Moto-Flex-A | Z191: FALSE | AA191: 2 | AB191: 2083 | AC191: CO | AD191: 0.6799102272
X192: 2020 | Y192: Moto-Flex-A | Z192: FALSE | AA192: 2 | AB192: 2008 | AC192: CO | AD192: 0.6820727861
X193: 2021 | Y193: Moto-Flex-A | Z193: FALSE | AA193: 2 | AB193: 1795 | AC193: CO | AD193: 0.6831862022
X194: 2022 | Y194: Moto-Flex-A | Z194: FALSE | AA194: 2 | AB194: 2755 | AC194: CO | AD194: 0.6386564674
X195: 1983 | Y195: Automovel-Gasolina | Z195: 6 | AA195: 1 | AB195: 2057 | AC195: CO | AD195: 33.6
X196: 1984 | Y196: Automovel-Gasolina | Z196: 6 | AA196: 1 | AB196: 849 | AC196: CO | AD196: 33.6
X197: 1985 | Y197: Automovel-Gasolina | Z197: 6 | AA197: 1 | AB197: 816 | AC197: CO | AD197: 33.6
X198: 1986 | Y198: Automovel-Gasolina | Z198: 6 | AA198: 1 | AB198: 1406 | AC198: CO | AD198: 26.4
X199: 1987 | Y199: Automovel-Gasolina | Z199: 6 | AA199: 1 | AB199: 808 | AC199: CO | AD199: 26.4
X200: 1988 | Y200: Automovel-Gasolina | Z200: 6 | AA200: 1 | AB200: 1012 | AC200: CO | AD200: 22.2
... 850 more rows

Sheet Cenários
A1: Cenário Base | X1: Cenário 1 | AR1: Cenário 2 | BL1: Cenário 3 | CF1: Cenário 4 | CZ1: Cenário 5
A2: Nome | C2: Cenário Base | G2: Descrição | X2: Nome | Z2: Cenário 1 | AD2: Descrição | AR2: Nome | AT2: Cenário 2 | AX2: Descrição | BL2: Nome | BN2: Cenário 3 | BR2: Descrição | CF2: Nome | CH2: Cenário 4 | CL2: Descrição | CZ2: Nome | DB2: Cenário 5 | DF2: Descrição
A3: Cód | B3: Endereço | C3: Coordenadas | E3: Contagem de veículos | I3: Distribuição da idade da frota | T3: Emissões | X3: Cód | Y3: Endereço | Z3: Coordenadas | AB3: Contagem de veículos | AF3: Distribuição da idade da frota | AR3: Cód | AS3: Endereço | AT3: Coordenadas | AV3: Contagem de veículos | AZ3: Distribuição da idade da frota | BL3: Cód | BM3: Endereço | BN3: Coordenadas | BP3: Contagem de veículos | BT3: Distribuição da idade da frota | CF3: Cód | CG3: Endereço | CH3: Coordenadas | CJ3: Contagem de veículos | CN3: Distribuição da idade da frota | CZ3: Cód | DA3: Endereço | DB3: Coordenadas | DD3: Contagem de veículos | DH3: Distribuição da idade da frota
C4: X | D4: Y | E4: Automóveis | F4: Motos | G4: Ônibus | H4: Caminhão | J4: Ônibus | K4: Ônibus-Elétrico | L4: Microônibus | M4: Caminhão | N4: Moto-Gasolina | O4: Moto-Flex | P4: Automóvel-Gasolina | Q4: Automóvel-Álcool | R4: Automóvel-Flex | S4: Automóvel-Diesel | T4: CO | U4: NOx | V4: MP | Z4: X | AA4: Y | AB4: Automóveis | AC4: Motos | AD4: Ônibus | AE4: Caminhões | AG4: Ônibus | AH4: Ônibus-Elétrico | AI4: Microônibus | AJ4: Caminhão | AK4: Moto-Gasolina | AL4: Moto-Flex | AM4: Automóvel-Gasolina | AN4: Automóvel-Álcool | AO4: Automóvel-Flex | AP4: Automóvel-Diesel | AT4: X | AU4: Y | AV4: Automóveis | AW4: Motos | AX4: Ônibus | AY4: Caminhões | BA4: Ônibus | BB4: Ônibus-Elétrico | BC4: Microônibus | BD4: Caminhão | BE4: Moto-Gasolina | BF4: Moto-Flex | BG4: Automóvel-Gasolina | BH4: Automóvel-Álcool | BI4: Automóvel-Flex | BJ4: Automóvel-Diesel | BN4: X | BO4: Y | BP4: Automóveis | BQ4: Motos | BR4: Ônibus | BS4: Caminhões | BU4: Ônibus | BV4: Ônibus-Elétrico | BW4: Microônibus | BX4: Caminhão | BY4: Moto-Gasolina | BZ4: Moto-Flex | CA4: Automóvel-Gasolina | CB4: Automóvel-Álcool | CC4: Automóvel-Flex | CD4: Automóvel-Diesel | CH4: X | CI4: Y | CJ4: Automóveis | CK4: Motos | CL4: Ônibus | CM4: Caminhões | CO4: Ônibus | CP4: Ônibus-Elétrico | CQ4: Microônibus | CR4: Caminhão | CS4: Moto-Gasolina | CT4: Moto-Flex | CU4: Automóvel-Gasolina | CV4: Automóvel-Álcool | CW4: Automóvel-Flex | CX4: Automóvel-Diesel | DB4: X | DC4: Y | DD4: Automóveis | DE4: Motos | DF4: Ônibus | DG4: Caminhões | DI4: Ônibus | DJ4: Ônibus-Elétrico | DK4: Microônibus | DL4: Caminhão | DM4: Moto-Gasolina | DN4: Moto-Flex | DO4: Automóvel-Gasolina | DP4: Automóvel-Álcool | DQ4: Automóvel-Flex | DR4: Automóvel-Diesel
A5: SPL0023 | C5: -43.9956372 | D5: -19.9007049 | E5: 7350 | F5: 2274 | G5: 384 | H5: 147 | I5: 1983 | J5: 26 | L5: 0 | M5: 147 | N5: 969 | O5: 0 | P5: 2057 | Q5: 2904 | R5: 0 | S5: 163 | T5: =SUM($E5:$H5*TRANSPOSE(M$63:M$66)) -> 16704.12984 | U5: =SUM($E5:$H5*TRANSPOSE(N$63:N$66)) -> 4589.916917 | V5: =SUM($E5:$H5*TRANSPOSE(O$63:O$66)) -> 119.1098648 | X5: SPL0023 | Z5: -43.9956372 | AA5: -19.9007049 | AB5: 7350 | AC5: 2274 | AD5: 384 | AE5: 147 | AF5: 1983 | AG5: 26 | AI5: 0 | AJ5: 147 | AK5: 969 | AL5: 0 | AM5: 2057 | AN5: 2904 | AO5: 0 | AP5: 163 | AR5: SPL0023 | AT5: -43.9956372 | AU5: -19.9007049 | AV5: 7350 | AW5: 2274 | AX5: 384 | AY5: 147 | AZ5: 1983 | BA5: 26 | BC5: 0 | BD5: 147 | BE5: 969 | BF5: 0 | BG5: 2057 | BH5: 2904 | BI5: 0 | BJ5: 163 | BL5: SPL0023 | BN5: -43.9956372 | BO5: -19.9007049 | BP5: 7350 | BQ5: 2274 | BR5: 384 | BS5: 147 | BT5: 1983 | BU5: 26 | BW5: 0 | BX5: 147 | BY5: 969 | BZ5: 0 | CA5: 2057 | CB5: 2904 | CC5: 0 | CD5: 163 | CF5: SPL0023 | CH5: -43.9956372 | CI5: -19.9007049 | CJ5: 7350 | CK5: 2274 | CL5: 384 | CM5: 147 | CN5: 1983 | CO5: 26 | CQ5: 0 | CR5: 147 | CS5: 969 | CT5: 0 | CU5: 2057 | CV5: 2904 | CW5: 0 | CX5: 163
A6: SPL2411 | C6: -43.9352582 | D6: -19.9472637 | E6: 44652 | F6: 5253 | G6: 1694 | H6: 294 | I6: 1984 | J6: 27 | L6: 1 | M6: 159 | N6: 633 | O6: 0 | P6: 849 | Q6: 3281 | R6: 1 | S6: 186 | T6: =SUM($E6:$H6*TRANSPOSE(M$63:M$66)) -> 84219.28003 | U6: =SUM($E6:$H6*TRANSPOSE(N$63:N$66)) -> 21505.99399 | V6: =SUM($E6:$H6*TRANSPOSE(O$63:O$66)) -> 518.4182141 | X6: SPL2411 | Z6: -43.9352582 | AA6: -19.9472637 | AB6: 44652 | AC6: 5253 | AD6: 1694 | AE6: 294 | AF6: 1984 | AG6: 27 | AI6: 1 | AJ6: 159 | AK6: 633 | AL6: 0 | AM6: 849 | AN6: 3281 | AO6: 1 | AP6: 186 | AR6: SPL2411 | AT6: -43.9352582 | AU6: -19.9472637 | AV6: 44652 | AW6: 5253 | AX6: 1694 | AY6: 294 | AZ6: 1984 | BA6: 27 | BC6: 1 | BD6: 159 | BE6: 633 | BF6: 0 | BG6: 849 | BH6: 3281 | BI6: 1 | BJ6: 186 | BL6: SPL2411 | BN6: -43.9352582 | BO6: -19.9472637 | BP6: 44652 | BQ6: 5253 | BR6: 1694 | BS6: 294 | BT6: 1984 | BU6: 27 | BW6: 1 | BX6: 159 | BY6: 633 | BZ6: 0 | CA6: 849 | CB6: 3281 | CC6: 1 | CD6: 186 | CF6: SPL2411 | CH6: -43.9352582 | CI6: -19.9472637 | CJ6: 44652 | CK6: 5253 | CL6: 1694 | CM6: 294 | CN6: 1984 | CO6: 27 | CQ6: 1 | CR6: 159 | CS6: 633 | CT6: 0 | CU6: 849 | CV6: 3281 | CW6: 1 | CX6: 186
A7: SPL2430 | C7: -43.972056 | D7: -19.922921 | E7: 40868 | F7: 4650 | G7: 4027 | H7: 700 | I7: 1985 | J7: 30 | L7: 1 | M7: 248 | N7: 473 | O7: 0 | P7: 816 | Q7: 3376 | R7: 2 | S7: 157 | T7: =SUM($E7:$H7*TRANSPOSE(M$63:M$66)) -> 79837.29336 | U7: =SUM($E7:$H7*TRANSPOSE(N$63:N$66)) -> 35893.28866 | V7: =SUM($E7:$H7*TRANSPOSE(O$63:O$66)) -> 1068.709595 | X7: SPL2430 | Z7: -43.972056 | AA7: -19.922921 | AB7: 40868 | AC7: 4650 | AD7: 4027 | AE7: 700 | AF7: 1985 | AG7: 30 | AI7: 1 | AJ7: 248 | AK7: 473 | AL7: 0 | AM7: 816 | AN7: 3376 | AO7: 2 | AP7: 157 | AR7: SPL2430 | AT7: -43.972056 | AU7: -19.922921 | AV7: 40868 | AW7: 4650 | AX7: 4027 | AY7: 700 | AZ7: 1985 | BA7: 30 | BC7: 1 | BD7: 248 | BE7: 473 | BF7: 0 | BG7: 816 | BH7: 3376 | BI7: 2 | BJ7: 157 | BL7: SPL2430 | BN7: -43.972056 | BO7: -19.922921 | BP7: 40868 | BQ7: 4650 | BR7: 4027 | BS7: 700 | BT7: 1985 | BU7: 30 | BW7: 1 | BX7: 248 | BY7: 473 | BZ7: 0 | CA7: 816 | CB7: 3376 | CC7: 2 | CD7: 157 | CF7: SPL2430 | CH7: -43.972056 | CI7: -19.922921 | CJ7: 40868 | CK7: 4650 | CL7: 4027 | CM7: 700 | CN7: 1985 | CO7: 30 | CQ7: 1 | CR7: 248 | CS7: 473 | CT7: 0 | CU7: 816 | CV7: 3376 | CW7: 2 | CX7: 157
A8: SPL3253 | C8: -44.017565 | D8: -19.991669 | E8: 20518 | F8: 5710 | G8: 2522 | H8: 438 | I8: 1986 | J8: 58 | L8: 4 | M8: 444 | N8: 765 | O8: 0 | P8: 1406 | Q8: 5821 | R8: 0 | S8: 254 | T8: =SUM($E8:$H8*TRANSPOSE(M$63:M$66)) -> 47099.52771 | U8: =SUM($E8:$H8*TRANSPOSE(N$63:N$66)) -> 21610.0691 | V8: =SUM($E8:$H8*TRANSPOSE(O$63:O$66)) -> 656.5240923 | X8: SPL3253 | Z8: -44.017565 | AA8: -19.991669 | AB8: 20518 | AC8: 5710 | AD8: 2522 | AE8: 438 | AF8: 1986 | AG8: 58 | AI8: 4 | AJ8: 444 | AK8: 765 | AL8: 0 | AM8: 1406 | AN8: 5821 | AO8: 0 | AP8: 254 | AR8: SPL3253 | AT8: -44.017565 | AU8: -19.991669 | AV8: 20518 | AW8: 5710 | AX8: 2522 | AY8: 438 | AZ8: 1986 | BA8: 58 | BC8: 4 | BD8: 444 | BE8: 765 | BF8: 0 | BG8: 1406 | BH8: 5821 | BI8: 0 | BJ8: 254 | BL8: SPL3253 | BN8: -44.017565 | BO8: -19.991669 | BP8: 20518 | BQ8: 5710 | BR8: 2522 | BS8: 438 | BT8: 1986 | BU8: 58 | BW8: 4 | BX8: 444 | BY8: 765 | BZ8: 0 | CA8: 1406 | CB8: 5821 | CC8: 0 | CD8: 254 | CF8: SPL3253 | CH8: -44.017565 | CI8: -19.991669 | CJ8: 20518 | CK8: 5710 | CL8: 2522 | CM8: 438 | CN8: 1986 | CO8: 58 | CQ8: 4 | CR8: 444 | CS8: 765 | CT8: 0 | CU8: 1406 | CV8: 5821 | CW8: 0 | CX8: 254
A9: SPL3254 | C9: -43.9870478 | D9: -19.9445419 | E9: 47762 | F9: 7939 | G9: 2812 | H9: 489 | I9: 1987 | J9: 57 | L9: 3 | M9: 378 | N9: 883 | O9: 0 | P9: 808 | Q9: 3387 | R9: 0 | S9: 196 | T9: =SUM($E9:$H9*TRANSPOSE(M$63:M$66)) -> 95717.85547 | U9: =SUM($E9:$H9*TRANSPOSE(N$63:N$66)) -> 29772.48063 | V9: =SUM($E9:$H9*TRANSPOSE(O$63:O$66)) -> 794.5244817 | X9: SPL3254 | Z9: -43.9870478 | AA9: -19.9445419 | AB9: 47762 | AC9: 7939 | AD9: 2812 | AE9: 489 | AF9: 1987 | AG9: 57 | AI9: 3 | AJ9: 378 | AK9: 883 | AL9: 0 | AM9: 808 | AN9: 3387 | AO9: 0 | AP9: 196 | AR9: SPL3254 | AT9: -43.9870478 | AU9: -19.9445419 | AV9: 47762 | AW9: 7939 | AX9: 2812 | AY9: 489 | AZ9: 1987 | BA9: 57 | BC9: 3 | BD9: 378 | BE9: 883 | BF9: 0 | BG9: 808 | BH9: 3387 | BI9: 0 | BJ9: 196 | BL9: SPL3254 | BN9: -43.9870478 | BO9: -19.9445419 | BP9: 47762 | BQ9: 7939 | BR9: 2812 | BS9: 489 | BT9: 1987 | BU9: 57 | BW9: 3 | BX9: 378 | BY9: 883 | BZ9: 0 | CA9: 808 | CB9: 3387 | CC9: 0 | CD9: 196 | CF9: SPL3254 | CH9: -43.9870478 | CI9: -19.9445419 | CJ9: 47762 | CK9: 7939 | CL9: 2812 | CM9: 489 | CN9: 1987 | CO9: 57 | CQ9: 3 | CR9: 378 | CS9: 883 | CT9: 0 | CU9: 808 | CV9: 3387 | CW9: 0 | CX9: 196
A10: SPL3255 | C10: -43.9830623 | D10: -19.9286114 | E10: 7595 | F10: 2412 | G10: 199 | H10: 235 | I10: 1988 | J10: 67 | L10: 3 | M10: 302 | N10: 922 | O10: 0 | P10: 1012 | Q10: 4326 | R10: 18 | S10: 274 | T10: =SUM($E10:$H10*TRANSPOSE(M$63:M$66)) -> 17192.33446 | U10: =SUM($E10:$H10*TRANSPOSE(N$63:N$66)) -> 3789.298385 | V10: =SUM($E10:$H10*TRANSPOSE(O$63:O$66)) -> 88.12212753 | X10: SPL3255 | Z10: -43.9830623 | AA10: -19.9286114 | AB10: 7595 | AC10: 2412 | AD10: 199 | AE10: 235 | AF10: 1988 | AG10: 67 | AI10: 3 | AJ10: 302 | AK10: 922 | AL10: 0 | AM10: 1012 | AN10: 4326 | AO10: 18 | AP10: 274 | AR10: SPL3255 | AT10: -43.9830623 | AU10: -19.9286114 | AV10: 7595 | AW10: 2412 | AX10: 199 | AY10: 235 | AZ10: 1988 | BA10: 67 | BC10: 3 | BD10: 302 | BE10: 922 | BF10: 0 | BG10: 1012 | BH10: 4326 | BI10: 18 | BJ10: 274 | BL10: SPL3255 | BN10: -43.9830623 | BO10: -19.9286114 | BP10: 7595 | BQ10: 2412 | BR10: 199 | BS10: 235 | BT10: 1988 | BU10: 67 | BW10: 3 | BX10: 302 | BY10: 922 | BZ10: 0 | CA10: 1012 | CB10: 4326 | CC10: 18 | CD10: 274 | CF10: SPL3255 | CH10: -43.9830623 | CI10: -19.9286114 | CJ10: 7595 | CK10: 2412 | CL10: 199 | CM10: 235 | CN10: 1988 | CO10: 67 | CQ10: 3 | CR10: 302 | CS10: 922 | CT10: 0 | CU10: 1012 | CV10: 4326 | CW10: 18 | CX10: 274
A11: SPL3256 | C11: -43.9679105 | D11: -19.8884147 | E11: 44116 | F11: 6767 | G11: 1741 | H11: 303 | I11: 1989 | J11: 81 | L11: 0 | M11: 332 | N11: 702 | O11: 0 | P11: 3130 | Q11: 4395 | R11: 2 | S11: 390 | T11: =SUM($E11:$H11*TRANSPOSE(M$63:M$66)) -> 86281.97213 | U11: =SUM($E11:$H11*TRANSPOSE(N$63:N$66)) -> 21837.96714 | V11: =SUM($E11:$H11*TRANSPOSE(O$63:O$66)) -> 528.4379164 | X11: SPL3256 | Z11: -43.9679105 | AA11: -19.8884147 | AB11: 44116 | AC11: 6767 | AD11: 1741 | AE11: 303 | AF11: 1989 | AG11: 81 | AI11: 0 | AJ11: 332 | AK11: 702 | AL11: 0 | AM11: 3130 | AN11: 4395 | AO11: 2 | AP11: 390 | AR11: SPL3256 | AT11: -43.9679105 | AU11: -19.8884147 | AV11: 44116 | AW11: 6767 | AX11: 1741 | AY11: 303 | AZ11: 1989 | BA11: 81 | BC11: 0 | BD11: 332 | BE11: 702 | BF11: 0 | BG11: 3130 | BH11: 4395 | BI11: 2 | BJ11: 390 | BL11: SPL3256 | BN11: -43.9679105 | BO11: -19.8884147 | BP11: 44116 | BQ11: 6767 | BR11: 1741 | BS11: 303 | BT11: 1989 | BU11: 81 | BW11: 0 | BX11: 332 | BY11: 702 | BZ11: 0 | CA11: 3130 | CB11: 4395 | CC11: 2 | CD11: 390 | CF11: SPL3256 | CH11: -43.9679105 | CI11: -19.8884147 | CJ11: 44116 | CK11: 6767 | CL11: 1741 | CM11: 303 | CN11: 1989 | CO11: 81 | CQ11: 0 | CR11: 332 | CS11: 702 | CT11: 0 | CU11: 3130 | CV11: 4395 | CW11: 2 | CX11: 390
A12: SPL3257 | C12: -43.951402 | D12: -19.971216 | E12: 29575 | F12: 4337 | G12: 1262 | H12: 484 | I12: 1990 | J12: 54 | L12: 6 | M12: 316 | N12: 881 | O12: 0 | P12: 5837 | Q12: 988 | R12: 13 | S12: 341 | T12: =SUM($E12:$H12*TRANSPOSE(M$63:M$66)) -> 57710.51458 | U12: =SUM($E12:$H12*TRANSPOSE(N$63:N$66)) -> 15999.64799 | V12: =SUM($E12:$H12*TRANSPOSE(O$63:O$66)) -> 405.1429852 | X12: SPL3257 | Z12: -43.951402 | AA12: -19.971216 | AB12: 29575 | AC12: 4337 | AD12: 1262 | AE12: 484 | AF12: 1990 | AG12: 54 | AI12: 6 | AJ12: 316 | AK12: 881 | AL12: 0 | AM12: 5837 | AN12: 988 | AO12: 13 | AP12: 341 | AR12: SPL3257 | AT12: -43.951402 | AU12: -19.971216 | AV12: 29575 | AW12: 4337 | AX12: 1262 | AY12: 484 | AZ12: 1990 | BA12: 54 | BC12: 6 | BD12: 316 | BE12: 881 | BF12: 0 | BG12: 5837 | BH12: 988 | BI12: 13 | BJ12: 341 | BL12: SPL3257 | BN12: -43.951402 | BO12: -19.971216 | BP12: 29575 | BQ12: 4337 | BR12: 1262 | BS12: 484 | BT12: 1990 | BU12: 54 | BW12: 6 | BX12: 316 | BY12: 881 | BZ12: 0 | CA12: 5837 | CB12: 988 | CC12: 13 | CD12: 341 | CF12: SPL3257 | CH12: -43.951402 | CI12: -19.971216 | CJ12: 29575 | CK12: 4337 | CL12: 1262 | CM12: 484 | CN12: 1990 | CO12: 54 | CQ12: 6 | CR12: 316 | CS12: 881 | CT12: 0 | CU12: 5837 | CV12: 988 | CW12: 13 | CX12: 341
A13: SPL3258 | C13: -43.921536 | D13: -19.893325 | E13: 25380 | F13: 5008 | G13: 1013 | H13: 388 | I13: 1991 | J13: 50 | L13: 3 | M13: 273 | N13: 631 | O13: 0 | P13: 6655 | Q13: 838 | R13: 0 | S13: 271 | T13: =SUM($E13:$H13*TRANSPOSE(M$63:M$66)) -> 51869.63331 | U13: =SUM($E13:$H13*TRANSPOSE(N$63:N$66)) -> 13347.86018 | V13: =SUM($E13:$H13*TRANSPOSE(O$63:O$66)) -> 329.2681599 | X13: SPL3258 | Z13: -43.921536 | AA13: -19.893325 | AB13: 25380 | AC13: 5008 | AD13: 1013 | AE13: 388 | AF13: 1991 | AG13: 50 | AI13: 3 | AJ13: 273 | AK13: 631 | AL13: 0 | AM13: 6655 | AN13: 838 | AO13: 0 | AP13: 271 | AR13: SPL3258 | AT13: -43.921536 | AU13: -19.893325 | AV13: 25380 | AW13: 5008 | AX13: 1013 | AY13: 388 | AZ13: 1991 | BA13: 50 | BC13: 3 | BD13: 273 | BE13: 631 | BF13: 0 | BG13: 6655 | BH13: 838 | BI13: 0 | BJ13: 271 | BL13: SPL3258 | BN13: -43.921536 | BO13: -19.893325 | BP13: 25380 | BQ13: 5008 | BR13: 1013 | BS13: 388 | BT13: 1991 | BU13: 50 | BW13: 3 | BX13: 273 | BY13: 631 | BZ13: 0 | CA13: 6655 | CB13: 838 | CC13: 0 | CD13: 271 | CF13: SPL3258 | CH13: -43.921536 | CI13: -19.893325 | CJ13: 25380 | CK13: 5008 | CL13: 1013 | CM13: 388 | CN13: 1991 | CO13: 50 | CQ13: 3 | CR13: 273 | CS13: 631 | CT13: 0 | CU13: 6655 | CV13: 838 | CW13: 0 | CX13: 271
A14: SPL3259 | C14: -43.951562 | D14: -19.887463 | E14: 34842 | F14: 7880 | G14: 1204 | H14: 209 | I14: 1992 | J14: 97 | L14: 0 | M14: 258 | N14: 524 | O14: 0 | P14: 5726 | Q14: 1103 | R14: 0 | S14: 289 | T14: =SUM($E14:$H14*TRANSPOSE(M$63:M$66)) -> 72740.30943 | U14: =SUM($E14:$H14*TRANSPOSE(N$63:N$66)) -> 16361.15322 | V14: =SUM($E14:$H14*TRANSPOSE(O$63:O$66)) -> 376.2601378 | X14: SPL3259 | Z14: -43.951562 | AA14: -19.887463 | AB14: 34842 | AC14: 7880 | AD14: 1204 | AE14: 209 | AF14: 1992 | AG14: 97 | AI14: 0 | AJ14: 258 | AK14: 524 | AL14: 0 | AM14: 5726 | AN14: 1103 | AO14: 0 | AP14: 289 | AR14: SPL3259 | AT14: -43.951562 | AU14: -19.887463 | AV14: 34842 | AW14: 7880 | AX14: 1204 | AY14: 209 | AZ14: 1992 | BA14: 97 | BC14: 0 | BD14: 258 | BE14: 524 | BF14: 0 | BG14: 5726 | BH14: 1103 | BI14: 0 | BJ14: 289 | BL14: SPL3259 | BN14: -43.951562 | BO14: -19.887463 | BP14: 34842 | BQ14: 7880 | BR14: 1204 | BS14: 209 | BT14: 1992 | BU14: 97 | BW14: 0 | BX14: 258 | BY14: 524 | BZ14: 0 | CA14: 5726 | CB14: 1103 | CC14: 0 | CD14: 289 | CF14: SPL3259 | CH14: -43.951562 | CI14: -19.887463 | CJ14: 34842 | CK14: 7880 | CL14: 1204 | CM14: 209 | CN14: 1992 | CO14: 97 | CQ14: 0 | CR14: 258 | CS14: 524 | CT14: 0 | CU14: 5726 | CV14: 1103 | CW14: 0 | CX14: 289
A15: SPL3260 | C15: -43.9505311 | D15: -19.888291 | E15: 38215 | F15: 4677 | G15: 1350 | H15: 235 | I15: 1993 | J15: 71 | L15: 10 | M15: 189 | N15: 316 | O15: 0 | P15: 8575 | Q15: 1489 | R15: 1 | S15: 359 | T15: =SUM($E15:$H15*TRANSPOSE(M$63:M$66)) -> 72299.27478 | U15: =SUM($E15:$H15*TRANSPOSE(N$63:N$66)) -> 17770.92831 | V15: =SUM($E15:$H15*TRANSPOSE(O$63:O$66)) -> 419.8182754 | X15: SPL3260 | Z15: -43.9505311 | AA15: -19.888291 | AB15: 38215 | AC15: 4677 | AD15: 1350 | AE15: 235 | AF15: 1993 | AG15: 71 | AI15: 10 | AJ15: 189 | AK15: 316 | AL15: 0 | AM15: 8575 | AN15: 1489 | AO15: 1 | AP15: 359 | AR15: SPL3260 | AT15: -43.9505311 | AU15: -19.888291 | AV15: 38215 | AW15: 4677 | AX15: 1350 | AY15: 235 | AZ15: 1993 | BA15: 71 | BC15: 10 | BD15: 189 | BE15: 316 | BF15: 0 | BG15: 8575 | BH15: 1489 | BI15: 1 | BJ15: 359 | BL15: SPL3260 | BN15: -43.9505311 | BO15: -19.888291 | BP15: 38215 | BQ15: 4677 | BR15: 1350 | BS15: 235 | BT15: 1993 | BU15: 71 | BW15: 10 | BX15: 189 | BY15: 316 | BZ15: 0 | CA15: 8575 | CB15: 1489 | CC15: 1 | CD15: 359 | CF15: SPL3260 | CH15: -43.9505311 | CI15: -19.888291 | CJ15: 38215 | CK15: 4677 | CL15: 1350 | CM15: 235 | CN15: 1993 | CO15: 71 | CQ15: 10 | CR15: 189 | CS15: 316 | CT15: 0 | CU15: 8575 | CV15: 1489 | CW15: 1 | CX15: 359
A16: SPL3261 | C16: -43.946917 | D16: -19.898799 | E16: 11234 | F16: 5128 | G16: 1389 | H16: 241 | I16: 1994 | J16: 49 | L16: 28 | M16: 327 | N16: 559 | O16: 0 | P16: 11036 | Q16: 1343 | R16: 0 | S16: 491 | T16: =SUM($E16:$H16*TRANSPOSE(M$63:M$66)) -> 29593.14502 | U16: =SUM($E16:$H16*TRANSPOSE(N$63:N$66)) -> 12070.86655 | V16: =SUM($E16:$H16*TRANSPOSE(O$63:O$66)) -> 361.3918867 | X16: SPL3261 | Z16: -43.946917 | AA16: -19.898799 | AB16: 11234 | AC16: 5128 | AD16: 1389 | AE16: 241 | AF16: 1994 | AG16: 49 | AI16: 28 | AJ16: 327 | AK16: 559 | AL16: 0 | AM16: 11036 | AN16: 1343 | AO16: 0 | AP16: 491 | AR16: SPL3261 | AT16: -43.946917 | AU16: -19.898799 | AV16: 11234 | AW16: 5128 | AX16: 1389 | AY16: 241 | AZ16: 1994 | BA16: 49 | BC16: 28 | BD16: 327 | BE16: 559 | BF16: 0 | BG16: 11036 | BH16: 1343 | BI16: 0 | BJ16: 491 | BL16: SPL3261 | BN16: -43.946917 | BO16: -19.898799 | BP16: 11234 | BQ16: 5128 | BR16: 1389 | BS16: 241 | BT16: 1994 | BU16: 49 | BW16: 28 | BX16: 327 | BY16: 559 | BZ16: 0 | CA16: 11036 | CB16: 1343 | CC16: 0 | CD16: 491 | CF16: SPL3261 | CH16: -43.946917 | CI16: -19.898799 | CJ16: 11234 | CK16: 5128 | CL16: 1389 | CM16: 241 | CN16: 1994 | CO16: 49 | CQ16: 28 | CR16: 327 | CS16: 559 | CT16: 0 | CU16: 11036 | CV16: 1343 | CW16: 0 | CX16: 491
A17: SPL3262 | C17: -43.9403075 | D17: -19.9556957 | E17: 33772 | F17: 2780 | G17: 1715 | H17: 602 | I17: 1995 | J17: 86 | L17: 103 | M17: 527 | N17: 1134 | O17: 0 | P17: 18944 | Q17: 344 | R17: 2 | S17: 553 | T17: =SUM($E17:$H17*TRANSPOSE(M$63:M$66)) -> 62119.71232 | U17: =SUM($E17:$H17*TRANSPOSE(N$63:N$66)) -> 19867.29066 | V17: =SUM($E17:$H17*TRANSPOSE(O$63:O$66)) -> 528.5348141 | X17: SPL3262 | Z17: -43.9403075 | AA17: -19.9556957 | AB17: 33772 | AC17: 2780 | AD17: 1715 | AE17: 602 | AF17: 1995 | AG17: 86 | AI17: 103 | AJ17: 527 | AK17: 1134 | AL17: 0 | AM17: 18944 | AN17: 344 | AO17: 2 | AP17: 553 | AR17: SPL3262 | AT17: -43.9403075 | AU17: -19.9556957 | AV17: 33772 | AW17: 2780 | AX17: 1715 | AY17: 602 | AZ17: 1995 | BA17: 86 | BC17: 103 | BD17: 527 | BE17: 1134 | BF17: 0 | BG17: 18944 | BH17: 344 | BI17: 2 | BJ17: 553 | BL17: SPL3262 | BN17: -43.9403075 | BO17: -19.9556957 | BP17: 33772 | BQ17: 2780 | BR17: 1715 | BS17: 602 | BT17: 1995 | BU17: 86 | BW17: 103 | BX17: 527 | BY17: 1134 | BZ17: 0 | CA17: 18944 | CB17: 344 | CC17: 2 | CD17: 553 | CF17: SPL3262 | CH17: -43.9403075 | CI17: -19.9556957 | CJ17: 33772 | CK17: 2780 | CL17: 1715 | CM17: 602 | CN17: 1995 | CO17: 86 | CQ17: 103 | CR17: 527 | CS17: 1134 | CT17: 0 | CU17: 18944 | CV17: 344 | CW17: 2 | CX17: 553
A18: SPL3264 | C18: -43.949056 | D18: -19.917737 | E18: 45895 | F18: 7989 | G18: 2538 | H18: 683 | I18: 1996 | J18: 101 | L18: 37 | M18: 321 | N18: 1365 | O18: 0 | P18: 17211 | Q18: 51 | R18: 1 | S18: 209 | T18: =SUM($E18:$H18*TRANSPOSE(M$63:M$66)) -> 92575.20172 | U18: =SUM($E18:$H18*TRANSPOSE(N$63:N$66)) -> 28259.12044 | V18: =SUM($E18:$H18*TRANSPOSE(O$63:O$66)) -> 749.806962 | X18: SPL3264 | Z18: -43.949056 | AA18: -19.917737 | AB18: 45895 | AC18: 7989 | AD18: 2538 | AE18: 683 | AF18: 1996 | AG18: 101 | AI18: 37 | AJ18: 321 | AK18: 1365 | AL18: 0 | AM18: 17211 | AN18: 51 | AO18: 1 | AP18: 209 | AR18: SPL3264 | AT18: -43.949056 | AU18: -19.917737 | AV18: 45895 | AW18: 7989 | AX18: 2538 | AY18: 683 | AZ18: 1996 | BA18: 101 | BC18: 37 | BD18: 321 | BE18: 1365 | BF18: 0 | BG18: 17211 | BH18: 51 | BI18: 1 | BJ18: 209 | BL18: SPL3264 | BN18: -43.949056 | BO18: -19.917737 | BP18: 45895 | BQ18: 7989 | BR18: 2538 | BS18: 683 | BT18: 1996 | BU18: 101 | BW18: 37 | BX18: 321 | BY18: 1365 | BZ18: 0 | CA18: 17211 | CB18: 51 | CC18: 1 | CD18: 209 | CF18: SPL3264 | CH18: -43.949056 | CI18: -19.917737 | CJ18: 45895 | CK18: 7989 | CL18: 2538 | CM18: 683 | CN18: 1996 | CO18: 101 | CQ18: 37 | CR18: 321 | CS18: 1365 | CT18: 0 | CU18: 17211 | CV18: 51 | CW18: 1 | CX18: 209
A19: SPL3265 | C19: -43.9493971 | D19: -19.9178898 | E19: 40549 | F19: 3026 | G19: 983 | H19: 346 | I19: 1997 | J19: 89 | L19: 218 | M19: 613 | N19: 2602 | O19: 0 | P19: 19715 | Q19: 12 | R19: 0 | S19: 299 | T19: =SUM($E19:$H19*TRANSPOSE(M$63:M$66)) -> 72574.06993 | U19: =SUM($E19:$H19*TRANSPOSE(N$63:N$66)) -> 16232.28335 | V19: =SUM($E19:$H19*TRANSPOSE(O$63:O$66)) -> 356.2190101 | X19: SPL3265 | Z19: -43.9493971 | AA19: -19.9178898 | AB19: 40549 | AC19: 3026 | AD19: 983 | AE19: 346 | AF19: 1997 | AG19: 89 | AI19: 218 | AJ19: 613 | AK19: 2602 | AL19: 0 | AM19: 19715 | AN19: 12 | AO19: 0 | AP19: 299 | AR19: SPL3265 | AT19: -43.9493971 | AU19: -19.9178898 | AV19: 40549 | AW19: 3026 | AX19: 983 | AY19: 346 | AZ19: 1997 | BA19: 89 | BC19: 218 | BD19: 613 | BE19: 2602 | BF19: 0 | BG19: 19715 | BH19: 12 | BI19: 0 | BJ19: 299 | BL19: SPL3265 | BN19: -43.9493971 | BO19: -19.9178898 | BP19: 40549 | BQ19: 3026 | BR19: 983 | BS19: 346 | BT19: 1997 | BU19: 89 | BW19: 218 | BX19: 613 | BY19: 2602 | BZ19: 0 | CA19: 19715 | CB19: 12 | CC19: 0 | CD19: 299 | CF19: SPL3265 | CH19: -43.9493971 | CI19: -19.9178898 | CJ19: 40549 | CK19: 3026 | CL19: 983 | CM19: 346 | CN19: 1997 | CO19: 89 | CQ19: 218 | CR19: 613 | CS19: 2602 | CT19: 0 | CU19: 19715 | CV19: 12 | CW19: 0 | CX19: 299
A20: SPL3266 | C20: -43.928484 | D20: -19.901449 | E20: 50023 | F20: 13865 | G20: 2003 | H20: 704 | I20: 1998 | J20: 97 | L20: 159 | M20: 641 | N20: 2838 | O20: 0 | P20: 16751 | Q20: 7 | R20: 3 | S20: 409 | T20: =SUM($E20:$H20*TRANSPOSE(M$63:M$66)) -> 109784.4577 | U20: =SUM($E20:$H20*TRANSPOSE(N$63:N$66)) -> 26544.59506 | V20: =SUM($E20:$H20*TRANSPOSE(O$63:O$66)) -> 643.9344633 | X20: SPL3266 | Z20: -43.928484 | AA20: -19.901449 | AB20: 50023 | AC20: 13865 | AD20: 2003 | AE20: 704 | AF20: 1998 | AG20: 97 | AI20: 159 | AJ20: 641 | AK20: 2838 | AL20: 0 | AM20: 16751 | AN20: 7 | AO20: 3 | AP20: 409 | AR20: SPL3266 | AT20: -43.928484 | AU20: -19.901449 | AV20: 50023 | AW20: 13865 | AX20: 2003 | AY20: 704 | AZ20: 1998 | BA20: 97 | BC20: 159 | BD20: 641 | BE20: 2838 | BF20: 0 | BG20: 16751 | BH20: 7 | BI20: 3 | BJ20: 409 | BL20: SPL3266 | BN20: -43.928484 | BO20: -19.901449 | BP20: 50023 | BQ20: 13865 | BR20: 2003 | BS20: 704 | BT20: 1998 | BU20: 97 | BW20: 159 | BX20: 641 | BY20: 2838 | BZ20: 0 | CA20: 16751 | CB20: 7 | CC20: 3 | CD20: 409 | CF20: SPL3266 | CH20: -43.928484 | CI20: -19.901449 | CJ20: 50023 | CK20: 13865 | CL20: 2003 | CM20: 704 | CN20: 1998 | CO20: 97 | CQ20: 159 | CR20: 641 | CS20: 2838 | CT20: 0 | CU20: 16751 | CV20: 7 | CW20: 3 | CX20: 409
A21: SPL3268 | C21: -43.9282598 | D21: -19.9393729 | E21: 20237 | F21: 4257 | G21: 359 | H21: 126 | I21: 1999 | J21: 139 | L21: 124 | M21: 481 | N21: 2267 | O21: 0 | P21: 15116 | Q21: 14 | R21: 0 | S21: 344 | T21: =SUM($E21:$H21*TRANSPOSE(M$63:M$66)) -> 41254.13193 | U21: =SUM($E21:$H21*TRANSPOSE(N$63:N$66)) -> 7426.431212 | V21: =SUM($E21:$H21*TRANSPOSE(O$63:O$66)) -> 143.6759748 | X21: SPL3268 | Z21: -43.9282598 | AA21: -19.9393729 | AB21: 20237 | AC21: 4257 | AD21: 359 | AE21: 126 | AF21: 1999 | AG21: 139 | AI21: 124 | AJ21: 481 | AK21: 2267 | AL21: 0 | AM21: 15116 | AN21: 14 | AO21: 0 | AP21: 344 | AR21: SPL3268 | AT21: -43.9282598 | AU21: -19.9393729 | AV21: 20237 | AW21: 4257 | AX21: 359 | AY21: 126 | AZ21: 1999 | BA21: 139 | BC21: 124 | BD21: 481 | BE21: 2267 | BF21: 0 | BG21: 15116 | BH21: 14 | BI21: 0 | BJ21: 344 | BL21: SPL3268 | BN21: -43.9282598 | BO21: -19.9393729 | BP21: 20237 | BQ21: 4257 | BR21: 359 | BS21: 126 | BT21: 1999 | BU21: 139 | BW21: 124 | BX21: 481 | BY21: 2267 | BZ21: 0 | CA21: 15116 | CB21: 14 | CC21: 0 | CD21: 344 | CF21: SPL3268 | CH21: -43.9282598 | CI21: -19.9393729 | CJ21: 20237 | CK21: 4257 | CL21: 359 | CM21: 126 | CN21: 1999 | CO21: 139 | CQ21: 124 | CR21: 481 | CS21: 2267 | CT21: 0 | CU21: 15116 | CV21: 14 | CW21: 0 | CX21: 344
A22: SPL3269 | C22: -43.999321 | D22: -19.873925 | E22: 6287 | F22: 970 | G22: 201 | H22: 71 | I22: 2000 | J22: 77 | L22: 138 | M22: 489 | N22: 3136 | O22: 0 | P22: 15355 | Q22: 73 | R22: 1 | S22: 529 | T22: =SUM($E22:$H22*TRANSPOSE(M$63:M$66)) -> 12266.26953 | U22: =SUM($E22:$H22*TRANSPOSE(N$63:N$66)) -> 2907.140984 | V22: =SUM($E22:$H22*TRANSPOSE(O$63:O$66)) -> 67.83583277 | X22: SPL3269 | Z22: -43.999321 | AA22: -19.873925 | AB22: 6287 | AC22: 970 | AD22: 201 | AE22: 71 | AF22: 2000 | AG22: 77 | AI22: 138 | AJ22: 489 | AK22: 3136 | AL22: 0 | AM22: 15355 | AN22: 73 | AO22: 1 | AP22: 529 | AR22: SPL3269 | AT22: -43.999321 | AU22: -19.873925 | AV22: 6287 | AW22: 970 | AX22: 201 | AY22: 71 | AZ22: 2000 | BA22: 77 | BC22: 138 | BD22: 489 | BE22: 3136 | BF22: 0 | BG22: 15355 | BH22: 73 | BI22: 1 | BJ22: 529 | BL22: SPL3269 | BN22: -43.999321 | BO22: -19.873925 | BP22: 6287 | BQ22: 970 | BR22: 201 | BS22: 71 | BT22: 2000 | BU22: 77 | BW22: 138 | BX22: 489 | BY22: 3136 | BZ22: 0 | CA22: 15355 | CB22: 73 | CC22: 1 | CD22: 529 | CF22: SPL3269 | CH22: -43.999321 | CI22: -19.873925 | CJ22: 6287 | CK22: 970 | CL22: 201 | CM22: 71 | CN22: 2000 | CO22: 77 | CQ22: 138 | CR22: 489 | CS22: 3136 | CT22: 0 | CU22: 15355 | CV22: 73 | CW22: 1 | CX22: 529
A23: SPL3271 | C23: -43.952757 | D23: -19.927254 | E23: 47718 | F23: 21369 | G23: 3264 | H23: 1147 | I23: 2001 | J23: 156 | L23: 208 | M23: 620 | N23: 3541 | O23: 0 | P23: 18573 | Q23: 85 | R23: 3 | S23: 894 | T23: =SUM($E23:$H23*TRANSPOSE(M$63:M$66)) -> 121951.5007 | U23: =SUM($E23:$H23*TRANSPOSE(N$63:N$66)) -> 35631.53899 | V23: =SUM($E23:$H23*TRANSPOSE(O$63:O$66)) -> 964.5012894 | X23: SPL3271 | Z23: -43.952757 | AA23: -19.927254 | AB23: 47718 | AC23: 21369 | AD23: 3264 | AE23: 1147 | AF23: 2001 | AG23: 156 | AI23: 208 | AJ23: 620 | AK23: 3541 | AL23: 0 | AM23: 18573 | AN23: 85 | AO23: 3 | AP23: 894 | AR23: SPL3271 | AT23: -43.952757 | AU23: -19.927254 | AV23: 47718 | AW23: 21369 | AX23: 3264 | AY23: 1147 | AZ23: 2001 | BA23: 156 | BC23: 208 | BD23: 620 | BE23: 3541 | BF23: 0 | BG23: 18573 | BH23: 85 | BI23: 3 | BJ23: 894 | BL23: SPL3271 | BN23: -43.952757 | BO23: -19.927254 | BP23: 47718 | BQ23: 21369 | BR23: 3264 | BS23: 1147 | BT23: 2001 | BU23: 156 | BW23: 208 | BX23: 620 | BY23: 3541 | BZ23: 0 | CA23: 18573 | CB23: 85 | CC23: 3 | CD23: 894 | CF23: SPL3271 | CH23: -43.952757 | CI23: -19.927254 | CJ23: 47718 | CK23: 21369 | CL23: 3264 | CM23: 1147 | CN23: 2001 | CO23: 156 | CQ23: 208 | CR23: 620 | CS23: 3541 | CT23: 0 | CU23: 18573 | CV23: 85 | CW23: 3 | CX23: 894
A24: SPL3272 | C24: -43.993488 | D24: -19.934742 | E24: 34403 | F24: 5207 | G24: 1501 | H24: 292 | I24: 2002 | J24: 91 | L24: 45 | M24: 509 | N24: 4223 | O24: 0 | P24: 14698 | Q24: 147 | R24: 3 | S24: 532 | T24: =SUM($E24:$H24*TRANSPOSE(M$63:M$66)) -> 67344.15942 | U24: =SUM($E24:$H24*TRANSPOSE(N$63:N$66)) -> 18050.3846 | V24: =SUM($E24:$H24*TRANSPOSE(O$63:O$66)) -> 449.7529686 | X24: SPL3272 | Z24: -43.993488 | AA24: -19.934742 | AB24: 34403 | AC24: 5207 | AD24: 1501 | AE24: 292 | AF24: 2002 | AG24: 91 | AI24: 45 | AJ24: 509 | AK24: 4223 | AL24: 0 | AM24: 14698 | AN24: 147 | AO24: 3 | AP24: 532 | AR24: SPL3272 | AT24: -43.993488 | AU24: -19.934742 | AV24: 34403 | AW24: 5207 | AX24: 1501 | AY24: 292 | AZ24: 2002 | BA24: 91 | BC24: 45 | BD24: 509 | BE24: 4223 | BF24: 0 | BG24: 14698 | BH24: 147 | BI24: 3 | BJ24: 532 | BL24: SPL3272 | BN24: -43.993488 | BO24: -19.934742 | BP24: 34403 | BQ24: 5207 | BR24: 1501 | BS24: 292 | BT24: 2002 | BU24: 91 | BW24: 45 | BX24: 509 | BY24: 4223 | BZ24: 0 | CA24: 14698 | CB24: 147 | CC24: 3 | CD24: 532 | CF24: SPL3272 | CH24: -43.993488 | CI24: -19.934742 | CJ24: 34403 | CK24: 5207 | CL24: 1501 | CM24: 292 | CN24: 2002 | CO24: 91 | CQ24: 45 | CR24: 509 | CS24: 4223 | CT24: 0 | CU24: 14698 | CV24: 147 | CW24: 3 | CX24: 532
A25: SPL3273 | C25: -43.9306517 | D25: -19.8646028 | E25: 41679 | F25: 8627 | G25: 3564 | H25: 694 | I25: 2003 | J25: 103 | L25: 57 | M25: 456 | N25: 5047 | O25: 0 | P25: 16345 | Q25: 198 | R25: 22 | S25: 522 | T25: =SUM($E25:$H25*TRANSPOSE(M$63:M$66)) -> 88154.17965 | U25: =SUM($E25:$H25*TRANSPOSE(N$63:N$66)) -> 33623.62235 | V25: =SUM($E25:$H25*TRANSPOSE(O$63:O$66)) -> 967.5846099 | X25: SPL3273 | Z25: -43.9306517 | AA25: -19.8646028 | AB25: 41679 | AC25: 8627 | AD25: 3564 | AE25: 694 | AF25: 2003 | AG25: 103 | AI25: 57 | AJ25: 456 | AK25: 5047 | AL25: 0 | AM25: 16345 | AN25: 198 | AO25: 22 | AP25: 522 | AR25: SPL3273 | AT25: -43.9306517 | AU25: -19.8646028 | AV25: 41679 | AW25: 8627 | AX25: 3564 | AY25: 694 | AZ25: 2003 | BA25: 103 | BC25: 57 | BD25: 456 | BE25: 5047 | BF25: 0 | BG25: 16345 | BH25: 198 | BI25: 22 | BJ25: 522 | BL25: SPL3273 | BN25: -43.9306517 | BO25: -19.8646028 | BP25: 41679 | BQ25: 8627 | BR25: 3564 | BS25: 694 | BT25: 2003 | BU25: 103 | BW25: 57 | BX25: 456 | BY25: 5047 | BZ25: 0 | CA25: 16345 | CB25: 198 | CC25: 22 | CD25: 522 | CF25: SPL3273 | CH25: -43.9306517 | CI25: -19.8646028 | CJ25: 41679 | CK25: 8627 | CL25: 3564 | CM25: 694 | CN25: 2003 | CO25: 103 | CQ25: 57 | CR25: 456 | CS25: 5047 | CT25: 0 | CU25: 16345 | CV25: 198 | CW25: 22 | CX25: 522
A26: SPL3274 | C26: -43.980853 | D26: -19.9302968 | E26: 44070 | F26: 6711 | G26: 1758 | H26: 618 | I26: 2004 | J26: 131 | L26: 84 | M26: 686 | N26: 4619 | O26: 0 | P26: 13063 | Q26: 83 | R26: 1663 | S26: 700 | T26: =SUM($E26:$H26*TRANSPOSE(M$63:M$66)) -> 86274.86402 | U26: =SUM($E26:$H26*TRANSPOSE(N$63:N$66)) -> 22827.2353 | V26: =SUM($E26:$H26*TRANSPOSE(O$63:O$66)) -> 565.5980492 | X26: SPL3274 | Z26: -43.980853 | AA26: -19.9302968 | AB26: 44070 | AC26: 6711 | AD26: 1758 | AE26: 618 | AF26: 2004 | AG26: 131 | AI26: 84 | AJ26: 686 | AK26: 4619 | AL26: 0 | AM26: 13063 | AN26: 83 | AO26: 1663 | AP26: 700 | AR26: SPL3274 | AT26: -43.980853 | AU26: -19.9302968 | AV26: 44070 | AW26: 6711 | AX26: 1758 | AY26: 618 | AZ26: 2004 | BA26: 131 | BC26: 84 | BD26: 686 | BE26: 4619 | BF26: 0 | BG26: 13063 | BH26: 83 | BI26: 1663 | BJ26: 700 | BL26: SPL3274 | BN26: -43.980853 | BO26: -19.9302968 | BP26: 44070 | BQ26: 6711 | BR26: 1758 | BS26: 618 | BT26: 2004 | BU26: 131 | BW26: 84 | BX26: 686 | BY26: 4619 | BZ26: 0 | CA26: 13063 | CB26: 83 | CC26: 1663 | CD26: 700 | CF26: SPL3274 | CH26: -43.980853 | CI26: -19.9302968 | CJ26: 44070 | CK26: 6711 | CL26: 1758 | CM26: 618 | CN26: 2004 | CO26: 131 | CQ26: 84 | CR26: 686 | CS26: 4619 | CT26: 0 | CU26: 13063 | CV26: 83 | CW26: 1663 | CX26: 700
A27: SPL3275 | C27: -43.9701519 | D27: -19.9311106 | E27: 49021 | F27: 8335 | G27: 1957 | H27: 687 | I27: 2005 | J27: 96 | L27: 77 | M27: 824 | N27: 6828 | O27: 0 | P27: 11807 | Q27: 85 | R27: 6460 | S27: 776 | T27: =SUM($E27:$H27*TRANSPOSE(M$63:M$66)) -> 97618.53468 | U27: =SUM($E27:$H27*TRANSPOSE(N$63:N$66)) -> 25480.50797 | V27: =SUM($E27:$H27*TRANSPOSE(O$63:O$66)) -> 629.4259775 | X27: SPL3275 | Z27: -43.9701519 | AA27: -19.9311106 | AB27: 49021 | AC27: 8335 | AD27: 1957 | AE27: 687 | AF27: 2005 | AG27: 96 | AI27: 77 | AJ27: 824 | AK27: 6828 | AL27: 0 | AM27: 11807 | AN27: 85 | AO27: 6460 | AP27: 776 | AR27: SPL3275 | AT27: -43.9701519 | AU27: -19.9311106 | AV27: 49021 | AW27: 8335 | AX27: 1957 | AY27: 687 | AZ27: 2005 | BA27: 96 | BC27: 77 | BD27: 824 | BE27: 6828 | BF27: 0 | BG27: 11807 | BH27: 85 | BI27: 6460 | BJ27: 776 | BL27: SPL3275 | BN27: -43.9701519 | BO27: -19.9311106 | BP27: 49021 | BQ27: 8335 | BR27: 1957 | BS27: 687 | BT27: 2005 | BU27: 96 | BW27: 77 | BX27: 824 | BY27: 6828 | BZ27: 0 | CA27: 11807 | CB27: 85 | CC27: 6460 | CD27: 776 | CF27: SPL3275 | CH27: -43.9701519 | CI27: -19.9311106 | CJ27: 49021 | CK27: 8335 | CL27: 1957 | CM27: 687 | CN27: 2005 | CO27: 96 | CQ27: 77 | CR27: 824 | CS27: 6828 | CT27: 0 | CU27: 11807 | CV27: 85 | CW27: 6460 | CX27: 776
A28: SPL3276 | C28: -43.9313474 | D28: -19.8645403 | E28: 35282 | F28: 7543 | G28: 1370 | H28: 368 | I28: 2006 | J28: 156 | L28: 125 | M28: 852 | N28: 7519 | O28: 0 | P28: 5134 | Q28: 77 | R28: 15094 | S28: 1095 | T28: =SUM($E28:$H28*TRANSPOSE(M$63:M$66)) -> 73080.80048 | U28: =SUM($E28:$H28*TRANSPOSE(N$63:N$66)) -> 17887.58541 | V28: =SUM($E28:$H28*TRANSPOSE(O$63:O$66)) -> 431.0366037 | X28: SPL3276 | Z28: -43.9313474 | AA28: -19.8645403 | AB28: 35282 | AC28: 7543 | AD28: 1370 | AE28: 368 | AF28: 2006 | AG28: 156 | AI28: 125 | AJ28: 852 | AK28: 7519 | AL28: 0 | AM28: 5134 | AN28: 77 | AO28: 15094 | AP28: 1095 | AR28: SPL3276 | AT28: -43.9313474 | AU28: -19.8645403 | AV28: 35282 | AW28: 7543 | AX28: 1370 | AY28: 368 | AZ28: 2006 | BA28: 156 | BC28: 125 | BD28: 852 | BE28: 7519 | BF28: 0 | BG28: 5134 | BH28: 77 | BI28: 15094 | BJ28: 1095 | BL28: SPL3276 | BN28: -43.9313474 | BO28: -19.8645403 | BP28: 35282 | BQ28: 7543 | BR28: 1370 | BS28: 368 | BT28: 2006 | BU28: 156 | BW28: 125 | BX28: 852 | BY28: 7519 | BZ28: 0 | CA28: 5134 | CB28: 77 | CC28: 15094 | CD28: 1095 | CF28: SPL3276 | CH28: -43.9313474 | CI28: -19.8645403 | CJ28: 35282 | CK28: 7543 | CL28: 1370 | CM28: 368 | CN28: 2006 | CO28: 156 | CQ28: 125 | CR28: 852 | CS28: 7519 | CT28: 0 | CU28: 5134 | CV28: 77 | CW28: 15094 | CX28: 1095
A29: SPL3277 | C29: -43.9553699 | D29: -19.9638634 | E29: 34027 | F29: 4445 | G29: 1173 | H29: 450 | I29: 2007 | J29: 212 | L29: 157 | M29: 738 | N29: 12449 | O29: 0 | P29: 6019 | Q29: 190 | R29: 20967 | S29: 1000 | T29: =SUM($E29:$H29*TRANSPOSE(M$63:M$66)) -> 64992.17827 | U29: =SUM($E29:$H29*TRANSPOSE(N$63:N$66)) -> 16362.87753 | V29: =SUM($E29:$H29*TRANSPOSE(O$63:O$66)) -> 392.9896251 | X29: SPL3277 | Z29: -43.9553699 | AA29: -19.9638634 | AB29: 34027 | AC29: 4445 | AD29: 1173 | AE29: 450 | AF29: 2007 | AG29: 212 | AI29: 157 | AJ29: 738 | AK29: 12449 | AL29: 0 | AM29: 6019 | AN29: 190 | AO29: 20967 | AP29: 1000 | AR29: SPL3277 | AT29: -43.9553699 | AU29: -19.9638634 | AV29: 34027 | AW29: 4445 | AX29: 1173 | AY29: 450 | AZ29: 2007 | BA29: 212 | BC29: 157 | BD29: 738 | BE29: 12449 | BF29: 0 | BG29: 6019 | BH29: 190 | BI29: 20967 | BJ29: 1000 | BL29: SPL3277 | BN29: -43.9553699 | BO29: -19.9638634 | BP29: 34027 | BQ29: 4445 | BR29: 1173 | BS29: 450 | BT29: 2007 | BU29: 212 | BW29: 157 | BX29: 738 | BY29: 12449 | BZ29: 0 | CA29: 6019 | CB29: 190 | CC29: 20967 | CD29: 1000 | CF29: SPL3277 | CH29: -43.9553699 | CI29: -19.9638634 | CJ29: 34027 | CK29: 4445 | CL29: 1173 | CM29: 450 | CN29: 2007 | CO29: 212 | CQ29: 157 | CR29: 738 | CS29: 12449 | CT29: 0 | CU29: 6019 | CV29: 190 | CW29: 20967 | CX29: 1000
A30: SPL3278 | C30: -44.013794 | D30: -19.97356 | E30: 27888 | F30: 6890 | G30: 2804 | H30: 985 | I30: 2008 | J30: 332 | L30: 267 | M30: 1217 | N30: 22881 | O30: 2 | P30: 5907 | Q30: 254 | R30: 36083 | S30: 1612 | T30: =SUM($E30:$H30*TRANSPOSE(M$63:M$66)) -> 61839.98121 | U30: =SUM($E30:$H30*TRANSPOSE(N$63:N$66)) -> 26630.40106 | V30: =SUM($E30:$H30*TRANSPOSE(O$63:O$66)) -> 795.652367 | X30: SPL3278 | Z30: -44.013794 | AA30: -19.97356 | AB30: 27888 | AC30: 6890 | AD30: 2804 | AE30: 985 | AF30: 2008 | AG30: 332 | AI30: 267 | AJ30: 1217 | AK30: 22881 | AL30: 2 | AM30: 5907 | AN30: 254 | AO30: 36083 | AP30: 1612 | AR30: SPL3278 | AT30: -44.013794 | AU30: -19.97356 | AV30: 27888 | AW30: 6890 | AX30: 2804 | AY30: 985 | AZ30: 2008 | BA30: 332 | BC30: 267 | BD30: 1217 | BE30: 22881 | BF30: 2 | BG30: 5907 | BH30: 254 | BI30: 36083 | BJ30: 1612 | BL30: SPL3278 | BN30: -44.013794 | BO30: -19.97356 | BP30: 27888 | BQ30: 6890 | BR30: 2804 | BS30: 985 | BT30: 2008 | BU30: 332 | BW30: 267 | BX30: 1217 | BY30: 22881 | BZ30: 2 | CA30: 5907 | CB30: 254 | CC30: 36083 | CD30: 1612 | CF30: SPL3278 | CH30: -44.013794 | CI30: -19.97356 | CJ30: 27888 | CK30: 6890 | CL30: 2804 | CM30: 985 | CN30: 2008 | CO30: 332 | CQ30: 267 | CR30: 1217 | CS30: 22881 | CT30: 2 | CU30: 5907 | CV30: 254 | CW30: 36083 | CX30: 1612
A31: SPL3279 | C31: -43.948174 | D31: -19.897164 | E31: 38437 | F31: 5624 | G31: 896 | H31: 282 | I31: 2009 | J31: 187 | L31: 234 | M31: 1418 | N31: 7798 | O31: 895 | P31: 3888 | Q31: 134 | R31: 32438 | S31: 1582 | T31: =SUM($E31:$H31*TRANSPOSE(M$63:M$66)) -> 73955.30045 | U31: =SUM($E31:$H31*TRANSPOSE(N$63:N$66)) -> 15294.78168 | V31: =SUM($E31:$H31*TRANSPOSE(O$63:O$66)) -> 324.8466424 | X31: SPL3279 | Z31: -43.948174 | AA31: -19.897164 | AB31: 38437 | AC31: 5624 | AD31: 896 | AE31: 282 | AF31: 2009 | AG31: 187 | AI31: 234 | AJ31: 1418 | AK31: 7798 | AL31: 895 | AM31: 3888 | AN31: 134 | AO31: 32438 | AP31: 1582 | AR31: SPL3279 | AT31: -43.948174 | AU31: -19.897164 | AV31: 38437 | AW31: 5624 | AX31: 896 | AY31: 282 | AZ31: 2009 | BA31: 187 | BC31: 234 | BD31: 1418 | BE31: 7798 | BF31: 895 | BG31: 3888 | BH31: 134 | BI31: 32438 | BJ31: 1582 | BL31: SPL3279 | BN31: -43.948174 | BO31: -19.897164 | BP31: 38437 | BQ31: 5624 | BR31: 896 | BS31: 282 | BT31: 2009 | BU31: 187 | BW31: 234 | BX31: 1418 | BY31: 7798 | BZ31: 895 | CA31: 3888 | CB31: 134 | CC31: 32438 | CD31: 1582 | CF31: SPL3279 | CH31: -43.948174 | CI31: -19.897164 | CJ31: 38437 | CK31: 5624 | CL31: 896 | CM31: 282 | CN31: 2009 | CO31: 187 | CQ31: 234 | CR31: 1418 | CS31: 7798 | CT31: 895 | CU31: 3888 | CV31: 134 | CW31: 32438 | CX31: 1582
A32: SPL3280 | C32: -43.9643543 | D32: -19.8502858 | E32: 56979 | F32: 11459 | G32: 2492 | H32: 671 | I32: 2010 | J32: 303 | L32: 148 | M32: 1874 | N32: 12526 | O32: 2665 | P32: 5853 | Q32: 197 | R32: 46011 | S32: 1717 | T32: =SUM($E32:$H32*TRANSPOSE(M$63:M$66)) -> 117010.7844 | U32: =SUM($E32:$H32*TRANSPOSE(N$63:N$66)) -> 30731.95492 | V32: =SUM($E32:$H32*TRANSPOSE(O$63:O$66)) -> 766.1564598 | X32: SPL3280 | Z32: -43.9643543 | AA32: -19.8502858 | AB32: 56979 | AC32: 11459 | AD32: 2492 | AE32: 671 | AF32: 2010 | AG32: 303 | AI32: 148 | AJ32: 1874 | AK32: 12526 | AL32: 2665 | AM32: 5853 | AN32: 197 | AO32: 46011 | AP32: 1717 | AR32: SPL3280 | AT32: -43.9643543 | AU32: -19.8502858 | AV32: 56979 | AW32: 11459 | AX32: 2492 | AY32: 671 | AZ32: 2010 | BA32: 303 | BC32: 148 | BD32: 1874 | BE32: 12526 | BF32: 2665 | BG32: 5853 | BH32: 197 | BI32: 46011 | BJ32: 1717 | BL32: SPL3280 | BN32: -43.9643543 | BO32: -19.8502858 | BP32: 56979 | BQ32: 11459 | BR32: 2492 | BS32: 671 | BT32: 2010 | BU32: 303 | BW32: 148 | BX32: 1874 | BY32: 12526 | BZ32: 2665 | CA32: 5853 | CB32: 197 | CC32: 46011 | CD32: 1717 | CF32: SPL3280 | CH32: -43.9643543 | CI32: -19.8502858 | CJ32: 56979 | CK32: 11459 | CL32: 2492 | CM32: 671 | CN32: 2010 | CO32: 303 | CQ32: 148 | CR32: 1874 | CS32: 12526 | CT32: 2665 | CU32: 5853 | CV32: 197 | CW32: 46011 | CX32: 1717
A33: SPL3281 | C33: -43.919865 | D33: -19.84968 | E33: 26415 | F33: 4289 | G33: 1999 | H33: 702 | I33: 2011 | J33: 420 | L33: 408 | M33: 2231 | N33: 10202 | O33: 4522 | P33: 7341 | Q33: 242 | R33: 48491 | S33: 2451 | T33: =SUM($E33:$H33*TRANSPOSE(M$63:M$66)) -> 53464.85633 | U33: =SUM($E33:$H33*TRANSPOSE(N$63:N$66)) -> 20378.25601 | V33: =SUM($E33:$H33*TRANSPOSE(O$63:O$66)) -> 583.5990424 | X33: SPL3281 | Z33: -43.919865 | AA33: -19.84968 | AB33: 26415 | AC33: 4289 | AD33: 1999 | AE33: 702 | AF33: 2011 | AG33: 420 | AI33: 408 | AJ33: 2231 | AK33: 10202 | AL33: 4522 | AM33: 7341 | AN33: 242 | AO33: 48491 | AP33: 2451 | AR33: SPL3281 | AT33: -43.919865 | AU33: -19.84968 | AV33: 26415 | AW33: 4289 | AX33: 1999 | AY33: 702 | AZ33: 2011 | BA33: 420 | BC33: 408 | BD33: 2231 | BE33: 10202 | BF33: 4522 | BG33: 7341 | BH33: 242 | BI33: 48491 | BJ33: 2451 | BL33: SPL3281 | BN33: -43.919865 | BO33: -19.84968 | BP33: 26415 | BQ33: 4289 | BR33: 1999 | BS33: 702 | BT33: 2011 | BU33: 420 | BW33: 408 | BX33: 2231 | BY33: 10202 | BZ33: 4522 | CA33: 7341 | CB33: 242 | CC33: 48491 | CD33: 2451 | CF33: SPL3281 | CH33: -43.919865 | CI33: -19.84968 | CJ33: 26415 | CK33: 4289 | CL33: 1999 | CM33: 702 | CN33: 2011 | CO33: 420 | CQ33: 408 | CR33: 2231 | CS33: 10202 | CT33: 4522 | CU33: 7341 | CV33: 242 | CW33: 48491 | CX33: 2451
A34: SPL3282 | C34: -43.9653983 | D34: -19.9177699 | E34: 37854 | F34: 5089 | G34: 2517 | H34: 677 | I34: 2012 | J34: 472 | L34: 369 | M34: 1796 | N34: 9318 | O34: 4781 | P34: 9155 | Q34: 392 | R34: 51333 | S34: 2546 | T34: =SUM($E34:$H34*TRANSPOSE(M$63:M$66)) -> 74053.00298 | U34: =SUM($E34:$H34*TRANSPOSE(N$63:N$66)) -> 26058.37455 | V34: =SUM($E34:$H34*TRANSPOSE(O$63:O$66)) -> 724.3422541 | X34: SPL3282 | Z34: -43.9653983 | AA34: -19.9177699 | AB34: 37854 | AC34: 5089 | AD34: 2517 | AE34: 677 | AF34: 2012 | AG34: 472 | AI34: 369 | AJ34: 1796 | AK34: 9318 | AL34: 4781 | AM34: 9155 | AN34: 392 | AO34: 51333 | AP34: 2546 | AR34: SPL3282 | AT34: -43.9653983 | AU34: -19.9177699 | AV34: 37854 | AW34: 5089 | AX34: 2517 | AY34: 677 | AZ34: 2012 | BA34: 472 | BC34: 369 | BD34: 1796 | BE34: 9318 | BF34: 4781 | BG34: 9155 | BH34: 392 | BI34: 51333 | BJ34: 2546 | BL34: SPL3282 | BN34: -43.9653983 | BO34: -19.9177699 | BP34: 37854 | BQ34: 5089 | BR34: 2517 | BS34: 677 | BT34: 2012 | BU34: 472 | BW34: 369 | BX34: 1796 | BY34: 9318 | BZ34: 4781 | CA34: 9155 | CB34: 392 | CC34: 51333 | CD34: 2546 | CF34: SPL3282 | CH34: -43.9653983 | CI34: -19.9177699 | CJ34: 37854 | CK34: 5089 | CL34: 2517 | CM34: 677 | CN34: 2012 | CO34: 472 | CQ34: 369 | CR34: 1796 | CS34: 9318 | CT34: 4781 | CU34: 9155 | CV34: 392 | CW34: 51333 | CX34: 2546
A35: SPL3283 | C35: -43.9270843 | D35: -19.9375698 | E35: 10703 | F35: 1227 | G35: 402 | H35: 141 | I35: 2013 | J35: 394 | L35: 391 | M35: 2092 | N35: 5906 | O35: 4566 | P35: 4837 | Q35: 492 | R35: 64123 | S35: 3295 | T35: =SUM($E35:$H35*TRANSPOSE(M$63:M$66)) -> 20156.08277 | U35: =SUM($E35:$H35*TRANSPOSE(N$63:N$66)) -> 5329.363521 | V35: =SUM($E35:$H35*TRANSPOSE(O$63:O$66)) -> 130.8705879 | X35: SPL3283 | Z35: -43.9270843 | AA35: -19.9375698 | AB35: 10703 | AC35: 1227 | AD35: 402 | AE35: 141 | AF35: 2013 | AG35: 394 | AI35: 391 | AJ35: 2092 | AK35: 5906 | AL35: 4566 | AM35: 4837 | AN35: 492 | AO35: 64123 | AP35: 3295 | AR35: SPL3283 | AT35: -43.9270843 | AU35: -19.9375698 | AV35: 10703 | AW35: 1227 | AX35: 402 | AY35: 141 | AZ35: 2013 | BA35: 394 | BC35: 391 | BD35: 2092 | BE35: 5906 | BF35: 4566 | BG35: 4837 | BH35: 492 | BI35: 64123 | BJ35: 3295 | BL35: SPL3283 | BN35: -43.9270843 | BO35: -19.9375698 | BP35: 10703 | BQ35: 1227 | BR35: 402 | BS35: 141 | BT35: 2013 | BU35: 394 | BW35: 391 | BX35: 2092 | BY35: 5906 | BZ35: 4566 | CA35: 4837 | CB35: 492 | CC35: 64123 | CD35: 3295 | CF35: SPL3283 | CH35: -43.9270843 | CI35: -19.9375698 | CJ35: 10703 | CK35: 1227 | CL35: 402 | CM35: 141 | CN35: 2013 | CO35: 394 | CQ35: 391 | CR35: 2092 | CS35: 5906 | CT35: 4566 | CU35: 4837 | CV35: 492 | CW35: 64123 | CX35: 3295
A36: SPL3284 | C36: -43.935591 | D36: -19.840201 | E36: 41728 | F36: 7056 | G36: 3475 | H36: 1221 | I36: 2014 | J36: 799 | L36: 473 | M36: 1273 | N36: 5599 | O36: 7138 | P36: 5336 | Q36: 461 | R36: 55650 | S36: 2466 | T36: =SUM($E36:$H36*TRANSPOSE(M$63:M$66)) -> 85409.92573 | U36: =SUM($E36:$H36*TRANSPOSE(N$63:N$66)) -> 34458.38814 | V36: =SUM($E36:$H36*TRANSPOSE(O$63:O$66)) -> 1004.065253 | X36: SPL3284 | Z36: -43.935591 | AA36: -19.840201 | AB36: 41728 | AC36: 7056 | AD36: 3475 | AE36: 1221 | AF36: 2014 | AG36: 799 | AI36: 473 | AJ36: 1273 | AK36: 5599 | AL36: 7138 | AM36: 5336 | AN36: 461 | AO36: 55650 | AP36: 2466 | AR36: SPL3284 | AT36: -43.935591 | AU36: -19.840201 | AV36: 41728 | AW36: 7056 | AX36: 3475 | AY36: 1221 | AZ36: 2014 | BA36: 799 | BC36: 473 | BD36: 1273 | BE36: 5599 | BF36: 7138 | BG36: 5336 | BH36: 461 | BI36: 55650 | BJ36: 2466 | BL36: SPL3284 | BN36: -43.935591 | BO36: -19.840201 | BP36: 41728 | BQ36: 7056 | BR36: 3475 | BS36: 1221 | BT36: 2014 | BU36: 799 | BW36: 473 | BX36: 1273 | BY36: 5599 | BZ36: 7138 | CA36: 5336 | CB36: 461 | CC36: 55650 | CD36: 2466 | CF36: SPL3284 | CH36: -43.935591 | CI36: -19.840201 | CJ36: 41728 | CK36: 7056 | CL36: 3475 | CM36: 1221 | CN36: 2014 | CO36: 799 | CQ36: 473 | CR36: 1273 | CS36: 5599 | CT36: 7138 | CU36: 5336 | CV36: 461 | CW36: 55650 | CX36: 2466
A37: SPL3285 | C37: -43.9541203 | D37: -19.9276552 | E37: 9925 | F37: 2121 | G37: 3500 | H37: 1230 | I37: 2015 | J37: 209 | L37: 187 | M37: 717 | N37: 4403 | O37: 7772 | P37: 4590 | Q37: 519 | R37: 53023 | S37: 2216 | T37: =SUM($E37:$H37*TRANSPOSE(M$63:M$66)) -> 24683.21764 | U37: =SUM($E37:$H37*TRANSPOSE(N$63:N$66)) -> 27109.77331 | V37: =SUM($E37:$H37*TRANSPOSE(O$63:O$66)) -> 930.7587037 | X37: SPL3285 | Z37: -43.9541203 | AA37: -19.9276552 | AB37: 9925 | AC37: 2121 | AD37: 3500 | AE37: 1230 | AF37: 2015 | AG37: 209 | AI37: 187 | AJ37: 717 | AK37: 4403 | AL37: 7772 | AM37: 4590 | AN37: 519 | AO37: 53023 | AP37: 2216 | AR37: SPL3285 | AT37: -43.9541203 | AU37: -19.9276552 | AV37: 9925 | AW37: 2121 | AX37: 3500 | AY37: 1230 | AZ37: 2015 | BA37: 209 | BC37: 187 | BD37: 717 | BE37: 4403 | BF37: 7772 | BG37: 4590 | BH37: 519 | BI37: 53023 | BJ37: 2216 | BL37: SPL3285 | BN37: -43.9541203 | BO37: -19.9276552 | BP37: 9925 | BQ37: 2121 | BR37: 3500 | BS37: 1230 | BT37: 2015 | BU37: 209 | BW37: 187 | BX37: 717 | BY37: 4403 | BZ37: 7772 | CA37: 4590 | CB37: 519 | CC37: 53023 | CD37: 2216 | CF37: SPL3285 | CH37: -43.9541203 | CI37: -19.9276552 | CJ37: 9925 | CK37: 2121 | CL37: 3500 | CM37: 1230 | CN37: 2015 | CO37: 209 | CQ37: 187 | CR37: 717 | CS37: 4403 | CT37: 7772 | CU37: 4590 | CV37: 519 | CW37: 53023 | CX37: 2216
A38: SPL3286 | C38: -43.965559 | D38: -19.8494896 | E38: 38385 | F38: 7570 | G38: 1803 | H38: 633 | I38: 2016 | J38: 272 | L38: 168 | M38: 570 | N38: 2840 | O38: 5014 | P38: 3165 | Q38: 449 | R38: 40082 | S38: 1862 | T38: =SUM($E38:$H38*TRANSPOSE(M$63:M$66)) -> 78774.01459 | U38: =SUM($E38:$H38*TRANSPOSE(N$63:N$66)) -> 21959.23708 | V38: =SUM($E38:$H38*TRANSPOSE(O$63:O$66)) -> 562.893389 | X38: SPL3286 | Z38: -43.965559 | AA38: -19.8494896 | AB38: 38385 | AC38: 7570 | AD38: 1803 | AE38: 633 | AF38: 2016 | AG38: 272 | AI38: 168 | AJ38: 570 | AK38: 2840 | AL38: 5014 | AM38: 3165 | AN38: 449 | AO38: 40082 | AP38: 1862 | AR38: SPL3286 | AT38: -43.965559 | AU38: -19.8494896 | AV38: 38385 | AW38: 7570 | AX38: 1803 | AY38: 633 | AZ38: 2016 | BA38: 272 | BC38: 168 | BD38: 570 | BE38: 2840 | BF38: 5014 | BG38: 3165 | BH38: 449 | BI38: 40082 | BJ38: 1862 | BL38: SPL3286 | BN38: -43.965559 | BO38: -19.8494896 | BP38: 38385 | BQ38: 7570 | BR38: 1803 | BS38: 633 | BT38: 2016 | BU38: 272 | BW38: 168 | BX38: 570 | BY38: 2840 | BZ38: 5014 | CA38: 3165 | CB38: 449 | CC38: 40082 | CD38: 1862 | CF38: SPL3286 | CH38: -43.965559 | CI38: -19.8494896 | CJ38: 38385 | CK38: 7570 | CL38: 1803 | CM38: 633 | CN38: 2016 | CO38: 272 | CQ38: 168 | CR38: 570 | CS38: 2840 | CT38: 5014 | CU38: 3165 | CV38: 449 | CW38: 40082 | CX38: 1862
A39: SPL3290 | C39: -43.9395953 | D39: -19.8372336 | E39: 34007 | F39: 6447 | G39: 2933 | H39: 789 | I39: 2017 | J39: 281 | L39: 93 | M39: 299 | N39: 3672 | O39: 4695 | P39: 1866 | Q39: 275 | R39: 34847 | S39: 2583 | T39: =SUM($E39:$H39*TRANSPOSE(M$63:M$66)) -> 70942.43862 | U39: =SUM($E39:$H39*TRANSPOSE(N$63:N$66)) -> 28168.59109 | V39: =SUM($E39:$H39*TRANSPOSE(O$63:O$66)) -> 818.7189835 | X39: SPL3290 | Z39: -43.9395953 | AA39: -19.8372336 | AB39: 34007 | AC39: 6447 | AD39: 2933 | AE39: 789 | AF39: 2017 | AG39: 281 | AI39: 93 | AJ39: 299 | AK39: 3672 | AL39: 4695 | AM39: 1866 | AN39: 275 | AO39: 34847 | AP39: 2583 | AR39: SPL3290 | AT39: -43.9395953 | AU39: -19.8372336 | AV39: 34007 | AW39: 6447 | AX39: 2933 | AY39: 789 | AZ39: 2017 | BA39: 281 | BC39: 93 | BD39: 299 | BE39: 3672 | BF39: 4695 | BG39: 1866 | BH39: 275 | BI39: 34847 | BJ39: 2583 | BL39: SPL3290 | BN39: -43.9395953 | BO39: -19.8372336 | BP39: 34007 | BQ39: 6447 | BR39: 2933 | BS39: 789 | BT39: 2017 | BU39: 281 | BW39: 93 | BX39: 299 | BY39: 3672 | BZ39: 4695 | CA39: 1866 | CB39: 275 | CC39: 34847 | CD39: 2583 | CF39: SPL3290 | CH39: -43.9395953 | CI39: -19.8372336 | CJ39: 34007 | CK39: 6447 | CL39: 2933 | CM39: 789 | CN39: 2017 | CO39: 281 | CQ39: 93 | CR39: 299 | CS39: 3672 | CT39: 4695 | CU39: 1866 | CV39: 275 | CW39: 34847 | CX39: 2583
A40: SPL3292 | C40: -43.947625 | D40: -19.819562 | E40: 12501 | F40: 7610 | G40: 4824 | H40: 940 | I40: 2018 | J40: 188 | L40: 173 | M40: 699 | N40: 4076 | O40: 6148 | P40: 2561 | Q40: 494 | R40: 55358 | S40: 3654 | T40: =SUM($E40:$H40*TRANSPOSE(M$63:M$66)) -> 40632.9818 | U40: =SUM($E40:$H40*TRANSPOSE(N$63:N$66)) -> 35376.76239 | V40: =SUM($E40:$H40*TRANSPOSE(O$63:O$66)) -> 1199.542733 | X40: SPL3292 | Z40: -43.947625 | AA40: -19.819562 | AB40: 12501 | AC40: 7610 | AD40: 4824 | AE40: 940 | AF40: 2018 | AG40: 188 | AI40: 173 | AJ40: 699 | AK40: 4076 | AL40: 6148 | AM40: 2561 | AN40: 494 | AO40: 55358 | AP40: 3654 | AR40: SPL3292 | AT40: -43.947625 | AU40: -19.819562 | AV40: 12501 | AW40: 7610 | AX40: 4824 | AY40: 940 | AZ40: 2018 | BA40: 188 | BC40: 173 | BD40: 699 | BE40: 4076 | BF40: 6148 | BG40: 2561 | BH40: 494 | BI40: 55358 | BJ40: 3654 | BL40: SPL3292 | BN40: -43.947625 | BO40: -19.819562 | BP40: 12501 | BQ40: 7610 | BR40: 4824 | BS40: 940 | BT40: 2018 | BU40: 188 | BW40: 173 | BX40: 699 | BY40: 4076 | BZ40: 6148 | CA40: 2561 | CB40: 494 | CC40: 55358 | CD40: 3654 | CF40: SPL3292 | CH40: -43.947625 | CI40: -19.819562 | CJ40: 12501 | CK40: 7610 | CL40: 4824 | CM40: 940 | CN40: 2018 | CO40: 188 | CQ40: 173 | CR40: 699 | CS40: 4076 | CT40: 6148 | CU40: 2561 | CV40: 494 | CW40: 55358 | CX40: 3654
A41: SPL3295 | C41: -43.929243 | D41: -19.902055 | E41: 55306 | F41: 9859 | G41: 1364 | H41: 367 | I41: 2019 | J41: 363 | L41: 272 | M41: 1163 | N41: 4486 | O41: 8330 | P41: 2561 | Q41: 361 | R41: 64656 | S41: 5965 | T41: =SUM($E41:$H41*TRANSPOSE(M$63:M$66)) -> 109829.2067 | U41: =SUM($E41:$H41*TRANSPOSE(N$63:N$66)) -> 22513.1987 | V41: =SUM($E41:$H41*TRANSPOSE(O$63:O$66)) -> 479.8456461 | X41: SPL3295 | Z41: -43.929243 | AA41: -19.902055 | AB41: 55306 | AC41: 9859 | AD41: 1364 | AE41: 367 | AF41: 2019 | AG41: 363 | AI41: 272 | AJ41: 1163 | AK41: 4486 | AL41: 8330 | AM41: 2561 | AN41: 361 | AO41: 64656 | AP41: 5965 | AR41: SPL3295 | AT41: -43.929243 | AU41: -19.902055 | AV41: 55306 | AW41: 9859 | AX41: 1364 | AY41: 367 | AZ41: 2019 | BA41: 363 | BC41: 272 | BD41: 1163 | BE41: 4486 | BF41: 8330 | BG41: 2561 | BH41: 361 | BI41: 64656 | BJ41: 5965 | BL41: SPL3295 | BN41: -43.929243 | BO41: -19.902055 | BP41: 55306 | BQ41: 9859 | BR41: 1364 | BS41: 367 | BT41: 2019 | BU41: 363 | BW41: 272 | BX41: 1163 | BY41: 4486 | BZ41: 8330 | CA41: 2561 | CB41: 361 | CC41: 64656 | CD41: 5965 | CF41: SPL3295 | CH41: -43.929243 | CI41: -19.902055 | CJ41: 55306 | CK41: 9859 | CL41: 1364 | CM41: 367 | CN41: 2019 | CO41: 363 | CQ41: 272 | CR41: 1163 | CS41: 4486 | CT41: 8330 | CU41: 2561 | CV41: 361 | CW41: 64656 | CX41: 5965
A42: SPL3296 | C42: -43.9633381 | D42: -19.9636958 | E42: 27664 | F42: 5418 | G42: 1141 | H42: 222 | I42: 2020 | J42: 561 | L42: 238 | M42: 1472 | N42: 3923 | O42: 8031 | P42: 2925 | Q42: 510 | R42: 86744 | S42: 7280 | T42: =SUM($E42:$H42*TRANSPOSE(M$63:M$66)) -> 56404.49763 | U42: =SUM($E42:$H42*TRANSPOSE(N$63:N$66)) -> 14193.06934 | V42: =SUM($E42:$H42*TRANSPOSE(O$63:O$66)) -> 345.6821563 | X42: SPL3296 | Z42: -43.9633381 | AA42: -19.9636958 | AB42: 27664 | AC42: 5418 | AD42: 1141 | AE42: 222 | AF42: 2020 | AG42: 561 | AI42: 238 | AJ42: 1472 | AK42: 3923 | AL42: 8031 | AM42: 2925 | AN42: 510 | AO42: 86744 | AP42: 7280 | AR42: SPL3296 | AT42: -43.9633381 | AU42: -19.9636958 | AV42: 27664 | AW42: 5418 | AX42: 1141 | AY42: 222 | AZ42: 2020 | BA42: 561 | BC42: 238 | BD42: 1472 | BE42: 3923 | BF42: 8031 | BG42: 2925 | BH42: 510 | BI42: 86744 | BJ42: 7280 | BL42: SPL3296 | BN42: -43.9633381 | BO42: -19.9636958 | BP42: 27664 | BQ42: 5418 | BR42: 1141 | BS42: 222 | BT42: 2020 | BU42: 561 | BW42: 238 | BX42: 1472 | BY42: 3923 | BZ42: 8031 | CA42: 2925 | CB42: 510 | CC42: 86744 | CD42: 7280 | CF42: SPL3296 | CH42: -43.9633381 | CI42: -19.9636958 | CJ42: 27664 | CK42: 5418 | CL42: 1141 | CM42: 222 | CN42: 2020 | CO42: 561 | CQ42: 238 | CR42: 1472 | CS42: 3923 | CT42: 8031 | CU42: 2925 | CV42: 510 | CW42: 86744 | CX42: 7280
A43: SPL3299 | C43: -43.9411036 | D43: -19.9290553 | E43: 22407 | F43: 4737 | G43: 881 | H43: 172 | I43: 2021 | J43: 175 | L43: 412 | M43: 2067 | N43: 4248 | O43: 7180 | P43: 1564 | Q43: 150 | R43: 127283 | S43: 10740 | T43: =SUM($E43:$H43*TRANSPOSE(M$63:M$66)) -> 46293.47572 | U43: =SUM($E43:$H43*TRANSPOSE(N$63:N$66)) -> 11244.6632 | V43: =SUM($E43:$H43*TRANSPOSE(O$63:O$66)) -> 269.6005614 | X43: SPL3299 | Z43: -43.9411036 | AA43: -19.9290553 | AB43: 22407 | AC43: 4737 | AD43: 881 | AE43: 172 | AF43: 2021 | AG43: 175 | AI43: 412 | AJ43: 2067 | AK43: 4248 | AL43: 7180 | AM43: 1564 | AN43: 150 | AO43: 127283 | AP43: 10740 | AR43: SPL3299 | AT43: -43.9411036 | AU43: -19.9290553 | AV43: 22407 | AW43: 4737 | AX43: 881 | AY43: 172 | AZ43: 2021 | BA43: 175 | BC43: 412 | BD43: 2067 | BE43: 4248 | BF43: 7180 | BG43: 1564 | BH43: 150 | BI43: 127283 | BJ43: 10740 | BL43: SPL3299 | BN43: -43.9411036 | BO43: -19.9290553 | BP43: 22407 | BQ43: 4737 | BR43: 881 | BS43: 172 | BT43: 2021 | BU43: 175 | BW43: 412 | BX43: 2067 | BY43: 4248 | BZ43: 7180 | CA43: 1564 | CB43: 150 | CC43: 127283 | CD43: 10740 | CF43: SPL3299 | CH43: -43.9411036 | CI43: -19.9290553 | CJ43: 22407 | CK43: 4737 | CL43: 881 | CM43: 172 | CN43: 2021 | CO43: 175 | CQ43: 412 | CR43: 2067 | CS43: 4248 | CT43: 7180 | CU43: 1564 | CV43: 150 | CW43: 127283 | CX43: 10740
A44: SPL3300 | C44: -43.936725 | D44: -19.913972 | E44: 52675 | F44: 6287 | G44: 3314 | H44: 892 | I44: 2022 | J44: 239 | L44: 470 | M44: 4601 | N44: 6938 | O44: 11020 | P44: 2879 | Q44: 232 | R44: 209009 | S44: 20006 | T44: =SUM($E44:$H44*TRANSPOSE(M$63:M$66)) -> 101299.6959 | U44: =SUM($E44:$H44*TRANSPOSE(N$63:N$66)) -> 34902.89669 | V44: =SUM($E44:$H44*TRANSPOSE(O$63:O$66)) -> 960.8826247 | X44: SPL3300 | Z44: -43.936725 | AA44: -19.913972 | AB44: 52675 | AC44: 6287 | AD44: 3314 | AE44: 892 | AF44: 2022 | AG44: 239 | AI44: 470 | AJ44: 4601 | AK44: 6938 | AL44: 11020 | AM44: 2879 | AN44: 232 | AO44: 209009 | AP44: 20006 | AR44: SPL3300 | AT44: -43.936725 | AU44: -19.913972 | AV44: 52675 | AW44: 6287 | AX44: 3314 | AY44: 892 | AZ44: 2022 | BA44: 239 | BC44: 470 | BD44: 4601 | BE44: 6938 | BF44: 11020 | BG44: 2879 | BH44: 232 | BI44: 209009 | BJ44: 20006 | BL44: SPL3300 | BN44: -43.936725 | BO44: -19.913972 | BP44: 52675 | BQ44: 6287 | BR44: 3314 | BS44: 892 | BT44: 2022 | BU44: 239 | BW44: 470 | BX44: 4601 | BY44: 6938 | BZ44: 11020 | CA44: 2879 | CB44: 232 | CC44: 209009 | CD44: 20006 | CF44: SPL3300 | CH44: -43.936725 | CI44: -19.913972 | CJ44: 52675 | CK44: 6287 | CL44: 3314 | CM44: 892 | CN44: 2022 | CO44: 239 | CQ44: 470 | CR44: 4601 | CS44: 6938 | CT44: 11020 | CU44: 2879 | CV44: 232 | CW44: 209009 | CX44: 20006
A45: SPL3301 | C45: -43.9221576 | D45: -19.9295212 | E45: 29728 | F45: 5895 | G45: 1043 | H45: 281 | T45: =SUM($E45:$H45*TRANSPOSE(M$63:M$66)) -> 60561.22663 | U45: =SUM($E45:$H45*TRANSPOSE(N$63:N$66)) -> 14271.76442 | V45: =SUM($E45:$H45*TRANSPOSE(O$63:O$66)) -> 335.4377931 | X45: SPL3301 | Z45: -43.9221576 | AA45: -19.9295212 | AB45: 29728 | AC45: 5895 | AD45: 1043 | AE45: 281 | AR45: SPL3301 | AT45: -43.9221576 | AU45: -19.9295212 | AV45: 29728 | AW45: 5895 | AX45: 1043 | AY45: 281 | BL45: SPL3301 | BN45: -43.9221576 | BO45: -19.9295212 | BP45: 29728 | BQ45: 5895 | BR45: 1043 | BS45: 281 | CF45: SPL3301 | CH45: -43.9221576 | CI45: -19.9295212 | CJ45: 29728 | CK45: 5895 | CL45: 1043 | CM45: 281
A46: SPL3302 | C46: -43.9121138 | D46: -19.9185161 | E46: 36712 | F46: 8249 | G46: 1548 | H46: 302 | T46: =SUM($E46:$H46*TRANSPOSE(M$63:M$66)) -> 76902.86761 | U46: =SUM($E46:$H46*TRANSPOSE(N$63:N$66)) -> 19159.50253 | V46: =SUM($E46:$H46*TRANSPOSE(O$63:O$66)) -> 467.0176987 | X46: SPL3302 | Z46: -43.9121138 | AA46: -19.9185161 | AB46: 36712 | AC46: 8249 | AD46: 1548 | AE46: 302 | AR46: SPL3302 | AT46: -43.9121138 | AU46: -19.9185161 | AV46: 36712 | AW46: 8249 | AX46: 1548 | AY46: 302 | BL46: SPL3302 | BN46: -43.9121138 | BO46: -19.9185161 | BP46: 36712 | BQ46: 8249 | BR46: 1548 | BS46: 302 | CF46: SPL3302 | CH46: -43.9121138 | CI46: -19.9185161 | CJ46: 36712 | CK46: 8249 | CL46: 1548 | CM46: 302
A47: SPL3303 | C47: -43.9093297 | D47: -19.9103259 | E47: 27318 | F47: 6586 | G47: 1407 | H47: 379 | T47: =SUM($E47:$H47*TRANSPOSE(M$63:M$66)) -> 58442.0311 | U47: =SUM($E47:$H47*TRANSPOSE(N$63:N$66)) -> 16284.40987 | V47: =SUM($E47:$H47*TRANSPOSE(O$63:O$66)) -> 420.4165298 | X47: SPL3303 | Z47: -43.9093297 | AA47: -19.9103259 | AB47: 27318 | AC47: 6586 | AD47: 1407 | AE47: 379 | AR47: SPL3303 | AT47: -43.9093297 | AU47: -19.9103259 | AV47: 27318 | AW47: 6586 | AX47: 1407 | AY47: 379 | BL47: SPL3303 | BN47: -43.9093297 | BO47: -19.9103259 | BP47: 27318 | BQ47: 6586 | BR47: 1407 | BS47: 379 | CF47: SPL3303 | CH47: -43.9093297 | CI47: -19.9103259 | CJ47: 27318 | CK47: 6586 | CL47: 1407 | CM47: 379
A48: SPL3304 | C48: -43.999951 | D48: -19.875145 | E48: 8898 | F48: 1474 | G48: 296 | H48: 80 | T48: =SUM($E48:$H48*TRANSPOSE(M$63:M$66)) -> 17555.49531 | U48: =SUM($E48:$H48*TRANSPOSE(N$63:N$66)) -> 4134.998222 | V48: =SUM($E48:$H48*TRANSPOSE(O$63:O$66)) -> 96.38054504 | X48: SPL3304 | Z48: -43.999951 | AA48: -19.875145 | AB48: 8898 | AC48: 1474 | AD48: 296 | AE48: 80 | AR48: SPL3304 | AT48: -43.999951 | AU48: -19.875145 | AV48: 8898 | AW48: 1474 | AX48: 296 | AY48: 80 | BL48: SPL3304 | BN48: -43.999951 | BO48: -19.875145 | BP48: 8898 | BQ48: 1474 | BR48: 296 | BS48: 80 | CF48: SPL3304 | CH48: -43.999951 | CI48: -19.875145 | CJ48: 8898 | CK48: 1474 | CL48: 296 | CM48: 80
A49: SPL3305 | C49: -44.0066068 | D49: -19.9468672 | E49: 19307 | F49: 6064 | G49: 2684 | H49: 523 | T49: =SUM($E49:$H49*TRANSPOSE(M$63:M$66)) -> 46040.9712 | U49: =SUM($E49:$H49*TRANSPOSE(N$63:N$66)) -> 22597.8495 | V49: =SUM($E49:$H49*TRANSPOSE(O$63:O$66)) -> 698.3996841 | X49: SPL3305 | Z49: -44.0066068 | AA49: -19.9468672 | AB49: 19307 | AC49: 6064 | AD49: 2684 | AE49: 523 | AR49: SPL3305 | AT49: -44.0066068 | AU49: -19.9468672 | AV49: 19307 | AW49: 6064 | AX49: 2684 | AY49: 523 | BL49: SPL3305 | BN49: -44.0066068 | BO49: -19.9468672 | BP49: 19307 | BQ49: 6064 | BR49: 2684 | BS49: 523 | CF49: SPL3305 | CH49: -44.0066068 | CI49: -19.9468672 | CJ49: 19307 | CK49: 6064 | CL49: 2684 | CM49: 523
T50: =SUM($E50:$H50*TRANSPOSE(M$63:M$66)) -> 0 | U50: =SUM($E50:$H50*TRANSPOSE(N$63:N$66)) -> 0 | V50: =SUM($E50:$H50*TRANSPOSE(O$63:O$66)) -> 0
T51: =SUM($E51:$H51*TRANSPOSE(M$63:M$66)) -> 0 | U51: =SUM($E51:$H51*TRANSPOSE(N$63:N$66)) -> 0 | V51: =SUM($E51:$H51*TRANSPOSE(O$63:O$66)) -> 0
J52: Contribuição por tipologia: Cenário Base | T52: =SUM($E52:$H52*TRANSPOSE(M$63:M$66)) -> 0 | U52: =SUM($E52:$H52*TRANSPOSE(N$63:N$66)) -> 0 | V52: =SUM($E52:$H52*TRANSPOSE(O$63:O$66)) -> 0
T53: =SUM($E53:$H53*TRANSPOSE(M$63:M$66)) -> 0 | U53: =SUM($E53:$H53*TRANSPOSE(N$63:N$66)) -> 0 | V53: =SUM($E53:$H53*TRANSPOSE(O$63:O$66)) -> 0
K54: Tipologia | L54: CO | M54: NOx | N54: MP | T54: =SUM($E54:$H54*TRANSPOSE(M$63:M$66)) -> 0 | U54: =SUM($E54:$H54*TRANSPOSE(N$63:N$66)) -> 0 | V54: =SUM($E54:$H54*TRANSPOSE(O$63:O$66)) -> 0
K55: Automóveis | L55: =SUM($E$5:$E$1006)*M63 -> 2343462.297 | M55: =SUM($E$5:$E$1006)*N63 -> 322173.5077 | N55: =SUM($E$5:$E$1006)*O63 -> 3638.090758 | T55: =SUM($E55:$H55*TRANSPOSE(M$63:M$66)) -> 0 | U55: =SUM($E55:$H55*TRANSPOSE(N$63:N$66)) -> 0 | V55: =SUM($E55:$H55*TRANSPOSE(O$63:O$66)) -> 0
K56: Motos | L56: =SUM($F$5:$F$1006)*M64 -> 525420.5003 | M56: =SUM($F$5:$F$1006)*N64 -> 25773.18152 | N56: =SUM($F$5:$F$1006)*O64 -> 0 | T56: =SUM($E56:$H56*TRANSPOSE(M$63:M$66)) -> 0 | U56: =SUM($E56:$H56*TRANSPOSE(N$63:N$66)) -> 0 | V56: =SUM($E56:$H56*TRANSPOSE(O$63:O$66)) -> 0
K57: Ônibus | L57: =SUM($G$5:$G$1006)*M65 -> 95661.0625 | M57: =SUM($G$5:$G$1006)*N65 -> 504259.4586 | N57: =SUM($G$5:$G$1006)*O65 -> 18446.3643 | T57: =SUM($E57:$H57*TRANSPOSE(M$63:M$66)) -> 0 | U57: =SUM($E57:$H57*TRANSPOSE(N$63:N$66)) -> 0 | V57: =SUM($E57:$H57*TRANSPOSE(O$63:O$66)) -> 0
K58: Caminhões | L58: =SUM($H$5:$H$1006)*M66 -> 10963.52492 | M58: =SUM($H$5:$H$1006)*N66 -> 64242.17338 | N58: =SUM($H$5:$H$1006)*O66 -> 2387.278509 | T58: =SUM($E58:$H58*TRANSPOSE(M$63:M$66)) -> 0 | U58: =SUM($E58:$H58*TRANSPOSE(N$63:N$66)) -> 0 | V58: =SUM($E58:$H58*TRANSPOSE(O$63:O$66)) -> 0
T59: =SUM($E59:$H59*TRANSPOSE(M$63:M$66)) -> 0 | U59: =SUM($E59:$H59*TRANSPOSE(N$63:N$66)) -> 0 | V59: =SUM($E59:$H59*TRANSPOSE(O$63:O$66)) -> 0
J60: Fatores de emissão | T60: =SUM($E60:$H60*TRANSPOSE(M$63:M$66)) -> 0 | U60: =SUM($E60:$H60*TRANSPOSE(N$63:N$66)) -> 0 | V60: =SUM($E60:$H60*TRANSPOSE(O$63:O$66)) -> 0
T61: =SUM($E61:$H61*TRANSPOSE(M$63:M$66)) -> 0 | U61: =SUM($E61:$H61*TRANSPOSE(N$63:N$66)) -> 0 | V61: =SUM($E61:$H61*TRANSPOSE(O$63:O$66)) -> 0
K62: Tipologia agrupada | L62: ID | M62: CO | N62: NOx | O62: MP | T62: =SUM($E62:$H62*TRANSPOSE(M$63:M$66)) -> 0 | U62: =SUM($E62:$H62*TRANSPOSE(N$63:N$66)) -> 0 | V62: =SUM($E62:$H62*TRANSPOSE(O$63:O$66)) -> 0
K63: Automóveis | L63: 1 | M63: 1.61628456 | N63: 0.2222028776 | O63: 0.002509189043 | T63: =SUM($E63:$H63*TRANSPOSE(M$63:M$66)) -> 0 | U63: =SUM($E63:$H63*TRANSPOSE(N$63:N$66)) -> 0 | V63: =SUM($E63:$H63*TRANSPOSE(O$63:O$66)) -> 0
K64: Motos | L64: 2 | M64: 1.896071958 | N64: 0.09300704239 | O64: 0 | T64: =SUM($E64:$H64*TRANSPOSE(M$63:M$66)) -> 0 | U64: =SUM($E64:$H64*TRANSPOSE(N$63:N$66)) -> 0 | V64: =SUM($E64:$H64*TRANSPOSE(O$63:O$66)) -> 0
K65: Ônibus | L65: 3 | M65: 1.148309396 | N65: 6.053098919 | O65: 0.2214290004 | T65: =SUM($E65:$H65*TRANSPOSE(M$63:M$66)) -> 0 | U65: =SUM($E65:$H65*TRANSPOSE(N$63:N$66)) -> 0 | V65: =SUM($E65:$H65*TRANSPOSE(O$63:O$66)) -> 0
K66: Caminhões | L66: 4 | M66: 0.4885706291 | N66: 2.862841951 | O66: 0.1063849603 | T66: =SUM($E66:$H66*TRANSPOSE(M$63:M$66)) -> 0 | U66: =SUM($E66:$H66*TRANSPOSE(N$63:N$66)) -> 0 | V66: =SUM($E66:$H66*TRANSPOSE(O$63:O$66)) -> 0
T67: =SUM($E67:$H67*TRANSPOSE(M$63:M$66)) -> 0 | U67: =SUM($E67:$H67*TRANSPOSE(N$63:N$66)) -> 0 | V67: =SUM($E67:$H67*TRANSPOSE(O$63:O$66)) -> 0
T68: =SUM($E68:$H68*TRANSPOSE(M$63:M$66)) -> 0 | U68: =SUM($E68:$H68*TRANSPOSE(N$63:N$66)) -> 0 | V68: =SUM($E68:$H68*TRANSPOSE(O$63:O$66)) -> 0
J69: Total de emissões | T69: =SUM($E69:$H69*TRANSPOSE(M$63:M$66)) -> 0 | U69: =SUM($E69:$H69*TRANSPOSE(N$63:N$66)) -> 0 | V69: =SUM($E69:$H69*TRANSPOSE(O$63:O$66)) -> 0
T70: =SUM($E70:$H70*TRANSPOSE(M$63:M$66)) -> 0 | U70: =SUM($E70:$H70*TRANSPOSE(N$63:N$66)) -> 0 | V70: =SUM($E70:$H70*TRANSPOSE(O$63:O$66)) -> 0
K71: CO | L71: NOx | M71: MP | T71: =SUM($E71:$H71*TRANSPOSE(M$63:M$66)) -> 0 | U71: =SUM($E71:$H71*TRANSPOSE(N$63:N$66)) -> 0 | V71: =SUM($E71:$H71*TRANSPOSE(O$63:O$66)) -> 0
K72: =SUM($E$5:$H$1006*TRANSPOSE(M63:M66)) -> 2975507.385 | L72: =SUM($E$5:$H$1006*TRANSPOSE(N63:N66)) -> 916448.3212 | M72: =SUM($E$5:$H$1006*TRANSPOSE(O63:O66)) -> 24471.73357 | T72: =SUM($E72:$H72*TRANSPOSE(M$63:M$66)) -> 0 | U72: =SUM($E72:$H72*TRANSPOSE(N$63:N$66)) -> 0 | V72: =SUM($E72:$H72*TRANSPOSE(O$63:O$66)) -> 0
T73: =SUM($E73:$H73*TRANSPOSE(M$63:M$66)) -> 0 | U73: =SUM($E73:$H73*TRANSPOSE(N$63:N$66)) -> 0 | V73: =SUM($E73:$H73*TRANSPOSE(O$63:O$66)) -> 0
K74: =('Dados de entrada'!AP1013-Cenários!K72)/Cenários!K72 -> -4.694943353e-16 | L74: =('Dados de entrada'!AQ1013-Cenários!L72)/Cenários!L72 -> 2.540575811e-16 | M74: =('Dados de entrada'!AR1013-Cenários!M72)/Cenários!M72 -> 1.486604452e-16 | T74: =SUM($E74:$H74*TRANSPOSE(M$63:M$66)) -> 0 | U74: =SUM($E74:$H74*TRANSPOSE(N$63:N$66)) -> 0 | V74: =SUM($E74:$H74*TRANSPOSE(O$63:O$66)) -> 0
T75: =SUM($E75:$H75*TRANSPOSE(M$63:M$66)) -> 0 | U75: =SUM($E75:$H75*TRANSPOSE(N$63:N$66)) -> 0 | V75: =SUM($E75:$H75*TRANSPOSE(O$63:O$66)) -> 0
T76: =SUM($E76:$H76*TRANSPOSE(M$63:M$66)) -> 0 | U76: =SUM($E76:$H76*TRANSPOSE(N$63:N$66)) -> 0 | V76: =SUM($E76:$H76*TRANSPOSE(O$63:O$66)) -> 0
T77: =SUM($E77:$H77*TRANSPOSE(M$63:M$66)) -> 0 | U77: =SUM($E77:$H77*TRANSPOSE(N$63:N$66)) -> 0 | V77: =SUM($E77:$H77*TRANSPOSE(O$63:O$66)) -> 0
T78: =SUM($E78:$H78*TRANSPOSE(M$63:M$66)) -> 0 | U78: =SUM($E78:$H78*TRANSPOSE(N$63:N$66)) -> 0 | V78: =SUM($E78:$H78*TRANSPOSE(O$63:O$66)) -> 0
T79: =SUM($E79:$H79*TRANSPOSE(M$63:M$66)) -> 0 | U79: =SUM($E79:$H79*TRANSPOSE(N$63:N$66)) -> 0 | V79: =SUM($E79:$H79*TRANSPOSE(O$63:O$66)) -> 0
T80: =SUM($E80:$H80*TRANSPOSE(M$63:M$66)) -> 0 | U80: =SUM($E80:$H80*TRANSPOSE(N$63:N$66)) -> 0 | V80: =SUM($E80:$H80*TRANSPOSE(O$63:O$66)) -> 0
T81: =SUM($E81:$H81*TRANSPOSE(M$63:M$66)) -> 0 | U81: =SUM($E81:$H81*TRANSPOSE(N$63:N$66)) -> 0 | V81: =SUM($E81:$H81*TRANSPOSE(O$63:O$66)) -> 0
T82: =SUM($E82:$H82*TRANSPOSE(M$63:M$66)) -> 0 | U82: =SUM($E82:$H82*TRANSPOSE(N$63:N$66)) -> 0 | V82: =SUM($E82:$H82*TRANSPOSE(O$63:O$66)) -> 0
T83: =SUM($E83:$H83*TRANSPOSE(M$63:M$66)) -> 0 | U83: =SUM($E83:$H83*TRANSPOSE(N$63:N$66)) -> 0 | V83: =SUM($E83:$H83*TRANSPOSE(O$63:O$66)) -> 0
T84: =SUM($E84:$H84*TRANSPOSE(M$63:M$66)) -> 0 | U84: =SUM($E84:$H84*TRANSPOSE(N$63:N$66)) -> 0 | V84: =SUM($E84:$H84*TRANSPOSE(O$63:O$66)) -> 0
T85: =SUM($E85:$H85*TRANSPOSE(M$63:M$66)) -> 0 | U85: =SUM($E85:$H85*TRANSPOSE(N$63:N$66)) -> 0 | V85: =SUM($E85:$H85*TRANSPOSE(O$63:O$66)) -> 0
T86: =SUM($E86:$H86*TRANSPOSE(M$63:M$66)) -> 0 | U86: =SUM($E86:$H86*TRANSPOSE(N$63:N$66)) -> 0 | V86: =SUM($E86:$H86*TRANSPOSE(O$63:O$66)) -> 0
T87: =SUM($E87:$H87*TRANSPOSE(M$63:M$66)) -> 0 | U87: =SUM($E87:$H87*TRANSPOSE(N$63:N$66)) -> 0 | V87: =SUM($E87:$H87*TRANSPOSE(O$63:O$66)) -> 0
T88: =SUM($E88:$H88*TRANSPOSE(M$63:M$66)) -> 0 | U88: =SUM($E88:$H88*TRANSPOSE(N$63:N$66)) -> 0 | V88: =SUM($E88:$H88*TRANSPOSE(O$63:O$66)) -> 0
T89: =SUM($E89:$H89*TRANSPOSE(M$63:M$66)) -> 0 | U89: =SUM($E89:$H89*TRANSPOSE(N$63:N$66)) -> 0 | V89: =SUM($E89:$H89*TRANSPOSE(O$63:O$66)) -> 0
T90: =SUM($E90:$H90*TRANSPOSE(M$63:M$66)) -> 0 | U90: =SUM($E90:$H90*TRANSPOSE(N$63:N$66)) -> 0 | V90: =SUM($E90:$H90*TRANSPOSE(O$63:O$66)) -> 0
T91: =SUM($E91:$H91*TRANSPOSE(M$63:M$66)) -> 0 | U91: =SUM($E91:$H91*TRANSPOSE(N$63:N$66)) -> 0 | V91: =SUM($E91:$H91*TRANSPOSE(O$63:O$66)) -> 0
T92: =SUM($E92:$H92*TRANSPOSE(M$63:M$66)) -> 0 | U92: =SUM($E92:$H92*TRANSPOSE(N$63:N$66)) -> 0 | V92: =SUM($E92:$H92*TRANSPOSE(O$63:O$66)) -> 0
T93: =SUM($E93:$H93*TRANSPOSE(M$63:M$66)) -> 0 | U93: =SUM($E93:$H93*TRANSPOSE(N$63:N$66)) -> 0 | V93: =SUM($E93:$H93*TRANSPOSE(O$63:O$66)) -> 0
T94: =SUM($E94:$H94*TRANSPOSE(M$63:M$66)) -> 0 | U94: =SUM($E94:$H94*TRANSPOSE(N$63:N$66)) -> 0 | V94: =SUM($E94:$H94*TRANSPOSE(O$63:O$66)) -> 0
T95: =SUM($E95:$H95*TRANSPOSE(M$63:M$66)) -> 0 | U95: =SUM($E95:$H95*TRANSPOSE(N$63:N$66)) -> 0 | V95: =SUM($E95:$H95*TRANSPOSE(O$63:O$66)) -> 0
T96: =SUM($E96:$H96*TRANSPOSE(M$63:M$66)) -> 0 | U96: =SUM($E96:$H96*TRANSPOSE(N$63:N$66)) -> 0 | V96: =SUM($E96:$H96*TRANSPOSE(O$63:O$66)) -> 0
T97: =SUM($E97:$H97*TRANSPOSE(M$63:M$66)) -> 0 | U97: =SUM($E97:$H97*TRANSPOSE(N$63:N$66)) -> 0 | V97: =SUM($E97:$H97*TRANSPOSE(O$63:O$66)) -> 0
T98: =SUM($E98:$H98*TRANSPOSE(M$63:M$66)) -> 0 | U98: =SUM($E98:$H98*TRANSPOSE(N$63:N$66)) -> 0 | V98: =SUM($E98:$H98*TRANSPOSE(O$63:O$66)) -> 0
T99: =SUM($E99:$H99*TRANSPOSE(M$63:M$66)) -> 0 | U99: =SUM($E99:$H99*TRANSPOSE(N$63:N$66)) -> 0 | V99: =SUM($E99:$H99*TRANSPOSE(O$63:O$66)) -> 0
T100: =SUM($E100:$H100*TRANSPOSE(M$63:M$66)) -> 0 | U100: =SUM($E100:$H100*TRANSPOSE(N$63:N$66)) -> 0 | V100: =SUM($E100:$H100*TRANSPOSE(O$63:O$66)) -> 0
T101: =SUM($E101:$H101*TRANSPOSE(M$63:M$66)) -> 0 | U101: =SUM($E101:$H101*TRANSPOSE(N$63:N$66)) -> 0 | V101: =SUM($E101:$H101*TRANSPOSE(O$63:O$66)) -> 0
T102: =SUM($E102:$H102*TRANSPOSE(M$63:M$66)) -> 0 | U102: =SUM($E102:$H102*TRANSPOSE(N$63:N$66)) -> 0 | V102: =SUM($E102:$H102*TRANSPOSE(O$63:O$66)) -> 0
T103: =SUM($E103:$H103*TRANSPOSE(M$63:M$66)) -> 0 | U103: =SUM($E103:$H103*TRANSPOSE(N$63:N$66)) -> 0 | V103: =SUM($E103:$H103*TRANSPOSE(O$63:O$66)) -> 0
T104: =SUM($E104:$H104*TRANSPOSE(M$63:M$66)) -> 0 | U104: =SUM($E104:$H104*TRANSPOSE(N$63:N$66)) -> 0 | V104: =SUM($E104:$H104*TRANSPOSE(O$63:O$66)) -> 0
T105: =SUM($E105:$H105*TRANSPOSE(M$63:M$66)) -> 0 | U105: =SUM($E105:$H105*TRANSPOSE(N$63:N$66)) -> 0 | V105: =SUM($E105:$H105*TRANSPOSE(O$63:O$66)) -> 0
T106: =SUM($E106:$H106*TRANSPOSE(M$63:M$66)) -> 0 | U106: =SUM($E106:$H106*TRANSPOSE(N$63:N$66)) -> 0 | V106: =SUM($E106:$H106*TRANSPOSE(O$63:O$66)) -> 0
T107: =SUM($E107:$H107*TRANSPOSE(M$63:M$66)) -> 0 | U107: =SUM($E107:$H107*TRANSPOSE(N$63:N$66)) -> 0 | V107: =SUM($E107:$H107*TRANSPOSE(O$63:O$66)) -> 0
T108: =SUM($E108:$H108*TRANSPOSE(M$63:M$66)) -> 0 | U108: =SUM($E108:$H108*TRANSPOSE(N$63:N$66)) -> 0 | V108: =SUM($E108:$H108*TRANSPOSE(O$63:O$66)) -> 0
T109: =SUM($E109:$H109*TRANSPOSE(M$63:M$66)) -> 0 | U109: =SUM($E109:$H109*TRANSPOSE(N$63:N$66)) -> 0 | V109: =SUM($E109:$H109*TRANSPOSE(O$63:O$66)) -> 0
T110: =SUM($E110:$H110*TRANSPOSE(M$63:M$66)) -> 0 | U110: =SUM($E110:$H110*TRANSPOSE(N$63:N$66)) -> 0 | V110: =SUM($E110:$H110*TRANSPOSE(O$63:O$66)) -> 0
T111: =SUM($E111:$H111*TRANSPOSE(M$63:M$66)) -> 0 | U111: =SUM($E111:$H111*TRANSPOSE(N$63:N$66)) -> 0 | V111: =SUM($E111:$H111*TRANSPOSE(O$63:O$66)) -> 0
T112: =SUM($E112:$H112*TRANSPOSE(M$63:M$66)) -> 0 | U112: =SUM($E112:$H112*TRANSPOSE(N$63:N$66)) -> 0 | V112: =SUM($E112:$H112*TRANSPOSE(O$63:O$66)) -> 0
T113: =SUM($E113:$H113*TRANSPOSE(M$63:M$66)) -> 0 | U113: =SUM($E113:$H113*TRANSPOSE(N$63:N$66)) -> 0 | V113: =SUM($E113:$H113*TRANSPOSE(O$63:O$66)) -> 0
T114: =SUM($E114:$H114*TRANSPOSE(M$63:M$66)) -> 0 | U114: =SUM($E114:$H114*TRANSPOSE(N$63:N$66)) -> 0 | V114: =SUM($E114:$H114*TRANSPOSE(O$63:O$66)) -> 0
T115: =SUM($E115:$H115*TRANSPOSE(M$63:M$66)) -> 0 | U115: =SUM($E115:$H115*TRANSPOSE(N$63:N$66)) -> 0 | V115: =SUM($E115:$H115*TRANSPOSE(O$63:O$66)) -> 0
T116: =SUM($E116:$H116*TRANSPOSE(M$63:M$66)) -> 0 | U116: =SUM($E116:$H116*TRANSPOSE(N$63:N$66)) -> 0 | V116: =SUM($E116:$H116*TRANSPOSE(O$63:O$66)) -> 0
T117: =SUM($E117:$H117*TRANSPOSE(M$63:M$66)) -> 0 | U117: =SUM($E117:$H117*TRANSPOSE(N$63:N$66)) -> 0 | V117: =SUM($E117:$H117*TRANSPOSE(O$63:O$66)) -> 0
T118: =SUM($E118:$H118*TRANSPOSE(M$63:M$66)) -> 0 | U118: =SUM($E118:$H118*TRANSPOSE(N$63:N$66)) -> 0 | V118: =SUM($E118:$H118*TRANSPOSE(O$63:O$66)) -> 0
T119: =SUM($E119:$H119*TRANSPOSE(M$63:M$66)) -> 0 | U119: =SUM($E119:$H119*TRANSPOSE(N$63:N$66)) -> 0 | V119: =SUM($E119:$H119*TRANSPOSE(O$63:O$66)) -> 0
T120: =SUM($E120:$H120*TRANSPOSE(M$63:M$66)) -> 0 | U120: =SUM($E120:$H120*TRANSPOSE(N$63:N$66)) -> 0 | V120: =SUM($E120:$H120*TRANSPOSE(O$63:O$66)) -> 0
T121: =SUM($E121:$H121*TRANSPOSE(M$63:M$66)) -> 0 | U121: =SUM($E121:$H121*TRANSPOSE(N$63:N$66)) -> 0 | V121: =SUM($E121:$H121*TRANSPOSE(O$63:O$66)) -> 0
T122: =SUM($E122:$H122*TRANSPOSE(M$63:M$66)) -> 0 | U122: =SUM($E122:$H122*TRANSPOSE(N$63:N$66)) -> 0 | V122: =SUM($E122:$H122*TRANSPOSE(O$63:O$66)) -> 0
T123: =SUM($E123:$H123*TRANSPOSE(M$63:M$66)) -> 0 | U123: =SUM($E123:$H123*TRANSPOSE(N$63:N$66)) -> 0 | V123: =SUM($E123:$H123*TRANSPOSE(O$63:O$66)) -> 0
T124: =SUM($E124:$H124*TRANSPOSE(M$63:M$66)) -> 0 | U124: =SUM($E124:$H124*TRANSPOSE(N$63:N$66)) -> 0 | V124: =SUM($E124:$H124*TRANSPOSE(O$63:O$66)) -> 0
T125: =SUM($E125:$H125*TRANSPOSE(M$63:M$66)) -> 0 | U125: =SUM($E125:$H125*TRANSPOSE(N$63:N$66)) -> 0 | V125: =SUM($E125:$H125*TRANSPOSE(O$63:O$66)) -> 0
T126: =SUM($E126:$H126*TRANSPOSE(M$63:M$66)) -> 0 | U126: =SUM($E126:$H126*TRANSPOSE(N$63:N$66)) -> 0 | V126: =SUM($E126:$H126*TRANSPOSE(O$63:O$66)) -> 0
T127: =SUM($E127:$H127*TRANSPOSE(M$63:M$66)) -> 0 | U127: =SUM($E127:$H127*TRANSPOSE(N$63:N$66)) -> 0 | V127: =SUM($E127:$H127*TRANSPOSE(O$63:O$66)) -> 0
T128: =SUM($E128:$H128*TRANSPOSE(M$63:M$66)) -> 0 | U128: =SUM($E128:$H128*TRANSPOSE(N$63:N$66)) -> 0 | V128: =SUM($E128:$H128*TRANSPOSE(O$63:O$66)) -> 0
T129: =SUM($E129:$H129*TRANSPOSE(M$63:M$66)) -> 0 | U129: =SUM($E129:$H129*TRANSPOSE(N$63:N$66)) -> 0 | V129: =SUM($E129:$H129*TRANSPOSE(O$63:O$66)) -> 0
T130: =SUM($E130:$H130*TRANSPOSE(M$63:M$66)) -> 0 | U130: =SUM($E130:$H130*TRANSPOSE(N$63:N$66)) -> 0 | V130: =SUM($E130:$H130*TRANSPOSE(O$63:O$66)) -> 0
T131: =SUM($E131:$H131*TRANSPOSE(M$63:M$66)) -> 0 | U131: =SUM($E131:$H131*TRANSPOSE(N$63:N$66)) -> 0 | V131: =SUM($E131:$H131*TRANSPOSE(O$63:O$66)) -> 0
T132: =SUM($E132:$H132*TRANSPOSE(M$63:M$66)) -> 0 | U132: =SUM($E132:$H132*TRANSPOSE(N$63:N$66)) -> 0 | V132: =SUM($E132:$H132*TRANSPOSE(O$63:O$66)) -> 0
T133: =SUM($E133:$H133*TRANSPOSE(M$63:M$66)) -> 0 | U133: =SUM($E133:$H133*TRANSPOSE(N$63:N$66)) -> 0 | V133: =SUM($E133:$H133*TRANSPOSE(O$63:O$66)) -> 0
T134: =SUM($E134:$H134*TRANSPOSE(M$63:M$66)) -> 0 | U134: =SUM($E134:$H134*TRANSPOSE(N$63:N$66)) -> 0 | V134: =SUM($E134:$H134*TRANSPOSE(O$63:O$66)) -> 0
T135: =SUM($E135:$H135*TRANSPOSE(M$63:M$66)) -> 0 | U135: =SUM($E135:$H135*TRANSPOSE(N$63:N$66)) -> 0 | V135: =SUM($E135:$H135*TRANSPOSE(O$63:O$66)) -> 0
T136: =SUM($E136:$H136*TRANSPOSE(M$63:M$66)) -> 0 | U136: =SUM($E136:$H136*TRANSPOSE(N$63:N$66)) -> 0 | V136: =SUM($E136:$H136*TRANSPOSE(O$63:O$66)) -> 0
T137: =SUM($E137:$H137*TRANSPOSE(M$63:M$66)) -> 0 | U137: =SUM($E137:$H137*TRANSPOSE(N$63:N$66)) -> 0 | V137: =SUM($E137:$H137*TRANSPOSE(O$63:O$66)) -> 0
T138: =SUM($E138:$H138*TRANSPOSE(M$63:M$66)) -> 0 | U138: =SUM($E138:$H138*TRANSPOSE(N$63:N$66)) -> 0 | V138: =SUM($E138:$H138*TRANSPOSE(O$63:O$66)) -> 0
T139: =SUM($E139:$H139*TRANSPOSE(M$63:M$66)) -> 0 | U139: =SUM($E139:$H139*TRANSPOSE(N$63:N$66)) -> 0 | V139: =SUM($E139:$H139*TRANSPOSE(O$63:O$66)) -> 0
T140: =SUM($E140:$H140*TRANSPOSE(M$63:M$66)) -> 0 | U140: =SUM($E140:$H140*TRANSPOSE(N$63:N$66)) -> 0 | V140: =SUM($E140:$H140*TRANSPOSE(O$63:O$66)) -> 0
T141: =SUM($E141:$H141*TRANSPOSE(M$63:M$66)) -> 0 | U141: =SUM($E141:$H141*TRANSPOSE(N$63:N$66)) -> 0 | V141: =SUM($E141:$H141*TRANSPOSE(O$63:O$66)) -> 0
T142: =SUM($E142:$H142*TRANSPOSE(M$63:M$66)) -> 0 | U142: =SUM($E142:$H142*TRANSPOSE(N$63:N$66)) -> 0 | V142: =SUM($E142:$H142*TRANSPOSE(O$63:O$66)) -> 0
T143: =SUM($E143:$H143*TRANSPOSE(M$63:M$66)) -> 0 | U143: =SUM($E143:$H143*TRANSPOSE(N$63:N$66)) -> 0 | V143: =SUM($E143:$H143*TRANSPOSE(O$63:O$66)) -> 0
T144: =SUM($E144:$H144*TRANSPOSE(M$63:M$66)) -> 0 | U144: =SUM($E144:$H144*TRANSPOSE(N$63:N$66)) -> 0 | V144: =SUM($E144:$H144*TRANSPOSE(O$63:O$66)) -> 0
T145: =SUM($E145:$H145*TRANSPOSE(M$63:M$66)) -> 0 | U145: =SUM($E145:$H145*TRANSPOSE(N$63:N$66)) -> 0 | V145: =SUM($E145:$H145*TRANSPOSE(O$63:O$66)) -> 0
T146: =SUM($E146:$H146*TRANSPOSE(M$63:M$66)) -> 0 | U146: =SUM($E146:$H146*TRANSPOSE(N$63:N$66)) -> 0 | V146: =SUM($E146:$H146*TRANSPOSE(O$63:O$66)) -> 0
T147: =SUM($E147:$H147*TRANSPOSE(M$63:M$66)) -> 0 | U147: =SUM($E147:$H147*TRANSPOSE(N$63:N$66)) -> 0 | V147: =SUM($E147:$H147*TRANSPOSE(O$63:O$66)) -> 0
T148: =SUM($E148:$H148*TRANSPOSE(M$63:M$66)) -> 0 | U148: =SUM($E148:$H148*TRANSPOSE(N$63:N$66)) -> 0 | V148: =SUM($E148:$H148*TRANSPOSE(O$63:O$66)) -> 0
T149: =SUM($E149:$H149*TRANSPOSE(M$63:M$66)) -> 0 | U149: =SUM($E149:$H149*TRANSPOSE(N$63:N$66)) -> 0 | V149: =SUM($E149:$H149*TRANSPOSE(O$63:O$66)) -> 0
T150: =SUM($E150:$H150*TRANSPOSE(M$63:M$66)) -> 0 | U150: =SUM($E150:$H150*TRANSPOSE(N$63:N$66)) -> 0 | V150: =SUM($E150:$H150*TRANSPOSE(O$63:O$66)) -> 0
T151: =SUM($E151:$H151*TRANSPOSE(M$63:M$66)) -> 0 | U151: =SUM($E151:$H151*TRANSPOSE(N$63:N$66)) -> 0 | V151: =SUM($E151:$H151*TRANSPOSE(O$63:O$66)) -> 0
T152: =SUM($E152:$H152*TRANSPOSE(M$63:M$66)) -> 0 | U152: =SUM($E152:$H152*TRANSPOSE(N$63:N$66)) -> 0 | V152: =SUM($E152:$H152*TRANSPOSE(O$63:O$66)) -> 0
T153: =SUM($E153:$H153*TRANSPOSE(M$63:M$66)) -> 0 | U153: =SUM($E153:$H153*TRANSPOSE(N$63:N$66)) -> 0 | V153: =SUM($E153:$H153*TRANSPOSE(O$63:O$66)) -> 0
T154: =SUM($E154:$H154*TRANSPOSE(M$63:M$66)) -> 0 | U154: =SUM($E154:$H154*TRANSPOSE(N$63:N$66)) -> 0 | V154: =SUM($E154:$H154*TRANSPOSE(O$63:O$66)) -> 0
T155: =SUM($E155:$H155*TRANSPOSE(M$63:M$66)) -> 0 | U155: =SUM($E155:$H155*TRANSPOSE(N$63:N$66)) -> 0 | V155: =SUM($E155:$H155*TRANSPOSE(O$63:O$66)) -> 0
T156: =SUM($E156:$H156*TRANSPOSE(M$63:M$66)) -> 0 | U156: =SUM($E156:$H156*TRANSPOSE(N$63:N$66)) -> 0 | V156: =SUM($E156:$H156*TRANSPOSE(O$63:O$66)) -> 0
T157: =SUM($E157:$H157*TRANSPOSE(M$63:M$66)) -> 0 | U157: =SUM($E157:$H157*TRANSPOSE(N$63:N$66)) -> 0 | V157: =SUM($E157:$H157*TRANSPOSE(O$63:O$66)) -> 0
T158: =SUM($E158:$H158*TRANSPOSE(M$63:M$66)) -> 0 | U158: =SUM($E158:$H158*TRANSPOSE(N$63:N$66)) -> 0 | V158: =SUM($E158:$H158*TRANSPOSE(O$63:O$66)) -> 0
T159: =SUM($E159:$H159*TRANSPOSE(M$63:M$66)) -> 0 | U159: =SUM($E159:$H159*TRANSPOSE(N$63:N$66)) -> 0 | V159: =SUM($E159:$H159*TRANSPOSE(O$63:O$66)) -> 0
T160: =SUM($E160:$H160*TRANSPOSE(M$63:M$66)) -> 0 | U160: =SUM($E160:$H160*TRANSPOSE(N$63:N$66)) -> 0 | V160: =SUM($E160:$H160*TRANSPOSE(O$63:O$66)) -> 0
T161: =SUM($E161:$H161*TRANSPOSE(M$63:M$66)) -> 0 | U161: =SUM($E161:$H161*TRANSPOSE(N$63:N$66)) -> 0 | V161: =SUM($E161:$H161*TRANSPOSE(O$63:O$66)) -> 0
T162: =SUM($E162:$H162*TRANSPOSE(M$63:M$66)) -> 0 | U162: =SUM($E162:$H162*TRANSPOSE(N$63:N$66)) -> 0 | V162: =SUM($E162:$H162*TRANSPOSE(O$63:O$66)) -> 0
T163: =SUM($E163:$H163*TRANSPOSE(M$63:M$66)) -> 0 | U163: =SUM($E163:$H163*TRANSPOSE(N$63:N$66)) -> 0 | V163: =SUM($E163:$H163*TRANSPOSE(O$63:O$66)) -> 0
T164: =SUM($E164:$H164*TRANSPOSE(M$63:M$66)) -> 0 | U164: =SUM($E164:$H164*TRANSPOSE(N$63:N$66)) -> 0 | V164: =SUM($E164:$H164*TRANSPOSE(O$63:O$66)) -> 0
T165: =SUM($E165:$H165*TRANSPOSE(M$63:M$66)) -> 0 | U165: =SUM($E165:$H165*TRANSPOSE(N$63:N$66)) -> 0 | V165: =SUM($E165:$H165*TRANSPOSE(O$63:O$66)) -> 0
T166: =SUM($E166:$H166*TRANSPOSE(M$63:M$66)) -> 0 | U166: =SUM($E166:$H166*TRANSPOSE(N$63:N$66)) -> 0 | V166: =SUM($E166:$H166*TRANSPOSE(O$63:O$66)) -> 0
T167: =SUM($E167:$H167*TRANSPOSE(M$63:M$66)) -> 0 | U167: =SUM($E167:$H167*TRANSPOSE(N$63:N$66)) -> 0 | V167: =SUM($E167:$H167*TRANSPOSE(O$63:O$66)) -> 0
T168: =SUM($E168:$H168*TRANSPOSE(M$63:M$66)) -> 0 | U168: =SUM($E168:$H168*TRANSPOSE(N$63:N$66)) -> 0 | V168: =SUM($E168:$H168*TRANSPOSE(O$63:O$66)) -> 0
T169: =SUM($E169:$H169*TRANSPOSE(M$63:M$66)) -> 0 | U169: =SUM($E169:$H169*TRANSPOSE(N$63:N$66)) -> 0 | V169: =SUM($E169:$H169*TRANSPOSE(O$63:O$66)) -> 0
T170: =SUM($E170:$H170*TRANSPOSE(M$63:M$66)) -> 0 | U170: =SUM($E170:$H170*TRANSPOSE(N$63:N$66)) -> 0 | V170: =SUM($E170:$H170*TRANSPOSE(O$63:O$66)) -> 0
T171: =SUM($E171:$H171*TRANSPOSE(M$63:M$66)) -> 0 | U171: =SUM($E171:$H171*TRANSPOSE(N$63:N$66)) -> 0 | V171: =SUM($E171:$H171*TRANSPOSE(O$63:O$66)) -> 0
T172: =SUM($E172:$H172*TRANSPOSE(M$63:M$66)) -> 0 | U172: =SUM($E172:$H172*TRANSPOSE(N$63:N$66)) -> 0 | V172: =SUM($E172:$H172*TRANSPOSE(O$63:O$66)) -> 0
T173: =SUM($E173:$H173*TRANSPOSE(M$63:M$66)) -> 0 | U173: =SUM($E173:$H173*TRANSPOSE(N$63:N$66)) -> 0 | V173: =SUM($E173:$H173*TRANSPOSE(O$63:O$66)) -> 0
T174: =SUM($E174:$H174*TRANSPOSE(M$63:M$66)) -> 0 | U174: =SUM($E174:$H174*TRANSPOSE(N$63:N$66)) -> 0 | V174: =SUM($E174:$H174*TRANSPOSE(O$63:O$66)) -> 0
T175: =SUM($E175:$H175*TRANSPOSE(M$63:M$66)) -> 0 | U175: =SUM($E175:$H175*TRANSPOSE(N$63:N$66)) -> 0 | V175: =SUM($E175:$H175*TRANSPOSE(O$63:O$66)) -> 0
T176: =SUM($E176:$H176*TRANSPOSE(M$63:M$66)) -> 0 | U176: =SUM($E176:$H176*TRANSPOSE(N$63:N$66)) -> 0 | V176: =SUM($E176:$H176*TRANSPOSE(O$63:O$66)) -> 0
T177: =SUM($E177:$H177*TRANSPOSE(M$63:M$66)) -> 0 | U177: =SUM($E177:$H177*TRANSPOSE(N$63:N$66)) -> 0 | V177: =SUM($E177:$H177*TRANSPOSE(O$63:O$66)) -> 0
T178: =SUM($E178:$H178*TRANSPOSE(M$63:M$66)) -> 0 | U178: =SUM($E178:$H178*TRANSPOSE(N$63:N$66)) -> 0 | V178: =SUM($E178:$H178*TRANSPOSE(O$63:O$66)) -> 0
T179: =SUM($E179:$H179*TRANSPOSE(M$63:M$66)) -> 0 | U179: =SUM($E179:$H179*TRANSPOSE(N$63:N$66)) -> 0 | V179: =SUM($E179:$H179*TRANSPOSE(O$63:O$66)) -> 0
T180: =SUM($E180:$H180*TRANSPOSE(M$63:M$66)) -> 0 | U180: =SUM($E180:$H180*TRANSPOSE(N$63:N$66)) -> 0 | V180: =SUM($E180:$H180*TRANSPOSE(O$63:O$66)) -> 0
T181: =SUM($E181:$H181*TRANSPOSE(M$63:M$66)) -> 0 | U181: =SUM($E181:$H181*TRANSPOSE(N$63:N$66)) -> 0 | V181: =SUM($E181:$H181*TRANSPOSE(O$63:O$66)) -> 0
T182: =SUM($E182:$H182*TRANSPOSE(M$63:M$66)) -> 0 | U182: =SUM($E182:$H182*TRANSPOSE(N$63:N$66)) -> 0 | V182: =SUM($E182:$H182*TRANSPOSE(O$63:O$66)) -> 0
T183: =SUM($E183:$H183*TRANSPOSE(M$63:M$66)) -> 0 | U183: =SUM($E183:$H183*TRANSPOSE(N$63:N$66)) -> 0 | V183: =SUM($E183:$H183*TRANSPOSE(O$63:O$66)) -> 0
T184: =SUM($E184:$H184*TRANSPOSE(M$63:M$66)) -> 0 | U184: =SUM($E184:$H184*TRANSPOSE(N$63:N$66)) -> 0 | V184: =SUM($E184:$H184*TRANSPOSE(O$63:O$66)) -> 0
T185: =SUM($E185:$H185*TRANSPOSE(M$63:M$66)) -> 0 | U185: =SUM($E185:$H185*TRANSPOSE(N$63:N$66)) -> 0 | V185: =SUM($E185:$H185*TRANSPOSE(O$63:O$66)) -> 0
T186: =SUM($E186:$H186*TRANSPOSE(M$63:M$66)) -> 0 | U186: =SUM($E186:$H186*TRANSPOSE(N$63:N$66)) -> 0 | V186: =SUM($E186:$H186*TRANSPOSE(O$63:O$66)) -> 0
T187: =SUM($E187:$H187*TRANSPOSE(M$63:M$66)) -> 0 | U187: =SUM($E187:$H187*TRANSPOSE(N$63:N$66)) -> 0 | V187: =SUM($E187:$H187*TRANSPOSE(O$63:O$66)) -> 0
T188: =SUM($E188:$H188*TRANSPOSE(M$63:M$66)) -> 0 | U188: =SUM($E188:$H188*TRANSPOSE(N$63:N$66)) -> 0 | V188: =SUM($E188:$H188*TRANSPOSE(O$63:O$66)) -> 0
T189: =SUM($E189:$H189*TRANSPOSE(M$63:M$66)) -> 0 | U189: =SUM($E189:$H189*TRANSPOSE(N$63:N$66)) -> 0 | V189: =SUM($E189:$H189*TRANSPOSE(O$63:O$66)) -> 0
T190: =SUM($E190:$H190*TRANSPOSE(M$63:M$66)) -> 0 | U190: =SUM($E190:$H190*TRANSPOSE(N$63:N$66)) -> 0 | V190: =SUM($E190:$H190*TRANSPOSE(O$63:O$66)) -> 0
T191: =SUM($E191:$H191*TRANSPOSE(M$63:M$66)) -> 0 | U191: =SUM($E191:$H191*TRANSPOSE(N$63:N$66)) -> 0 | V191: =SUM($E191:$H191*TRANSPOSE(O$63:O$66)) -> 0
T192: =SUM($E192:$H192*TRANSPOSE(M$63:M$66)) -> 0 | U192: =SUM($E192:$H192*TRANSPOSE(N$63:N$66)) -> 0 | V192: =SUM($E192:$H192*TRANSPOSE(O$63:O$66)) -> 0
T193: =SUM($E193:$H193*TRANSPOSE(M$63:M$66)) -> 0 | U193: =SUM($E193:$H193*TRANSPOSE(N$63:N$66)) -> 0 | V193: =SUM($E193:$H193*TRANSPOSE(O$63:O$66)) -> 0
T194: =SUM($E194:$H194*TRANSPOSE(M$63:M$66)) -> 0 | U194: =SUM($E194:$H194*TRANSPOSE(N$63:N$66)) -> 0 | V194: =SUM($E194:$H194*TRANSPOSE(O$63:O$66)) -> 0
T195: =SUM($E195:$H195*TRANSPOSE(M$63:M$66)) -> 0 | U195: =SUM($E195:$H195*TRANSPOSE(N$63:N$66)) -> 0 | V195: =SUM($E195:$H195*TRANSPOSE(O$63:O$66)) -> 0
T196: =SUM($E196:$H196*TRANSPOSE(M$63:M$66)) -> 0 | U196: =SUM($E196:$H196*TRANSPOSE(N$63:N$66)) -> 0 | V196: =SUM($E196:$H196*TRANSPOSE(O$63:O$66)) -> 0
T197: =SUM($E197:$H197*TRANSPOSE(M$63:M$66)) -> 0 | U197: =SUM($E197:$H197*TRANSPOSE(N$63:N$66)) -> 0 | V197: =SUM($E197:$H197*TRANSPOSE(O$63:O$66)) -> 0
T198: =SUM($E198:$H198*TRANSPOSE(M$63:M$66)) -> 0 | U198: =SUM($E198:$H198*TRANSPOSE(N$63:N$66)) -> 0 | V198: =SUM($E198:$H198*TRANSPOSE(O$63:O$66)) -> 0
T199: =SUM($E199:$H199*TRANSPOSE(M$63:M$66)) -> 0 | U199: =SUM($E199:$H199*TRANSPOSE(N$63:N$66)) -> 0 | V199: =SUM($E199:$H199*TRANSPOSE(O$63:O$66)) -> 0
T200: =SUM($E200:$H200*TRANSPOSE(M$63:M$66)) -> 0 | U200: =SUM($E200:$H200*TRANSPOSE(N$63:N$66)) -> 0 | V200: =SUM($E200:$H200*TRANSPOSE(O$63:O$66)) -> 0
... 806 more rows

Sheet Tabela_dinamica (hidden)
A1: Tabela 1 - Idade da frota
A2: Soma de Quantidade | B2: Rótulos de Coluna | O2: Média de Fator_Emissao | P2: Rótulos de Coluna
B3: Motocicletas | O3: Rótulos de Linha | P3: Automóveis
A4: Rótulos de Linha | B4: Moto-Gasolina | C4: Moto-Flex | O4: NOx | P4: 0.7895497227
A5: 1983 | B5: 2907 | O5: 1983 | P5: 1.619524383
A6: 1984 | B6: 1899 | O6: 1984 | P6: 1.68619105
A7: 1985 | B7: 1419 | O7: 1985 | P7: 1.752857717
A8: 1986 | B8: 2295 | O8: 1986 | P8: 1.852857717
A9: 1987 | B9: 2649 | O9: 1987 | P9: 2.052857717
A10: 1988 | B10: 2766 | O10: 1988 | P10: 2.019524383
A11: 1989 | B11: 2106 | O11: 1989 | P11: 1.819524383
A12: 1990 | B12: 2643 | O12: 1990 | P12: 1.652857717
A13: 1991 | B13: 1893 | O13: 1991 | P13: 1.652857717
A14: 1992 | B14: 1572 | O14: 1992 | P14: 1.352857717
A15: 1993 | B15: 948 | O15: 1993 | P15: 1.252857717
A16: 1994 | B16: 1677 | O16: 1994 | P16: 1.252857717
A17: 1995 | B17: 3402 | O17: 1995 | P17: 1.338719361
A18: 1996 | B18: 4095 | O18: 1996 | P18: 1.30324011
A19: 1997 | B19: 7806 | O19: 1997 | P19: 1.100891805
A20: 1998 | B20: 8514 | O20: 1998 | P20: 1.0550543
A21: 1999 | B21: 6801 | O21: 1999 | P21: 1.045745258
A22: 2000 | B22: 9408 | O22: 2000 | P22: 1.043592438
A23: 2001 | B23: 10623 | O23: 2001 | P23: 0.9743978103
A24: 2002 | B24: 12669 | O24: 2002 | P24: 0.9728042447
A25: 2003 | B25: 15141 | O25: 2003 | P25: 0.6438461799
A26: 2004 | B26: 13857 | O26: 2004 | P26: 0.5536235688
A27: 2005 | B27: 20484 | O27: 2005 | P27: 0.5401233367
A28: 2006 | B28: 22557 | O28: 2006 | P28: 0.5635274744
A29: 2007 | B29: 37347 | O29: 2007 | P29: 0.4749505392
A30: 2008 | B30: 68643 | O30: 2008 | P30: 0.446490126
A31: 2009 | B31: 23394 | C31: 2688 | O31: 2009 | P31: 0.416899118
A32: 2010 | B32: 37578 | C32: 7995 | O32: 2010 | P32: 0.4759633645
A33: 2011 | B33: 30606 | C33: 13566 | O33: 2011 | P33: 0.3720757934
A34: 2012 | B34: 27954 | C34: 14343 | O34: 2012 | P34: 0.3672916645
A35: 2013 | B35: 17718 | C35: 13701 | O35: 2013 | P35: 0.3621033966
A36: 2014 | B36: 16797 | C36: 21417 | O36: 2014 | P36: 0.3553160314
A37: 2015 | B37: 13209 | C37: 23316 | O37: 2015 | P37: 0.352680253
A38: 2016 | B38: 8520 | C38: 15045 | O38: 2016 | P38: 0.3474469051
A39: 2017 | B39: 11016 | C39: 14085 | O39: 2017 | P39: 0.341846203
A40: 2018 | B40: 12228 | C40: 18444 | O40: 2018 | P40: 0.3380877337
A41: 2019 | B41: 13458 | C41: 24993 | O41: 2019 | P41: 0.3349604564
A42: 2020 | B42: 11769 | C42: 24093 | O42: 2020 | P42: 0.3322327018
A43: 2021 | B43: 12744 | C43: 21540 | O43: 2021 | P43: 0.3288521724
A44: 2022 | B44: 20814 | C44: 33060 | O44: 2022 | P44: 0.03603135323

Sheet Dados_v2
A1: Ano_de_fabricacao | B1: Tipologia_veicular | C1: Combustível | D1: Veiculo_ID | E1: Tipologia_ID | F1: Quantidade | G1: Poluente | H1: Correcao_Flex | I1: Fator_Emissao
A2: 1983 | B2: Onibus | C2: Diesel | D2: =SUM(IF(B2=$L$10:$L$23,$M$10:$M$23,0)) -> 1 | E2: 3 | F2: =IFERROR(ROUND(VLOOKUP(A2,'Dados de entrada'!$P$7:$Z$50,Dados_v2!D2+1,0)*H2,0),0) -> 26 | G2: CO | H2: =IF(OR(D2=$M$15,D2=$M$20),SUM(IF((A2=$O$10:$O$29),IF(C2=$P$9,$P$10:$P$29,$Q$10:$Q$29),0))/100,1) -> 1 | I2: 3.019130435 | L2: Fatores de emissão (g/km)
A3: 1984 | B3: Onibus | C3: Diesel | D3: =SUM(IF(B3=$L$10:$L$23,$M$10:$M$23,0)) -> 1 | E3: 3 | F3: =IFERROR(ROUND(VLOOKUP(A3,'Dados de entrada'!$P$7:$Z$50,Dados_v2!D3+1,0)*H3,0),0) -> 27 | G3: CO | H3: =IF(OR(D3=$M$15,D3=$M$20),SUM(IF((A3=$O$10:$O$29),IF(C3=$P$9,$P$10:$P$29,$Q$10:$Q$29),0))/100,1) -> 1 | I3: 3.019130435 | L3: Tipologia agrupada | M3: ID | N3: CO | O3: NOx | P3: MP
A4: 1985 | B4: Onibus | C4: Diesel | D4: =SUM(IF(B4=$L$10:$L$23,$M$10:$M$23,0)) -> 1 | E4: 3 | F4: =IFERROR(ROUND(VLOOKUP(A4,'Dados de entrada'!$P$7:$Z$50,Dados_v2!D4+1,0)*H4,0),0) -> 30 | G4: CO | H4: =IF(OR(D4=$M$15,D4=$M$20),SUM(IF((A4=$O$10:$O$29),IF(C4=$P$9,$P$10:$P$29,$Q$10:$Q$29),0))/100,1) -> 1 | I4: 3.019130435 | L4: Automóveis | M4: 1 | N4: =SUM(IF($G$2:$G$1049=N$3,IF($E$2:$E$1049=$M4,$I$2:$I$1049*$F$2:$F$1049)))/SUM(IF($G$2:$G$1049=N$3,IF($E$2:$E$1049=$M4,$F$2:$F$1049))) -> 1.61628456 | O4: =SUM(IF($G$2:$G$1049=O$3,IF($E$2:$E$1049=$M4,$I$2:$I$1049*$F$2:$F$1049)))/SUM(IF($G$2:$G$1049=O$3,IF($E$2:$E$1049=$M4,$F$2:$F$1049))) -> 0.2222028776 | P4: =SUM(IF($G$2:$G$1049=P$3,IF($E$2:$E$1049=$M4,$I$2:$I$1049*$F$2:$F$1049)))/SUM(IF($G$2:$G$1049=P$3,IF($E$2:$E$1049=$M4,$F$2:$F$1049))) -> 0.002509189043
A5: 1986 | B5: Onibus | C5: Diesel | D5: =SUM(IF(B5=$L$10:$L$23,$M$10:$M$23,0)) -> 1 | E5: 3 | F5: =IFERROR(ROUND(VLOOKUP(A5,'Dados de entrada'!$P$7:$Z$50,Dados_v2!D5+1,0)*H5,0),0) -> 58 | G5: CO | H5: =IF(OR(D5=$M$15,D5=$M$20),SUM(IF((A5=$O$10:$O$29),IF(C5=$P$9,$P$10:$P$29,$Q$10:$Q$29),0))/100,1) -> 1 | I5: 3.019130435 | L5: Motos | M5: 2 | N5: =SUM(IF($G$2:$G$1049=N$3,IF($E$2:$E$1049=$M5,$I$2:$I$1049*$F$2:$F$1049)))/SUM(IF($G$2:$G$1049=N$3,IF($E$2:$E$1049=$M5,$F$2:$F$1049))) -> 1.896071958 | O5: =SUM(IF($G$2:$G$1049=O$3,IF($E$2:$E$1049=$M5,$I$2:$I$1049*$F$2:$F$1049)))/SUM(IF($G$2:$G$1049=O$3,IF($E$2:$E$1049=$M5,$F$2:$F$1049))) -> 0.09300704239 | P5: =SUM(IF($G$2:$G$1049=P$3,IF($E$2:$E$1049=$M5,$I$2:$I$1049*$F$2:$F$1049)))/SUM(IF($G$2:$G$1049=P$3,IF($E$2:$E$1049=$M5,$F$2:$F$1049))) -> 0
A6: 1987 | B6: Onibus | C6: Diesel | D6: =SUM(IF(B6=$L$10:$L$23,$M$10:$M$23,0)) -> 1 | E6: 3 | F6: =IFERROR(ROUND(VLOOKUP(A6,'Dados de entrada'!$P$7:$Z$50,Dados_v2!D6+1,0)*H6,0),0) -> 57 | G6: CO | H6: =IF(OR(D6=$M$15,D6=$M$20),SUM(IF((A6=$O$10:$O$29),IF(C6=$P$9,$P$10:$P$29,$Q$10:$Q$29),0))/100,1) -> 1 | I6: 3.019130435 | L6: Ônibus | M6: 3 | N6: =SUM(IF($G$2:$G$1049=N$3,IF($E$2:$E$1049=$M6,$I$2:$I$1049*$F$2:$F$1049)))/SUM(IF($G$2:$G$1049=N$3,IF($E$2:$E$1049=$M6,$F$2:$F$1049))) -> 1.148309396 | O6: =SUM(IF($G$2:$G$1049=O$3,IF($E$2:$E$1049=$M6,$I$2:$I$1049*$F$2:$F$1049)))/SUM(IF($G$2:$G$1049=O$3,IF($E$2:$E$1049=$M6,$F$2:$F$1049))) -> 6.053098919 | P6: =SUM(IF($G$2:$G$1049=P$3,IF($E$2:$E$1049=$M6,$I$2:$I$1049*$F$2:$F$1049)))/SUM(IF($G$2:$G$1049=P$3,IF($E$2:$E$1049=$M6,$F$2:$F$1049))) -> 0.2214290004
A7: 1988 | B7: Onibus | C7: Diesel | D7: =SUM(IF(B7=$L$10:$L$23,$M$10:$M$23,0)) -> 1 | E7: 3 | F7: =IFERROR(ROUND(VLOOKUP(A7,'Dados de entrada'!$P$7:$Z$50,Dados_v2!D7+1,0)*H7,0),0) -> 67 | G7: CO | H7: =IF(OR(D7=$M$15,D7=$M$20),SUM(IF((A7=$O$10:$O$29),IF(C7=$P$9,$P$10:$P$29,$Q$10:$Q$29),0))/100,1) -> 1 | I7: 3.019130435 | L7: Caminhões | M7: 4 | N7: =SUM(IF($G$2:$G$1049=N$3,IF($E$2:$E$1049=$M7,$I$2:$I$1049*$F$2:$F$1049)))/SUM(IF($G$2:$G$1049=N$3,IF($E$2:$E$1049=$M7,$F$2:$F$1049))) -> 0.4885706291 | O7: =SUM(IF($G$2:$G$1049=O$3,IF($E$2:$E$1049=$M7,$I$2:$I$1049*$F$2:$F$1049)))/SUM(IF($G$2:$G$1049=O$3,IF($E$2:$E$1049=$M7,$F$2:$F$1049))) -> 2.862841951 | P7: =SUM(IF($G$2:$G$1049=P$3,IF($E$2:$E$1049=$M7,$I$2:$I$1049*$F$2:$F$1049)))/SUM(IF($G$2:$G$1049=P$3,IF($E$2:$E$1049=$M7,$F$2:$F$1049))) -> 0.1063849603
A8: 1989 | B8: Onibus | C8: Diesel | D8: =SUM(IF(B8=$L$10:$L$23,$M$10:$M$23,0)) -> 1 | E8: 3 | F8: =IFERROR(ROUND(VLOOKUP(A8,'Dados de entrada'!$P$7:$Z$50,Dados_v2!D8+1,0)*H8,0),0) -> 81 | G8: CO | H8: =IF(OR(D8=$M$15,D8=$M$20),SUM(IF((A8=$O$10:$O$29),IF(C8=$P$9,$P$10:$P$29,$Q$10:$Q$29),0))/100,1) -> 1 | I8: 3.019130435
A9: 1990 | B9: Onibus | C9: Diesel | D9: =SUM(IF(B9=$L$10:$L$23,$M$10:$M$23,0)) -> 1 | E9: 3 | F9: =IFERROR(ROUND(VLOOKUP(A9,'Dados de entrada'!$P$7:$Z$50,Dados_v2!D9+1,0)*H9,0),0) -> 54 | G9: CO | H9: =IF(OR(D9=$M$15,D9=$M$20),SUM(IF((A9=$O$10:$O$29),IF(C9=$P$9,$P$10:$P$29,$Q$10:$Q$29),0))/100,1) -> 1 | I9: 3.019130435 | L9: Veículo | M9: ID | O9: Ano | P9: Gasolina | Q9: Etanol
A10: 1991 | B10: Onibus | C10: Diesel | D10: =SUM(IF(B10=$L$10:$L$23,$M$10:$M$23,0)) -> 1 | E10: 3 | F10: =IFERROR(ROUND(VLOOKUP(A10,'Dados de entrada'!$P$7:$Z$50,Dados_v2!D10+1,0)*H10,0),0) -> 50 | G10: CO | H10: =IF(OR(D10=$M$15,D10=$M$20),SUM(IF((A10=$O$10:$O$29),IF(C10=$P$9,$P$10:$P$29,$Q$10:$Q$29),0))/100,1) -> 1 | I10: 3.019130435 | L10: Onibus | M10: 1 | O10: 2003 | P10: 50 | Q10: 50
A11: 1992 | B11: Onibus | C11: Diesel | D11: =SUM(IF(B11=$L$10:$L$23,$M$10:$M$23,0)) -> 1 | E11: 3 | F11: =IFERROR(ROUND(VLOOKUP(A11,'Dados de entrada'!$P$7:$Z$50,Dados_v2!D11+1,0)*H11,0),0) -> 97 | G11: CO | H11: =IF(OR(D11=$M$15,D11=$M$20),SUM(IF((A11=$O$10:$O$29),IF(C11=$P$9,$P$10:$P$29,$Q$10:$Q$29),0))/100,1) -> 1 | I11: 3.019130435 | L11: Onibus-E | M11: 2 | O11: 2004 | P11: 0 | Q11: 100
A12: 1993 | B12: Onibus | C12: Diesel | D12: =SUM(IF(B12=$L$10:$L$23,$M$10:$M$23,0)) -> 1 | E12: 3 | F12: =IFERROR(ROUND(VLOOKUP(A12,'Dados de entrada'!$P$7:$Z$50,Dados_v2!D12+1,0)*H12,0),0) -> 71 | G12: CO | H12: =IF(OR(D12=$M$15,D12=$M$20),SUM(IF((A12=$O$10:$O$29),IF(C12=$P$9,$P$10:$P$29,$Q$10:$Q$29),0))/100,1) -> 1 | I12: 3.019130435 | L12: Microonibus | M12: 3 | O12: 2005 | P12: 0 | Q12: 100
A13: 1994 | B13: Onibus | C13: Diesel | D13: =SUM(IF(B13=$L$10:$L$23,$M$10:$M$23,0)) -> 1 | E13: 3 | F13: =IFERROR(ROUND(VLOOKUP(A13,'Dados de entrada'!$P$7:$Z$50,Dados_v2!D13+1,0)*H13,0),0) -> 49 | G13: CO | H13: =IF(OR(D13=$M$15,D13=$M$20),SUM(IF((A13=$O$10:$O$29),IF(C13=$P$9,$P$10:$P$29,$Q$10:$Q$29),0))/100,1) -> 1 | I13: 3.019130435 | L13: Caminhao | M13: 4 | O13: 2006 | P13: 8.5 | Q13: 91.5
A14: 1995 | B14: Onibus | C14: Diesel | D14: =SUM(IF(B14=$L$10:$L$23,$M$10:$M$23,0)) -> 1 | E14: 3 | F14: =IFERROR(ROUND(VLOOKUP(A14,'Dados de entrada'!$P$7:$Z$50,Dados_v2!D14+1,0)*H14,0),0) -> 86 | G14: CO | H14: =IF(OR(D14=$M$15,D14=$M$20),SUM(IF((A14=$O$10:$O$29),IF(C14=$P$9,$P$10:$P$29,$Q$10:$Q$29),0))/100,1) -> 1 | I14: 3.019130435 | L14: Moto-Gasolina | M14: 5 | O14: 2007 | P14: 16 | Q14: 84
A15: 1996 | B15: Onibus | C15: Diesel | D15: =SUM(IF(B15=$L$10:$L$23,$M$10:$M$23,0)) -> 1 | E15: 3 | F15: =IFERROR(ROUND(VLOOKUP(A15,'Dados de entrada'!$P$7:$Z$50,Dados_v2!D15+1,0)*H15,0),0) -> 101 | G15: CO | H15: =IF(OR(D15=$M$15,D15=$M$20),SUM(IF((A15=$O$10:$O$29),IF(C15=$P$9,$P$10:$P$29,$Q$10:$Q$29),0))/100,1) -> 1 | I15: 3.019130435 | L15: Moto-Flex | M15: 6 | O15: 2008 | P15: 20 | Q15: 80
A16: 1997 | B16: Onibus | C16: Diesel | D16: =SUM(IF(B16=$L$10:$L$23,$M$10:$M$23,0)) -> 1 | E16: 3 | F16: =IFERROR(ROUND(VLOOKUP(A16,'Dados de entrada'!$P$7:$Z$50,Dados_v2!D16+1,0)*H16,0),0) -> 89 | G16: CO | H16: =IF(OR(D16=$M$15,D16=$M$20),SUM(IF((A16=$O$10:$O$29),IF(C16=$P$9,$P$10:$P$29,$Q$10:$Q$29),0))/100,1) -> 1 | I16: 3.019130435 | L16: Moto-Flex-G | M16: - | O16: 2009 | P16: 30 | Q16: 70
A17: 1998 | B17: Onibus | C17: Diesel | D17: =SUM(IF(B17=$L$10:$L$23,$M$10:$M$23,0)) -> 1 | E17: 3 | F17: =IFERROR(ROUND(VLOOKUP(A17,'Dados de entrada'!$P$7:$Z$50,Dados_v2!D17+1,0)*H17,0),0) -> 97 | G17: CO | H17: =IF(OR(D17=$M$15,D17=$M$20),SUM(IF((A17=$O$10:$O$29),IF(C17=$P$9,$P$10:$P$29,$Q$10:$Q$29),0))/100,1) -> 1 | I17: 3.019130435 | L17: Moto-Flex-A | M17: - | O17: 2010 | P17: 48 | Q17: 52
A18: 1999 | B18: Onibus | C18: Diesel | D18: =SUM(IF(B18=$L$10:$L$23,$M$10:$M$23,0)) -> 1 | E18: 3 | F18: =IFERROR(ROUND(VLOOKUP(A18,'Dados de entrada'!$P$7:$Z$50,Dados_v2!D18+1,0)*H18,0),0) -> 139 | G18: CO | H18: =IF(OR(D18=$M$15,D18=$M$20),SUM(IF((A18=$O$10:$O$29),IF(C18=$P$9,$P$10:$P$29,$Q$10:$Q$29),0))/100,1) -> 1 | I18: 3.019130435 | L18: Automovel-Gasolina | M18: 7 | O18: 2011 | P18: 68 | Q18: 32
A19: 2000 | B19: Onibus | C19: Diesel | D19: =SUM(IF(B19=$L$10:$L$23,$M$10:$M$23,0)) -> 1 | E19: 3 | F19: =IFERROR(ROUND(VLOOKUP(A19,'Dados de entrada'!$P$7:$Z$50,Dados_v2!D19+1,0)*H19,0),0) -> 77 | G19: CO | H19: =IF(OR(D19=$M$15,D19=$M$20),SUM(IF((A19=$O$10:$O$29),IF(C19=$P$9,$P$10:$P$29,$Q$10:$Q$29),0))/100,1) -> 1 | I19: 2.714000798 | L19: Automovel-Alcool | M19: 8 | O19: 2012 | P19: 75 | Q19: 25
A20: 2001 | B20: Onibus | C20: Diesel | D20: =SUM(IF(B20=$L$10:$L$23,$M$10:$M$23,0)) -> 1 | E20: 3 | F20: =IFERROR(ROUND(VLOOKUP(A20,'Dados de entrada'!$P$7:$Z$50,Dados_v2!D20+1,0)*H20,0),0) -> 156 | G20: CO | H20: =IF(OR(D20=$M$15,D20=$M$20),SUM(IF((A20=$O$10:$O$29),IF(C20=$P$9,$P$10:$P$29,$Q$10:$Q$29),0))/100,1) -> 1 | I20: 2.714000798 | L20: Automovel-Flex | M20: 9 | O20: 2013 | P20: 75 | Q20: 25
A21: 2002 | B21: Onibus | C21: Diesel | D21: =SUM(IF(B21=$L$10:$L$23,$M$10:$M$23,0)) -> 1 | E21: 3 | F21: =IFERROR(ROUND(VLOOKUP(A21,'Dados de entrada'!$P$7:$Z$50,Dados_v2!D21+1,0)*H21,0),0) -> 91 | G21: CO | H21: =IF(OR(D21=$M$15,D21=$M$20),SUM(IF((A21=$O$10:$O$29),IF(C21=$P$9,$P$10:$P$29,$Q$10:$Q$29),0))/100,1) -> 1 | I21: 1.47826087 | L21: Automovel-Flex-G | M21: - | O21: 2014 | P21: 75 | Q21: 25
A22: 2003 | B22: Onibus | C22: Diesel | D22: =SUM(IF(B22=$L$10:$L$23,$M$10:$M$23,0)) -> 1 | E22: 3 | F22: =IFERROR(ROUND(VLOOKUP(A22,'Dados de entrada'!$P$7:$Z$50,Dados_v2!D22+1,0)*H22,0),0) -> 103 | G22: CO | H22: =IF(OR(D22=$M$15,D22=$M$20),SUM(IF((A22=$O$10:$O$29),IF(C22=$P$9,$P$10:$P$29,$Q$10:$Q$29),0))/100,1) -> 1 | I22: 1.47826087 | L22: Automovel-Flex-A | M22: - | O22: 2015 | P22: 75 | Q22: 25
A23: 2004 | B23: Onibus | C23: Diesel | D23: =SUM(IF(B23=$L$10:$L$23,$M$10:$M$23,0)) -> 1 | E23: 3 | F23: =IFERROR(ROUND(VLOOKUP(A23,'Dados de entrada'!$P$7:$Z$50,Dados_v2!D23+1,0)*H23,0),0) -> 131 | G23: CO | H23: =IF(OR(D23=$M$15,D23=$M$20),SUM(IF((A23=$O$10:$O$29),IF(C23=$P$9,$P$10:$P$29,$Q$10:$Q$29),0))/100,1) -> 1 | I23: 1.41 | L23: Automovel-Diesel | M23: 10 | O23: 2016 | P23: 75 | Q23: 25
A24: 2005 | B24: Onibus | C24: Diesel | D24: =SUM(IF(B24=$L$10:$L$23,$M$10:$M$23,0)) -> 1 | E24: 3 | F24: =IFERROR(ROUND(VLOOKUP(A24,'Dados de entrada'!$P$7:$Z$50,Dados_v2!D24+1,0)*H24,0),0) -> 96 | G24: CO | H24: =IF(OR(D24=$M$15,D24=$M$20),SUM(IF((A24=$O$10:$O$29),IF(C24=$P$9,$P$10:$P$29,$Q$10:$Q$29),0))/100,1) -> 1 | I24: 1.41 | O24: 2017 | P24: 75 | Q24: 25
A25: 2006 | B25: Onibus | C25: Diesel | D25: =SUM(IF(B25=$L$10:$L$23,$M$10:$M$23,0)) -> 1 | E25: 3 | F25: =IFERROR(ROUND(VLOOKUP(A25,'Dados de entrada'!$P$7:$Z$50,Dados_v2!D25+1,0)*H25,0),0) -> 156 | G25: CO | H25: =IF(OR(D25=$M$15,D25=$M$20),SUM(IF((A25=$O$10:$O$29),IF(C25=$P$9,$P$10:$P$29,$Q$10:$Q$29),0))/100,1) -> 1 | I25: 1.81064493 | O25: 2018 | P25: 75 | Q25: 25
A26: 2007 | B26: Onibus | C26: Diesel | D26: =SUM(IF(B26=$L$10:$L$23,$M$10:$M$23,0)) -> 1 | E26: 3 | F26: =IFERROR(ROUND(VLOOKUP(A26,'Dados de entrada'!$P$7:$Z$50,Dados_v2!D26+1,0)*H26,0),0) -> 212 | G26: CO | H26: =IF(OR(D26=$M$15,D26=$M$20),SUM(IF((A26=$O$10:$O$29),IF(C26=$P$9,$P$10:$P$29,$Q$10:$Q$29),0))/100,1) -> 1 | I26: 1.81064493 | O26: 2019 | P26: 75 | Q26: 25
A27: 2008 | B27: Onibus | C27: Diesel | D27: =SUM(IF(B27=$L$10:$L$23,$M$10:$M$23,0)) -> 1 | E27: 3 | F27: =IFERROR(ROUND(VLOOKUP(A27,'Dados de entrada'!$P$7:$Z$50,Dados_v2!D27+1,0)*H27,0),0) -> 332 | G27: CO | H27: =IF(OR(D27=$M$15,D27=$M$20),SUM(IF((A27=$O$10:$O$29),IF(C27=$P$9,$P$10:$P$29,$Q$10:$Q$29),0))/100,1) -> 1 | I27: 2.289032412 | O27: 2020 | P27: 75 | Q27: 25
A28: 2009 | B28: Onibus | C28: Diesel | D28: =SUM(IF(B28=$L$10:$L$23,$M$10:$M$23,0)) -> 1 | E28: 3 | F28: =IFERROR(ROUND(VLOOKUP(A28,'Dados de entrada'!$P$7:$Z$50,Dados_v2!D28+1,0)*H28,0),0) -> 187 | G28: CO | H28: =IF(OR(D28=$M$15,D28=$M$20),SUM(IF((A28=$O$10:$O$29),IF(C28=$P$9,$P$10:$P$29,$Q$10:$Q$29),0))/100,1) -> 1 | I28: 1.894955409 | O28: 2021 | P28: 75 | Q28: 25
A29: 2010 | B29: Onibus | C29: Diesel | D29: =SUM(IF(B29=$L$10:$L$23,$M$10:$M$23,0)) -> 1 | E29: 3 | F29: =IFERROR(ROUND(VLOOKUP(A29,'Dados de entrada'!$P$7:$Z$50,Dados_v2!D29+1,0)*H29,0),0) -> 303 | G29: CO | H29: =IF(OR(D29=$M$15,D29=$M$20),SUM(IF((A29=$O$10:$O$29),IF(C29=$P$9,$P$10:$P$29,$Q$10:$Q$29),0))/100,1) -> 1 | I29: 1.839272044 | O29: 2022 | P29: 75 | Q29: 25
A30: 2011 | B30: Onibus | C30: Diesel | D30: =SUM(IF(B30=$L$10:$L$23,$M$10:$M$23,0)) -> 1 | E30: 3 | F30: =IFERROR(ROUND(VLOOKUP(A30,'Dados de entrada'!$P$7:$Z$50,Dados_v2!D30+1,0)*H30,0),0) -> 420 | G30: CO | H30: =IF(OR(D30=$M$15,D30=$M$20),SUM(IF((A30=$O$10:$O$29),IF(C30=$P$9,$P$10:$P$29,$Q$10:$Q$29),0))/100,1) -> 1 | I30: 1.676968619
A31: 2012 | B31: Onibus | C31: Diesel | D31: =SUM(IF(B31=$L$10:$L$23,$M$10:$M$23,0)) -> 1 | E31: 3 | F31: =IFERROR(ROUND(VLOOKUP(A31,'Dados de entrada'!$P$7:$Z$50,Dados_v2!D31+1,0)*H31,0),0) -> 472 | G31: CO | H31: =IF(OR(D31=$M$15,D31=$M$20),SUM(IF((A31=$O$10:$O$29),IF(C31=$P$9,$P$10:$P$29,$Q$10:$Q$29),0))/100,1) -> 1 | I31: 0.5374270771
A32: 2013 | B32: Onibus | C32: Diesel | D32: =SUM(IF(B32=$L$10:$L$23,$M$10:$M$23,0)) -> 1 | E32: 3 | F32: =IFERROR(ROUND(VLOOKUP(A32,'Dados de entrada'!$P$7:$Z$50,Dados_v2!D32+1,0)*H32,0),0) -> 394 | G32: CO | H32: =IF(OR(D32=$M$15,D32=$M$20),SUM(IF((A32=$O$10:$O$29),IF(C32=$P$9,$P$10:$P$29,$Q$10:$Q$29),0))/100,1) -> 1 | I32: 0.5387190058
A33: 2014 | B33: Onibus | C33: Diesel | D33: =SUM(IF(B33=$L$10:$L$23,$M$10:$M$23,0)) -> 1 | E33: 3 | F33: =IFERROR(ROUND(VLOOKUP(A33,'Dados de entrada'!$P$7:$Z$50,Dados_v2!D33+1,0)*H33,0),0) -> 799 | G33: CO | H33: =IF(OR(D33=$M$15,D33=$M$20),SUM(IF((A33=$O$10:$O$29),IF(C33=$P$9,$P$10:$P$29,$Q$10:$Q$29),0))/100,1) -> 1 | I33: 0.5387190058
A34: 2015 | B34: Onibus | C34: Diesel | D34: =SUM(IF(B34=$L$10:$L$23,$M$10:$M$23,0)) -> 1 | E34: 3 | F34: =IFERROR(ROUND(VLOOKUP(A34,'Dados de entrada'!$P$7:$Z$50,Dados_v2!D34+1,0)*H34,0),0) -> 209 | G34: CO | H34: =IF(OR(D34=$M$15,D34=$M$20),SUM(IF((A34=$O$10:$O$29),IF(C34=$P$9,$P$10:$P$29,$Q$10:$Q$29),0))/100,1) -> 1 | I34: 0.539
A35: 2016 | B35: Onibus | C35: Diesel | D35: =SUM(IF(B35=$L$10:$L$23,$M$10:$M$23,0)) -> 1 | E35: 3 | F35: =IFERROR(ROUND(VLOOKUP(A35,'Dados de entrada'!$P$7:$Z$50,Dados_v2!D35+1,0)*H35,0),0) -> 272 | G35: CO | H35: =IF(OR(D35=$M$15,D35=$M$20),SUM(IF((A35=$O$10:$O$29),IF(C35=$P$9,$P$10:$P$29,$Q$10:$Q$29),0))/100,1) -> 1 | I35: 0.566019018
A36: 2017 | B36: Onibus | C36: Diesel | D36: =SUM(IF(B36=$L$10:$L$23,$M$10:$M$23,0)) -> 1 | E36: 3 | F36: =IFERROR(ROUND(VLOOKUP(A36,'Dados de entrada'!$P$7:$Z$50,Dados_v2!D36+1,0)*H36,0),0) -> 281 | G36: CO | H36: =IF(OR(D36=$M$15,D36=$M$20),SUM(IF((A36=$O$10:$O$29),IF(C36=$P$9,$P$10:$P$29,$Q$10:$Q$29),0))/100,1) -> 1 | I36: 0.4617686742
A37: 2018 | B37: Onibus | C37: Diesel | D37: =SUM(IF(B37=$L$10:$L$23,$M$10:$M$23,0)) -> 1 | E37: 3 | F37: =IFERROR(ROUND(VLOOKUP(A37,'Dados de entrada'!$P$7:$Z$50,Dados_v2!D37+1,0)*H37,0),0) -> 188 | G37: CO | H37: =IF(OR(D37=$M$15,D37=$M$20),SUM(IF((A37=$O$10:$O$29),IF(C37=$P$9,$P$10:$P$29,$Q$10:$Q$29),0))/100,1) -> 1 | I37: 0.5381107749
A38: 2019 | B38: Onibus | C38: Diesel | D38: =SUM(IF(B38=$L$10:$L$23,$M$10:$M$23,0)) -> 1 | E38: 3 | F38: =IFERROR(ROUND(VLOOKUP(A38,'Dados de entrada'!$P$7:$Z$50,Dados_v2!D38+1,0)*H38,0),0) -> 363 | G38: CO | H38: =IF(OR(D38=$M$15,D38=$M$20),SUM(IF((A38=$O$10:$O$29),IF(C38=$P$9,$P$10:$P$29,$Q$10:$Q$29),0))/100,1) -> 1 | I38: 0.4342559723
A39: 2020 | B39: Onibus | C39: Diesel | D39: =SUM(IF(B39=$L$10:$L$23,$M$10:$M$23,0)) -> 1 | E39: 3 | F39: =IFERROR(ROUND(VLOOKUP(A39,'Dados de entrada'!$P$7:$Z$50,Dados_v2!D39+1,0)*H39,0),0) -> 561 | G39: CO | H39: =IF(OR(D39=$M$15,D39=$M$20),SUM(IF((A39=$O$10:$O$29),IF(C39=$P$9,$P$10:$P$29,$Q$10:$Q$29),0))/100,1) -> 1 | I39: 0.3933495465
A40: 2021 | B40: Onibus | C40: Diesel | D40: =SUM(IF(B40=$L$10:$L$23,$M$10:$M$23,0)) -> 1 | E40: 3 | F40: =IFERROR(ROUND(VLOOKUP(A40,'Dados de entrada'!$P$7:$Z$50,Dados_v2!D40+1,0)*H40,0),0) -> 175 | G40: CO | H40: =IF(OR(D40=$M$15,D40=$M$20),SUM(IF((A40=$O$10:$O$29),IF(C40=$P$9,$P$10:$P$29,$Q$10:$Q$29),0))/100,1) -> 1 | I40: 0.4719606319
A41: 2022 | B41: Onibus | C41: Diesel | D41: =SUM(IF(B41=$L$10:$L$23,$M$10:$M$23,0)) -> 1 | E41: 3 | F41: =IFERROR(ROUND(VLOOKUP(A41,'Dados de entrada'!$P$7:$Z$50,Dados_v2!D41+1,0)*H41,0),0) -> 239 | G41: CO | H41: =IF(OR(D41=$M$15,D41=$M$20),SUM(IF((A41=$O$10:$O$29),IF(C41=$P$9,$P$10:$P$29,$Q$10:$Q$29),0))/100,1) -> 1 | I41: 0.434522394
A42: 2022 | B42: Onibus-E | C42: Elétrico | D42: =SUM(IF(B42=$L$10:$L$23,$M$10:$M$23,0)) -> 2 | E42: 3 | F42: =IFERROR(ROUND(VLOOKUP(A42,'Dados de entrada'!$P$7:$Z$50,Dados_v2!D42+1,0)*H42,0),0) -> 0 | G42: CO | H42: =IF(OR(D42=$M$15,D42=$M$20),SUM(IF((A42=$O$10:$O$29),IF(C42=$P$9,$P$10:$P$29,$Q$10:$Q$29),0))/100,1) -> 1 | I42: 0
A43: 2023 | B43: Onibus | C43: Diesel | D43: =SUM(IF(B43=$L$10:$L$23,$M$10:$M$23,0)) -> 1 | E43: 3 | F43: =IFERROR(ROUND(VLOOKUP(A43,'Dados de entrada'!$P$7:$Z$50,Dados_v2!D43+1,0)*H43,0),0) -> 0 | G43: CO | H43: =IF(OR(D43=$M$15,D43=$M$20),SUM(IF((A43=$O$10:$O$29),IF(C43=$P$9,$P$10:$P$29,$Q$10:$Q$29),0))/100,1) -> 1 | I43: 0.4
A44: 1983 | B44: Microonibus | C44: Diesel | D44: =SUM(IF(B44=$L$10:$L$23,$M$10:$M$23,0)) -> 3 | E44: 3 | F44: =IFERROR(ROUND(VLOOKUP(A44,'Dados de entrada'!$P$7:$Z$50,Dados_v2!D44+1,0)*H44,0),0) -> 0 | G44: CO | H44: =IF(OR(D44=$M$15,D44=$M$20),SUM(IF((A44=$O$10:$O$29),IF(C44=$P$9,$P$10:$P$29,$Q$10:$Q$29),0))/100,1) -> 1 | I44: 3.019130435
A45: 1984 | B45: Microonibus | C45: Diesel | D45: =SUM(IF(B45=$L$10:$L$23,$M$10:$M$23,0)) -> 3 | E45: 3 | F45: =IFERROR(ROUND(VLOOKUP(A45,'Dados de entrada'!$P$7:$Z$50,Dados_v2!D45+1,0)*H45,0),0) -> 1 | G45: CO | H45: =IF(OR(D45=$M$15,D45=$M$20),SUM(IF((A45=$O$10:$O$29),IF(C45=$P$9,$P$10:$P$29,$Q$10:$Q$29),0))/100,1) -> 1 | I45: 3.019130435
A46: 1985 | B46: Microonibus | C46: Diesel | D46: =SUM(IF(B46=$L$10:$L$23,$M$10:$M$23,0)) -> 3 | E46: 3 | F46: =IFERROR(ROUND(VLOOKUP(A46,'Dados de entrada'!$P$7:$Z$50,Dados_v2!D46+1,0)*H46,0),0) -> 1 | G46: CO | H46: =IF(OR(D46=$M$15,D46=$M$20),SUM(IF((A46=$O$10:$O$29),IF(C46=$P$9,$P$10:$P$29,$Q$10:$Q$29),0))/100,1) -> 1 | I46: 3.019130435
A47: 1986 | B47: Microonibus | C47: Diesel | D47: =SUM(IF(B47=$L$10:$L$23,$M$10:$M$23,0)) -> 3 | E47: 3 | F47: =IFERROR(ROUND(VLOOKUP(A47,'Dados de entrada'!$P$7:$Z$50,Dados_v2!D47+1,0)*H47,0),0) -> 4 | G47: CO | H47: =IF(OR(D47=$M$15,D47=$M$20),SUM(IF((A47=$O$10:$O$29),IF(C47=$P$9,$P$10:$P$29,$Q$10:$Q$29),0))/100,1) -> 1 | I47: 3.019130435
A48: 1987 | B48: Microonibus | C48: Diesel | D48: =SUM(IF(B48=$L$10:$L$23,$M$10:$M$23,0)) -> 3 | E48: 3 | F48: =IFERROR(ROUND(VLOOKUP(A48,'Dados de entrada'!$P$7:$Z$50,Dados_v2!D48+1,0)*H48,0),0) -> 3 | G48: CO | H48: =IF(OR(D48=$M$15,D48=$M$20),SUM(IF((A48=$O$10:$O$29),IF(C48=$P$9,$P$10:$P$29,$Q$10:$Q$29),0))/100,1) -> 1 | I48: 3.019130435
A49: 1988 | B49: Microonibus | C49: Diesel | D49: =SUM(IF(B49=$L$10:$L$23,$M$10:$M$23,0)) -> 3 | E49: 3 | F49: =IFERROR(ROUND(VLOOKUP(A49,'Dados de entrada'!$P$7:$Z$50,Dados_v2!D49+1,0)*H49,0),0) -> 3 | G49: CO | H49: =IF(OR(D49=$M$15,D49=$M$20),SUM(IF((A49=$O$10:$O$29),IF(C49=$P$9,$P$10:$P$29,$Q$10:$Q$29),0))/100,1) -> 1 | I49: 3.019130435
A50: 1989 | B50: Microonibus | C50: Diesel | D50: =SUM(IF(B50=$L$10:$L$23,$M$10:$M$23,0)) -> 3 | E50: 3 | F50: =IFERROR(ROUND(VLOOKUP(A50,'Dados de entrada'!$P$7:$Z$50,Dados_v2!D50+1,0)*H50,0),0) -> 0 | G50: CO | H50: =IF(OR(D50=$M$15,D50=$M$20),SUM(IF((A50=$O$10:$O$29),IF(C50=$P$9,$P$10:$P$29,$Q$10:$Q$29),0))/100,1) -> 1 | I50: 3.019130435
A51: 1990 | B51: Microonibus | C51: Diesel | D51: =SUM(IF(B51=$L$10:$L$23,$M$10:$M$23,0)) -> 3 | E51: 3 | F51: =IFERROR(ROUND(VLOOKUP(A51,'Dados de entrada'!$P$7:$Z$50,Dados_v2!D51+1,0)*H51,0),0) -> 6 | G51: CO | H51: =IF(OR(D51=$M$15,D51=$M$20),SUM(IF((A51=$O$10:$O$29),IF(C51=$P$9,$P$10:$P$29,$Q$10:$Q$29),0))/100,1) -> 1 | I51: 3.019130435
A52: 1991 | B52: Microonibus | C52: Diesel | D52: =SUM(IF(B52=$L$10:$L$23,$M$10:$M$23,0)) -> 3 | E52: 3 | F52: =IFERROR(ROUND(VLOOKUP(A52,'Dados de entrada'!$P$7:$Z$50,Dados_v2!D52+1,0)*H52,0),0) -> 3 | G52: CO | H52: =IF(OR(D52=$M$15,D52=$M$20),SUM(IF((A52=$O$10:$O$29),IF(C52=$P$9,$P$10:$P$29,$Q$10:$Q$29),0))/100,1) -> 1 | I52: 3.019130435
A53: 1992 | B53: Microonibus | C53: Diesel | D53: =SUM(IF(B53=$L$10:$L$23,$M$10:$M$23,0)) -> 3 | E53: 3 | F53: =IFERROR(ROUND(VLOOKUP(A53,'Dados de entrada'!$P$7:$Z$50,Dados_v2!D53+1,0)*H53,0),0) -> 0 | G53: CO | H53: =IF(OR(D53=$M$15,D53=$M$20),SUM(IF((A53=$O$10:$O$29),IF(C53=$P$9,$P$10:$P$29,$Q$10:$Q$29),0))/100,1) -> 1 | I53: 3.019130435
A54: 1993 | B54: Microonibus | C54: Diesel | D54: =SUM(IF(B54=$L$10:$L$23,$M$10:$M$23,0)) -> 3 | E54: 3 | F54: =IFERROR(ROUND(VLOOKUP(A54,'Dados de entrada'!$P$7:$Z$50,Dados_v2!D54+1,0)*H54,0),0) -> 10 | G54: CO | H54: =IF(OR(D54=$M$15,D54=$M$20),SUM(IF((A54=$O$10:$O$29),IF(C54=$P$9,$P$10:$P$29,$Q$10:$Q$29),0))/100,1) -> 1 | I54: 3.019130435
A55: 1994 | B55: Microonibus | C55: Diesel | D55: =SUM(IF(B55=$L$10:$L$23,$M$10:$M$23,0)) -> 3 | E55: 3 | F55: =IFERROR(ROUND(VLOOKUP(A55,'Dados de entrada'!$P$7:$Z$50,Dados_v2!D55+1,0)*H55,0),0) -> 28 | G55: CO | H55: =IF(OR(D55=$M$15,D55=$M$20),SUM(IF((A55=$O$10:$O$29),IF(C55=$P$9,$P$10:$P$29,$Q$10:$Q$29),0))/100,1) -> 1 | I55: 3.019130435
A56: 1995 | B56: Microonibus | C56: Diesel | D56: =SUM(IF(B56=$L$10:$L$23,$M$10:$M$23,0)) -> 3 | E56: 3 | F56: =IFERROR(ROUND(VLOOKUP(A56,'Dados de entrada'!$P$7:$Z$50,Dados_v2!D56+1,0)*H56,0),0) -> 103 | G56: CO | H56: =IF(OR(D56=$M$15,D56=$M$20),SUM(IF((A56=$O$10:$O$29),IF(C56=$P$9,$P$10:$P$29,$Q$10:$Q$29),0))/100,1) -> 1 | I56: 3.019130435
A57: 1996 | B57: Microonibus | C57: Diesel | D57: =SUM(IF(B57=$L$10:$L$23,$M$10:$M$23,0)) -> 3 | E57: 3 | F57: =IFERROR(ROUND(VLOOKUP(A57,'Dados de entrada'!$P$7:$Z$50,Dados_v2!D57+1,0)*H57,0),0) -> 37 | G57: CO | H57: =IF(OR(D57=$M$15,D57=$M$20),SUM(IF((A57=$O$10:$O$29),IF(C57=$P$9,$P$10:$P$29,$Q$10:$Q$29),0))/100,1) -> 1 | I57: 3.019130435
A58: 1997 | B58: Microonibus | C58: Diesel | D58: =SUM(IF(B58=$L$10:$L$23,$M$10:$M$23,0)) -> 3 | E58: 3 | F58: =IFERROR(ROUND(VLOOKUP(A58,'Dados de entrada'!$P$7:$Z$50,Dados_v2!D58+1,0)*H58,0),0) -> 218 | G58: CO | H58: =IF(OR(D58=$M$15,D58=$M$20),SUM(IF((A58=$O$10:$O$29),IF(C58=$P$9,$P$10:$P$29,$Q$10:$Q$29),0))/100,1) -> 1 | I58: 3.019130435
A59: 1998 | B59: Microonibus | C59: Diesel | D59: =SUM(IF(B59=$L$10:$L$23,$M$10:$M$23,0)) -> 3 | E59: 3 | F59: =IFERROR(ROUND(VLOOKUP(A59,'Dados de entrada'!$P$7:$Z$50,Dados_v2!D59+1,0)*H59,0),0) -> 159 | G59: CO | H59: =IF(OR(D59=$M$15,D59=$M$20),SUM(IF((A59=$O$10:$O$29),IF(C59=$P$9,$P$10:$P$29,$Q$10:$Q$29),0))/100,1) -> 1 | I59: 3.019130435
A60: 1999 | B60: Microonibus | C60: Diesel | D60: =SUM(IF(B60=$L$10:$L$23,$M$10:$M$23,0)) -> 3 | E60: 3 | F60: =IFERROR(ROUND(VLOOKUP(A60,'Dados de entrada'!$P$7:$Z$50,Dados_v2!D60+1,0)*H60,0),0) -> 124 | G60: CO | H60: =IF(OR(D60=$M$15,D60=$M$20),SUM(IF((A60=$O$10:$O$29),IF(C60=$P$9,$P$10:$P$29,$Q$10:$Q$29),0))/100,1) -> 1 | I60: 3.019130435
A61: 2000 | B61: Microonibus | C61: Diesel | D61: =SUM(IF(B61=$L$10:$L$23,$M$10:$M$23,0)) -> 3 | E61: 3 | F61: =IFERROR(ROUND(VLOOKUP(A61,'Dados de entrada'!$P$7:$Z$50,Dados_v2!D61+1,0)*H61,0),0) -> 138 | G61: CO | H61: =IF(OR(D61=$M$15,D61=$M$20),SUM(IF((A61=$O$10:$O$29),IF(C61=$P$9,$P$10:$P$29,$Q$10:$Q$29),0))/100,1) -> 1 | I61: 2.714000798
A62: 2001 | B62: Microonibus | C62: Diesel | D62: =SUM(IF(B62=$L$10:$L$23,$M$10:$M$23,0)) -> 3 | E62: 3 | F62: =IFERROR(ROUND(VLOOKUP(A62,'Dados de entrada'!$P$7:$Z$50,Dados_v2!D62+1,0)*H62,0),0) -> 208 | G62: CO | H62: =IF(OR(D62=$M$15,D62=$M$20),SUM(IF((A62=$O$10:$O$29),IF(C62=$P$9,$P$10:$P$29,$Q$10:$Q$29),0))/100,1) -> 1 | I62: 2.714000798
A63: 2002 | B63: Microonibus | C63: Diesel | D63: =SUM(IF(B63=$L$10:$L$23,$M$10:$M$23,0)) -> 3 | E63: 3 | F63: =IFERROR(ROUND(VLOOKUP(A63,'Dados de entrada'!$P$7:$Z$50,Dados_v2!D63+1,0)*H63,0),0) -> 45 | G63: CO | H63: =IF(OR(D63=$M$15,D63=$M$20),SUM(IF((A63=$O$10:$O$29),IF(C63=$P$9,$P$10:$P$29,$Q$10:$Q$29),0))/100,1) -> 1 | I63: 1.47826087
A64: 2003 | B64: Microonibus | C64: Diesel | D64: =SUM(IF(B64=$L$10:$L$23,$M$10:$M$23,0)) -> 3 | E64: 3 | F64: =IFERROR(ROUND(VLOOKUP(A64,'Dados de entrada'!$P$7:$Z$50,Dados_v2!D64+1,0)*H64,0),0) -> 57 | G64: CO | H64: =IF(OR(D64=$M$15,D64=$M$20),SUM(IF((A64=$O$10:$O$29),IF(C64=$P$9,$P$10:$P$29,$Q$10:$Q$29),0))/100,1) -> 1 | I64: 1.47826087
A65: 2004 | B65: Microonibus | C65: Diesel | D65: =SUM(IF(B65=$L$10:$L$23,$M$10:$M$23,0)) -> 3 | E65: 3 | F65: =IFERROR(ROUND(VLOOKUP(A65,'Dados de entrada'!$P$7:$Z$50,Dados_v2!D65+1,0)*H65,0),0) -> 84 | G65: CO | H65: =IF(OR(D65=$M$15,D65=$M$20),SUM(IF((A65=$O$10:$O$29),IF(C65=$P$9,$P$10:$P$29,$Q$10:$Q$29),0))/100,1) -> 1 | I65: 1.41
A66: 2005 | B66: Microonibus | C66: Diesel | D66: =SUM(IF(B66=$L$10:$L$23,$M$10:$M$23,0)) -> 3 | E66: 3 | F66: =IFERROR(ROUND(VLOOKUP(A66,'Dados de entrada'!$P$7:$Z$50,Dados_v2!D66+1,0)*H66,0),0) -> 77 | G66: CO | H66: =IF(OR(D66=$M$15,D66=$M$20),SUM(IF((A66=$O$10:$O$29),IF(C66=$P$9,$P$10:$P$29,$Q$10:$Q$29),0))/100,1) -> 1 | I66: 1.41
A67: 2006 | B67: Microonibus | C67: Diesel | D67: =SUM(IF(B67=$L$10:$L$23,$M$10:$M$23,0)) -> 3 | E67: 3 | F67: =IFERROR(ROUND(VLOOKUP(A67,'Dados de entrada'!$P$7:$Z$50,Dados_v2!D67+1,0)*H67,0),0) -> 125 | G67: CO | H67: =IF(OR(D67=$M$15,D67=$M$20),SUM(IF((A67=$O$10:$O$29),IF(C67=$P$9,$P$10:$P$29,$Q$10:$Q$29),0))/100,1) -> 1 | I67: 1.560527051
A68: 2007 | B68: Microonibus | C68: Diesel | D68: =SUM(IF(B68=$L$10:$L$23,$M$10:$M$23,0)) -> 3 | E68: 3 | F68: =IFERROR(ROUND(VLOOKUP(A68,'Dados de entrada'!$P$7:$Z$50,Dados_v2!D68+1,0)*H68,0),0) -> 157 | G68: CO | H68: =IF(OR(D68=$M$15,D68=$M$20),SUM(IF((A68=$O$10:$O$29),IF(C68=$P$9,$P$10:$P$29,$Q$10:$Q$29),0))/100,1) -> 1 | I68: 1.560527051
A69: 2008 | B69: Microonibus | C69: Diesel | D69: =SUM(IF(B69=$L$10:$L$23,$M$10:$M$23,0)) -> 3 | E69: 3 | F69: =IFERROR(ROUND(VLOOKUP(A69,'Dados de entrada'!$P$7:$Z$50,Dados_v2!D69+1,0)*H69,0),0) -> 267 | G69: CO | H69: =IF(OR(D69=$M$15,D69=$M$20),SUM(IF((A69=$O$10:$O$29),IF(C69=$P$9,$P$10:$P$29,$Q$10:$Q$29),0))/100,1) -> 1 | I69: 0.8356613833
A70: 2009 | B70: Microonibus | C70: Diesel | D70: =SUM(IF(B70=$L$10:$L$23,$M$10:$M$23,0)) -> 3 | E70: 3 | F70: =IFERROR(ROUND(VLOOKUP(A70,'Dados de entrada'!$P$7:$Z$50,Dados_v2!D70+1,0)*H70,0),0) -> 234 | G70: CO | H70: =IF(OR(D70=$M$15,D70=$M$20),SUM(IF((A70=$O$10:$O$29),IF(C70=$P$9,$P$10:$P$29,$Q$10:$Q$29),0))/100,1) -> 1 | I70: 0.7613788601
A71: 2010 | B71: Microonibus | C71: Diesel | D71: =SUM(IF(B71=$L$10:$L$23,$M$10:$M$23,0)) -> 3 | E71: 3 | F71: =IFERROR(ROUND(VLOOKUP(A71,'Dados de entrada'!$P$7:$Z$50,Dados_v2!D71+1,0)*H71,0),0) -> 148 | G71: CO | H71: =IF(OR(D71=$M$15,D71=$M$20),SUM(IF((A71=$O$10:$O$29),IF(C71=$P$9,$P$10:$P$29,$Q$10:$Q$29),0))/100,1) -> 1 | I71: 1.208075486
A72: 2011 | B72: Microonibus | C72: Diesel | D72: =SUM(IF(B72=$L$10:$L$23,$M$10:$M$23,0)) -> 3 | E72: 3 | F72: =IFERROR(ROUND(VLOOKUP(A72,'Dados de entrada'!$P$7:$Z$50,Dados_v2!D72+1,0)*H72,0),0) -> 408 | G72: CO | H72: =IF(OR(D72=$M$15,D72=$M$20),SUM(IF((A72=$O$10:$O$29),IF(C72=$P$9,$P$10:$P$29,$Q$10:$Q$29),0))/100,1) -> 1 | I72: 1.176601652
A73: 2012 | B73: Microonibus | C73: Diesel | D73: =SUM(IF(B73=$L$10:$L$23,$M$10:$M$23,0)) -> 3 | E73: 3 | F73: =IFERROR(ROUND(VLOOKUP(A73,'Dados de entrada'!$P$7:$Z$50,Dados_v2!D73+1,0)*H73,0),0) -> 369 | G73: CO | H73: =IF(OR(D73=$M$15,D73=$M$20),SUM(IF((A73=$O$10:$O$29),IF(C73=$P$9,$P$10:$P$29,$Q$10:$Q$29),0))/100,1) -> 1 | I73: 0.2131572061
A74: 2013 | B74: Microonibus | C74: Diesel | D74: =SUM(IF(B74=$L$10:$L$23,$M$10:$M$23,0)) -> 3 | E74: 3 | F74: =IFERROR(ROUND(VLOOKUP(A74,'Dados de entrada'!$P$7:$Z$50,Dados_v2!D74+1,0)*H74,0),0) -> 391 | G74: CO | H74: =IF(OR(D74=$M$15,D74=$M$20),SUM(IF((A74=$O$10:$O$29),IF(C74=$P$9,$P$10:$P$29,$Q$10:$Q$29),0))/100,1) -> 1 | I74: 0.1315121626
A75: 2014 | B75: Microonibus | C75: Diesel | D75: =SUM(IF(B75=$L$10:$L$23,$M$10:$M$23,0)) -> 3 | E75: 3 | F75: =IFERROR(ROUND(VLOOKUP(A75,'Dados de entrada'!$P$7:$Z$50,Dados_v2!D75+1,0)*H75,0),0) -> 473 | G75: CO | H75: =IF(OR(D75=$M$15,D75=$M$20),SUM(IF((A75=$O$10:$O$29),IF(C75=$P$9,$P$10:$P$29,$Q$10:$Q$29),0))/100,1) -> 1 | I75: 0.1315121626
A76: 2015 | B76: Microonibus | C76: Diesel | D76: =SUM(IF(B76=$L$10:$L$23,$M$10:$M$23,0)) -> 3 | E76: 3 | F76: =IFERROR(ROUND(VLOOKUP(A76,'Dados de entrada'!$P$7:$Z$50,Dados_v2!D76+1,0)*H76,0),0) -> 187 | G76: CO | H76: =IF(OR(D76=$M$15,D76=$M$20),SUM(IF((A76=$O$10:$O$29),IF(C76=$P$9,$P$10:$P$29,$Q$10:$Q$29),0))/100,1) -> 1 | I76: 0.132
A77: 2016 | B77: Microonibus | C77: Diesel | D77: =SUM(IF(B77=$L$10:$L$23,$M$10:$M$23,0)) -> 3 | E77: 3 | F77: =IFERROR(ROUND(VLOOKUP(A77,'Dados de entrada'!$P$7:$Z$50,Dados_v2!D77+1,0)*H77,0),0) -> 168 | G77: CO | H77: =IF(OR(D77=$M$15,D77=$M$20),SUM(IF((A77=$O$10:$O$29),IF(C77=$P$9,$P$10:$P$29,$Q$10:$Q$29),0))/100,1) -> 1 | I77: 0.0721431498
A78: 2017 | B78: Microonibus | C78: Diesel | D78: =SUM(IF(B78=$L$10:$L$23,$M$10:$M$23,0)) -> 3 | E78: 3 | F78: =IFERROR(ROUND(VLOOKUP(A78,'Dados de entrada'!$P$7:$Z$50,Dados_v2!D78+1,0)*H78,0),0) -> 93 | G78: CO | H78: =IF(OR(D78=$M$15,D78=$M$20),SUM(IF((A78=$O$10:$O$29),IF(C78=$P$9,$P$10:$P$29,$Q$10:$Q$29),0))/100,1) -> 1 | I78: 0.08109244474
A79: 2018 | B79: Microonibus | C79: Diesel | D79: =SUM(IF(B79=$L$10:$L$23,$M$10:$M$23,0)) -> 3 | E79: 3 | F79: =IFERROR(ROUND(VLOOKUP(A79,'Dados de entrada'!$P$7:$Z$50,Dados_v2!D79+1,0)*H79,0),0) -> 173 | G79: CO | H79: =IF(OR(D79=$M$15,D79=$M$20),SUM(IF((A79=$O$10:$O$29),IF(C79=$P$9,$P$10:$P$29,$Q$10:$Q$29),0))/100,1) -> 1 | I79: 0.1217197375
A80: 2019 | B80: Microonibus | C80: Diesel | D80: =SUM(IF(B80=$L$10:$L$23,$M$10:$M$23,0)) -> 3 | E80: 3 | F80: =IFERROR(ROUND(VLOOKUP(A80,'Dados de entrada'!$P$7:$Z$50,Dados_v2!D80+1,0)*H80,0),0) -> 272 | G80: CO | H80: =IF(OR(D80=$M$15,D80=$M$20),SUM(IF((A80=$O$10:$O$29),IF(C80=$P$9,$P$10:$P$29,$Q$10:$Q$29),0))/100,1) -> 1 | I80: 0.1539353473
A81: 2020 | B81: Microonibus | C81: Diesel | D81: =SUM(IF(B81=$L$10:$L$23,$M$10:$M$23,0)) -> 3 | E81: 3 | F81: =IFERROR(ROUND(VLOOKUP(A81,'Dados de entrada'!$P$7:$Z$50,Dados_v2!D81+1,0)*H81,0),0) -> 238 | G81: CO | H81: =IF(OR(D81=$M$15,D81=$M$20),SUM(IF((A81=$O$10:$O$29),IF(C81=$P$9,$P$10:$P$29,$Q$10:$Q$29),0))/100,1) -> 1 | I81: 0.1432339359
A82: 2021 | B82: Microonibus | C82: Diesel | D82: =SUM(IF(B82=$L$10:$L$23,$M$10:$M$23,0)) -> 3 | E82: 3 | F82: =IFERROR(ROUND(VLOOKUP(A82,'Dados de entrada'!$P$7:$Z$50,Dados_v2!D82+1,0)*H82,0),0) -> 412 | G82: CO | H82: =IF(OR(D82=$M$15,D82=$M$20),SUM(IF((A82=$O$10:$O$29),IF(C82=$P$9,$P$10:$P$29,$Q$10:$Q$29),0))/100,1) -> 1 | I82: 0.1963513232
A83: 2022 | B83: Microonibus | C83: Diesel | D83: =SUM(IF(B83=$L$10:$L$23,$M$10:$M$23,0)) -> 3 | E83: 3 | F83: =IFERROR(ROUND(VLOOKUP(A83,'Dados de entrada'!$P$7:$Z$50,Dados_v2!D83+1,0)*H83,0),0) -> 470 | G83: CO | H83: =IF(OR(D83=$M$15,D83=$M$20),SUM(IF((A83=$O$10:$O$29),IF(C83=$P$9,$P$10:$P$29,$Q$10:$Q$29),0))/100,1) -> 1 | I83: 0.2476526291
A84: 1983 | B84: Caminhao | C84: Diesel | D84: =SUM(IF(B84=$L$10:$L$23,$M$10:$M$23,0)) -> 4 | E84: 4 | F84: =IFERROR(ROUND(VLOOKUP(A84,'Dados de entrada'!$P$7:$Z$50,Dados_v2!D84+1,0)*H84,0),0) -> 147 | G84: CO | H84: =IF(OR(D84=$M$15,D84=$M$20),SUM(IF((A84=$O$10:$O$29),IF(C84=$P$9,$P$10:$P$29,$Q$10:$Q$29),0))/100,1) -> 1 | I84: 1.25
A85: 1984 | B85: Caminhao | C85: Diesel | D85: =SUM(IF(B85=$L$10:$L$23,$M$10:$M$23,0)) -> 4 | E85: 4 | F85: =IFERROR(ROUND(VLOOKUP(A85,'Dados de entrada'!$P$7:$Z$50,Dados_v2!D85+1,0)*H85,0),0) -> 159 | G85: CO | H85: =IF(OR(D85=$M$15,D85=$M$20),SUM(IF((A85=$O$10:$O$29),IF(C85=$P$9,$P$10:$P$29,$Q$10:$Q$29),0))/100,1) -> 1 | I85: 1.25
A86: 1985 | B86: Caminhao | C86: Diesel | D86: =SUM(IF(B86=$L$10:$L$23,$M$10:$M$23,0)) -> 4 | E86: 4 | F86: =IFERROR(ROUND(VLOOKUP(A86,'Dados de entrada'!$P$7:$Z$50,Dados_v2!D86+1,0)*H86,0),0) -> 248 | G86: CO | H86: =IF(OR(D86=$M$15,D86=$M$20),SUM(IF((A86=$O$10:$O$29),IF(C86=$P$9,$P$10:$P$29,$Q$10:$Q$29),0))/100,1) -> 1 | I86: 1.25
A87: 1986 | B87: Caminhao | C87: Diesel | D87: =SUM(IF(B87=$L$10:$L$23,$M$10:$M$23,0)) -> 4 | E87: 4 | F87: =IFERROR(ROUND(VLOOKUP(A87,'Dados de entrada'!$P$7:$Z$50,Dados_v2!D87+1,0)*H87,0),0) -> 444 | G87: CO | H87: =IF(OR(D87=$M$15,D87=$M$20),SUM(IF((A87=$O$10:$O$29),IF(C87=$P$9,$P$10:$P$29,$Q$10:$Q$29),0))/100,1) -> 1 | I87: 1.25
A88: 1987 | B88: Caminhao | C88: Diesel | D88: =SUM(IF(B88=$L$10:$L$23,$M$10:$M$23,0)) -> 4 | E88: 4 | F88: =IFERROR(ROUND(VLOOKUP(A88,'Dados de entrada'!$P$7:$Z$50,Dados_v2!D88+1,0)*H88,0),0) -> 378 | G88: CO | H88: =IF(OR(D88=$M$15,D88=$M$20),SUM(IF((A88=$O$10:$O$29),IF(C88=$P$9,$P$10:$P$29,$Q$10:$Q$29),0))/100,1) -> 1 | I88: 1.25
A89: 1988 | B89: Caminhao | C89: Diesel | D89: =SUM(IF(B89=$L$10:$L$23,$M$10:$M$23,0)) -> 4 | E89: 4 | F89: =IFERROR(ROUND(VLOOKUP(A89,'Dados de entrada'!$P$7:$Z$50,Dados_v2!D89+1,0)*H89,0),0) -> 302 | G89: CO | H89: =IF(OR(D89=$M$15,D89=$M$20),SUM(IF((A89=$O$10:$O$29),IF(C89=$P$9,$P$10:$P$29,$Q$10:$Q$29),0))/100,1) -> 1 | I89: 1.25
A90: 1989 | B90: Caminhao | C90: Diesel | D90: =SUM(IF(B90=$L$10:$L$23,$M$10:$M$23,0)) -> 4 | E90: 4 | F90: =IFERROR(ROUND(VLOOKUP(A90,'Dados de entrada'!$P$7:$Z$50,Dados_v2!D90+1,0)*H90,0),0) -> 332 | G90: CO | H90: =IF(OR(D90=$M$15,D90=$M$20),SUM(IF((A90=$O$10:$O$29),IF(C90=$P$9,$P$10:$P$29,$Q$10:$Q$29),0))/100,1) -> 1 | I90: 1.25
A91: 1990 | B91: Caminhao | C91: Diesel | D91: =SUM(IF(B91=$L$10:$L$23,$M$10:$M$23,0)) -> 4 | E91: 4 | F91: =IFERROR(ROUND(VLOOKUP(A91,'Dados de entrada'!$P$7:$Z$50,Dados_v2!D91+1,0)*H91,0),0) -> 316 | G91: CO | H91: =IF(OR(D91=$M$15,D91=$M$20),SUM(IF((A91=$O$10:$O$29),IF(C91=$P$9,$P$10:$P$29,$Q$10:$Q$29),0))/100,1) -> 1 | I91: 1.25
A92: 1991 | B92: Caminhao | C92: Diesel | D92: =SUM(IF(B92=$L$10:$L$23,$M$10:$M$23,0)) -> 4 | E92: 4 | F92: =IFERROR(ROUND(VLOOKUP(A92,'Dados de entrada'!$P$7:$Z$50,Dados_v2!D92+1,0)*H92,0),0) -> 273 | G92: CO | H92: =IF(OR(D92=$M$15,D92=$M$20),SUM(IF((A92=$O$10:$O$29),IF(C92=$P$9,$P$10:$P$29,$Q$10:$Q$29),0))/100,1) -> 1 | I92: 1.25
A93: 1992 | B93: Caminhao | C93: Diesel | D93: =SUM(IF(B93=$L$10:$L$23,$M$10:$M$23,0)) -> 4 | E93: 4 | F93: =IFERROR(ROUND(VLOOKUP(A93,'Dados de entrada'!$P$7:$Z$50,Dados_v2!D93+1,0)*H93,0),0) -> 258 | G93: CO | H93: =IF(OR(D93=$M$15,D93=$M$20),SUM(IF((A93=$O$10:$O$29),IF(C93=$P$9,$P$10:$P$29,$Q$10:$Q$29),0))/100,1) -> 1 | I93: 1.25
A94: 1993 | B94: Caminhao | C94: Diesel | D94: =SUM(IF(B94=$L$10:$L$23,$M$10:$M$23,0)) -> 4 | E94: 4 | F94: =IFERROR(ROUND(VLOOKUP(A94,'Dados de entrada'!$P$7:$Z$50,Dados_v2!D94+1,0)*H94,0),0) -> 189 | G94: CO | H94: =IF(OR(D94=$M$15,D94=$M$20),SUM(IF((A94=$O$10:$O$29),IF(C94=$P$9,$P$10:$P$29,$Q$10:$Q$29),0))/100,1) -> 1 | I94: 1.25
A95: 1994 | B95: Caminhao | C95: Diesel | D95: =SUM(IF(B95=$L$10:$L$23,$M$10:$M$23,0)) -> 4 | E95: 4 | F95: =IFERROR(ROUND(VLOOKUP(A95,'Dados de entrada'!$P$7:$Z$50,Dados_v2!D95+1,0)*H95,0),0) -> 327 | G95: CO | H95: =IF(OR(D95=$M$15,D95=$M$20),SUM(IF((A95=$O$10:$O$29),IF(C95=$P$9,$P$10:$P$29,$Q$10:$Q$29),0))/100,1) -> 1 | I95: 1.25
A96: 1995 | B96: Caminhao | C96: Diesel | D96: =SUM(IF(B96=$L$10:$L$23,$M$10:$M$23,0)) -> 4 | E96: 4 | F96: =IFERROR(ROUND(VLOOKUP(A96,'Dados de entrada'!$P$7:$Z$50,Dados_v2!D96+1,0)*H96,0),0) -> 527 | G96: CO | H96: =IF(OR(D96=$M$15,D96=$M$20),SUM(IF((A96=$O$10:$O$29),IF(C96=$P$9,$P$10:$P$29,$Q$10:$Q$29),0))/100,1) -> 1 | I96: 1.25
A97: 1996 | B97: Caminhao | C97: Diesel | D97: =SUM(IF(B97=$L$10:$L$23,$M$10:$M$23,0)) -> 4 | E97: 4 | F97: =IFERROR(ROUND(VLOOKUP(A97,'Dados de entrada'!$P$7:$Z$50,Dados_v2!D97+1,0)*H97,0),0) -> 321 | G97: CO | H97: =IF(OR(D97=$M$15,D97=$M$20),SUM(IF((A97=$O$10:$O$29),IF(C97=$P$9,$P$10:$P$29,$Q$10:$Q$29),0))/100,1) -> 1 | I97: 1.25
A98: 1997 | B98: Caminhao | C98: Diesel | D98: =SUM(IF(B98=$L$10:$L$23,$M$10:$M$23,0)) -> 4 | E98: 4 | F98: =IFERROR(ROUND(VLOOKUP(A98,'Dados de entrada'!$P$7:$Z$50,Dados_v2!D98+1,0)*H98,0),0) -> 613 | G98: CO | H98: =IF(OR(D98=$M$15,D98=$M$20),SUM(IF((A98=$O$10:$O$29),IF(C98=$P$9,$P$10:$P$29,$Q$10:$Q$29),0))/100,1) -> 1 | I98: 1.25
A99: 1998 | B99: Caminhao | C99: Diesel | D99: =SUM(IF(B99=$L$10:$L$23,$M$10:$M$23,0)) -> 4 | E99: 4 | F99: =IFERROR(ROUND(VLOOKUP(A99,'Dados de entrada'!$P$7:$Z$50,Dados_v2!D99+1,0)*H99,0),0) -> 641 | G99: CO | H99: =IF(OR(D99=$M$15,D99=$M$20),SUM(IF((A99=$O$10:$O$29),IF(C99=$P$9,$P$10:$P$29,$Q$10:$Q$29),0))/100,1) -> 1 | I99: 1.25
A100: 1999 | B100: Caminhao | C100: Diesel | D100: =SUM(IF(B100=$L$10:$L$23,$M$10:$M$23,0)) -> 4 | E100: 4 | F100: =IFERROR(ROUND(VLOOKUP(A100,'Dados de entrada'!$P$7:$Z$50,Dados_v2!D100+1,0)*H100,0),0) -> 481 | G100: CO | H100: =IF(OR(D100=$M$15,D100=$M$20),SUM(IF((A100=$O$10:$O$29),IF(C100=$P$9,$P$10:$P$29,$Q$10:$Q$29),0))/100,1) -> 1 | I100: 1.25
A101: 2000 | B101: Caminhao | C101: Diesel | D101: =SUM(IF(B101=$L$10:$L$23,$M$10:$M$23,0)) -> 4 | E101: 4 | F101: =IFERROR(ROUND(VLOOKUP(A101,'Dados de entrada'!$P$7:$Z$50,Dados_v2!D101+1,0)*H101,0),0) -> 489 | G101: CO | H101: =IF(OR(D101=$M$15,D101=$M$20),SUM(IF((A101=$O$10:$O$29),IF(C101=$P$9,$P$10:$P$29,$Q$10:$Q$29),0))/100,1) -> 1 | I101: 1.124
A102: 2001 | B102: Caminhao | C102: Diesel | D102: =SUM(IF(B102=$L$10:$L$23,$M$10:$M$23,0)) -> 4 | E102: 4 | F102: =IFERROR(ROUND(VLOOKUP(A102,'Dados de entrada'!$P$7:$Z$50,Dados_v2!D102+1,0)*H102,0),0) -> 620 | G102: CO | H102: =IF(OR(D102=$M$15,D102=$M$20),SUM(IF((A102=$O$10:$O$29),IF(C102=$P$9,$P$10:$P$29,$Q$10:$Q$29),0))/100,1) -> 1 | I102: 1.124
A103: 2002 | B103: Caminhao | C103: Diesel | D103: =SUM(IF(B103=$L$10:$L$23,$M$10:$M$23,0)) -> 4 | E103: 4 | F103: =IFERROR(ROUND(VLOOKUP(A103,'Dados de entrada'!$P$7:$Z$50,Dados_v2!D103+1,0)*H103,0),0) -> 509 | G103: CO | H103: =IF(OR(D103=$M$15,D103=$M$20),SUM(IF((A103=$O$10:$O$29),IF(C103=$P$9,$P$10:$P$29,$Q$10:$Q$29),0))/100,1) -> 1 | I103: 0.612
A104: 2003 | B104: Caminhao | C104: Diesel | D104: =SUM(IF(B104=$L$10:$L$23,$M$10:$M$23,0)) -> 4 | E104: 4 | F104: =IFERROR(ROUND(VLOOKUP(A104,'Dados de entrada'!$P$7:$Z$50,Dados_v2!D104+1,0)*H104,0),0) -> 456 | G104: CO | H104: =IF(OR(D104=$M$15,D104=$M$20),SUM(IF((A104=$O$10:$O$29),IF(C104=$P$9,$P$10:$P$29,$Q$10:$Q$29),0))/100,1) -> 1 | I104: 0.612
A105: 2004 | B105: Caminhao | C105: Diesel | D105: =SUM(IF(B105=$L$10:$L$23,$M$10:$M$23,0)) -> 4 | E105: 4 | F105: =IFERROR(ROUND(VLOOKUP(A105,'Dados de entrada'!$P$7:$Z$50,Dados_v2!D105+1,0)*H105,0),0) -> 686 | G105: CO | H105: =IF(OR(D105=$M$15,D105=$M$20),SUM(IF((A105=$O$10:$O$29),IF(C105=$P$9,$P$10:$P$29,$Q$10:$Q$29),0))/100,1) -> 1 | I105: 0.58
A106: 2005 | B106: Caminhao | C106: Diesel | D106: =SUM(IF(B106=$L$10:$L$23,$M$10:$M$23,0)) -> 4 | E106: 4 | F106: =IFERROR(ROUND(VLOOKUP(A106,'Dados de entrada'!$P$7:$Z$50,Dados_v2!D106+1,0)*H106,0),0) -> 824 | G106: CO | H106: =IF(OR(D106=$M$15,D106=$M$20),SUM(IF((A106=$O$10:$O$29),IF(C106=$P$9,$P$10:$P$29,$Q$10:$Q$29),0))/100,1) -> 1 | I106: 0.58
A107: 2006 | B107: Caminhao | C107: Diesel | D107: =SUM(IF(B107=$L$10:$L$23,$M$10:$M$23,0)) -> 4 | E107: 4 | F107: =IFERROR(ROUND(VLOOKUP(A107,'Dados de entrada'!$P$7:$Z$50,Dados_v2!D107+1,0)*H107,0),0) -> 852 | G107: CO | H107: =IF(OR(D107=$M$15,D107=$M$20),SUM(IF((A107=$O$10:$O$29),IF(C107=$P$9,$P$10:$P$29,$Q$10:$Q$29),0))/100,1) -> 1 | I107: 0.665
A108: 2007 | B108: Caminhao | C108: Diesel | D108: =SUM(IF(B108=$L$10:$L$23,$M$10:$M$23,0)) -> 4 | E108: 4 | F108: =IFERROR(ROUND(VLOOKUP(A108,'Dados de entrada'!$P$7:$Z$50,Dados_v2!D108+1,0)*H108,0),0) -> 738 | G108: CO | H108: =IF(OR(D108=$M$15,D108=$M$20),SUM(IF((A108=$O$10:$O$29),IF(C108=$P$9,$P$10:$P$29,$Q$10:$Q$29),0))/100,1) -> 1 | I108: 0.665
A109: 2008 | B109: Caminhao | C109: Diesel | D109: =SUM(IF(B109=$L$10:$L$23,$M$10:$M$23,0)) -> 4 | E109: 4 | F109: =IFERROR(ROUND(VLOOKUP(A109,'Dados de entrada'!$P$7:$Z$50,Dados_v2!D109+1,0)*H109,0),0) -> 1217 | G109: CO | H109: =IF(OR(D109=$M$15,D109=$M$20),SUM(IF((A109=$O$10:$O$29),IF(C109=$P$9,$P$10:$P$29,$Q$10:$Q$29),0))/100,1) -> 1 | I109: 0.49
A110: 2009 | B110: Caminhao | C110: Diesel | D110: =SUM(IF(B110=$L$10:$L$23,$M$10:$M$23,0)) -> 4 | E110: 4 | F110: =IFERROR(ROUND(VLOOKUP(A110,'Dados de entrada'!$P$7:$Z$50,Dados_v2!D110+1,0)*H110,0),0) -> 1418 | G110: CO | H110: =IF(OR(D110=$M$15,D110=$M$20),SUM(IF((A110=$O$10:$O$29),IF(C110=$P$9,$P$10:$P$29,$Q$10:$Q$29),0))/100,1) -> 1 | I110: 0.484
A111: 2010 | B111: Caminhao | C111: Diesel | D111: =SUM(IF(B111=$L$10:$L$23,$M$10:$M$23,0)) -> 4 | E111: 4 | F111: =IFERROR(ROUND(VLOOKUP(A111,'Dados de entrada'!$P$7:$Z$50,Dados_v2!D111+1,0)*H111,0),0) -> 1874 | G111: CO | H111: =IF(OR(D111=$M$15,D111=$M$20),SUM(IF((A111=$O$10:$O$29),IF(C111=$P$9,$P$10:$P$29,$Q$10:$Q$29),0))/100,1) -> 1 | I111: 0.481
A112: 2011 | B112: Caminhao | C112: Diesel | D112: =SUM(IF(B112=$L$10:$L$23,$M$10:$M$23,0)) -> 4 | E112: 4 | F112: =IFERROR(ROUND(VLOOKUP(A112,'Dados de entrada'!$P$7:$Z$50,Dados_v2!D112+1,0)*H112,0),0) -> 2231 | G112: CO | H112: =IF(OR(D112=$M$15,D112=$M$20),SUM(IF((A112=$O$10:$O$29),IF(C112=$P$9,$P$10:$P$29,$Q$10:$Q$29),0))/100,1) -> 1 | I112: 0.515
A113: 2012 | B113: Caminhao | C113: Diesel | D113: =SUM(IF(B113=$L$10:$L$23,$M$10:$M$23,0)) -> 4 | E113: 4 | F113: =IFERROR(ROUND(VLOOKUP(A113,'Dados de entrada'!$P$7:$Z$50,Dados_v2!D113+1,0)*H113,0),0) -> 1796 | G113: CO | H113: =IF(OR(D113=$M$15,D113=$M$20),SUM(IF((A113=$O$10:$O$29),IF(C113=$P$9,$P$10:$P$29,$Q$10:$Q$29),0))/100,1) -> 1 | I113: 0.124
A114: 2013 | B114: Caminhao | C114: Diesel | D114: =SUM(IF(B114=$L$10:$L$23,$M$10:$M$23,0)) -> 4 | E114: 4 | F114: =IFERROR(ROUND(VLOOKUP(A114,'Dados de entrada'!$P$7:$Z$50,Dados_v2!D114+1,0)*H114,0),0) -> 2092 | G114: CO | H114: =IF(OR(D114=$M$15,D114=$M$20),SUM(IF((A114=$O$10:$O$29),IF(C114=$P$9,$P$10:$P$29,$Q$10:$Q$29),0))/100,1) -> 1 | I114: 0.081
A115: 2014 | B115: Caminhao | C115: Diesel | D115: =SUM(IF(B115=$L$10:$L$23,$M$10:$M$23,0)) -> 4 | E115: 4 | F115: =IFERROR(ROUND(VLOOKUP(A115,'Dados de entrada'!$P$7:$Z$50,Dados_v2!D115+1,0)*H115,0),0) -> 1273 | G115: CO | H115: =IF(OR(D115=$M$15,D115=$M$20),SUM(IF((A115=$O$10:$O$29),IF(C115=$P$9,$P$10:$P$29,$Q$10:$Q$29),0))/100,1) -> 1 | I115: 0.081
A116: 2015 | B116: Caminhao | C116: Diesel | D116: =SUM(IF(B116=$L$10:$L$23,$M$10:$M$23,0)) -> 4 | E116: 4 | F116: =IFERROR(ROUND(VLOOKUP(A116,'Dados de entrada'!$P$7:$Z$50,Dados_v2!D116+1,0)*H116,0),0) -> 717 | G116: CO | H116: =IF(OR(D116=$M$15,D116=$M$20),SUM(IF((A116=$O$10:$O$29),IF(C116=$P$9,$P$10:$P$29,$Q$10:$Q$29),0))/100,1) -> 1 | I116: 0.081
A117: 2016 | B117: Caminhao | C117: Diesel | D117: =SUM(IF(B117=$L$10:$L$23,$M$10:$M$23,0)) -> 4 | E117: 4 | F117: =IFERROR(ROUND(VLOOKUP(A117,'Dados de entrada'!$P$7:$Z$50,Dados_v2!D117+1,0)*H117,0),0) -> 570 | G117: CO | H117: =IF(OR(D117=$M$15,D117=$M$20),SUM(IF((A117=$O$10:$O$29),IF(C117=$P$9,$P$10:$P$29,$Q$10:$Q$29),0))/100,1) -> 1 | I117: 0.09109045476
A118: 2017 | B118: Caminhao | C118: Diesel | D118: =SUM(IF(B118=$L$10:$L$23,$M$10:$M$23,0)) -> 4 | E118: 4 | F118: =IFERROR(ROUND(VLOOKUP(A118,'Dados de entrada'!$P$7:$Z$50,Dados_v2!D118+1,0)*H118,0),0) -> 299 | G118: CO | H118: =IF(OR(D118=$M$15,D118=$M$20),SUM(IF((A118=$O$10:$O$29),IF(C118=$P$9,$P$10:$P$29,$Q$10:$Q$29),0))/100,1) -> 1 | I118: 0.1022503185
A119: 2018 | B119: Caminhao | C119: Diesel | D119: =SUM(IF(B119=$L$10:$L$23,$M$10:$M$23,0)) -> 4 | E119: 4 | F119: =IFERROR(ROUND(VLOOKUP(A119,'Dados de entrada'!$P$7:$Z$50,Dados_v2!D119+1,0)*H119,0),0) -> 699 | G119: CO | H119: =IF(OR(D119=$M$15,D119=$M$20),SUM(IF((A119=$O$10:$O$29),IF(C119=$P$9,$P$10:$P$29,$Q$10:$Q$29),0))/100,1) -> 1 | I119: 0.2080034742
A120: 2019 | B120: Caminhao | C120: Diesel | D120: =SUM(IF(B120=$L$10:$L$23,$M$10:$M$23,0)) -> 4 | E120: 4 | F120: =IFERROR(ROUND(VLOOKUP(A120,'Dados de entrada'!$P$7:$Z$50,Dados_v2!D120+1,0)*H120,0),0) -> 1163 | G120: CO | H120: =IF(OR(D120=$M$15,D120=$M$20),SUM(IF((A120=$O$10:$O$29),IF(C120=$P$9,$P$10:$P$29,$Q$10:$Q$29),0))/100,1) -> 1 | I120: 0.2033546251
A121: 2020 | B121: Caminhao | C121: Diesel | D121: =SUM(IF(B121=$L$10:$L$23,$M$10:$M$23,0)) -> 4 | E121: 4 | F121: =IFERROR(ROUND(VLOOKUP(A121,'Dados de entrada'!$P$7:$Z$50,Dados_v2!D121+1,0)*H121,0),0) -> 1472 | G121: CO | H121: =IF(OR(D121=$M$15,D121=$M$20),SUM(IF((A121=$O$10:$O$29),IF(C121=$P$9,$P$10:$P$29,$Q$10:$Q$29),0))/100,1) -> 1 | I121: 0.1408140648
A122: 2021 | B122: Caminhao | C122: Diesel | D122: =SUM(IF(B122=$L$10:$L$23,$M$10:$M$23,0)) -> 4 | E122: 4 | F122: =IFERROR(ROUND(VLOOKUP(A122,'Dados de entrada'!$P$7:$Z$50,Dados_v2!D122+1,0)*H122,0),0) -> 2067 | G122: CO | H122: =IF(OR(D122=$M$15,D122=$M$20),SUM(IF((A122=$O$10:$O$29),IF(C122=$P$9,$P$10:$P$29,$Q$10:$Q$29),0))/100,1) -> 1 | I122: 0.1545664128
A123: 2022 | B123: Caminhao | C123: Diesel | D123: =SUM(IF(B123=$L$10:$L$23,$M$10:$M$23,0)) -> 4 | E123: 4 | F123: =IFERROR(ROUND(VLOOKUP(A123,'Dados de entrada'!$P$7:$Z$50,Dados_v2!D123+1,0)*H123,0),0) -> 4601 | G123: CO | H123: =IF(OR(D123=$M$15,D123=$M$20),SUM(IF((A123=$O$10:$O$29),IF(C123=$P$9,$P$10:$P$29,$Q$10:$Q$29),0))/100,1) -> 1 | I123: 0.1784560458
A124: 1983 | B124: Moto-Gasolina | C124: Gasolina | D124: =SUM(IF(B124=$L$10:$L$23,$M$10:$M$23,0)) -> 5 | E124: 2 | F124: =IFERROR(ROUND(VLOOKUP(A124,'Dados de entrada'!$P$7:$Z$50,Dados_v2!D124+1,0)*H124,0),0) -> 969 | G124: CO | H124: =IF(OR(D124=$M$15,D124=$M$20),SUM(IF((A124=$O$10:$O$29),IF(C124=$P$9,$P$10:$P$29,$Q$10:$Q$29),0))/100,1) -> 1 | I124: 6.74395
A125: 1984 | B125: Moto-Gasolina | C125: Gasolina | D125: =SUM(IF(B125=$L$10:$L$23,$M$10:$M$23,0)) -> 5 | E125: 2 | F125: =IFERROR(ROUND(VLOOKUP(A125,'Dados de entrada'!$P$7:$Z$50,Dados_v2!D125+1,0)*H125,0),0) -> 633 | G125: CO | H125: =IF(OR(D125=$M$15,D125=$M$20),SUM(IF((A125=$O$10:$O$29),IF(C125=$P$9,$P$10:$P$29,$Q$10:$Q$29),0))/100,1) -> 1 | I125: 6.74395
A126: 1985 | B126: Moto-Gasolina | C126: Gasolina | D126: =SUM(IF(B126=$L$10:$L$23,$M$10:$M$23,0)) -> 5 | E126: 2 | F126: =IFERROR(ROUND(VLOOKUP(A126,'Dados de entrada'!$P$7:$Z$50,Dados_v2!D126+1,0)*H126,0),0) -> 473 | G126: CO | H126: =IF(OR(D126=$M$15,D126=$M$20),SUM(IF((A126=$O$10:$O$29),IF(C126=$P$9,$P$10:$P$29,$Q$10:$Q$29),0))/100,1) -> 1 | I126: 6.74395
A127: 1986 | B127: Moto-Gasolina | C127: Gasolina | D127: =SUM(IF(B127=$L$10:$L$23,$M$10:$M$23,0)) -> 5 | E127: 2 | F127: =IFERROR(ROUND(VLOOKUP(A127,'Dados de entrada'!$P$7:$Z$50,Dados_v2!D127+1,0)*H127,0),0) -> 765 | G127: CO | H127: =IF(OR(D127=$M$15,D127=$M$20),SUM(IF((A127=$O$10:$O$29),IF(C127=$P$9,$P$10:$P$29,$Q$10:$Q$29),0))/100,1) -> 1 | I127: 6.74395
A128: 1987 | B128: Moto-Gasolina | C128: Gasolina | D128: =SUM(IF(B128=$L$10:$L$23,$M$10:$M$23,0)) -> 5 | E128: 2 | F128: =IFERROR(ROUND(VLOOKUP(A128,'Dados de entrada'!$P$7:$Z$50,Dados_v2!D128+1,0)*H128,0),0) -> 883 | G128: CO | H128: =IF(OR(D128=$M$15,D128=$M$20),SUM(IF((A128=$O$10:$O$29),IF(C128=$P$9,$P$10:$P$29,$Q$10:$Q$29),0))/100,1) -> 1 | I128: 6.74395
A129: 1988 | B129: Moto-Gasolina | C129: Gasolina | D129: =SUM(IF(B129=$L$10:$L$23,$M$10:$M$23,0)) -> 5 | E129: 2 | F129: =IFERROR(ROUND(VLOOKUP(A129,'Dados de entrada'!$P$7:$Z$50,Dados_v2!D129+1,0)*H129,0),0) -> 922 | G129: CO | H129: =IF(OR(D129=$M$15,D129=$M$20),SUM(IF((A129=$O$10:$O$29),IF(C129=$P$9,$P$10:$P$29,$Q$10:$Q$29),0))/100,1) -> 1 | I129: 6.74395
A130: 1989 | B130: Moto-Gasolina | C130: Gasolina | D130: =SUM(IF(B130=$L$10:$L$23,$M$10:$M$23,0)) -> 5 | E130: 2 | F130: =IFERROR(ROUND(VLOOKUP(A130,'Dados de entrada'!$P$7:$Z$50,Dados_v2!D130+1,0)*H130,0),0) -> 702 | G130: CO | H130: =IF(OR(D130=$M$15,D130=$M$20),SUM(IF((A130=$O$10:$O$29),IF(C130=$P$9,$P$10:$P$29,$Q$10:$Q$29),0))/100,1) -> 1 | I130: 6.74395
A131: 1990 | B131: Moto-Gasolina | C131: Gasolina | D131: =SUM(IF(B131=$L$10:$L$23,$M$10:$M$23,0)) -> 5 | E131: 2 | F131: =IFERROR(ROUND(VLOOKUP(A131,'Dados de entrada'!$P$7:$Z$50,Dados_v2!D131+1,0)*H131,0),0) -> 881 | G131: CO | H131: =IF(OR(D131=$M$15,D131=$M$20),SUM(IF((A131=$O$10:$O$29),IF(C131=$P$9,$P$10:$P$29,$Q$10:$Q$29),0))/100,1) -> 1 | I131: 6.74395
A132: 1991 | B132: Moto-Gasolina | C132: Gasolina | D132: =SUM(IF(B132=$L$10:$L$23,$M$10:$M$23,0)) -> 5 | E132: 2 | F132: =IFERROR(ROUND(VLOOKUP(A132,'Dados de entrada'!$P$7:$Z$50,Dados_v2!D132+1,0)*H132,0),0) -> 631 | G132: CO | H132: =IF(OR(D132=$M$15,D132=$M$20),SUM(IF((A132=$O$10:$O$29),IF(C132=$P$9,$P$10:$P$29,$Q$10:$Q$29),0))/100,1) -> 1 | I132: 6.74395
A133: 1992 | B133: Moto-Gasolina | C133: Gasolina | D133: =SUM(IF(B133=$L$10:$L$23,$M$10:$M$23,0)) -> 5 | E133: 2 | F133: =IFERROR(ROUND(VLOOKUP(A133,'Dados de entrada'!$P$7:$Z$50,Dados_v2!D133+1,0)*H133,0),0) -> 524 | G133: CO | H133: =IF(OR(D133=$M$15,D133=$M$20),SUM(IF((A133=$O$10:$O$29),IF(C133=$P$9,$P$10:$P$29,$Q$10:$Q$29),0))/100,1) -> 1 | I133: 6.74395
A134: 1993 | B134: Moto-Gasolina | C134: Gasolina | D134: =SUM(IF(B134=$L$10:$L$23,$M$10:$M$23,0)) -> 5 | E134: 2 | F134: =IFERROR(ROUND(VLOOKUP(A134,'Dados de entrada'!$P$7:$Z$50,Dados_v2!D134+1,0)*H134,0),0) -> 316 | G134: CO | H134: =IF(OR(D134=$M$15,D134=$M$20),SUM(IF((A134=$O$10:$O$29),IF(C134=$P$9,$P$10:$P$29,$Q$10:$Q$29),0))/100,1) -> 1 | I134: 6.74395
A135: 1994 | B135: Moto-Gasolina | C135: Gasolina | D135: =SUM(IF(B135=$L$10:$L$23,$M$10:$M$23,0)) -> 5 | E135: 2 | F135: =IFERROR(ROUND(VLOOKUP(A135,'Dados de entrada'!$P$7:$Z$50,Dados_v2!D135+1,0)*H135,0),0) -> 559 | G135: CO | H135: =IF(OR(D135=$M$15,D135=$M$20),SUM(IF((A135=$O$10:$O$29),IF(C135=$P$9,$P$10:$P$29,$Q$10:$Q$29),0))/100,1) -> 1 | I135: 6.74395
A136: 1995 | B136: Moto-Gasolina | C136: Gasolina | D136: =SUM(IF(B136=$L$10:$L$23,$M$10:$M$23,0)) -> 5 | E136: 2 | F136: =IFERROR(ROUND(VLOOKUP(A136,'Dados de entrada'!$P$7:$Z$50,Dados_v2!D136+1,0)*H136,0),0) -> 1134 | G136: CO | H136: =IF(OR(D136=$M$15,D136=$M$20),SUM(IF((A136=$O$10:$O$29),IF(C136=$P$9,$P$10:$P$29,$Q$10:$Q$29),0))/100,1) -> 1 | I136: 6.74395
A137: 1996 | B137: Moto-Gasolina | C137: Gasolina | D137: =SUM(IF(B137=$L$10:$L$23,$M$10:$M$23,0)) -> 5 | E137: 2 | F137: =IFERROR(ROUND(VLOOKUP(A137,'Dados de entrada'!$P$7:$Z$50,Dados_v2!D137+1,0)*H137,0),0) -> 1365 | G137: CO | H137: =IF(OR(D137=$M$15,D137=$M$20),SUM(IF((A137=$O$10:$O$29),IF(C137=$P$9,$P$10:$P$29,$Q$10:$Q$29),0))/100,1) -> 1 | I137: 6.74395
A138: 1997 | B138: Moto-Gasolina | C138: Gasolina | D138: =SUM(IF(B138=$L$10:$L$23,$M$10:$M$23,0)) -> 5 | E138: 2 | F138: =IFERROR(ROUND(VLOOKUP(A138,'Dados de entrada'!$P$7:$Z$50,Dados_v2!D138+1,0)*H138,0),0) -> 2602 | G138: CO | H138: =IF(OR(D138=$M$15,D138=$M$20),SUM(IF((A138=$O$10:$O$29),IF(C138=$P$9,$P$10:$P$29,$Q$10:$Q$29),0))/100,1) -> 1 | I138: 6.74395
A139: 1998 | B139: Moto-Gasolina | C139: Gasolina | D139: =SUM(IF(B139=$L$10:$L$23,$M$10:$M$23,0)) -> 5 | E139: 2 | F139: =IFERROR(ROUND(VLOOKUP(A139,'Dados de entrada'!$P$7:$Z$50,Dados_v2!D139+1,0)*H139,0),0) -> 2838 | G139: CO | H139: =IF(OR(D139=$M$15,D139=$M$20),SUM(IF((A139=$O$10:$O$29),IF(C139=$P$9,$P$10:$P$29,$Q$10:$Q$29),0))/100,1) -> 1 | I139: 6.74395
A140: 1999 | B140: Moto-Gasolina | C140: Gasolina | D140: =SUM(IF(B140=$L$10:$L$23,$M$10:$M$23,0)) -> 5 | E140: 2 | F140: =IFERROR(ROUND(VLOOKUP(A140,'Dados de entrada'!$P$7:$Z$50,Dados_v2!D140+1,0)*H140,0),0) -> 2267 | G140: CO | H140: =IF(OR(D140=$M$15,D140=$M$20),SUM(IF((A140=$O$10:$O$29),IF(C140=$P$9,$P$10:$P$29,$Q$10:$Q$29),0))/100,1) -> 1 | I140: 6.74395
A141: 2000 | B141: Moto-Gasolina | C141: Gasolina | D141: =SUM(IF(B141=$L$10:$L$23,$M$10:$M$23,0)) -> 5 | E141: 2 | F141: =IFERROR(ROUND(VLOOKUP(A141,'Dados de entrada'!$P$7:$Z$50,Dados_v2!D141+1,0)*H141,0),0) -> 3136 | G141: CO | H141: =IF(OR(D141=$M$15,D141=$M$20),SUM(IF((A141=$O$10:$O$29),IF(C141=$P$9,$P$10:$P$29,$Q$10:$Q$29),0))/100,1) -> 1 | I141: 6.74395
A142: 2001 | B142: Moto-Gasolina | C142: Gasolina | D142: =SUM(IF(B142=$L$10:$L$23,$M$10:$M$23,0)) -> 5 | E142: 2 | F142: =IFERROR(ROUND(VLOOKUP(A142,'Dados de entrada'!$P$7:$Z$50,Dados_v2!D142+1,0)*H142,0),0) -> 3541 | G142: CO | H142: =IF(OR(D142=$M$15,D142=$M$20),SUM(IF((A142=$O$10:$O$29),IF(C142=$P$9,$P$10:$P$29,$Q$10:$Q$29),0))/100,1) -> 1 | I142: 6.74395
A143: 2002 | B143: Moto-Gasolina | C143: Gasolina | D143: =SUM(IF(B143=$L$10:$L$23,$M$10:$M$23,0)) -> 5 | E143: 2 | F143: =IFERROR(ROUND(VLOOKUP(A143,'Dados de entrada'!$P$7:$Z$50,Dados_v2!D143+1,0)*H143,0),0) -> 4223 | G143: CO | H143: =IF(OR(D143=$M$15,D143=$M$20),SUM(IF((A143=$O$10:$O$29),IF(C143=$P$9,$P$10:$P$29,$Q$10:$Q$29),0))/100,1) -> 1 | I143: 6.74395
A144: 2003 | B144: Moto-Gasolina | C144: Gasolina | D144: =SUM(IF(B144=$L$10:$L$23,$M$10:$M$23,0)) -> 5 | E144: 2 | F144: =IFERROR(ROUND(VLOOKUP(A144,'Dados de entrada'!$P$7:$Z$50,Dados_v2!D144+1,0)*H144,0),0) -> 5047 | G144: CO | H144: =IF(OR(D144=$M$15,D144=$M$20),SUM(IF((A144=$O$10:$O$29),IF(C144=$P$9,$P$10:$P$29,$Q$10:$Q$29),0))/100,1) -> 1 | I144: 6.74395
A145: 2004 | B145: Moto-Gasolina | C145: Gasolina | D145: =SUM(IF(B145=$L$10:$L$23,$M$10:$M$23,0)) -> 5 | E145: 2 | F145: =IFERROR(ROUND(VLOOKUP(A145,'Dados de entrada'!$P$7:$Z$50,Dados_v2!D145+1,0)*H145,0),0) -> 4619 | G145: CO | H145: =IF(OR(D145=$M$15,D145=$M$20),SUM(IF((A145=$O$10:$O$29),IF(C145=$P$9,$P$10:$P$29,$Q$10:$Q$29),0))/100,1) -> 1 | I145: 6.77341
A146: 2005 | B146: Moto-Gasolina | C146: Gasolina | D146: =SUM(IF(B146=$L$10:$L$23,$M$10:$M$23,0)) -> 5 | E146: 2 | F146: =IFERROR(ROUND(VLOOKUP(A146,'Dados de entrada'!$P$7:$Z$50,Dados_v2!D146+1,0)*H146,0),0) -> 6828 | G146: CO | H146: =IF(OR(D146=$M$15,D146=$M$20),SUM(IF((A146=$O$10:$O$29),IF(C146=$P$9,$P$10:$P$29,$Q$10:$Q$29),0))/100,1) -> 1 | I146: 2.93483
A147: 2006 | B147: Moto-Gasolina | C147: Gasolina | D147: =SUM(IF(B147=$L$10:$L$23,$M$10:$M$23,0)) -> 5 | E147: 2 | F147: =IFERROR(ROUND(VLOOKUP(A147,'Dados de entrada'!$P$7:$Z$50,Dados_v2!D147+1,0)*H147,0),0) -> 7519 | G147: CO | H147: =IF(OR(D147=$M$15,D147=$M$20),SUM(IF((A147=$O$10:$O$29),IF(C147=$P$9,$P$10:$P$29,$Q$10:$Q$29),0))/100,1) -> 1 | I147: 1.68256
A148: 2007 | B148: Moto-Gasolina | C148: Gasolina | D148: =SUM(IF(B148=$L$10:$L$23,$M$10:$M$23,0)) -> 5 | E148: 2 | F148: =IFERROR(ROUND(VLOOKUP(A148,'Dados de entrada'!$P$7:$Z$50,Dados_v2!D148+1,0)*H148,0),0) -> 12449 | G148: CO | H148: =IF(OR(D148=$M$15,D148=$M$20),SUM(IF((A148=$O$10:$O$29),IF(C148=$P$9,$P$10:$P$29,$Q$10:$Q$29),0))/100,1) -> 1 | I148: 1.90172
A149: 2008 | B149: Moto-Gasolina | C149: Gasolina | D149: =SUM(IF(B149=$L$10:$L$23,$M$10:$M$23,0)) -> 5 | E149: 2 | F149: =IFERROR(ROUND(VLOOKUP(A149,'Dados de entrada'!$P$7:$Z$50,Dados_v2!D149+1,0)*H149,0),0) -> 22881 | G149: CO | H149: =IF(OR(D149=$M$15,D149=$M$20),SUM(IF((A149=$O$10:$O$29),IF(C149=$P$9,$P$10:$P$29,$Q$10:$Q$29),0))/100,1) -> 1 | I149: 1.64941
A150: 2009 | B150: Moto-Gasolina | C150: Gasolina | D150: =SUM(IF(B150=$L$10:$L$23,$M$10:$M$23,0)) -> 5 | E150: 2 | F150: =IFERROR(ROUND(VLOOKUP(A150,'Dados de entrada'!$P$7:$Z$50,Dados_v2!D150+1,0)*H150,0),0) -> 7798 | G150: CO | H150: =IF(OR(D150=$M$15,D150=$M$20),SUM(IF((A150=$O$10:$O$29),IF(C150=$P$9,$P$10:$P$29,$Q$10:$Q$29),0))/100,1) -> 1 | I150: 1.06319
A151: 2010 | B151: Moto-Gasolina | C151: Gasolina | D151: =SUM(IF(B151=$L$10:$L$23,$M$10:$M$23,0)) -> 5 | E151: 2 | F151: =IFERROR(ROUND(VLOOKUP(A151,'Dados de entrada'!$P$7:$Z$50,Dados_v2!D151+1,0)*H151,0),0) -> 12526 | G151: CO | H151: =IF(OR(D151=$M$15,D151=$M$20),SUM(IF((A151=$O$10:$O$29),IF(C151=$P$9,$P$10:$P$29,$Q$10:$Q$29),0))/100,1) -> 1 | I151: 1.13448
A152: 2011 | B152: Moto-Gasolina | C152: Gasolina | D152: =SUM(IF(B152=$L$10:$L$23,$M$10:$M$23,0)) -> 5 | E152: 2 | F152: =IFERROR(ROUND(VLOOKUP(A152,'Dados de entrada'!$P$7:$Z$50,Dados_v2!D152+1,0)*H152,0),0) -> 10202 | G152: CO | H152: =IF(OR(D152=$M$15,D152=$M$20),SUM(IF((A152=$O$10:$O$29),IF(C152=$P$9,$P$10:$P$29,$Q$10:$Q$29),0))/100,1) -> 1 | I152: 1.02496
A153: 2012 | B153: Moto-Gasolina | C153: Gasolina | D153: =SUM(IF(B153=$L$10:$L$23,$M$10:$M$23,0)) -> 5 | E153: 2 | F153: =IFERROR(ROUND(VLOOKUP(A153,'Dados de entrada'!$P$7:$Z$50,Dados_v2!D153+1,0)*H153,0),0) -> 9318 | G153: CO | H153: =IF(OR(D153=$M$15,D153=$M$20),SUM(IF((A153=$O$10:$O$29),IF(C153=$P$9,$P$10:$P$29,$Q$10:$Q$29),0))/100,1) -> 1 | I153: 0.98412
A154: 2013 | B154: Moto-Gasolina | C154: Gasolina | D154: =SUM(IF(B154=$L$10:$L$23,$M$10:$M$23,0)) -> 5 | E154: 2 | F154: =IFERROR(ROUND(VLOOKUP(A154,'Dados de entrada'!$P$7:$Z$50,Dados_v2!D154+1,0)*H154,0),0) -> 5906 | G154: CO | H154: =IF(OR(D154=$M$15,D154=$M$20),SUM(IF((A154=$O$10:$O$29),IF(C154=$P$9,$P$10:$P$29,$Q$10:$Q$29),0))/100,1) -> 1 | I154: 0.81604
A155: 2014 | B155: Moto-Gasolina | C155: Gasolina | D155: =SUM(IF(B155=$L$10:$L$23,$M$10:$M$23,0)) -> 5 | E155: 2 | F155: =IFERROR(ROUND(VLOOKUP(A155,'Dados de entrada'!$P$7:$Z$50,Dados_v2!D155+1,0)*H155,0),0) -> 5599 | G155: CO | H155: =IF(OR(D155=$M$15,D155=$M$20),SUM(IF((A155=$O$10:$O$29),IF(C155=$P$9,$P$10:$P$29,$Q$10:$Q$29),0))/100,1) -> 1 | I155: 0.81604
A156: 2015 | B156: Moto-Gasolina | C156: Gasolina | D156: =SUM(IF(B156=$L$10:$L$23,$M$10:$M$23,0)) -> 5 | E156: 2 | F156: =IFERROR(ROUND(VLOOKUP(A156,'Dados de entrada'!$P$7:$Z$50,Dados_v2!D156+1,0)*H156,0),0) -> 4403 | G156: CO | H156: =IF(OR(D156=$M$15,D156=$M$20),SUM(IF((A156=$O$10:$O$29),IF(C156=$P$9,$P$10:$P$29,$Q$10:$Q$29),0))/100,1) -> 1 | I156: 0.81604
A157: 2016 | B157: Moto-Gasolina | C157: Gasolina | D157: =SUM(IF(B157=$L$10:$L$23,$M$10:$M$23,0)) -> 5 | E157: 2 | F157: =IFERROR(ROUND(VLOOKUP(A157,'Dados de entrada'!$P$7:$Z$50,Dados_v2!D157+1,0)*H157,0),0) -> 2840 | G157: CO | H157: =IF(OR(D157=$M$15,D157=$M$20),SUM(IF((A157=$O$10:$O$29),IF(C157=$P$9,$P$10:$P$29,$Q$10:$Q$29),0))/100,1) -> 1 | I157: 0.504
A158: 2017 | B158: Moto-Gasolina | C158: Gasolina | D158: =SUM(IF(B158=$L$10:$L$23,$M$10:$M$23,0)) -> 5 | E158: 2 | F158: =IFERROR(ROUND(VLOOKUP(A158,'Dados de entrada'!$P$7:$Z$50,Dados_v2!D158+1,0)*H158,0),0) -> 3672 | G158: CO | H158: =IF(OR(D158=$M$15,D158=$M$20),SUM(IF((A158=$O$10:$O$29),IF(C158=$P$9,$P$10:$P$29,$Q$10:$Q$29),0))/100,1) -> 1 | I158: 0.525
A159: 2018 | B159: Moto-Gasolina | C159: Gasolina | D159: =SUM(IF(B159=$L$10:$L$23,$M$10:$M$23,0)) -> 5 | E159: 2 | F159: =IFERROR(ROUND(VLOOKUP(A159,'Dados de entrada'!$P$7:$Z$50,Dados_v2!D159+1,0)*H159,0),0) -> 4076 | G159: CO | H159: =IF(OR(D159=$M$15,D159=$M$20),SUM(IF((A159=$O$10:$O$29),IF(C159=$P$9,$P$10:$P$29,$Q$10:$Q$29),0))/100,1) -> 1 | I159: 0.545
A160: 2019 | B160: Moto-Gasolina | C160: Gasolina | D160: =SUM(IF(B160=$L$10:$L$23,$M$10:$M$23,0)) -> 5 | E160: 2 | F160: =IFERROR(ROUND(VLOOKUP(A160,'Dados de entrada'!$P$7:$Z$50,Dados_v2!D160+1,0)*H160,0),0) -> 4486 | G160: CO | H160: =IF(OR(D160=$M$15,D160=$M$20),SUM(IF((A160=$O$10:$O$29),IF(C160=$P$9,$P$10:$P$29,$Q$10:$Q$29),0))/100,1) -> 1 | I160: 0.5034269438
A161: 2020 | B161: Moto-Gasolina | C161: Gasolina | D161: =SUM(IF(B161=$L$10:$L$23,$M$10:$M$23,0)) -> 5 | E161: 2 | F161: =IFERROR(ROUND(VLOOKUP(A161,'Dados de entrada'!$P$7:$Z$50,Dados_v2!D161+1,0)*H161,0),0) -> 3923 | G161: CO | H161: =IF(OR(D161=$M$15,D161=$M$20),SUM(IF((A161=$O$10:$O$29),IF(C161=$P$9,$P$10:$P$29,$Q$10:$Q$29),0))/100,1) -> 1 | I161: 0.4621230533
A162: 2021 | B162: Moto-Gasolina | C162: Gasolina | D162: =SUM(IF(B162=$L$10:$L$23,$M$10:$M$23,0)) -> 5 | E162: 2 | F162: =IFERROR(ROUND(VLOOKUP(A162,'Dados de entrada'!$P$7:$Z$50,Dados_v2!D162+1,0)*H162,0),0) -> 4248 | G162: CO | H162: =IF(OR(D162=$M$15,D162=$M$20),SUM(IF((A162=$O$10:$O$29),IF(C162=$P$9,$P$10:$P$29,$Q$10:$Q$29),0))/100,1) -> 1 | I162: 0.438997535
A163: 2022 | B163: Moto-Gasolina | C163: Gasolina | D163: =SUM(IF(B163=$L$10:$L$23,$M$10:$M$23,0)) -> 5 | E163: 2 | F163: =IFERROR(ROUND(VLOOKUP(A163,'Dados de entrada'!$P$7:$Z$50,Dados_v2!D163+1,0)*H163,0),0) -> 6938 | G163: CO | H163: =IF(OR(D163=$M$15,D163=$M$20),SUM(IF((A163=$O$10:$O$29),IF(C163=$P$9,$P$10:$P$29,$Q$10:$Q$29),0))/100,1) -> 1 | I163: 0.4036241544
A164: 2009 | B164: Moto-Flex | C164: Gasolina | D164: =SUM(IF(B164=$L$10:$L$23,$M$10:$M$23,0)) -> 6 | E164: 2 | F164: =IFERROR(ROUND(VLOOKUP(A164,'Dados de entrada'!$P$7:$Z$50,Dados_v2!D164+1,0)*H164,0),0) -> 269 | G164: CO | H164: =IF(OR(D164=$M$15,D164=$M$20),SUM(IF((A164=$O$10:$O$29),IF(C164=$P$9,$P$10:$P$29,$Q$10:$Q$29),0))/100,1) -> 0.3 | I164: 0.75
A165: 2010 | B165: Moto-Flex | C165: Gasolina | D165: =SUM(IF(B165=$L$10:$L$23,$M$10:$M$23,0)) -> 6 | E165: 2 | F165: =IFERROR(ROUND(VLOOKUP(A165,'Dados de entrada'!$P$7:$Z$50,Dados_v2!D165+1,0)*H165,0),0) -> 1279 | G165: CO | H165: =IF(OR(D165=$M$15,D165=$M$20),SUM(IF((A165=$O$10:$O$29),IF(C165=$P$9,$P$10:$P$29,$Q$10:$Q$29),0))/100,1) -> 0.48 | I165: 0.75
A166: 2011 | B166: Moto-Flex | C166: Gasolina | D166: =SUM(IF(B166=$L$10:$L$23,$M$10:$M$23,0)) -> 6 | E166: 2 | F166: =IFERROR(ROUND(VLOOKUP(A166,'Dados de entrada'!$P$7:$Z$50,Dados_v2!D166+1,0)*H166,0),0) -> 3075 | G166: CO | H166: =IF(OR(D166=$M$15,D166=$M$20),SUM(IF((A166=$O$10:$O$29),IF(C166=$P$9,$P$10:$P$29,$Q$10:$Q$29),0))/100,1) -> 0.68 | I166: 0.76
A167: 2012 | B167: Moto-Flex | C167: Gasolina | D167: =SUM(IF(B167=$L$10:$L$23,$M$10:$M$23,0)) -> 6 | E167: 2 | F167: =IFERROR(ROUND(VLOOKUP(A167,'Dados de entrada'!$P$7:$Z$50,Dados_v2!D167+1,0)*H167,0),0) -> 3586 | G167: CO | H167: =IF(OR(D167=$M$15,D167=$M$20),SUM(IF((A167=$O$10:$O$29),IF(C167=$P$9,$P$10:$P$29,$Q$10:$Q$29),0))/100,1) -> 0.75 | I167: 1.1352
A168: 2013 | B168: Moto-Flex | C168: Gasolina | D168: =SUM(IF(B168=$L$10:$L$23,$M$10:$M$23,0)) -> 6 | E168: 2 | F168: =IFERROR(ROUND(VLOOKUP(A168,'Dados de entrada'!$P$7:$Z$50,Dados_v2!D168+1,0)*H168,0),0) -> 3425 | G168: CO | H168: =IF(OR(D168=$M$15,D168=$M$20),SUM(IF((A168=$O$10:$O$29),IF(C168=$P$9,$P$10:$P$29,$Q$10:$Q$29),0))/100,1) -> 0.75 | I168: 0.69964
A169: 2014 | B169: Moto-Flex | C169: Gasolina | D169: =SUM(IF(B169=$L$10:$L$23,$M$10:$M$23,0)) -> 6 | E169: 2 | F169: =IFERROR(ROUND(VLOOKUP(A169,'Dados de entrada'!$P$7:$Z$50,Dados_v2!D169+1,0)*H169,0),0) -> 5354 | G169: CO | H169: =IF(OR(D169=$M$15,D169=$M$20),SUM(IF((A169=$O$10:$O$29),IF(C169=$P$9,$P$10:$P$29,$Q$10:$Q$29),0))/100,1) -> 0.75 | I169: 0.69964
A170: 2015 | B170: Moto-Flex | C170: Gasolina | D170: =SUM(IF(B170=$L$10:$L$23,$M$10:$M$23,0)) -> 6 | E170: 2 | F170: =IFERROR(ROUND(VLOOKUP(A170,'Dados de entrada'!$P$7:$Z$50,Dados_v2!D170+1,0)*H170,0),0) -> 5829 | G170: CO | H170: =IF(OR(D170=$M$15,D170=$M$20),SUM(IF((A170=$O$10:$O$29),IF(C170=$P$9,$P$10:$P$29,$Q$10:$Q$29),0))/100,1) -> 0.75 | I170: 0.69964
A171: 2016 | B171: Moto-Flex | C171: Gasolina | D171: =SUM(IF(B171=$L$10:$L$23,$M$10:$M$23,0)) -> 6 | E171: 2 | F171: =IFERROR(ROUND(VLOOKUP(A171,'Dados de entrada'!$P$7:$Z$50,Dados_v2!D171+1,0)*H171,0),0) -> 3761 | G171: CO | H171: =IF(OR(D171=$M$15,D171=$M$20),SUM(IF((A171=$O$10:$O$29),IF(C171=$P$9,$P$10:$P$29,$Q$10:$Q$29),0))/100,1) -> 0.75 | I171: 0.715
A172: 2017 | B172: Moto-Flex | C172: Gasolina | D172: =SUM(IF(B172=$L$10:$L$23,$M$10:$M$23,0)) -> 6 | E172: 2 | F172: =IFERROR(ROUND(VLOOKUP(A172,'Dados de entrada'!$P$7:$Z$50,Dados_v2!D172+1,0)*H172,0),0) -> 3521 | G172: CO | H172: =IF(OR(D172=$M$15,D172=$M$20),SUM(IF((A172=$O$10:$O$29),IF(C172=$P$9,$P$10:$P$29,$Q$10:$Q$29),0))/100,1) -> 0.75 | I172: 0.694
A173: 2018 | B173: Moto-Flex | C173: Gasolina | D173: =SUM(IF(B173=$L$10:$L$23,$M$10:$M$23,0)) -> 6 | E173: 2 | F173: =IFERROR(ROUND(VLOOKUP(A173,'Dados de entrada'!$P$7:$Z$50,Dados_v2!D173+1,0)*H173,0),0) -> 4611 | G173: CO | H173: =IF(OR(D173=$M$15,D173=$M$20),SUM(IF((A173=$O$10:$O$29),IF(C173=$P$9,$P$10:$P$29,$Q$10:$Q$29),0))/100,1) -> 0.75 | I173: 0.726
A174: 2019 | B174: Moto-Flex | C174: Gasolina | D174: =SUM(IF(B174=$L$10:$L$23,$M$10:$M$23,0)) -> 6 | E174: 2 | F174: =IFERROR(ROUND(VLOOKUP(A174,'Dados de entrada'!$P$7:$Z$50,Dados_v2!D174+1,0)*H174,0),0) -> 6248 | G174: CO | H174: =IF(OR(D174=$M$15,D174=$M$20),SUM(IF((A174=$O$10:$O$29),IF(C174=$P$9,$P$10:$P$29,$Q$10:$Q$29),0))/100,1) -> 0.75 | I174: 0.7538856181
A175: 2020 | B175: Moto-Flex | C175: Gasolina | D175: =SUM(IF(B175=$L$10:$L$23,$M$10:$M$23,0)) -> 6 | E175: 2 | F175: =IFERROR(ROUND(VLOOKUP(A175,'Dados de entrada'!$P$7:$Z$50,Dados_v2!D175+1,0)*H175,0),0) -> 6023 | G175: CO | H175: =IF(OR(D175=$M$15,D175=$M$20),SUM(IF((A175=$O$10:$O$29),IF(C175=$P$9,$P$10:$P$29,$Q$10:$Q$29),0))/100,1) -> 0.75 | I175: 0.7925131776
A176: 2021 | B176: Moto-Flex | C176: Gasolina | D176: =SUM(IF(B176=$L$10:$L$23,$M$10:$M$23,0)) -> 6 | E176: 2 | F176: =IFERROR(ROUND(VLOOKUP(A176,'Dados de entrada'!$P$7:$Z$50,Dados_v2!D176+1,0)*H176,0),0) -> 5385 | G176: CO | H176: =IF(OR(D176=$M$15,D176=$M$20),SUM(IF((A176=$O$10:$O$29),IF(C176=$P$9,$P$10:$P$29,$Q$10:$Q$29),0))/100,1) -> 0.75 | I176: 0.6745094491
A177: 2022 | B177: Moto-Flex | C177: Gasolina | D177: =SUM(IF(B177=$L$10:$L$23,$M$10:$M$23,0)) -> 6 | E177: 2 | F177: =IFERROR(ROUND(VLOOKUP(A177,'Dados de entrada'!$P$7:$Z$50,Dados_v2!D177+1,0)*H177,0),0) -> 8265 | G177: CO | H177: =IF(OR(D177=$M$15,D177=$M$20),SUM(IF((A177=$O$10:$O$29),IF(C177=$P$9,$P$10:$P$29,$Q$10:$Q$29),0))/100,1) -> 0.75 | I177: 0.6668453006
A178: 2009 | B178: Moto-Flex | C178: Etanol | D178: =SUM(IF(B178=$L$10:$L$23,$M$10:$M$23,0)) -> 6 | E178: 2 | F178: =IFERROR(ROUND(VLOOKUP(A178,'Dados de entrada'!$P$7:$Z$50,Dados_v2!D178+1,0)*H178,0),0) -> 627 | G178: CO | H178: =IF(OR(D178=$M$15,D178=$M$20),SUM(IF((A178=$O$10:$O$29),IF(C178=$P$9,$P$10:$P$29,$Q$10:$Q$29),0))/100,1) -> 0.7 | I178: 0.58
A179: 2010 | B179: Moto-Flex | C179: Etanol | D179: =SUM(IF(B179=$L$10:$L$23,$M$10:$M$23,0)) -> 6 | E179: 2 | F179: =IFERROR(ROUND(VLOOKUP(A179,'Dados de entrada'!$P$7:$Z$50,Dados_v2!D179+1,0)*H179,0),0) -> 1386 | G179: CO | H179: =IF(OR(D179=$M$15,D179=$M$20),SUM(IF((A179=$O$10:$O$29),IF(C179=$P$9,$P$10:$P$29,$Q$10:$Q$29),0))/100,1) -> 0.52 | I179: 0.58
A180: 2011 | B180: Moto-Flex | C180: Etanol | D180: =SUM(IF(B180=$L$10:$L$23,$M$10:$M$23,0)) -> 6 | E180: 2 | F180: =IFERROR(ROUND(VLOOKUP(A180,'Dados de entrada'!$P$7:$Z$50,Dados_v2!D180+1,0)*H180,0),0) -> 1447 | G180: CO | H180: =IF(OR(D180=$M$15,D180=$M$20),SUM(IF((A180=$O$10:$O$29),IF(C180=$P$9,$P$10:$P$29,$Q$10:$Q$29),0))/100,1) -> 0.32 | I180: 0.68
A181: 2012 | B181: Moto-Flex | C181: Etanol | D181: =SUM(IF(B181=$L$10:$L$23,$M$10:$M$23,0)) -> 6 | E181: 2 | F181: =IFERROR(ROUND(VLOOKUP(A181,'Dados de entrada'!$P$7:$Z$50,Dados_v2!D181+1,0)*H181,0),0) -> 1195 | G181: CO | H181: =IF(OR(D181=$M$15,D181=$M$20),SUM(IF((A181=$O$10:$O$29),IF(C181=$P$9,$P$10:$P$29,$Q$10:$Q$29),0))/100,1) -> 0.25 | I181: 1.42364
A182: 2013 | B182: Moto-Flex | C182: Etanol | D182: =SUM(IF(B182=$L$10:$L$23,$M$10:$M$23,0)) -> 6 | E182: 2 | F182: =IFERROR(ROUND(VLOOKUP(A182,'Dados de entrada'!$P$7:$Z$50,Dados_v2!D182+1,0)*H182,0),0) -> 1142 | G182: CO | H182: =IF(OR(D182=$M$15,D182=$M$20),SUM(IF((A182=$O$10:$O$29),IF(C182=$P$9,$P$10:$P$29,$Q$10:$Q$29),0))/100,1) -> 0.25 | I182: 0.78036
A183: 2014 | B183: Moto-Flex | C183: Etanol | D183: =SUM(IF(B183=$L$10:$L$23,$M$10:$M$23,0)) -> 6 | E183: 2 | F183: =IFERROR(ROUND(VLOOKUP(A183,'Dados de entrada'!$P$7:$Z$50,Dados_v2!D183+1,0)*H183,0),0) -> 1785 | G183: CO | H183: =IF(OR(D183=$M$15,D183=$M$20),SUM(IF((A183=$O$10:$O$29),IF(C183=$P$9,$P$10:$P$29,$Q$10:$Q$29),0))/100,1) -> 0.25 | I183: 0.78036
A184: 2015 | B184: Moto-Flex | C184: Etanol | D184: =SUM(IF(B184=$L$10:$L$23,$M$10:$M$23,0)) -> 6 | E184: 2 | F184: =IFERROR(ROUND(VLOOKUP(A184,'Dados de entrada'!$P$7:$Z$50,Dados_v2!D184+1,0)*H184,0),0) -> 1943 | G184: CO | H184: =IF(OR(D184=$M$15,D184=$M$20),SUM(IF((A184=$O$10:$O$29),IF(C184=$P$9,$P$10:$P$29,$Q$10:$Q$29),0))/100,1) -> 0.25 | I184: 0.78036
A185: 2016 | B185: Moto-Flex | C185: Etanol | D185: =SUM(IF(B185=$L$10:$L$23,$M$10:$M$23,0)) -> 6 | E185: 2 | F185: =IFERROR(ROUND(VLOOKUP(A185,'Dados de entrada'!$P$7:$Z$50,Dados_v2!D185+1,0)*H185,0),0) -> 1254 | G185: CO | H185: =IF(OR(D185=$M$15,D185=$M$20),SUM(IF((A185=$O$10:$O$29),IF(C185=$P$9,$P$10:$P$29,$Q$10:$Q$29),0))/100,1) -> 0.25 | I185: 0.827
A186: 2017 | B186: Moto-Flex | C186: Etanol | D186: =SUM(IF(B186=$L$10:$L$23,$M$10:$M$23,0)) -> 6 | E186: 2 | F186: =IFERROR(ROUND(VLOOKUP(A186,'Dados de entrada'!$P$7:$Z$50,Dados_v2!D186+1,0)*H186,0),0) -> 1174 | G186: CO | H186: =IF(OR(D186=$M$15,D186=$M$20),SUM(IF((A186=$O$10:$O$29),IF(C186=$P$9,$P$10:$P$29,$Q$10:$Q$29),0))/100,1) -> 0.25 | I186: 0.689
A187: 2018 | B187: Moto-Flex | C187: Etanol | D187: =SUM(IF(B187=$L$10:$L$23,$M$10:$M$23,0)) -> 6 | E187: 2 | F187: =IFERROR(ROUND(VLOOKUP(A187,'Dados de entrada'!$P$7:$Z$50,Dados_v2!D187+1,0)*H187,0),0) -> 1537 | G187: CO | H187: =IF(OR(D187=$M$15,D187=$M$20),SUM(IF((A187=$O$10:$O$29),IF(C187=$P$9,$P$10:$P$29,$Q$10:$Q$29),0))/100,1) -> 0.25 | I187: 0.654
A188: 2019 | B188: Moto-Flex | C188: Etanol | D188: =SUM(IF(B188=$L$10:$L$23,$M$10:$M$23,0)) -> 6 | E188: 2 | F188: =IFERROR(ROUND(VLOOKUP(A188,'Dados de entrada'!$P$7:$Z$50,Dados_v2!D188+1,0)*H188,0),0) -> 2083 | G188: CO | H188: =IF(OR(D188=$M$15,D188=$M$20),SUM(IF((A188=$O$10:$O$29),IF(C188=$P$9,$P$10:$P$29,$Q$10:$Q$29),0))/100,1) -> 0.25 | I188: 0.6799102272
A189: 2020 | B189: Moto-Flex | C189: Etanol | D189: =SUM(IF(B189=$L$10:$L$23,$M$10:$M$23,0)) -> 6 | E189: 2 | F189: =IFERROR(ROUND(VLOOKUP(A189,'Dados de entrada'!$P$7:$Z$50,Dados_v2!D189+1,0)*H189,0),0) -> 2008 | G189: CO | H189: =IF(OR(D189=$M$15,D189=$M$20),SUM(IF((A189=$O$10:$O$29),IF(C189=$P$9,$P$10:$P$29,$Q$10:$Q$29),0))/100,1) -> 0.25 | I189: 0.6820727861
A190: 2021 | B190: Moto-Flex | C190: Etanol | D190: =SUM(IF(B190=$L$10:$L$23,$M$10:$M$23,0)) -> 6 | E190: 2 | F190: =IFERROR(ROUND(VLOOKUP(A190,'Dados de entrada'!$P$7:$Z$50,Dados_v2!D190+1,0)*H190,0),0) -> 1795 | G190: CO | H190: =IF(OR(D190=$M$15,D190=$M$20),SUM(IF((A190=$O$10:$O$29),IF(C190=$P$9,$P$10:$P$29,$Q$10:$Q$29),0))/100,1) -> 0.25 | I190: 0.6831862022
A191: 2022 | B191: Moto-Flex | C191: Etanol | D191: =SUM(IF(B191=$L$10:$L$23,$M$10:$M$23,0)) -> 6 | E191: 2 | F191: =IFERROR(ROUND(VLOOKUP(A191,'Dados de entrada'!$P$7:$Z$50,Dados_v2!D191+1,0)*H191,0),0) -> 2755 | G191: CO | H191: =IF(OR(D191=$M$15,D191=$M$20),SUM(IF((A191=$O$10:$O$29),IF(C191=$P$9,$P$10:$P$29,$Q$10:$Q$29),0))/100,1) -> 0.25 | I191: 0.6386564674
A192: 1983 | B192: Automovel-Gasolina | C192: Gasolina | D192: =SUM(IF(B192=$L$10:$L$23,$M$10:$M$23,0)) -> 7 | E192: 1 | F192: =IFERROR(ROUND(VLOOKUP(A192,'Dados de entrada'!$P$7:$Z$50,Dados_v2!D192+1,0)*H192,0),0) -> 2057 | G192: CO | H192: =IF(OR(D192=$M$15,D192=$M$20),SUM(IF((A192=$O$10:$O$29),IF(C192=$P$9,$P$10:$P$29,$Q$10:$Q$29),0))/100,1) -> 1 | I192: 33.6
A193: 1984 | B193: Automovel-Gasolina | C193: Gasolina | D193: =SUM(IF(B193=$L$10:$L$23,$M$10:$M$23,0)) -> 7 | E193: 1 | F193: =IFERROR(ROUND(VLOOKUP(A193,'Dados de entrada'!$P$7:$Z$50,Dados_v2!D193+1,0)*H193,0),0) -> 849 | G193: CO | H193: =IF(OR(D193=$M$15,D193=$M$20),SUM(IF((A193=$O$10:$O$29),IF(C193=$P$9,$P$10:$P$29,$Q$10:$Q$29),0))/100,1) -> 1 | I193: 33.6
A194: 1985 | B194: Automovel-Gasolina | C194: Gasolina | D194: =SUM(IF(B194=$L$10:$L$23,$M$10:$M$23,0)) -> 7 | E194: 1 | F194: =IFERROR(ROUND(VLOOKUP(A194,'Dados de entrada'!$P$7:$Z$50,Dados_v2!D194+1,0)*H194,0),0) -> 816 | G194: CO | H194: =IF(OR(D194=$M$15,D194=$M$20),SUM(IF((A194=$O$10:$O$29),IF(C194=$P$9,$P$10:$P$29,$Q$10:$Q$29),0))/100,1) -> 1 | I194: 33.6
A195: 1986 | B195: Automovel-Gasolina | C195: Gasolina | D195: =SUM(IF(B195=$L$10:$L$23,$M$10:$M$23,0)) -> 7 | E195: 1 | F195: =IFERROR(ROUND(VLOOKUP(A195,'Dados de entrada'!$P$7:$Z$50,Dados_v2!D195+1,0)*H195,0),0) -> 1406 | G195: CO | H195: =IF(OR(D195=$M$15,D195=$M$20),SUM(IF((A195=$O$10:$O$29),IF(C195=$P$9,$P$10:$P$29,$Q$10:$Q$29),0))/100,1) -> 1 | I195: 26.4
A196: 1987 | B196: Automovel-Gasolina | C196: Gasolina | D196: =SUM(IF(B196=$L$10:$L$23,$M$10:$M$23,0)) -> 7 | E196: 1 | F196: =IFERROR(ROUND(VLOOKUP(A196,'Dados de entrada'!$P$7:$Z$50,Dados_v2!D196+1,0)*H196,0),0) -> 808 | G196: CO | H196: =IF(OR(D196=$M$15,D196=$M$20),SUM(IF((A196=$O$10:$O$29),IF(C196=$P$9,$P$10:$P$29,$Q$10:$Q$29),0))/100,1) -> 1 | I196: 26.4
A197: 1988 | B197: Automovel-Gasolina | C197: Gasolina | D197: =SUM(IF(B197=$L$10:$L$23,$M$10:$M$23,0)) -> 7 | E197: 1 | F197: =IFERROR(ROUND(VLOOKUP(A197,'Dados de entrada'!$P$7:$Z$50,Dados_v2!D197+1,0)*H197,0),0) -> 1012 | G197: CO | H197: =IF(OR(D197=$M$15,D197=$M$20),SUM(IF((A197=$O$10:$O$29),IF(C197=$P$9,$P$10:$P$29,$Q$10:$Q$29),0))/100,1) -> 1 | I197: 22.2
A198: 1989 | B198: Automovel-Gasolina | C198: Gasolina | D198: =SUM(IF(B198=$L$10:$L$23,$M$10:$M$23,0)) -> 7 | E198: 1 | F198: =IFERROR(ROUND(VLOOKUP(A198,'Dados de entrada'!$P$7:$Z$50,Dados_v2!D198+1,0)*H198,0),0) -> 3130 | G198: CO | H198: =IF(OR(D198=$M$15,D198=$M$20),SUM(IF((A198=$O$10:$O$29),IF(C198=$P$9,$P$10:$P$29,$Q$10:$Q$29),0))/100,1) -> 1 | I198: 18.24
A199: 1990 | B199: Automovel-Gasolina | C199: Gasolina | D199: =SUM(IF(B199=$L$10:$L$23,$M$10:$M$23,0)) -> 7 | E199: 1 | F199: =IFERROR(ROUND(VLOOKUP(A199,'Dados de entrada'!$P$7:$Z$50,Dados_v2!D199+1,0)*H199,0),0) -> 5837 | G199: CO | H199: =IF(OR(D199=$M$15,D199=$M$20),SUM(IF((A199=$O$10:$O$29),IF(C199=$P$9,$P$10:$P$29,$Q$10:$Q$29),0))/100,1) -> 1 | I199: 15.96
A200: 1991 | B200: Automovel-Gasolina | C200: Gasolina | D200: =SUM(IF(B200=$L$10:$L$23,$M$10:$M$23,0)) -> 7 | E200: 1 | F200: =IFERROR(ROUND(VLOOKUP(A200,'Dados de entrada'!$P$7:$Z$50,Dados_v2!D200+1,0)*H200,0),0) -> 6655 | G200: CO | H200: =IF(OR(D200=$M$15,D200=$M$20),SUM(IF((A200=$O$10:$O$29),IF(C200=$P$9,$P$10:$P$29,$Q$10:$Q$29),0))/100,1) -> 1 | I200: 13.8
... 849 more rows

Sheet Dados de entrada
G3: Ferramentas | I3: 0 | J3: 0 | Q3: Ferramentas | S3: 0 | T3: 0
C6: Cód | D6: Endereço | E6: Coordenadas | G6: Cotagem de veículos | P6: Distribuição da idade da frota | AP6: Emissões totais por ponto
E7: X | F7: Y | G7: Automóveis | H7: Motos | I7: Ônibus | J7: Caminhão | P7: Ano de Fabricação | Q7: Ônibus | R7: Ônibus-Elétrico | S7: Microônibus | T7: Caminhão | U7: Moto-Gasolina | V7: Moto-Flex | W7: Automóvel-Gasolina | X7: Automóvel-Álcool | Y7: Automóvel-Flex | Z7: Automóvel-Diesel | AP7: CO (g/km) | AQ7: NOx (g/km) | AR7: MP (g/km)
C8: SPL0023 | E8: -43.9956372 | F8: -19.9007049 | G8: 7350 | H8: 2274 | I8: 384 | J8: 147 | P8: 1983 | Q8: 26 | S8: 0 | T8: 147 | U8: 969 | V8: 0 | W8: 2057 | X8: 2904 | Y8: 0 | Z8: 163 | AP8: =SUMPRODUCT($G8:$J8,TRANSPOSE(Dados_v2!N$4:N$7)) -> 16704.12984 | AQ8: =SUMPRODUCT($G8:$J8,TRANSPOSE(Dados_v2!O$4:O$7)) -> 4589.916917 | AR8: =SUMPRODUCT($G8:$J8,TRANSPOSE(Dados_v2!P$4:P$7)) -> 119.1098648
C9: SPL2411 | E9: -43.9352582 | F9: -19.9472637 | G9: 44652 | H9: 5253 | I9: 1694 | J9: 294 | P9: 1984 | Q9: 27 | S9: 1 | T9: 159 | U9: 633 | V9: 0 | W9: 849 | X9: 3281 | Y9: 1 | Z9: 186 | AP9: =SUMPRODUCT($G9:$J9,TRANSPOSE(Dados_v2!N$4:N$7)) -> 84219.28003 | AQ9: =SUMPRODUCT($G9:$J9,TRANSPOSE(Dados_v2!O$4:O$7)) -> 21505.99399 | AR9: =SUMPRODUCT($G9:$J9,TRANSPOSE(Dados_v2!P$4:P$7)) -> 518.4182141
C10: SPL2430 | E10: -43.972056 | F10: -19.922921 | G10: 40868 | H10: 4650 | I10: 4027 | J10: 700 | P10: 1985 | Q10: 30 | S10: 1 | T10: 248 | U10: 473 | V10: 0 | W10: 816 | X10: 3376 | Y10: 2 | Z10: 157 | AB10: Total de veículos por tipologia | AP10: =SUMPRODUCT($G10:$J10,TRANSPOSE(Dados_v2!N$4:N$7)) -> 79837.29336 | AQ10: =SUMPRODUCT($G10:$J10,TRANSPOSE(Dados_v2!O$4:O$7)) -> 35893.28866 | AR10: =SUMPRODUCT($G10:$J10,TRANSPOSE(Dados_v2!P$4:P$7)) -> 1068.709595
C11: SPL3253 | E11: -44.017565 | F11: -19.991669 | G11: 20518 | H11: 5710 | I11: 2522 | J11: 438 | P11: 1986 | Q11: 58 | S11: 4 | T11: 444 | U11: 765 | V11: 0 | W11: 1406 | X11: 5821 | Y11: 0 | Z11: 254 | AB11: Automóveis | AC11: =SUM(W51:Z51) -> 1471440 | AP11: =SUMPRODUCT($G11:$J11,TRANSPOSE(Dados_v2!N$4:N$7)) -> 47099.52771 | AQ11: =SUMPRODUCT($G11:$J11,TRANSPOSE(Dados_v2!O$4:O$7)) -> 21610.0691 | AR11: =SUMPRODUCT($G11:$J11,TRANSPOSE(Dados_v2!P$4:P$7)) -> 656.5240923
C12: SPL3254 | E12: -43.9870478 | F12: -19.9445419 | G12: 47762 | H12: 7939 | I12: 2812 | J12: 489 | P12: 1987 | Q12: 57 | S12: 3 | T12: 378 | U12: 883 | V12: 0 | W12: 808 | X12: 3387 | Y12: 0 | Z12: 196 | AB12: Motocicletas | AC12: =SUM(U51:V51) -> 257401 | AP12: =SUMPRODUCT($G12:$J12,TRANSPOSE(Dados_v2!N$4:N$7)) -> 95717.85547 | AQ12: =SUMPRODUCT($G12:$J12,TRANSPOSE(Dados_v2!O$4:O$7)) -> 29772.48063 | AR12: =SUMPRODUCT($G12:$J12,TRANSPOSE(Dados_v2!P$4:P$7)) -> 794.5244817
C13: SPL3255 | E13: -43.9830623 | F13: -19.9286114 | G13: 7595 | H13: 2412 | I13: 199 | J13: 235 | P13: 1988 | Q13: 67 | S13: 3 | T13: 302 | U13: 922 | V13: 0 | W13: 1012 | X13: 4326 | Y13: 18 | Z13: 274 | AB13: Ônibus | AC13: =SUM(Q51:S51) -> 13290 | AP13: =SUMPRODUCT($G13:$J13,TRANSPOSE(Dados_v2!N$4:N$7)) -> 17192.33446 | AQ13: =SUMPRODUCT($G13:$J13,TRANSPOSE(Dados_v2!O$4:O$7)) -> 3789.298385 | AR13: =SUMPRODUCT($G13:$J13,TRANSPOSE(Dados_v2!P$4:P$7)) -> 88.12212753
C14: SPL3256 | E14: -43.9679105 | F14: -19.8884147 | G14: 44116 | H14: 6767 | I14: 1741 | J14: 303 | M14: Automóveis | N14: =Dados_v2!N4 -> 1.61628456 | P14: 1989 | Q14: 81 | S14: 0 | T14: 332 | U14: 702 | V14: 0 | W14: 3130 | X14: 4395 | Y14: 2 | Z14: 390 | AB14: Caminhões | AC14: =SUM(T51) -> 34619 | AP14: =SUMPRODUCT($G14:$J14,TRANSPOSE(Dados_v2!N$4:N$7)) -> 86281.97213 | AQ14: =SUMPRODUCT($G14:$J14,TRANSPOSE(Dados_v2!O$4:O$7)) -> 21837.96714 | AR14: =SUMPRODUCT($G14:$J14,TRANSPOSE(Dados_v2!P$4:P$7)) -> 528.4379164
C15: SPL3257 | E15: -43.951402 | F15: -19.971216 | G15: 29575 | H15: 4337 | I15: 1262 | J15: 484 | M15: Motos | N15: =Dados_v2!N5 -> 1.896071958 | P15: 1990 | Q15: 54 | S15: 6 | T15: 316 | U15: 881 | V15: 0 | W15: 5837 | X15: 988 | Y15: 13 | Z15: 341 | AP15: =SUMPRODUCT($G15:$J15,TRANSPOSE(Dados_v2!N$4:N$7)) -> 57710.51458 | AQ15: =SUMPRODUCT($G15:$J15,TRANSPOSE(Dados_v2!O$4:O$7)) -> 15999.64799 | AR15: =SUMPRODUCT($G15:$J15,TRANSPOSE(Dados_v2!P$4:P$7)) -> 405.1429852
C16: SPL3258 | E16: -43.921536 | F16: -19.893325 | G16: 25380 | H16: 5008 | I16: 1013 | J16: 388 | M16: Ônibus | N16: =Dados_v2!N6 -> 1.148309396 | P16: 1991 | Q16: 50 | S16: 3 | T16: 273 | U16: 631 | V16: 0 | W16: 6655 | X16: 838 | Y16: 0 | Z16: 271 | AP16: =SUMPRODUCT($G16:$J16,TRANSPOSE(Dados_v2!N$4:N$7)) -> 51869.63331 | AQ16: =SUMPRODUCT($G16:$J16,TRANSPOSE(Dados_v2!O$4:O$7)) -> 13347.86018 | AR16: =SUMPRODUCT($G16:$J16,TRANSPOSE(Dados_v2!P$4:P$7)) -> 329.2681599
C17: SPL3259 | E17: -43.951562 | F17: -19.887463 | G17: 34842 | H17: 7880 | I17: 1204 | J17: 209 | M17: Caminhões | N17: =Dados_v2!N7 -> 0.4885706291 | P17: 1992 | Q17: 97 | S17: 0 | T17: 258 | U17: 524 | V17: 0 | W17: 5726 | X17: 1103 | Y17: 0 | Z17: 289 | AP17: =SUMPRODUCT($G17:$J17,TRANSPOSE(Dados_v2!N$4:N$7)) -> 72740.30943 | AQ17: =SUMPRODUCT($G17:$J17,TRANSPOSE(Dados_v2!O$4:O$7)) -> 16361.15322 | AR17: =SUMPRODUCT($G17:$J17,TRANSPOSE(Dados_v2!P$4:P$7)) -> 376.2601378
C18: SPL3260 | E18: -43.9505311 | F18: -19.888291 | G18: 38215 | H18: 4677 | I18: 1350 | J18: 235 | P18: 1993 | Q18: 71 | S18: 10 | T18: 189 | U18: 316 | V18: 0 | W18: 8575 | X18: 1489 | Y18: 1 | Z18: 359 | AP18: =SUMPRODUCT($G18:$J18,TRANSPOSE(Dados_v2!N$4:N$7)) -> 72299.27478 | AQ18: =SUMPRODUCT($G18:$J18,TRANSPOSE(Dados_v2!O$4:O$7)) -> 17770.92831 | AR18: =SUMPRODUCT($G18:$J18,TRANSPOSE(Dados_v2!P$4:P$7)) -> 419.8182754
C19: SPL3261 | E19: -43.946917 | F19: -19.898799 | G19: 11234 | H19: 5128 | I19: 1389 | J19: 241 | P19: 1994 | Q19: 49 | S19: 28 | T19: 327 | U19: 559 | V19: 0 | W19: 11036 | X19: 1343 | Y19: 0 | Z19: 491 | AP19: =SUMPRODUCT($G19:$J19,TRANSPOSE(Dados_v2!N$4:N$7)) -> 29593.14502 | AQ19: =SUMPRODUCT($G19:$J19,TRANSPOSE(Dados_v2!O$4:O$7)) -> 12070.86655 | AR19: =SUMPRODUCT($G19:$J19,TRANSPOSE(Dados_v2!P$4:P$7)) -> 361.3918867
C20: SPL3262 | E20: -43.9403075 | F20: -19.9556957 | G20: 33772 | H20: 2780 | I20: 1715 | J20: 602 | P20: 1995 | Q20: 86 | S20: 103 | T20: 527 | U20: 1134 | V20: 0 | W20: 18944 | X20: 344 | Y20: 2 | Z20: 553 | AP20: =SUMPRODUCT($G20:$J20,TRANSPOSE(Dados_v2!N$4:N$7)) -> 62119.71232 | AQ20: =SUMPRODUCT($G20:$J20,TRANSPOSE(Dados_v2!O$4:O$7)) -> 19867.29066 | AR20: =SUMPRODUCT($G20:$J20,TRANSPOSE(Dados_v2!P$4:P$7)) -> 528.5348141
C21: SPL3264 | E21: -43.949056 | F21: -19.917737 | G21: 45895 | H21: 7989 | I21: 2538 | J21: 683 | P21: 1996 | Q21: 101 | S21: 37 | T21: 321 | U21: 1365 | V21: 0 | W21: 17211 | X21: 51 | Y21: 1 | Z21: 209 | AP21: =SUMPRODUCT($G21:$J21,TRANSPOSE(Dados_v2!N$4:N$7)) -> 92575.20172 | AQ21: =SUMPRODUCT($G21:$J21,TRANSPOSE(Dados_v2!O$4:O$7)) -> 28259.12044 | AR21: =SUMPRODUCT($G21:$J21,TRANSPOSE(Dados_v2!P$4:P$7)) -> 749.806962
C22: SPL3265 | E22: -43.9493971 | F22: -19.9178898 | G22: 40549 | H22: 3026 | I22: 983 | J22: 346 | P22: 1997 | Q22: 89 | S22: 218 | T22: 613 | U22: 2602 | V22: 0 | W22: 19715 | X22: 12 | Y22: 0 | Z22: 299 | AP22: =SUMPRODUCT($G22:$J22,TRANSPOSE(Dados_v2!N$4:N$7)) -> 72574.06993 | AQ22: =SUMPRODUCT($G22:$J22,TRANSPOSE(Dados_v2!O$4:O$7)) -> 16232.28335 | AR22: =SUMPRODUCT($G22:$J22,TRANSPOSE(Dados_v2!P$4:P$7)) -> 356.2190101
C23: SPL3266 | E23: -43.928484 | F23: -19.901449 | G23: 50023 | H23: 13865 | I23: 2003 | J23: 704 | M23: Automóveis | N23: =Dados_v2!O4 -> 0.2222028776 | P23: 1998 | Q23: 97 | S23: 159 | T23: 641 | U23: 2838 | V23: 0 | W23: 16751 | X23: 7 | Y23: 3 | Z23: 409 | AP23: =SUMPRODUCT($G23:$J23,TRANSPOSE(Dados_v2!N$4:N$7)) -> 109784.4577 | AQ23: =SUMPRODUCT($G23:$J23,TRANSPOSE(Dados_v2!O$4:O$7)) -> 26544.59506 | AR23: =SUMPRODUCT($G23:$J23,TRANSPOSE(Dados_v2!P$4:P$7)) -> 643.9344633
C24: SPL3268 | E24: -43.9282598 | F24: -19.9393729 | G24: 20237 | H24: 4257 | I24: 359 | J24: 126 | M24: Motos | N24: =Dados_v2!O5 -> 0.09300704239 | P24: 1999 | Q24: 139 | S24: 124 | T24: 481 | U24: 2267 | V24: 0 | W24: 15116 | X24: 14 | Y24: 0 | Z24: 344 | AP24: =SUMPRODUCT($G24:$J24,TRANSPOSE(Dados_v2!N$4:N$7)) -> 41254.13193 | AQ24: =SUMPRODUCT($G24:$J24,TRANSPOSE(Dados_v2!O$4:O$7)) -> 7426.431212 | AR24: =SUMPRODUCT($G24:$J24,TRANSPOSE(Dados_v2!P$4:P$7)) -> 143.6759748
C25: SPL3269 | E25: -43.999321 | F25: -19.873925 | G25: 6287 | H25: 970 | I25: 201 | J25: 71 | M25: Ônibus | N25: =Dados_v2!O6 -> 6.053098919 | P25: 2000 | Q25: 77 | S25: 138 | T25: 489 | U25: 3136 | V25: 0 | W25: 15355 | X25: 73 | Y25: 1 | Z25: 529 | AP25: =SUMPRODUCT($G25:$J25,TRANSPOSE(Dados_v2!N$4:N$7)) -> 12266.26953 | AQ25: =SUMPRODUCT($G25:$J25,TRANSPOSE(Dados_v2!O$4:O$7)) -> 2907.140984 | AR25: =SUMPRODUCT($G25:$J25,TRANSPOSE(Dados_v2!P$4:P$7)) -> 67.83583277
C26: SPL3271 | E26: -43.952757 | F26: -19.927254 | G26: 47718 | H26: 21369 | I26: 3264 | J26: 1147 | M26: Caminhões | N26: =Dados_v2!O7 -> 2.862841951 | P26: 2001 | Q26: 156 | S26: 208 | T26: 620 | U26: 3541 | V26: 0 | W26: 18573 | X26: 85 | Y26: 3 | Z26: 894 | AP26: =SUMPRODUCT($G26:$J26,TRANSPOSE(Dados_v2!N$4:N$7)) -> 121951.5007 | AQ26: =SUMPRODUCT($G26:$J26,TRANSPOSE(Dados_v2!O$4:O$7)) -> 35631.53899 | AR26: =SUMPRODUCT($G26:$J26,TRANSPOSE(Dados_v2!P$4:P$7)) -> 964.5012894
C27: SPL3272 | E27: -43.993488 | F27: -19.934742 | G27: 34403 | H27: 5207 | I27: 1501 | J27: 292 | P27: 2002 | Q27: 91 | S27: 45 | T27: 509 | U27: 4223 | V27: 0 | W27: 14698 | X27: 147 | Y27: 3 | Z27: 532 | AP27: =SUMPRODUCT($G27:$J27,TRANSPOSE(Dados_v2!N$4:N$7)) -> 67344.15942 | AQ27: =SUMPRODUCT($G27:$J27,TRANSPOSE(Dados_v2!O$4:O$7)) -> 18050.3846 | AR27: =SUMPRODUCT($G27:$J27,TRANSPOSE(Dados_v2!P$4:P$7)) -> 449.7529686
C28: SPL3273 | E28: -43.9306517 | F28: -19.8646028 | G28: 41679 | H28: 8627 | I28: 3564 | J28: 694 | P28: 2003 | Q28: 103 | S28: 57 | T28: 456 | U28: 5047 | V28: 0 | W28: 16345 | X28: 198 | Y28: 22 | Z28: 522 | AP28: =SUMPRODUCT($G28:$J28,TRANSPOSE(Dados_v2!N$4:N$7)) -> 88154.17965 | AQ28: =SUMPRODUCT($G28:$J28,TRANSPOSE(Dados_v2!O$4:O$7)) -> 33623.62235 | AR28: =SUMPRODUCT($G28:$J28,TRANSPOSE(Dados_v2!P$4:P$7)) -> 967.5846099
C29: SPL3274 | E29: -43.980853 | F29: -19.9302968 | G29: 44070 | H29: 6711 | I29: 1758 | J29: 618 | P29: 2004 | Q29: 131 | S29: 84 | T29: 686 | U29: 4619 | V29: 0 | W29: 13063 | X29: 83 | Y29: 1663 | Z29: 700 | AP29: =SUMPRODUCT($G29:$J29,TRANSPOSE(Dados_v2!N$4:N$7)) -> 86274.86402 | AQ29: =SUMPRODUCT($G29:$J29,TRANSPOSE(Dados_v2!O$4:O$7)) -> 22827.2353 | AR29: =SUMPRODUCT($G29:$J29,TRANSPOSE(Dados_v2!P$4:P$7)) -> 565.5980492
C30: SPL3275 | E30: -43.9701519 | F30: -19.9311106 | G30: 49021 | H30: 8335 | I30: 1957 | J30: 687 | P30: 2005 | Q30: 96 | S30: 77 | T30: 824 | U30: 6828 | V30: 0 | W30: 11807 | X30: 85 | Y30: 6460 | Z30: 776 | AP30: =SUMPRODUCT($G30:$J30,TRANSPOSE(Dados_v2!N$4:N$7)) -> 97618.53468 | AQ30: =SUMPRODUCT($G30:$J30,TRANSPOSE(Dados_v2!O$4:O$7)) -> 25480.50797 | AR30: =SUMPRODUCT($G30:$J30,TRANSPOSE(Dados_v2!P$4:P$7)) -> 629.4259775
C31: SPL3276 | E31: -43.9313474 | F31: -19.8645403 | G31: 35282 | H31: 7543 | I31: 1370 | J31: 368 | P31: 2006 | Q31: 156 | S31: 125 | T31: 852 | U31: 7519 | V31: 0 | W31: 5134 | X31: 77 | Y31: 15094 | Z31: 1095 | AP31: =SUMPRODUCT($G31:$J31,TRANSPOSE(Dados_v2!N$4:N$7)) -> 73080.80048 | AQ31: =SUMPRODUCT($G31:$J31,TRANSPOSE(Dados_v2!O$4:O$7)) -> 17887.58541 | AR31: =SUMPRODUCT($G31:$J31,TRANSPOSE(Dados_v2!P$4:P$7)) -> 431.0366037
C32: SPL3277 | E32: -43.9553699 | F32: -19.9638634 | G32: 34027 | H32: 4445 | I32: 1173 | J32: 450 | M32: Automóveis | N32: =Dados_v2!P4 -> 0.002509189043 | P32: 2007 | Q32: 212 | S32: 157 | T32: 738 | U32: 12449 | V32: 0 | W32: 6019 | X32: 190 | Y32: 20967 | Z32: 1000 | AP32: =SUMPRODUCT($G32:$J32,TRANSPOSE(Dados_v2!N$4:N$7)) -> 64992.17827 | AQ32: =SUMPRODUCT($G32:$J32,TRANSPOSE(Dados_v2!O$4:O$7)) -> 16362.87753 | AR32: =SUMPRODUCT($G32:$J32,TRANSPOSE(Dados_v2!P$4:P$7)) -> 392.9896251
C33: SPL3278 | E33: -44.013794 | F33: -19.97356 | G33: 27888 | H33: 6890 | I33: 2804 | J33: 985 | M33: Motos | N33: =Dados_v2!P5 -> 0 | P33: 2008 | Q33: 332 | S33: 267 | T33: 1217 | U33: 22881 | V33: 2 | W33: 5907 | X33: 254 | Y33: 36083 | Z33: 1612 | AP33: =SUMPRODUCT($G33:$J33,TRANSPOSE(Dados_v2!N$4:N$7)) -> 61839.98121 | AQ33: =SUMPRODUCT($G33:$J33,TRANSPOSE(Dados_v2!O$4:O$7)) -> 26630.40106 | AR33: =SUMPRODUCT($G33:$J33,TRANSPOSE(Dados_v2!P$4:P$7)) -> 795.652367
C34: SPL3279 | E34: -43.948174 | F34: -19.897164 | G34: 38437 | H34: 5624 | I34: 896 | J34: 282 | M34: Ônibus | N34: =Dados_v2!P6 -> 0.2214290004 | P34: 2009 | Q34: 187 | S34: 234 | T34: 1418 | U34: 7798 | V34: 895 | W34: 3888 | X34: 134 | Y34: 32438 | Z34: 1582 | AP34: =SUMPRODUCT($G34:$J34,TRANSPOSE(Dados_v2!N$4:N$7)) -> 73955.30045 | AQ34: =SUMPRODUCT($G34:$J34,TRANSPOSE(Dados_v2!O$4:O$7)) -> 15294.78168 | AR34: =SUMPRODUCT($G34:$J34,TRANSPOSE(Dados_v2!P$4:P$7)) -> 324.8466424
C35: SPL3280 | E35: -43.9643543 | F35: -19.8502858 | G35: 56979 | H35: 11459 | I35: 2492 | J35: 671 | M35: Caminhões | N35: =Dados_v2!P7 -> 0.1063849603 | P35: 2010 | Q35: 303 | S35: 148 | T35: 1874 | U35: 12526 | V35: 2665 | W35: 5853 | X35: 197 | Y35: 46011 | Z35: 1717 | AP35: =SUMPRODUCT($G35:$J35,TRANSPOSE(Dados_v2!N$4:N$7)) -> 117010.7844 | AQ35: =SUMPRODUCT($G35:$J35,TRANSPOSE(Dados_v2!O$4:O$7)) -> 30731.95492 | AR35: =SUMPRODUCT($G35:$J35,TRANSPOSE(Dados_v2!P$4:P$7)) -> 766.1564598
C36: SPL3281 | E36: -43.919865 | F36: -19.84968 | G36: 26415 | H36: 4289 | I36: 1999 | J36: 702 | P36: 2011 | Q36: 420 | S36: 408 | T36: 2231 | U36: 10202 | V36: 4522 | W36: 7341 | X36: 242 | Y36: 48491 | Z36: 2451 | AP36: =SUMPRODUCT($G36:$J36,TRANSPOSE(Dados_v2!N$4:N$7)) -> 53464.85633 | AQ36: =SUMPRODUCT($G36:$J36,TRANSPOSE(Dados_v2!O$4:O$7)) -> 20378.25601 | AR36: =SUMPRODUCT($G36:$J36,TRANSPOSE(Dados_v2!P$4:P$7)) -> 583.5990424
C37: SPL3282 | E37: -43.9653983 | F37: -19.9177699 | G37: 37854 | H37: 5089 | I37: 2517 | J37: 677 | P37: 2012 | Q37: 472 | S37: 369 | T37: 1796 | U37: 9318 | V37: 4781 | W37: 9155 | X37: 392 | Y37: 51333 | Z37: 2546 | AP37: =SUMPRODUCT($G37:$J37,TRANSPOSE(Dados_v2!N$4:N$7)) -> 74053.00298 | AQ37: =SUMPRODUCT($G37:$J37,TRANSPOSE(Dados_v2!O$4:O$7)) -> 26058.37455 | AR37: =SUMPRODUCT($G37:$J37,TRANSPOSE(Dados_v2!P$4:P$7)) -> 724.3422541
C38: SPL3283 | E38: -43.9270843 | F38: -19.9375698 | G38: 10703 | H38: 1227 | I38: 402 | J38: 141 | P38: 2013 | Q38: 394 | S38: 391 | T38: 2092 | U38: 5906 | V38: 4566 | W38: 4837 | X38: 492 | Y38: 64123 | Z38: 3295 | AP38: =SUMPRODUCT($G38:$J38,TRANSPOSE(Dados_v2!N$4:N$7)) -> 20156.08277 | AQ38: =SUMPRODUCT($G38:$J38,TRANSPOSE(Dados_v2!O$4:O$7)) -> 5329.363521 | AR38: =SUMPRODUCT($G38:$J38,TRANSPOSE(Dados_v2!P$4:P$7)) -> 130.8705879
C39: SPL3284 | E39: -43.935591 | F39: -19.840201 | G39: 41728 | H39: 7056 | I39: 3475 | J39: 1221 | P39: 2014 | Q39: 799 | S39: 473 | T39: 1273 | U39: 5599 | V39: 7138 | W39: 5336 | X39: 461 | Y39: 55650 | Z39: 2466 | AP39: =SUMPRODUCT($G39:$J39,TRANSPOSE(Dados_v2!N$4:N$7)) -> 85409.92573 | AQ39: =SUMPRODUCT($G39:$J39,TRANSPOSE(Dados_v2!O$4:O$7)) -> 34458.38814 | AR39: =SUMPRODUCT($G39:$J39,TRANSPOSE(Dados_v2!P$4:P$7)) -> 1004.065253
C40: SPL3285 | E40: -43.9541203 | F40: -19.9276552 | G40: 9925 | H40: 2121 | I40: 3500 | J40: 1230 | P40: 2015 | Q40: 209 | S40: 187 | T40: 717 | U40: 4403 | V40: 7772 | W40: 4590 | X40: 519 | Y40: 53023 | Z40: 2216 | AP40: =SUMPRODUCT($G40:$J40,TRANSPOSE(Dados_v2!N$4:N$7)) -> 24683.21764 | AQ40: =SUMPRODUCT($G40:$J40,TRANSPOSE(Dados_v2!O$4:O$7)) -> 27109.77331 | AR40: =SUMPRODUCT($G40:$J40,TRANSPOSE(Dados_v2!P$4:P$7)) -> 930.7587037
C41: SPL3286 | E41: -43.965559 | F41: -19.8494896 | G41: 38385 | H41: 7570 | I41: 1803 | J41: 633 | P41: 2016 | Q41: 272 | S41: 168 | T41: 570 | U41: 2840 | V41: 5014 | W41: 3165 | X41: 449 | Y41: 40082 | Z41: 1862 | AP41: =SUMPRODUCT($G41:$J41,TRANSPOSE(Dados_v2!N$4:N$7)) -> 78774.01459 | AQ41: =SUMPRODUCT($G41:$J41,TRANSPOSE(Dados_v2!O$4:O$7)) -> 21959.23708 | AR41: =SUMPRODUCT($G41:$J41,TRANSPOSE(Dados_v2!P$4:P$7)) -> 562.893389
C42: SPL3290 | E42: -43.9395953 | F42: -19.8372336 | G42: 34007 | H42: 6447 | I42: 2933 | J42: 789 | P42: 2017 | Q42: 281 | S42: 93 | T42: 299 | U42: 3672 | V42: 4695 | W42: 1866 | X42: 275 | Y42: 34847 | Z42: 2583 | AP42: =SUMPRODUCT($G42:$J42,TRANSPOSE(Dados_v2!N$4:N$7)) -> 70942.43862 | AQ42: =SUMPRODUCT($G42:$J42,TRANSPOSE(Dados_v2!O$4:O$7)) -> 28168.59109 | AR42: =SUMPRODUCT($G42:$J42,TRANSPOSE(Dados_v2!P$4:P$7)) -> 818.7189835
C43: SPL3292 | E43: -43.947625 | F43: -19.819562 | G43: 12501 | H43: 7610 | I43: 4824 | J43: 940 | P43: 2018 | Q43: 188 | S43: 173 | T43: 699 | U43: 4076 | V43: 6148 | W43: 2561 | X43: 494 | Y43: 55358 | Z43: 3654 | AP43: =SUMPRODUCT($G43:$J43,TRANSPOSE(Dados_v2!N$4:N$7)) -> 40632.9818 | AQ43: =SUMPRODUCT($G43:$J43,TRANSPOSE(Dados_v2!O$4:O$7)) -> 35376.76239 | AR43: =SUMPRODUCT($G43:$J43,TRANSPOSE(Dados_v2!P$4:P$7)) -> 1199.542733
C44: SPL3295 | E44: -43.929243 | F44: -19.902055 | G44: 55306 | H44: 9859 | I44: 1364 | J44: 367 | P44: 2019 | Q44: 363 | S44: 272 | T44: 1163 | U44: 4486 | V44: 8330 | W44: 2561 | X44: 361 | Y44: 64656 | Z44: 5965 | AP44: =SUMPRODUCT($G44:$J44,TRANSPOSE(Dados_v2!N$4:N$7)) -> 109829.2067 | AQ44: =SUMPRODUCT($G44:$J44,TRANSPOSE(Dados_v2!O$4:O$7)) -> 22513.1987 | AR44: =SUMPRODUCT($G44:$J44,TRANSPOSE(Dados_v2!P$4:P$7)) -> 479.8456461
C45: SPL3296 | E45: -43.9633381 | F45: -19.9636958 | G45: 27664 | H45: 5418 | I45: 1141 | J45: 222 | P45: 2020 | Q45: 561 | S45: 238 | T45: 1472 | U45: 3923 | V45: 8031 | W45: 2925 | X45: 510 | Y45: 86744 | Z45: 7280 | AP45: =SUMPRODUCT($G45:$J45,TRANSPOSE(Dados_v2!N$4:N$7)) -> 56404.49763 | AQ45: =SUMPRODUCT($G45:$J45,TRANSPOSE(Dados_v2!O$4:O$7)) -> 14193.06934 | AR45: =SUMPRODUCT($G45:$J45,TRANSPOSE(Dados_v2!P$4:P$7)) -> 345.6821563
C46: SPL3299 | E46: -43.9411036 | F46: -19.9290553 | G46: 22407 | H46: 4737 | I46: 881 | J46: 172 | P46: 2021 | Q46: 175 | S46: 412 | T46: 2067 | U46: 4248 | V46: 7180 | W46: 1564 | X46: 150 | Y46: 127283 | Z46: 10740 | AP46: =SUMPRODUCT($G46:$J46,TRANSPOSE(Dados_v2!N$4:N$7)) -> 46293.47572 | AQ46: =SUMPRODUCT($G46:$J46,TRANSPOSE(Dados_v2!O$4:O$7)) -> 11244.6632 | AR46: =SUMPRODUCT($G46:$J46,TRANSPOSE(Dados_v2!P$4:P$7)) -> 269.6005614
C47: SPL3300 | E47: -43.936725 | F47: -19.913972 | G47: 52675 | H47: 6287 | I47: 3314 | J47: 892 | P47: 2022 | Q47: 239 | S47: 470 | T47: 4601 | U47: 6938 | V47: 11020 | W47: 2879 | X47: 232 | Y47: 209009 | Z47: 20006 | AP47: =SUMPRODUCT($G47:$J47,TRANSPOSE(Dados_v2!N$4:N$7)) -> 101299.6959 | AQ47: =SUMPRODUCT($G47:$J47,TRANSPOSE(Dados_v2!O$4:O$7)) -> 34902.89669 | AR47: =SUMPRODUCT($G47:$J47,TRANSPOSE(Dados_v2!P$4:P$7)) -> 960.8826247
C48: SPL3301 | E48: -43.9221576 | F48: -19.9295212 | G48: 29728 | H48: 5895 | I48: 1043 | J48: 281 | P48: 2023 | AP48: =SUMPRODUCT($G48:$J48,TRANSPOSE(Dados_v2!N$4:N$7)) -> 60561.22663 | AQ48: =SUMPRODUCT($G48:$J48,TRANSPOSE(Dados_v2!O$4:O$7)) -> 14271.76442 | AR48: =SUMPRODUCT($G48:$J48,TRANSPOSE(Dados_v2!P$4:P$7)) -> 335.4377931
C49: SPL3302 | E49: -43.9121138 | F49: -19.9185161 | G49: 36712 | H49: 8249 | I49: 1548 | J49: 302 | P49: 2024 | AP49: =SUMPRODUCT($G49:$J49,TRANSPOSE(Dados_v2!N$4:N$7)) -> 76902.86761 | AQ49: =SUMPRODUCT($G49:$J49,TRANSPOSE(Dados_v2!O$4:O$7)) -> 19159.50253 | AR49: =SUMPRODUCT($G49:$J49,TRANSPOSE(Dados_v2!P$4:P$7)) -> 467.0176987
C50: SPL3303 | E50: -43.9093297 | F50: -19.9103259 | G50: 27318 | H50: 6586 | I50: 1407 | J50: 379 | P50: 2025 | AP50: =SUMPRODUCT($G50:$J50,TRANSPOSE(Dados_v2!N$4:N$7)) -> 58442.0311 | AQ50: =SUMPRODUCT($G50:$J50,TRANSPOSE(Dados_v2!O$4:O$7)) -> 16284.40987 | AR50: =SUMPRODUCT($G50:$J50,TRANSPOSE(Dados_v2!P$4:P$7)) -> 420.4165298
C51: SPL3304 | E51: -43.999951 | F51: -19.875145 | G51: 8898 | H51: 1474 | I51: 296 | J51: 80 | P51: Total | Q51: =SUM(Q8:Q49) -> 7396 | R51: 0 | S51: 5894 | T51: 34619 | U51: 174642 | V51: 82759 | W51: 301066 | X51: 39779 | Y51: 1049387 | Z51: 81208 | AP51: =SUMPRODUCT($G51:$J51,TRANSPOSE(Dados_v2!N$4:N$7)) -> 17555.49531 | AQ51: =SUMPRODUCT($G51:$J51,TRANSPOSE(Dados_v2!O$4:O$7)) -> 4134.998222 | AR51: =SUMPRODUCT($G51:$J51,TRANSPOSE(Dados_v2!P$4:P$7)) -> 96.38054504
C52: SPL3305 | E52: -44.0066068 | F52: -19.9468672 | G52: 19307 | H52: 6064 | I52: 2684 | J52: 523 | AP52: =SUMPRODUCT($G52:$J52,TRANSPOSE(Dados_v2!N$4:N$7)) -> 46040.9712 | AQ52: =SUMPRODUCT($G52:$J52,TRANSPOSE(Dados_v2!O$4:O$7)) -> 22597.8495 | AR52: =SUMPRODUCT($G52:$J52,TRANSPOSE(Dados_v2!P$4:P$7)) -> 698.3996841
P53: Total (Cenário base) | Q53: =SUM(Cenários!J5:J44) -> 7396 | R53: =SUM(Cenários!K5:K44) -> 0 | S53: =SUM(Cenários!L5:L44) -> 5894 | T53: =SUM(Cenários!M5:M44) -> 34619 | U53: =SUM(Cenários!N5:N44) -> 174642 | V53: =SUM(Cenários!O5:O44) -> 82759 | W53: =SUM(Cenários!P5:P44) -> 301066 | X53: =SUM(Cenários!Q5:Q44) -> 39779 | Y53: =SUM(Cenários!R5:R44) -> 1049387 | Z53: =SUM(Cenários!S5:S44) -> 81208 | AP53: =SUMPRODUCT($G53:$J53,TRANSPOSE(Dados_v2!N$4:N$7)) -> 0 | AQ53: =SUMPRODUCT($G53:$J53,TRANSPOSE(Dados_v2!O$4:O$7)) -> 0 | AR53: =SUMPRODUCT($G53:$J53,TRANSPOSE(Dados_v2!P$4:P$7)) -> 0
AP54: =SUMPRODUCT($G54:$J54,TRANSPOSE(Dados_v2!N$4:N$7)) -> 0 | AQ54: =SUMPRODUCT($G54:$J54,TRANSPOSE(Dados_v2!O$4:O$7)) -> 0 | AR54: =SUMPRODUCT($G54:$J54,TRANSPOSE(Dados_v2!P$4:P$7)) -> 0
AP55: =SUMPRODUCT($G55:$J55,TRANSPOSE(Dados_v2!N$4:N$7)) -> 0 | AQ55: =SUMPRODUCT($G55:$J55,TRANSPOSE(Dados_v2!O$4:O$7)) -> 0 | AR55: =SUMPRODUCT($G55:$J55,TRANSPOSE(Dados_v2!P$4:P$7)) -> 0
AP56: =SUMPRODUCT($G56:$J56,TRANSPOSE(Dados_v2!N$4:N$7)) -> 0 | AQ56: =SUMPRODUCT($G56:$J56,TRANSPOSE(Dados_v2!O$4:O$7)) -> 0 | AR56: =SUMPRODUCT($G56:$J56,TRANSPOSE(Dados_v2!P$4:P$7)) -> 0
AP57: =SUMPRODUCT($G57:$J57,TRANSPOSE(Dados_v2!N$4:N$7)) -> 0 | AQ57: =SUMPRODUCT($G57:$J57,TRANSPOSE(Dados_v2!O$4:O$7)) -> 0 | AR57: =SUMPRODUCT($G57:$J57,TRANSPOSE(Dados_v2!P$4:P$7)) -> 0
AP58: =SUMPRODUCT($G58:$J58,TRANSPOSE(Dados_v2!N$4:N$7)) -> 0 | AQ58: =SUMPRODUCT($G58:$J58,TRANSPOSE(Dados_v2!O$4:O$7)) -> 0 | AR58: =SUMPRODUCT($G58:$J58,TRANSPOSE(Dados_v2!P$4:P$7)) -> 0
AP59: =SUMPRODUCT($G59:$J59,TRANSPOSE(Dados_v2!N$4:N$7)) -> 0 | AQ59: =SUMPRODUCT($G59:$J59,TRANSPOSE(Dados_v2!O$4:O$7)) -> 0 | AR59: =SUMPRODUCT($G59:$J59,TRANSPOSE(Dados_v2!P$4:P$7)) -> 0
AP60: =SUMPRODUCT($G60:$J60,TRANSPOSE(Dados_v2!N$4:N$7)) -> 0 | AQ60: =SUMPRODUCT($G60:$J60,TRANSPOSE(Dados_v2!O$4:O$7)) -> 0 | AR60: =SUMPRODUCT($G60:$J60,TRANSPOSE(Dados_v2!P$4:P$7)) -> 0
AP61: =SUMPRODUCT($G61:$J61,TRANSPOSE(Dados_v2!N$4:N$7)) -> 0 | AQ61: =SUMPRODUCT($G61:$J61,TRANSPOSE(Dados_v2!O$4:O$7)) -> 0 | AR61: =SUMPRODUCT($G61:$J61,TRANSPOSE(Dados_v2!P$4:P$7)) -> 0
AP62: =SUMPRODUCT($G62:$J62,TRANSPOSE(Dados_v2!N$4:N$7)) -> 0 | AQ62: =SUMPRODUCT($G62:$J62,TRANSPOSE(Dados_v2!O$4:O$7)) -> 0 | AR62: =SUMPRODUCT($G62:$J62,TRANSPOSE(Dados_v2!P$4:P$7)) -> 0
AP63: =SUMPRODUCT($G63:$J63,TRANSPOSE(Dados_v2!N$4:N$7)) -> 0 | AQ63: =SUMPRODUCT($G63:$J63,TRANSPOSE(Dados_v2!O$4:O$7)) -> 0 | AR63: =SUMPRODUCT($G63:$J63,TRANSPOSE(Dados_v2!P$4:P$7)) -> 0
AP64: =SUMPRODUCT($G64:$J64,TRANSPOSE(Dados_v2!N$4:N$7)) -> 0 | AQ64: =SUMPRODUCT($G64:$J64,TRANSPOSE(Dados_v2!O$4:O$7)) -> 0 | AR64: =SUMPRODUCT($G64:$J64,TRANSPOSE(Dados_v2!P$4:P$7)) -> 0
AP65: =SUMPRODUCT($G65:$J65,TRANSPOSE(Dados_v2!N$4:N$7)) -> 0 | AQ65: =SUMPRODUCT($G65:$J65,TRANSPOSE(Dados_v2!O$4:O$7)) -> 0 | AR65: =SUMPRODUCT($G65:$J65,TRANSPOSE(Dados_v2!P$4:P$7)) -> 0
AP66: =SUMPRODUCT($G66:$J66,TRANSPOSE(Dados_v2!N$4:N$7)) -> 0 | AQ66: =SUMPRODUCT($G66:$J66,TRANSPOSE(Dados_v2!O$4:O$7)) -> 0 | AR66: =SUMPRODUCT($G66:$J66,TRANSPOSE(Dados_v2!P$4:P$7)) -> 0
AP67: =SUMPRODUCT($G67:$J67,TRANSPOSE(Dados_v2!N$4:N$7)) -> 0 | AQ67: =SUMPRODUCT($G67:$J67,TRANSPOSE(Dados_v2!O$4:O$7)) -> 0 | AR67: =SUMPRODUCT($G67:$J67,TRANSPOSE(Dados_v2!P$4:P$7)) -> 0
AP68: =SUMPRODUCT($G68:$J68,TRANSPOSE(Dados_v2!N$4:N$7)) -> 0 | AQ68: =SUMPRODUCT($G68:$J68,TRANSPOSE(Dados_v2!O$4:O$7)) -> 0 | AR68: =SUMPRODUCT($G68:$J68,TRANSPOSE(Dados_v2!P$4:P$7)) -> 0
AP69: =SUMPRODUCT($G69:$J69,TRANSPOSE(Dados_v2!N$4:N$7)) -> 0 | AQ69: =SUMPRODUCT($G69:$J69,TRANSPOSE(Dados_v2!O$4:O$7)) -> 0 | AR69: =SUMPRODUCT($G69:$J69,TRANSPOSE(Dados_v2!P$4:P$7)) -> 0
AP70: =SUMPRODUCT($G70:$J70,TRANSPOSE(Dados_v2!N$4:N$7)) -> 0 | AQ70: =SUMPRODUCT($G70:$J70,TRANSPOSE(Dados_v2!O$4:O$7)) -> 0 | AR70: =SUMPRODUCT($G70:$J70,TRANSPOSE(Dados_v2!P$4:P$7)) -> 0
AP71: =SUMPRODUCT($G71:$J71,TRANSPOSE(Dados_v2!N$4:N$7)) -> 0 | AQ71: =SUMPRODUCT($G71:$J71,TRANSPOSE(Dados_v2!O$4:O$7)) -> 0 | AR71: =SUMPRODUCT($G71:$J71,TRANSPOSE(Dados_v2!P$4:P$7)) -> 0
AP72: =SUMPRODUCT($G72:$J72,TRANSPOSE(Dados_v2!N$4:N$7)) -> 0 | AQ72: =SUMPRODUCT($G72:$J72,TRANSPOSE(Dados_v2!O$4:O$7)) -> 0 | AR72: =SUMPRODUCT($G72:$J72,TRANSPOSE(Dados_v2!P$4:P$7)) -> 0
AP73: =SUMPRODUCT($G73:$J73,TRANSPOSE(Dados_v2!N$4:N$7)) -> 0 | AQ73: =SUMPRODUCT($G73:$J73,TRANSPOSE(Dados_v2!O$4:O$7)) -> 0 | AR73: =SUMPRODUCT($G73:$J73,TRANSPOSE(Dados_v2!P$4:P$7)) -> 0
AP74: =SUMPRODUCT($G74:$J74,TRANSPOSE(Dados_v2!N$4:N$7)) -> 0 | AQ74: =SUMPRODUCT($G74:$J74,TRANSPOSE(Dados_v2!O$4:O$7)) -> 0 | AR74: =SUMPRODUCT($G74:$J74,TRANSPOSE(Dados_v2!P$4:P$7)) -> 0
AP75: =SUMPRODUCT($G75:$J75,TRANSPOSE(Dados_v2!N$4:N$7)) -> 0 | AQ75: =SUMPRODUCT($G75:$J75,TRANSPOSE(Dados_v2!O$4:O$7)) -> 0 | AR75: =SUMPRODUCT($G75:$J75,TRANSPOSE(Dados_v2!P$4:P$7)) -> 0
AP76: =SUMPRODUCT($G76:$J76,TRANSPOSE(Dados_v2!N$4:N$7)) -> 0 | AQ76: =SUMPRODUCT($G76:$J76,TRANSPOSE(Dados_v2!O$4:O$7)) -> 0 | AR76: =SUMPRODUCT($G76:$J76,TRANSPOSE(Dados_v2!P$4:P$7)) -> 0
AP77: =SUMPRODUCT($G77:$J77,TRANSPOSE(Dados_v2!N$4:N$7)) -> 0 | AQ77: =SUMPRODUCT($G77:$J77,TRANSPOSE(Dados_v2!O$4:O$7)) -> 0 | AR77: =SUMPRODUCT($G77:$J77,TRANSPOSE(Dados_v2!P$4:P$7)) -> 0
AP78: =SUMPRODUCT($G78:$J78,TRANSPOSE(Dados_v2!N$4:N$7)) -> 0 | AQ78: =SUMPRODUCT($G78:$J78,TRANSPOSE(Dados_v2!O$4:O$7)) -> 0 | AR78: =SUMPRODUCT($G78:$J78,TRANSPOSE(Dados_v2!P$4:P$7)) -> 0
AP79: =SUMPRODUCT($G79:$J79,TRANSPOSE(Dados_v2!N$4:N$7)) -> 0 | AQ79: =SUMPRODUCT($G79:$J79,TRANSPOSE(Dados_v2!O$4:O$7)) -> 0 | AR79: =SUMPRODUCT($G79:$J79,TRANSPOSE(Dados_v2!P$4:P$7)) -> 0
AP80: =SUMPRODUCT($G80:$J80,TRANSPOSE(Dados_v2!N$4:N$7)) -> 0 | AQ80: =SUMPRODUCT($G80:$J80,TRANSPOSE(Dados_v2!O$4:O$7)) -> 0 | AR80: =SUMPRODUCT($G80:$J80,TRANSPOSE(Dados_v2!P$4:P$7)) -> 0
AP81: =SUMPRODUCT($G81:$J81,TRANSPOSE(Dados_v2!N$4:N$7)) -> 0 | AQ81: =SUMPRODUCT($G81:$J81,TRANSPOSE(Dados_v2!O$4:O$7)) -> 0 | AR81: =SUMPRODUCT($G81:$J81,TRANSPOSE(Dados_v2!P$4:P$7)) -> 0
AP82: =SUMPRODUCT($G82:$J82,TRANSPOSE(Dados_v2!N$4:N$7)) -> 0 | AQ82: =SUMPRODUCT($G82:$J82,TRANSPOSE(Dados_v2!O$4:O$7)) -> 0 | AR82: =SUMPRODUCT($G82:$J82,TRANSPOSE(Dados_v2!P$4:P$7)) -> 0
AP83: =SUMPRODUCT($G83:$J83,TRANSPOSE(Dados_v2!N$4:N$7)) -> 0 | AQ83: =SUMPRODUCT($G83:$J83,TRANSPOSE(Dados_v2!O$4:O$7)) -> 0 | AR83: =SUMPRODUCT($G83:$J83,TRANSPOSE(Dados_v2!P$4:P$7)) -> 0
AP84: =SUMPRODUCT($G84:$J84,TRANSPOSE(Dados_v2!N$4:N$7)) -> 0 | AQ84: =SUMPRODUCT($G84:$J84,TRANSPOSE(Dados_v2!O$4:O$7)) -> 0 | AR84: =SUMPRODUCT($G84:$J84,TRANSPOSE(Dados_v2!P$4:P$7)) -> 0
AP85: =SUMPRODUCT($G85:$J85,TRANSPOSE(Dados_v2!N$4:N$7)) -> 0 | AQ85: =SUMPRODUCT($G85:$J85,TRANSPOSE(Dados_v2!O$4:O$7)) -> 0 | AR85: =SUMPRODUCT($G85:$J85,TRANSPOSE(Dados_v2!P$4:P$7)) -> 0
AP86: =SUMPRODUCT($G86:$J86,TRANSPOSE(Dados_v2!N$4:N$7)) -> 0 | AQ86: =SUMPRODUCT($G86:$J86,TRANSPOSE(Dados_v2!O$4:O$7)) -> 0 | AR86: =SUMPRODUCT($G86:$J86,TRANSPOSE(Dados_v2!P$4:P$7)) -> 0
AP87: =SUMPRODUCT($G87:$J87,TRANSPOSE(Dados_v2!N$4:N$7)) -> 0 | AQ87: =SUMPRODUCT($G87:$J87,TRANSPOSE(Dados_v2!O$4:O$7)) -> 0 | AR87: =SUMPRODUCT($G87:$J87,TRANSPOSE(Dados_v2!P$4:P$7)) -> 0
AP88: =SUMPRODUCT($G88:$J88,TRANSPOSE(Dados_v2!N$4:N$7)) -> 0 | AQ88: =SUMPRODUCT($G88:$J88,TRANSPOSE(Dados_v2!O$4:O$7)) -> 0 | AR88: =SUMPRODUCT($G88:$J88,TRANSPOSE(Dados_v2!P$4:P$7)) -> 0
AP89: =SUMPRODUCT($G89:$J89,TRANSPOSE(Dados_v2!N$4:N$7)) -> 0 | AQ89: =SUMPRODUCT($G89:$J89,TRANSPOSE(Dados_v2!O$4:O$7)) -> 0 | AR89: =SUMPRODUCT($G89:$J89,TRANSPOSE(Dados_v2!P$4:P$7)) -> 0
AP90: =SUMPRODUCT($G90:$J90,TRANSPOSE(Dados_v2!N$4:N$7)) -> 0 | AQ90: =SUMPRODUCT($G90:$J90,TRANSPOSE(Dados_v2!O$4:O$7)) -> 0 | AR90: =SUMPRODUCT($G90:$J90,TRANSPOSE(Dados_v2!P$4:P$7)) -> 0
AP91: =SUMPRODUCT($G91:$J91,TRANSPOSE(Dados_v2!N$4:N$7)) -> 0 | AQ91: =SUMPRODUCT($G91:$J91,TRANSPOSE(Dados_v2!O$4:O$7)) -> 0 | AR91: =SUMPRODUCT($G91:$J91,TRANSPOSE(Dados_v2!P$4:P$7)) -> 0
AP92: =SUMPRODUCT($G92:$J92,TRANSPOSE(Dados_v2!N$4:N$7)) -> 0 | AQ92: =SUMPRODUCT($G92:$J92,TRANSPOSE(Dados_v2!O$4:O$7)) -> 0 | AR92: =SUMPRODUCT($G92:$J92,TRANSPOSE(Dados_v2!P$4:P$7)) -> 0
AP93: =SUMPRODUCT($G93:$J93,TRANSPOSE(Dados_v2!N$4:N$7)) -> 0 | AQ93: =SUMPRODUCT($G93:$J93,TRANSPOSE(Dados_v2!O$4:O$7)) -> 0 | AR93: =SUMPRODUCT($G93:$J93,TRANSPOSE(Dados_v2!P$4:P$7)) -> 0
AP94: =SUMPRODUCT($G94:$J94,TRANSPOSE(Dados_v2!N$4:N$7)) -> 0 | AQ94: =SUMPRODUCT($G94:$J94,TRANSPOSE(Dados_v2!O$4:O$7)) -> 0 | AR94: =SUMPRODUCT($G94:$J94,TRANSPOSE(Dados_v2!P$4:P$7)) -> 0
AP95: =SUMPRODUCT($G95:$J95,TRANSPOSE(Dados_v2!N$4:N$7)) -> 0 | AQ95: =SUMPRODUCT($G95:$J95,TRANSPOSE(Dados_v2!O$4:O$7)) -> 0 | AR95: =SUMPRODUCT($G95:$J95,TRANSPOSE(Dados_v2!P$4:P$7)) -> 0
AP96: =SUMPRODUCT($G96:$J96,TRANSPOSE(Dados_v2!N$4:N$7)) -> 0 | AQ96: =SUMPRODUCT($G96:$J96,TRANSPOSE(Dados_v2!O$4:O$7)) -> 0 | AR96: =SUMPRODUCT($G96:$J96,TRANSPOSE(Dados_v2!P$4:P$7)) -> 0
AP97: =SUMPRODUCT($G97:$J97,TRANSPOSE(Dados_v2!N$4:N$7)) -> 0 | AQ97: =SUMPRODUCT($G97:$J97,TRANSPOSE(Dados_v2!O$4:O$7)) -> 0 | AR97: =SUMPRODUCT($G97:$J97,TRANSPOSE(Dados_v2!P$4:P$7)) -> 0
AP98: =SUMPRODUCT($G98:$J98,TRANSPOSE(Dados_v2!N$4:N$7)) -> 0 | AQ98: =SUMPRODUCT($G98:$J98,TRANSPOSE(Dados_v2!O$4:O$7)) -> 0 | AR98: =SUMPRODUCT($G98:$J98,TRANSPOSE(Dados_v2!P$4:P$7)) -> 0
AP99: =SUMPRODUCT($G99:$J99,TRANSPOSE(Dados_v2!N$4:N$7)) -> 0 | AQ99: =SUMPRODUCT($G99:$J99,TRANSPOSE(Dados_v2!O$4:O$7)) -> 0 | AR99: =SUMPRODUCT($G99:$J99,TRANSPOSE(Dados_v2!P$4:P$7)) -> 0
AP100: =SUMPRODUCT($G100:$J100,TRANSPOSE(Dados_v2!N$4:N$7)) -> 0 | AQ100: =SUMPRODUCT($G100:$J100,TRANSPOSE(Dados_v2!O$4:O$7)) -> 0 | AR100: =SUMPRODUCT($G100:$J100,TRANSPOSE(Dados_v2!P$4:P$7)) -> 0
AP101: =SUMPRODUCT($G101:$J101,TRANSPOSE(Dados_v2!N$4:N$7)) -> 0 | AQ101: =SUMPRODUCT($G101:$J101,TRANSPOSE(Dados_v2!O$4:O$7)) -> 0 | AR101: =SUMPRODUCT($G101:$J101,TRANSPOSE(Dados_v2!P$4:P$7)) -> 0
AP102: =SUMPRODUCT($G102:$J102,TRANSPOSE(Dados_v2!N$4:N$7)) -> 0 | AQ102: =SUMPRODUCT($G102:$J102,TRANSPOSE(Dados_v2!O$4:O$7)) -> 0 | AR102: =SUMPRODUCT($G102:$J102,TRANSPOSE(Dados_v2!P$4:P$7)) -> 0
AP103: =SUMPRODUCT($G103:$J103,TRANSPOSE(Dados_v2!N$4:N$7)) -> 0 | AQ103: =SUMPRODUCT($G103:$J103,TRANSPOSE(Dados_v2!O$4:O$7)) -> 0 | AR103: =SUMPRODUCT($G103:$J103,TRANSPOSE(Dados_v2!P$4:P$7)) -> 0
AP104: =SUMPRODUCT($G104:$J104,TRANSPOSE(Dados_v2!N$4:N$7)) -> 0 | AQ104: =SUMPRODUCT($G104:$J104,TRANSPOSE(Dados_v2!O$4:O$7)) -> 0 | AR104: =SUMPRODUCT($G104:$J104,TRANSPOSE(Dados_v2!P$4:P$7)) -> 0
AP105: =SUMPRODUCT($G105:$J105,TRANSPOSE(Dados_v2!N$4:N$7)) -> 0 | AQ105: =SUMPRODUCT($G105:$J105,TRANSPOSE(Dados_v2!O$4:O$7)) -> 0 | AR105: =SUMPRODUCT($G105:$J105,TRANSPOSE(Dados_v2!P$4:P$7)) -> 0
AP106: =SUMPRODUCT($G106:$J106,TRANSPOSE(Dados_v2!N$4:N$7)) -> 0 | AQ106: =SUMPRODUCT($G106:$J106,TRANSPOSE(Dados_v2!O$4:O$7)) -> 0 | AR106: =SUMPRODUCT($G106:$J106,TRANSPOSE(Dados_v2!P$4:P$7)) -> 0
AP107: =SUMPRODUCT($G107:$J107,TRANSPOSE(Dados_v2!N$4:N$7)) -> 0 | AQ107: =SUMPRODUCT($G107:$J107,TRANSPOSE(Dados_v2!O$4:O$7)) -> 0 | AR107: =SUMPRODUCT($G107:$J107,TRANSPOSE(Dados_v2!P$4:P$7)) -> 0
AP108: =SUMPRODUCT($G108:$J108,TRANSPOSE(Dados_v2!N$4:N$7)) -> 0 | AQ108: =SUMPRODUCT($G108:$J108,TRANSPOSE(Dados_v2!O$4:O$7)) -> 0 | AR108: =SUMPRODUCT($G108:$J108,TRANSPOSE(Dados_v2!P$4:P$7)) -> 0
AP109: =SUMPRODUCT($G109:$J109,TRANSPOSE(Dados_v2!N$4:N$7)) -> 0 | AQ109: =SUMPRODUCT($G109:$J109,TRANSPOSE(Dados_v2!O$4:O$7)) -> 0 | AR109: =SUMPRODUCT($G109:$J109,TRANSPOSE(Dados_v2!P$4:P$7)) -> 0
AP110: =SUMPRODUCT($G110:$J110,TRANSPOSE(Dados_v2!N$4:N$7)) -> 0 | AQ110: =SUMPRODUCT($G110:$J110,TRANSPOSE(Dados_v2!O$4:O$7)) -> 0 | AR110: =SUMPRODUCT($G110:$J110,TRANSPOSE(Dados_v2!P$4:P$7)) -> 0
AP111: =SUMPRODUCT($G111:$J111,TRANSPOSE(Dados_v2!N$4:N$7)) -> 0 | AQ111: =SUMPRODUCT($G111:$J111,TRANSPOSE(Dados_v2!O$4:O$7)) -> 0 | AR111: =SUMPRODUCT($G111:$J111,TRANSPOSE(Dados_v2!P$4:P$7)) -> 0
AP112: =SUMPRODUCT($G112:$J112,TRANSPOSE(Dados_v2!N$4:N$7)) -> 0 | AQ112: =SUMPRODUCT($G112:$J112,TRANSPOSE(Dados_v2!O$4:O$7)) -> 0 | AR112: =SUMPRODUCT($G112:$J112,TRANSPOSE(Dados_v2!P$4:P$7)) -> 0
AP113: =SUMPRODUCT($G113:$J113,TRANSPOSE(Dados_v2!N$4:N$7)) -> 0 | AQ113: =SUMPRODUCT($G113:$J113,TRANSPOSE(Dados_v2!O$4:O$7)) -> 0 | AR113: =SUMPRODUCT($G113:$J113,TRANSPOSE(Dados_v2!P$4:P$7)) -> 0
AP114: =SUMPRODUCT($G114:$J114,TRANSPOSE(Dados_v2!N$4:N$7)) -> 0 | AQ114: =SUMPRODUCT($G114:$J114,TRANSPOSE(Dados_v2!O$4:O$7)) -> 0 | AR114: =SUMPRODUCT($G114:$J114,TRANSPOSE(Dados_v2!P$4:P$7)) -> 0
AP115: =SUMPRODUCT($G115:$J115,TRANSPOSE(Dados_v2!N$4:N$7)) -> 0 | AQ115: =SUMPRODUCT($G115:$J115,TRANSPOSE(Dados_v2!O$4:O$7)) -> 0 | AR115: =SUMPRODUCT($G115:$J115,TRANSPOSE(Dados_v2!P$4:P$7)) -> 0
AP116: =SUMPRODUCT($G116:$J116,TRANSPOSE(Dados_v2!N$4:N$7)) -> 0 | AQ116: =SUMPRODUCT($G116:$J116,TRANSPOSE(Dados_v2!O$4:O$7)) -> 0 | AR116: =SUMPRODUCT($G116:$J116,TRANSPOSE(Dados_v2!P$4:P$7)) -> 0
AP117: =SUMPRODUCT($G117:$J117,TRANSPOSE(Dados_v2!N$4:N$7)) -> 0 | AQ117: =SUMPRODUCT($G117:$J117,TRANSPOSE(Dados_v2!O$4:O$7)) -> 0 | AR117: =SUMPRODUCT($G117:$J117,TRANSPOSE(Dados_v2!P$4:P$7)) -> 0
AP118: =SUMPRODUCT($G118:$J118,TRANSPOSE(Dados_v2!N$4:N$7)) -> 0 | AQ118: =SUMPRODUCT($G118:$J118,TRANSPOSE(Dados_v2!O$4:O$7)) -> 0 | AR118: =SUMPRODUCT($G118:$J118,TRANSPOSE(Dados_v2!P$4:P$7)) -> 0
AP119: =SUMPRODUCT($G119:$J119,TRANSPOSE(Dados_v2!N$4:N$7)) -> 0 | AQ119: =SUMPRODUCT($G119:$J119,TRANSPOSE(Dados_v2!O$4:O$7)) -> 0 | AR119: =SUMPRODUCT($G119:$J119,TRANSPOSE(Dados_v2!P$4:P$7)) -> 0
AP120: =SUMPRODUCT($G120:$J120,TRANSPOSE(Dados_v2!N$4:N$7)) -> 0 | AQ120: =SUMPRODUCT($G120:$J120,TRANSPOSE(Dados_v2!O$4:O$7)) -> 0 | AR120: =SUMPRODUCT($G120:$J120,TRANSPOSE(Dados_v2!P$4:P$7)) -> 0
AP121: =SUMPRODUCT($G121:$J121,TRANSPOSE(Dados_v2!N$4:N$7)) -> 0 | AQ121: =SUMPRODUCT($G121:$J121,TRANSPOSE(Dados_v2!O$4:O$7)) -> 0 | AR121: =SUMPRODUCT($G121:$J121,TRANSPOSE(Dados_v2!P$4:P$7)) -> 0
AP122: =SUMPRODUCT($G122:$J122,TRANSPOSE(Dados_v2!N$4:N$7)) -> 0 | AQ122: =SUMPRODUCT($G122:$J122,TRANSPOSE(Dados_v2!O$4:O$7)) -> 0 | AR122: =SUMPRODUCT($G122:$J122,TRANSPOSE(Dados_v2!P$4:P$7)) -> 0
AP123: =SUMPRODUCT($G123:$J123,TRANSPOSE(Dados_v2!N$4:N$7)) -> 0 | AQ123: =SUMPRODUCT($G123:$J123,TRANSPOSE(Dados_v2!O$4:O$7)) -> 0 | AR123: =SUMPRODUCT($G123:$J123,TRANSPOSE(Dados_v2!P$4:P$7)) -> 0
AP124: =SUMPRODUCT($G124:$J124,TRANSPOSE(Dados_v2!N$4:N$7)) -> 0 | AQ124: =SUMPRODUCT($G124:$J124,TRANSPOSE(Dados_v2!O$4:O$7)) -> 0 | AR124: =SUMPRODUCT($G124:$J124,TRANSPOSE(Dados_v2!P$4:P$7)) -> 0
AP125: =SUMPRODUCT($G125:$J125,TRANSPOSE(Dados_v2!N$4:N$7)) -> 0 | AQ125: =SUMPRODUCT($G125:$J125,TRANSPOSE(Dados_v2!O$4:O$7)) -> 0 | AR125: =SUMPRODUCT($G125:$J125,TRANSPOSE(Dados_v2!P$4:P$7)) -> 0
AP126: =SUMPRODUCT($G126:$J126,TRANSPOSE(Dados_v2!N$4:N$7)) -> 0 | AQ126: =SUMPRODUCT($G126:$J126,TRANSPOSE(Dados_v2!O$4:O$7)) -> 0 | AR126: =SUMPRODUCT($G126:$J126,TRANSPOSE(Dados_v2!P$4:P$7)) -> 0
AP127: =SUMPRODUCT($G127:$J127,TRANSPOSE(Dados_v2!N$4:N$7)) -> 0 | AQ127: =SUMPRODUCT($G127:$J127,TRANSPOSE(Dados_v2!O$4:O$7)) -> 0 | AR127: =SUMPRODUCT($G127:$J127,TRANSPOSE(Dados_v2!P$4:P$7)) -> 0
AP128: =SUMPRODUCT($G128:$J128,TRANSPOSE(Dados_v2!N$4:N$7)) -> 0 | AQ128: =SUMPRODUCT($G128:$J128,TRANSPOSE(Dados_v2!O$4:O$7)) -> 0 | AR128: =SUMPRODUCT($G128:$J128,TRANSPOSE(Dados_v2!P$4:P$7)) -> 0
AP129: =SUMPRODUCT($G129:$J129,TRANSPOSE(Dados_v2!N$4:N$7)) -> 0 | AQ129: =SUMPRODUCT($G129:$J129,TRANSPOSE(Dados_v2!O$4:O$7)) -> 0 | AR129: =SUMPRODUCT($G129:$J129,TRANSPOSE(Dados_v2!P$4:P$7)) -> 0
AP130: =SUMPRODUCT($G130:$J130,TRANSPOSE(Dados_v2!N$4:N$7)) -> 0 | AQ130: =SUMPRODUCT($G130:$J130,TRANSPOSE(Dados_v2!O$4:O$7)) -> 0 | AR130: =SUMPRODUCT($G130:$J130,TRANSPOSE(Dados_v2!P$4:P$7)) -> 0
AP131: =SUMPRODUCT($G131:$J131,TRANSPOSE(Dados_v2!N$4:N$7)) -> 0 | AQ131: =SUMPRODUCT($G131:$J131,TRANSPOSE(Dados_v2!O$4:O$7)) -> 0 | AR131: =SUMPRODUCT($G131:$J131,TRANSPOSE(Dados_v2!P$4:P$7)) -> 0
AP132: =SUMPRODUCT($G132:$J132,TRANSPOSE(Dados_v2!N$4:N$7)) -> 0 | AQ132: =SUMPRODUCT($G132:$J132,TRANSPOSE(Dados_v2!O$4:O$7)) -> 0 | AR132: =SUMPRODUCT($G132:$J132,TRANSPOSE(Dados_v2!P$4:P$7)) -> 0
AP133: =SUMPRODUCT($G133:$J133,TRANSPOSE(Dados_v2!N$4:N$7)) -> 0 | AQ133: =SUMPRODUCT($G133:$J133,TRANSPOSE(Dados_v2!O$4:O$7)) -> 0 | AR133: =SUMPRODUCT($G133:$J133,TRANSPOSE(Dados_v2!P$4:P$7)) -> 0
AP134: =SUMPRODUCT($G134:$J134,TRANSPOSE(Dados_v2!N$4:N$7)) -> 0 | AQ134: =SUMPRODUCT($G134:$J134,TRANSPOSE(Dados_v2!O$4:O$7)) -> 0 | AR134: =SUMPRODUCT($G134:$J134,TRANSPOSE(Dados_v2!P$4:P$7)) -> 0
AP135: =SUMPRODUCT($G135:$J135,TRANSPOSE(Dados_v2!N$4:N$7)) -> 0 | AQ135: =SUMPRODUCT($G135:$J135,TRANSPOSE(Dados_v2!O$4:O$7)) -> 0 | AR135: =SUMPRODUCT($G135:$J135,TRANSPOSE(Dados_v2!P$4:P$7)) -> 0
AP136: =SUMPRODUCT($G136:$J136,TRANSPOSE(Dados_v2!N$4:N$7)) -> 0 | AQ136: =SUMPRODUCT($G136:$J136,TRANSPOSE(Dados_v2!O$4:O$7)) -> 0 | AR136: =SUMPRODUCT($G136:$J136,TRANSPOSE(Dados_v2!P$4:P$7)) -> 0
AP137: =SUMPRODUCT($G137:$J137,TRANSPOSE(Dados_v2!N$4:N$7)) -> 0 | AQ137: =SUMPRODUCT($G137:$J137,TRANSPOSE(Dados_v2!O$4:O$7)) -> 0 | AR137: =SUMPRODUCT($G137:$J137,TRANSPOSE(Dados_v2!P$4:P$7)) -> 0
AP138: =SUMPRODUCT($G138:$J138,TRANSPOSE(Dados_v2!N$4:N$7)) -> 0 | AQ138: =SUMPRODUCT($G138:$J138,TRANSPOSE(Dados_v2!O$4:O$7)) -> 0 | AR138: =SUMPRODUCT($G138:$J138,TRANSPOSE(Dados_v2!P$4:P$7)) -> 0
AP139: =SUMPRODUCT($G139:$J139,TRANSPOSE(Dados_v2!N$4:N$7)) -> 0 | AQ139: =SUMPRODUCT($G139:$J139,TRANSPOSE(Dados_v2!O$4:O$7)) -> 0 | AR139: =SUMPRODUCT($G139:$J139,TRANSPOSE(Dados_v2!P$4:P$7)) -> 0
AP140: =SUMPRODUCT($G140:$J140,TRANSPOSE(Dados_v2!N$4:N$7)) -> 0 | AQ140: =SUMPRODUCT($G140:$J140,TRANSPOSE(Dados_v2!O$4:O$7)) -> 0 | AR140: =SUMPRODUCT($G140:$J140,TRANSPOSE(Dados_v2!P$4:P$7)) -> 0
AP141: =SUMPRODUCT($G141:$J141,TRANSPOSE(Dados_v2!N$4:N$7)) -> 0 | AQ141: =SUMPRODUCT($G141:$J141,TRANSPOSE(Dados_v2!O$4:O$7)) -> 0 | AR141: =SUMPRODUCT($G141:$J141,TRANSPOSE(Dados_v2!P$4:P$7)) -> 0
AP142: =SUMPRODUCT($G142:$J142,TRANSPOSE(Dados_v2!N$4:N$7)) -> 0 | AQ142: =SUMPRODUCT($G142:$J142,TRANSPOSE(Dados_v2!O$4:O$7)) -> 0 | AR142: =SUMPRODUCT($G142:$J142,TRANSPOSE(Dados_v2!P$4:P$7)) -> 0
AP143: =SUMPRODUCT($G143:$J143,TRANSPOSE(Dados_v2!N$4:N$7)) -> 0 | AQ143: =SUMPRODUCT($G143:$J143,TRANSPOSE(Dados_v2!O$4:O$7)) -> 0 | AR143: =SUMPRODUCT($G143:$J143,TRANSPOSE(Dados_v2!P$4:P$7)) -> 0
AP144: =SUMPRODUCT($G144:$J144,TRANSPOSE(Dados_v2!N$4:N$7)) -> 0 | AQ144: =SUMPRODUCT($G144:$J144,TRANSPOSE(Dados_v2!O$4:O$7)) -> 0 | AR144: =SUMPRODUCT($G144:$J144,TRANSPOSE(Dados_v2!P$4:P$7)) -> 0
AP145: =SUMPRODUCT($G145:$J145,TRANSPOSE(Dados_v2!N$4:N$7)) -> 0 | AQ145: =SUMPRODUCT($G145:$J145,TRANSPOSE(Dados_v2!O$4:O$7)) -> 0 | AR145: =SUMPRODUCT($G145:$J145,TRANSPOSE(Dados_v2!P$4:P$7)) -> 0
AP146: =SUMPRODUCT($G146:$J146,TRANSPOSE(Dados_v2!N$4:N$7)) -> 0 | AQ146: =SUMPRODUCT($G146:$J146,TRANSPOSE(Dados_v2!O$4:O$7)) -> 0 | AR146: =SUMPRODUCT($G146:$J146,TRANSPOSE(Dados_v2!P$4:P$7)) -> 0
AP147: =SUMPRODUCT($G147:$J147,TRANSPOSE(Dados_v2!N$4:N$7)) -> 0 | AQ147: =SUMPRODUCT($G147:$J147,TRANSPOSE(Dados_v2!O$4:O$7)) -> 0 | AR147: =SUMPRODUCT($G147:$J147,TRANSPOSE(Dados_v2!P$4:P$7)) -> 0
AP148: =SUMPRODUCT($G148:$J148,TRANSPOSE(Dados_v2!N$4:N$7)) -> 0 | AQ148: =SUMPRODUCT($G148:$J148,TRANSPOSE(Dados_v2!O$4:O$7)) -> 0 | AR148: =SUMPRODUCT($G148:$J148,TRANSPOSE(Dados_v2!P$4:P$7)) -> 0
AP149: =SUMPRODUCT($G149:$J149,TRANSPOSE(Dados_v2!N$4:N$7)) -> 0 | AQ149: =SUMPRODUCT($G149:$J149,TRANSPOSE(Dados_v2!O$4:O$7)) -> 0 | AR149: =SUMPRODUCT($G149:$J149,TRANSPOSE(Dados_v2!P$4:P$7)) -> 0
AP150: =SUMPRODUCT($G150:$J150,TRANSPOSE(Dados_v2!N$4:N$7)) -> 0 | AQ150: =SUMPRODUCT($G150:$J150,TRANSPOSE(Dados_v2!O$4:O$7)) -> 0 | AR150: =SUMPRODUCT($G150:$J150,TRANSPOSE(Dados_v2!P$4:P$7)) -> 0
AP151: =SUMPRODUCT($G151:$J151,TRANSPOSE(Dados_v2!N$4:N$7)) -> 0 | AQ151: =SUMPRODUCT($G151:$J151,TRANSPOSE(Dados_v2!O$4:O$7)) -> 0 | AR151: =SUMPRODUCT($G151:$J151,TRANSPOSE(Dados_v2!P$4:P$7)) -> 0
AP152: =SUMPRODUCT($G152:$J152,TRANSPOSE(Dados_v2!N$4:N$7)) -> 0 | AQ152: =SUMPRODUCT($G152:$J152,TRANSPOSE(Dados_v2!O$4:O$7)) -> 0 | AR152: =SUMPRODUCT($G152:$J152,TRANSPOSE(Dados_v2!P$4:P$7)) -> 0
AP153: =SUMPRODUCT($G153:$J153,TRANSPOSE(Dados_v2!N$4:N$7)) -> 0 | AQ153: =SUMPRODUCT($G153:$J153,TRANSPOSE(Dados_v2!O$4:O$7)) -> 0 | AR153: =SUMPRODUCT($G153:$J153,TRANSPOSE(Dados_v2!P$4:P$7)) -> 0
AP154: =SUMPRODUCT($G154:$J154,TRANSPOSE(Dados_v2!N$4:N$7)) -> 0 | AQ154: =SUMPRODUCT($G154:$J154,TRANSPOSE(Dados_v2!O$4:O$7)) -> 0 | AR154: =SUMPRODUCT($G154:$J154,TRANSPOSE(Dados_v2!P$4:P$7)) -> 0
AP155: =SUMPRODUCT($G155:$J155,TRANSPOSE(Dados_v2!N$4:N$7)) -> 0 | AQ155: =SUMPRODUCT($G155:$J155,TRANSPOSE(Dados_v2!O$4:O$7)) -> 0 | AR155: =SUMPRODUCT($G155:$J155,TRANSPOSE(Dados_v2!P$4:P$7)) -> 0
AP156: =SUMPRODUCT($G156:$J156,TRANSPOSE(Dados_v2!N$4:N$7)) -> 0 | AQ156: =SUMPRODUCT($G156:$J156,TRANSPOSE(Dados_v2!O$4:O$7)) -> 0 | AR156: =SUMPRODUCT($G156:$J156,TRANSPOSE(Dados_v2!P$4:P$7)) -> 0
AP157: =SUMPRODUCT($G157:$J157,TRANSPOSE(Dados_v2!N$4:N$7)) -> 0 | AQ157: =SUMPRODUCT($G157:$J157,TRANSPOSE(Dados_v2!O$4:O$7)) -> 0 | AR157: =SUMPRODUCT($G157:$J157,TRANSPOSE(Dados_v2!P$4:P$7)) -> 0
AP158: =SUMPRODUCT($G158:$J158,TRANSPOSE(Dados_v2!N$4:N$7)) -> 0 | AQ158: =SUMPRODUCT($G158:$J158,TRANSPOSE(Dados_v2!O$4:O$7)) -> 0 | AR158: =SUMPRODUCT($G158:$J158,TRANSPOSE(Dados_v2!P$4:P$7)) -> 0
AP159: =SUMPRODUCT($G159:$J159,TRANSPOSE(Dados_v2!N$4:N$7)) -> 0 | AQ159: =SUMPRODUCT($G159:$J159,TRANSPOSE(Dados_v2!O$4:O$7)) -> 0 | AR159: =SUMPRODUCT($G159:$J159,TRANSPOSE(Dados_v2!P$4:P$7)) -> 0
AP160: =SUMPRODUCT($G160:$J160,TRANSPOSE(Dados_v2!N$4:N$7)) -> 0 | AQ160: =SUMPRODUCT($G160:$J160,TRANSPOSE(Dados_v2!O$4:O$7)) -> 0 | AR160: =SUMPRODUCT($G160:$J160,TRANSPOSE(Dados_v2!P$4:P$7)) -> 0
AP161: =SUMPRODUCT($G161:$J161,TRANSPOSE(Dados_v2!N$4:N$7)) -> 0 | AQ161: =SUMPRODUCT($G161:$J161,TRANSPOSE(Dados_v2!O$4:O$7)) -> 0 | AR161: =SUMPRODUCT($G161:$J161,TRANSPOSE(Dados_v2!P$4:P$7)) -> 0
AP162: =SUMPRODUCT($G162:$J162,TRANSPOSE(Dados_v2!N$4:N$7)) -> 0 | AQ162: =SUMPRODUCT($G162:$J162,TRANSPOSE(Dados_v2!O$4:O$7)) -> 0 | AR162: =SUMPRODUCT($G162:$J162,TRANSPOSE(Dados_v2!P$4:P$7)) -> 0
AP163: =SUMPRODUCT($G163:$J163,TRANSPOSE(Dados_v2!N$4:N$7)) -> 0 | AQ163: =SUMPRODUCT($G163:$J163,TRANSPOSE(Dados_v2!O$4:O$7)) -> 0 | AR163: =SUMPRODUCT($G163:$J163,TRANSPOSE(Dados_v2!P$4:P$7)) -> 0
AP164: =SUMPRODUCT($G164:$J164,TRANSPOSE(Dados_v2!N$4:N$7)) -> 0 | AQ164: =SUMPRODUCT($G164:$J164,TRANSPOSE(Dados_v2!O$4:O$7)) -> 0 | AR164: =SUMPRODUCT($G164:$J164,TRANSPOSE(Dados_v2!P$4:P$7)) -> 0
AP165: =SUMPRODUCT($G165:$J165,TRANSPOSE(Dados_v2!N$4:N$7)) -> 0 | AQ165: =SUMPRODUCT($G165:$J165,TRANSPOSE(Dados_v2!O$4:O$7)) -> 0 | AR165: =SUMPRODUCT($G165:$J165,TRANSPOSE(Dados_v2!P$4:P$7)) -> 0
AP166: =SUMPRODUCT($G166:$J166,TRANSPOSE(Dados_v2!N$4:N$7)) -> 0 | AQ166: =SUMPRODUCT($G166:$J166,TRANSPOSE(Dados_v2!O$4:O$7)) -> 0 | AR166: =SUMPRODUCT($G166:$J166,TRANSPOSE(Dados_v2!P$4:P$7)) -> 0
AP167: =SUMPRODUCT($G167:$J167,TRANSPOSE(Dados_v2!N$4:N$7)) -> 0 | AQ167: =SUMPRODUCT($G167:$J167,TRANSPOSE(Dados_v2!O$4:O$7)) -> 0 | AR167: =SUMPRODUCT($G167:$J167,TRANSPOSE(Dados_v2!P$4:P$7)) -> 0
AP168: =SUMPRODUCT($G168:$J168,TRANSPOSE(Dados_v2!N$4:N$7)) -> 0 | AQ168: =SUMPRODUCT($G168:$J168,TRANSPOSE(Dados_v2!O$4:O$7)) -> 0 | AR168: =SUMPRODUCT($G168:$J168,TRANSPOSE(Dados_v2!P$4:P$7)) -> 0
AP169: =SUMPRODUCT($G169:$J169,TRANSPOSE(Dados_v2!N$4:N$7)) -> 0 | AQ169: =SUMPRODUCT($G169:$J169,TRANSPOSE(Dados_v2!O$4:O$7)) -> 0 | AR169: =SUMPRODUCT($G169:$J169,TRANSPOSE(Dados_v2!P$4:P$7)) -> 0
AP170: =SUMPRODUCT($G170:$J170,TRANSPOSE(Dados_v2!N$4:N$7)) -> 0 | AQ170: =SUMPRODUCT($G170:$J170,TRANSPOSE(Dados_v2!O$4:O$7)) -> 0 | AR170: =SUMPRODUCT($G170:$J170,TRANSPOSE(Dados_v2!P$4:P$7)) -> 0
AP171: =SUMPRODUCT($G171:$J171,TRANSPOSE(Dados_v2!N$4:N$7)) -> 0 | AQ171: =SUMPRODUCT($G171:$J171,TRANSPOSE(Dados_v2!O$4:O$7)) -> 0 | AR171: =SUMPRODUCT($G171:$J171,TRANSPOSE(Dados_v2!P$4:P$7)) -> 0
AP172: =SUMPRODUCT($G172:$J172,TRANSPOSE(Dados_v2!N$4:N$7)) -> 0 | AQ172: =SUMPRODUCT($G172:$J172,TRANSPOSE(Dados_v2!O$4:O$7)) -> 0 | AR172: =SUMPRODUCT($G172:$J172,TRANSPOSE(Dados_v2!P$4:P$7)) -> 0
AP173: =SUMPRODUCT($G173:$J173,TRANSPOSE(Dados_v2!N$4:N$7)) -> 0 | AQ173: =SUMPRODUCT($G173:$J173,TRANSPOSE(Dados_v2!O$4:O$7)) -> 0 | AR173: =SUMPRODUCT($G173:$J173,TRANSPOSE(Dados_v2!P$4:P$7)) -> 0
AP174: =SUMPRODUCT($G174:$J174,TRANSPOSE(Dados_v2!N$4:N$7)) -> 0 | AQ174: =SUMPRODUCT($G174:$J174,TRANSPOSE(Dados_v2!O$4:O$7)) -> 0 | AR174: =SUMPRODUCT($G174:$J174,TRANSPOSE(Dados_v2!P$4:P$7)) -> 0
AP175: =SUMPRODUCT($G175:$J175,TRANSPOSE(Dados_v2!N$4:N$7)) -> 0 | AQ175: =SUMPRODUCT($G175:$J175,TRANSPOSE(Dados_v2!O$4:O$7)) -> 0 | AR175: =SUMPRODUCT($G175:$J175,TRANSPOSE(Dados_v2!P$4:P$7)) -> 0
AP176: =SUMPRODUCT($G176:$J176,TRANSPOSE(Dados_v2!N$4:N$7)) -> 0 | AQ176: =SUMPRODUCT($G176:$J176,TRANSPOSE(Dados_v2!O$4:O$7)) -> 0 | AR176: =SUMPRODUCT($G176:$J176,TRANSPOSE(Dados_v2!P$4:P$7)) -> 0
AP177: =SUMPRODUCT($G177:$J177,TRANSPOSE(Dados_v2!N$4:N$7)) -> 0 | AQ177: =SUMPRODUCT($G177:$J177,TRANSPOSE(Dados_v2!O$4:O$7)) -> 0 | AR177: =SUMPRODUCT($G177:$J177,TRANSPOSE(Dados_v2!P$4:P$7)) -> 0
AP178: =SUMPRODUCT($G178:$J178,TRANSPOSE(Dados_v2!N$4:N$7)) -> 0 | AQ178: =SUMPRODUCT($G178:$J178,TRANSPOSE(Dados_v2!O$4:O$7)) -> 0 | AR178: =SUMPRODUCT($G178:$J178,TRANSPOSE(Dados_v2!P$4:P$7)) -> 0
AP179: =SUMPRODUCT($G179:$J179,TRANSPOSE(Dados_v2!N$4:N$7)) -> 0 | AQ179: =SUMPRODUCT($G179:$J179,TRANSPOSE(Dados_v2!O$4:O$7)) -> 0 | AR179: =SUMPRODUCT($G179:$J179,TRANSPOSE(Dados_v2!P$4:P$7)) -> 0
AP180: =SUMPRODUCT($G180:$J180,TRANSPOSE(Dados_v2!N$4:N$7)) -> 0 | AQ180: =SUMPRODUCT($G180:$J180,TRANSPOSE(Dados_v2!O$4:O$7)) -> 0 | AR180: =SUMPRODUCT($G180:$J180,TRANSPOSE(Dados_v2!P$4:P$7)) -> 0
AP181: =SUMPRODUCT($G181:$J181,TRANSPOSE(Dados_v2!N$4:N$7)) -> 0 | AQ181: =SUMPRODUCT($G181:$J181,TRANSPOSE(Dados_v2!O$4:O$7)) -> 0 | AR181: =SUMPRODUCT($G181:$J181,TRANSPOSE(Dados_v2!P$4:P$7)) -> 0
AP182: =SUMPRODUCT($G182:$J182,TRANSPOSE(Dados_v2!N$4:N$7)) -> 0 | AQ182: =SUMPRODUCT($G182:$J182,TRANSPOSE(Dados_v2!O$4:O$7)) -> 0 | AR182: =SUMPRODUCT($G182:$J182,TRANSPOSE(Dados_v2!P$4:P$7)) -> 0
AP183: =SUMPRODUCT($G183:$J183,TRANSPOSE(Dados_v2!N$4:N$7)) -> 0 | AQ183: =SUMPRODUCT($G183:$J183,TRANSPOSE(Dados_v2!O$4:O$7)) -> 0 | AR183: =SUMPRODUCT($G183:$J183,TRANSPOSE(Dados_v2!P$4:P$7)) -> 0
AP184: =SUMPRODUCT($G184:$J184,TRANSPOSE(Dados_v2!N$4:N$7)) -> 0 | AQ184: =SUMPRODUCT($G184:$J184,TRANSPOSE(Dados_v2!O$4:O$7)) -> 0 | AR184: =SUMPRODUCT($G184:$J184,TRANSPOSE(Dados_v2!P$4:P$7)) -> 0
AP185: =SUMPRODUCT($G185:$J185,TRANSPOSE(Dados_v2!N$4:N$7)) -> 0 | AQ185: =SUMPRODUCT($G185:$J185,TRANSPOSE(Dados_v2!O$4:O$7)) -> 0 | AR185: =SUMPRODUCT($G185:$J185,TRANSPOSE(Dados_v2!P$4:P$7)) -> 0
AP186: =SUMPRODUCT($G186:$J186,TRANSPOSE(Dados_v2!N$4:N$7)) -> 0 | AQ186: =SUMPRODUCT($G186:$J186,TRANSPOSE(Dados_v2!O$4:O$7)) -> 0 | AR186: =SUMPRODUCT($G186:$J186,TRANSPOSE(Dados_v2!P$4:P$7)) -> 0
AP187: =SUMPRODUCT($G187:$J187,TRANSPOSE(Dados_v2!N$4:N$7)) -> 0 | AQ187: =SUMPRODUCT($G187:$J187,TRANSPOSE(Dados_v2!O$4:O$7)) -> 0 | AR187: =SUMPRODUCT($G187:$J187,TRANSPOSE(Dados_v2!P$4:P$7)) -> 0
AP188: =SUMPRODUCT($G188:$J188,TRANSPOSE(Dados_v2!N$4:N$7)) -> 0 | AQ188: =SUMPRODUCT($G188:$J188,TRANSPOSE(Dados_v2!O$4:O$7)) -> 0 | AR188: =SUMPRODUCT($G188:$J188,TRANSPOSE(Dados_v2!P$4:P$7)) -> 0
AP189: =SUMPRODUCT($G189:$J189,TRANSPOSE(Dados_v2!N$4:N$7)) -> 0 | AQ189: =SUMPRODUCT($G189:$J189,TRANSPOSE(Dados_v2!O$4:O$7)) -> 0 | AR189: =SUMPRODUCT($G189:$J189,TRANSPOSE(Dados_v2!P$4:P$7)) -> 0
AP190: =SUMPRODUCT($G190:$J190,TRANSPOSE(Dados_v2!N$4:N$7)) -> 0 | AQ190: =SUMPRODUCT($G190:$J190,TRANSPOSE(Dados_v2!O$4:O$7)) -> 0 | AR190: =SUMPRODUCT($G190:$J190,TRANSPOSE(Dados_v2!P$4:P$7)) -> 0
AP191: =SUMPRODUCT($G191:$J191,TRANSPOSE(Dados_v2!N$4:N$7)) -> 0 | AQ191: =SUMPRODUCT($G191:$J191,TRANSPOSE(Dados_v2!O$4:O$7)) -> 0 | AR191: =SUMPRODUCT($G191:$J191,TRANSPOSE(Dados_v2!P$4:P$7)) -> 0
AP192: =SUMPRODUCT($G192:$J192,TRANSPOSE(Dados_v2!N$4:N$7)) -> 0 | AQ192: =SUMPRODUCT($G192:$J192,TRANSPOSE(Dados_v2!O$4:O$7)) -> 0 | AR192: =SUMPRODUCT($G192:$J192,TRANSPOSE(Dados_v2!P$4:P$7)) -> 0
AP193: =SUMPRODUCT($G193:$J193,TRANSPOSE(Dados_v2!N$4:N$7)) -> 0 | AQ193: =SUMPRODUCT($G193:$J193,TRANSPOSE(Dados_v2!O$4:O$7)) -> 0 | AR193: =SUMPRODUCT($G193:$J193,TRANSPOSE(Dados_v2!P$4:P$7)) -> 0
AP194: =SUMPRODUCT($G194:$J194,TRANSPOSE(Dados_v2!N$4:N$7)) -> 0 | AQ194: =SUMPRODUCT($G194:$J194,TRANSPOSE(Dados_v2!O$4:O$7)) -> 0 | AR194: =SUMPRODUCT($G194:$J194,TRANSPOSE(Dados_v2!P$4:P$7)) -> 0
AP195: =SUMPRODUCT($G195:$J195,TRANSPOSE(Dados_v2!N$4:N$7)) -> 0 | AQ195: =SUMPRODUCT($G195:$J195,TRANSPOSE(Dados_v2!O$4:O$7)) -> 0 | AR195: =SUMPRODUCT($G195:$J195,TRANSPOSE(Dados_v2!P$4:P$7)) -> 0
AP196: =SUMPRODUCT($G196:$J196,TRANSPOSE(Dados_v2!N$4:N$7)) -> 0 | AQ196: =SUMPRODUCT($G196:$J196,TRANSPOSE(Dados_v2!O$4:O$7)) -> 0 | AR196: =SUMPRODUCT($G196:$J196,TRANSPOSE(Dados_v2!P$4:P$7)) -> 0
AP197: =SUMPRODUCT($G197:$J197,TRANSPOSE(Dados_v2!N$4:N$7)) -> 0 | AQ197: =SUMPRODUCT($G197:$J197,TRANSPOSE(Dados_v2!O$4:O$7)) -> 0 | AR197: =SUMPRODUCT($G197:$J197,TRANSPOSE(Dados_v2!P$4:P$7)) -> 0
AP198: =SUMPRODUCT($G198:$J198,TRANSPOSE(Dados_v2!N$4:N$7)) -> 0 | AQ198: =SUMPRODUCT($G198:$J198,TRANSPOSE(Dados_v2!O$4:O$7)) -> 0 | AR198: =SUMPRODUCT($G198:$J198,TRANSPOSE(Dados_v2!P$4:P$7)) -> 0
AP199: =SUMPRODUCT($G199:$J199,TRANSPOSE(Dados_v2!N$4:N$7)) -> 0 | AQ199: =SUMPRODUCT($G199:$J199,TRANSPOSE(Dados_v2!O$4:O$7)) -> 0 | AR199: =SUMPRODUCT($G199:$J199,TRANSPOSE(Dados_v2!P$4:P$7)) -> 0
AP200: =SUMPRODUCT($G200:$J200,TRANSPOSE(Dados_v2!N$4:N$7)) -> 0 | AQ200: =SUMPRODUCT($G200:$J200,TRANSPOSE(Dados_v2!O$4:O$7)) -> 0 | AR200: =SUMPRODUCT($G200:$J200,TRANSPOSE(Dados_v2!P$4:P$7)) -> 0
AP201: =SUMPRODUCT($G201:$J201,TRANSPOSE(Dados_v2!N$4:N$7)) -> 0 | AQ201: =SUMPRODUCT($G201:$J201,TRANSPOSE(Dados_v2!O$4:O$7)) -> 0 | AR201: =SUMPRODUCT($G201:$J201,TRANSPOSE(Dados_v2!P$4:P$7)) -> 0
AP202: =SUMPRODUCT($G202:$J202,TRANSPOSE(Dados_v2!N$4:N$7)) -> 0 | AQ202: =SUMPRODUCT($G202:$J202,TRANSPOSE(Dados_v2!O$4:O$7)) -> 0 | AR202: =SUMPRODUCT($G202:$J202,TRANSPOSE(Dados_v2!P$4:P$7)) -> 0
AP203: =SUMPRODUCT($G203:$J203,TRANSPOSE(Dados_v2!N$4:N$7)) -> 0 | AQ203: =SUMPRODUCT($G203:$J203,TRANSPOSE(Dados_v2!O$4:O$7)) -> 0 | AR203: =SUMPRODUCT($G203:$J203,TRANSPOSE(Dados_v2!P$4:P$7)) -> 0
AP204: =SUMPRODUCT($G204:$J204,TRANSPOSE(Dados_v2!N$4:N$7)) -> 0 | AQ204: =SUMPRODUCT($G204:$J204,TRANSPOSE(Dados_v2!O$4:O$7)) -> 0 | AR204: =SUMPRODUCT($G204:$J204,TRANSPOSE(Dados_v2!P$4:P$7)) -> 0
... 809 more rows

Sheet Análise de Cenários
V18: Tipologia agrupada | W18: CO (g/km) | X18: NOx (g/km) | Y18: MP (g/km)
V19: Automóveis | W19: =SUM('Dados de entrada'!$G$8:$G$1012)*Dados_v2!N4 -> 2343462.297 | X19: =SUM('Dados de entrada'!$G$8:$G$1012)*Dados_v2!O4 -> 322173.5077 | Y19: =SUM('Dados de entrada'!$G$8:$G$1012)*Dados_v2!P4 -> 3638.090758
V20: Motos | W20: =SUM('Dados de entrada'!$H$8:$H$1012)*Dados_v2!N5 -> 525420.5003 | X20: =SUM('Dados de entrada'!$H$8:$H$1012)*Dados_v2!O5 -> 25773.18152 | Y20: =SUM('Dados de entrada'!$H$8:$H$1012)*Dados_v2!P5 -> 0
V21: Ônibus | W21: =SUM('Dados de entrada'!$I$8:$I$1012)*Dados_v2!N6 -> 95661.0625 | X21: =SUM('Dados de entrada'!$I$8:$I$1012)*Dados_v2!O6 -> 504259.4586 | Y21: =SUM('Dados de entrada'!$I$8:$I$1012)*Dados_v2!P6 -> 18446.3643
V22: Caminhões | W22: =SUM('Dados de entrada'!$J$8:$J$1012)*Dados_v2!N7 -> 10963.52492 | X22: =SUM('Dados de entrada'!$J$8:$J$1012)*Dados_v2!O7 -> 64242.17338 | Y22: =SUM('Dados de entrada'!$J$8:$J$1012)*Dados_v2!P7 -> 2387.278509
